Workbook

Sheet Cover
H8: ='Valuation Summary'!L2 -> Theranos Inc.
H10: ='Valuation Summary'!L3&" as of "&TEXT(Control!C7,"dd-mmm-yyyy") -> Common Stock Fair Market Valuation as of 25-Mar-2015
G19: This model is proprietary and Aranca retains the intellectual property rights for the same. We understand that the final valuation report and its conclusions ("Valuation" or the "Opinion") would be used by the Company's Board of Directors (and authorized Board committee) solely in connection with determining the exercise price for granting options to its employees to comply with IRC§409A, and as an input for valuations pursuant to SFAS 123 (R) for financial reporting purposes. The model has been shared with the management to facilitate the understanding and discussions regarding various assumptions used an an input to arrive at a "Fair Market Value'. However, it remains an internal working tool and is intended solely for the above mentioned purpose only. Transmitting or sharing the same in whole or part in any form - digital or otherwise, would require a prior consent of Aranca management.

Sheet Index
K3: =+'Valuation Summary'!L2 -> Theranos Inc.
K4: Common Stock Valuation
B7: =K3 -> Theranos Inc.
B8: INDEX
B10: Valuation Summary
B11: Allocation of Equity Value - Option Pricing Method
B12: Discount For Lack Of Marketablity - DLOM
B13: Income Approach - DCF Valuation
B14: Market Approach - Guidline Trading Multiples
B15: Projected Cash Flow Statement
B16: Projected Balance Sheet
B17: Projected Income Statement
B18: Public Comparables - Snapshot Description

Sheet Control
B1: Control Sheet
R2: =IF(OR(Q2="Terminal",Q2=""),"",IF(#REF!(Q2,#REF!)>#REF!,"Terminal",#REF!(Q2,#REF!))) ->  | S2: =IF(OR(R2="Terminal",R2=""),"",IF(#REF!(R2,#REF!)>#REF!,"Terminal",#REF!(R2,#REF!))) ->  | T2: =IF(OR(S2="Terminal",S2=""),"",IF(#REF!(S2,#REF!)>#REF!,"Terminal",#REF!(S2,#REF!))) ->  | U2: =IF(OR(T2="Terminal",T2=""),"",IF(#REF!(T2,#REF!)>#REF!,"Terminal",#REF!(T2,#REF!))) ->  | V2: =IF(OR(U2="Terminal",U2=""),"",IF(#REF!(U2,#REF!)>#REF!,"Terminal",#REF!(U2,#REF!))) ->  | W2: =IF(OR(V2="Terminal",V2=""),"",IF(#REF!(V2,#REF!)>#REF!,"Terminal",#REF!(V2,#REF!))) ->  | X2: =IF(OR(W2="Terminal",W2=""),"",IF(#REF!(W2,#REF!)>#REF!,"Terminal",#REF!(W2,#REF!))) ->  | Y2: =IF(OR(X2="Terminal",X2=""),"",IF(#REF!(X2,#REF!)>#REF!,"Terminal",#REF!(X2,#REF!))) ->  | Z2: =IF(OR(Y2="Terminal",Y2=""),"",IF(#REF!(Y2,#REF!)>#REF!,"Terminal",#REF!(Y2,#REF!))) ->  | AA2: =IF(OR(Z2="Terminal",Z2=""),"",IF(#REF!(Z2,#REF!)>#REF!,"Terminal",#REF!(Z2,#REF!))) ->  | AB2: =IF(OR(AA2="Terminal",AA2=""),"",IF(#REF!(AA2,#REF!)>#REF!,"Terminal",#REF!(AA2,#REF!))) -> 
B3: Valuation Model Parameters | BE3: X
B4: Figures in | C4: (in $'000) | D4: =IF(C4=B34,1,IF(C4=B35,1000,10^6)) -> 1000 | F4: Use either $'000 or $ million
B5: Latest Annual Historical Financials Available | C5: 2014-12-31 | D5: =MONTH(C5) -> 12
B6: Year to Date Financials | C6: 2015-03-25 | D6: =IF(C6=C5,1,0) -> 0 | E6: =IF(C6>=C5,"OK","Error") -> OK | F6: =IF(E6="Error","YTD can not be earlier than last annual historical financials","--") -> --
B7: Valuation Date | C7: =C6 -> 2015-03-25 | D7: =IF(C6=C7,1,0) -> 1 | E7: =IF(C7>=C6,"OK","Error") -> OK | F7: =IF(E7="Error","Valuation can not be earlier than YTD financials","--") -> --
B8: Forecast (Periodicity) | C8: Annual | D8: =IF(C8="Monthly",1,IF(C8="Quarterly",3,12)) -> 12
C9: Annual | D9: =IF(C9="Monthly",1,IF(C9="Quarterly",3,12)) -> 12
B10: Explicit Year Forecast (Years) | C10: 6 | D10: =C10*(12/D8) -> 6
B11: Last forecasted financial year ends on | C11: =EOMONTH($C$5,C10*12) -> 2020-12-31 | BE11: X
B12: Display Output Sheets (Periodicity) | C12: Annual | D12: =IF(C12="Monthly",1,IF(C12="Quarterly",3,12)) -> 12 | BE12: X
B13: First Quarter Ending from Valuation Date | C13: =EOMONTH(C7,D13) -> 2015-06-30 | D13: =3-ROUND(((ROUND((C7-C5)/30,0)/3)-ROUNDDOWN(ROUND((C7-C5)/30,0)/3,0))*3,0) -> 3 | BE13: X
BD14: X
BD15: X
B16: Applicable Corporate Tax Rate | C16: 0.35 | BD16: X
B18: Amortization Benefits available (Years) | C18: 15
B19: Last year to avail Amortization Benefits | C19: =EOMONTH($C$5,C18*12) -> 2029-12-31
B22: Exact valuation date cash availability | C22: =IF(ISERROR(IF(DCF!B63=Control!$B$22,DCF!C63,"Error")),"n.a",IF(DCF!B63=Control!$B$22,DCF!C63,"Error")) -> 0 | D22: Please enter 1 if available, otherwise enter 0
B23: Exact valuation date debt availability | C23: =IF(ISERROR(IF(DCF!B64=Control!$B$23,DCF!C64,"Error")),"n.a",IF(DCF!B64=Control!$B$23,DCF!C64,"Error")) -> 0 | D23: Please enter 1 if available, otherwise enter 0 | BD23: X
B25: DCF Approach (FCFE/FCFF) | C25: FCFE | D25: Preferably try to use FCFF
BD26: X
BD27: X
BD28: X
BD29: X
BD30: X
BD31: X
BD32: X
B33: Figures in | BD33: X
B34: (in $) | BD34: X
B35: (in $'000) | BD35: X
B36: (in $ million) | BD36: X
BD37: X
BD38: X
BD39: X
BD41: X
BD42: X
BD44: X
BD45: X
BD48: X
BD49: X
BD50: X
BD51: X
BD53: X
BD54: X
BD55: X
BD56: X
BD58: X
BD59: X
BD60: X
BD61: X
BD62: X
BD63: X
BD64: X
BD65: X
BD66: X
BD67: X
BD68: X
BD70: X
BD71: X
BD72: X
BD73: X
BD74: X
BD75: X
BD76: X
BD77: X
BD78: X
BD79: X
BD80: X
BD81: X
BD82: X
BD83: X
BD84: X
BD85: X
BD86: X
BD87: X
BD88: X
BD89: X
BD90: X
BD91: X
BD92: X
BD93: X
BD94: X
BD95: X
BD96: X
BD97: X
BD98: X
BD99: X
BD100: X
BD101: X
BD102: X
BD103: X
BD104: X
BD105: X
BD106: X
BD107: X
BD108: X
BD109: X
BD110: X
BD111: X
BD112: X
BD113: X
BD114: X
BD115: X
BD116: X
BD117: X
BD118: X
BD119: X
BD120: X
BD121: X
BD122: X
BD123: X
BD124: X
BD125: X
BD126: X
BD127: X
BD128: X
BD129: X
BD130: X
BD131: X
BD132: X
BD133: X
BD134: X
BD135: X
BD136: X
BD137: X
BD138: X
BD139: X
BD140: X
BD141: X
BD142: X
BD143: X
BD144: X
BD145: X
BD146: X
BD147: X
BD148: X
BD149: X
BD150: X
BD151: X
BD152: X
BD153: X
BD154: X
BD155: X
BD156: X
BD157: X
BD158: X
BD159: X
BD160: X
BD161: X
BD162: X
BD163: X
BD164: X
BD165: X
BD166: X
BD167: X
BD168: X
BD169: X
BD170: X
BD171: X
BD172: X
BD173: X
BD174: X
BD175: X
BD176: X
BD177: X
BD178: X
BD179: X
BD180: X
BD181: X
BD182: X
BD183: X
BD184: X
BD185: X
BD186: X
BD187: X
BD188: X
BD189: X
BD190: X
BD191: X
BD192: X
BD193: X
BD194: X
BD195: X
BD196: X
BD197: X
BD198: X
BD199: X
BD200: X
BD201: X
BD202: X
BD203: X
BD204: X
BD205: X
BD206: X
BD207: X
BD208: X
BD209: X
BD210: X
BD211: X
... 14 more rows

Sheet Valuation Summary
L2: Theranos Inc.
L3: Common Stock Fair Market Valuation
B4: VALUATION SUMMARY
B6: Particulars | F6: Value | G6: Weight
B8: Date of Valuation | F8: =Control!C7 -> 2015-03-25
B10: Enterprise Value
B11: Income Approach-DCF | F11: =Allocation!$D$5 -> 1993415984 | G11: =Allocation!$E$5 -> 0.25
B13: Market Approach
B14: =Allocation!B6 -> EV - Market Approach - GPC | F14: =Allocation!$D$6 -> 1934061000 | G14: =Allocation!$E$6 -> 0.25
B15: =Allocation!B7 -> EV - Market Approach - Backsolve | F15: =Allocation!$D$7 -> 1923760357 | G15: =Allocation!$E$7 -> 0.5
B16: Concluded Enterprise Value | F16: =Allocation!$F$10 -> 1943749424
B19: Common Stock Value (Before DLOM)
B20: Option Pricing Method | F20: =Allocation!$D$210 -> 2.180310019 | G20: 0.3930045467 | H20: =F20/G20-1 -> 4.54779846
B22: Discount for Lack of Marketability (DLOM) | F22: =Allocation!$C$212 -> 0.285 | G22: 0.1166272804 | H22: =F22/G22-1 -> 1.443682122
B25: Fair Market Value of Common Stock | F25: =Allocation!$D$214 -> 1.558921663 | G25: 0.2763772663 | H25: =F25/G25-1 -> 4.640556781

Sheet Master (hidden)
B1: Control Panel
R2: =IF(OR(Q2="Terminal",Q2=""),"",IF(#REF!(Q2,#REF!)>#REF!,"Terminal",#REF!(Q2,#REF!))) ->  | S2: =IF(OR(R2="Terminal",R2=""),"",IF(#REF!(R2,#REF!)>#REF!,"Terminal",#REF!(R2,#REF!))) ->  | T2: =IF(OR(S2="Terminal",S2=""),"",IF(#REF!(S2,#REF!)>#REF!,"Terminal",#REF!(S2,#REF!))) ->  | U2: =IF(OR(T2="Terminal",T2=""),"",IF(#REF!(T2,#REF!)>#REF!,"Terminal",#REF!(T2,#REF!))) ->  | V2: =IF(OR(U2="Terminal",U2=""),"",IF(#REF!(U2,#REF!)>#REF!,"Terminal",#REF!(U2,#REF!))) ->  | W2: =IF(OR(V2="Terminal",V2=""),"",IF(#REF!(V2,#REF!)>#REF!,"Terminal",#REF!(V2,#REF!))) ->  | X2: =IF(OR(W2="Terminal",W2=""),"",IF(#REF!(W2,#REF!)>#REF!,"Terminal",#REF!(W2,#REF!))) ->  | Y2: =IF(OR(X2="Terminal",X2=""),"",IF(#REF!(X2,#REF!)>#REF!,"Terminal",#REF!(X2,#REF!))) ->  | Z2: =IF(OR(Y2="Terminal",Y2=""),"",IF(#REF!(Y2,#REF!)>#REF!,"Terminal",#REF!(Y2,#REF!))) ->  | AA2: =IF(OR(Z2="Terminal",Z2=""),"",IF(#REF!(Z2,#REF!)>#REF!,"Terminal",#REF!(Z2,#REF!))) ->  | AB2: =IF(OR(AA2="Terminal",AA2=""),"",IF(#REF!(AA2,#REF!)>#REF!,"Terminal",#REF!(AA2,#REF!))) -> 
BD3: X
B4: Income Statement Items | BD4: X
B5: - - | BD5: X
B6: Revenues
B7: Cost of Sales
B8: Direct Costs | BD8: X
B9: Operating Costs | BD9: X
B10: Depreciation | BD10: X
B11: Amortization | BD11: X
B12: Interest & Finance Costs | BD12: X
B13: Non-Operating Income / (Expense) | BD13: X
B14: Exceptional Income /(Expense) | BD14: X
B15: Income/ (Loss) - Investments & Affiliates | BD15: X
B16: Equity Minority Interests | BD16: X
B17: Income Tax | BD17: X
BD18: X
BD19: X
BD20: X
B21: Balance Sheet Items | BD21: X
B22: - - | BD22: X
B23: Cash & Cash Equivalents
B24: Investments | BD24: X
B25: Trade Receivables | BD25: X
B26: Prepaid Expenses/ Advances
B27: Other Receivables | BD27: X
B28: Inventory | BD28: X
B29: Deferred Costs
B30: Misc. Expenditure (To be W/Off)
B31: Deferred Tax Assets | BD31: X
B32: Other Current Assets | BD32: X
B33: Other Operating Assets | BD33: X
B34: Fixed Assets (Gross) | BD34: X
B35: Fixed Assets (Net)
B36: (Accum. Depreciation) | BD36: X
B37: (Accum. Amortization) | BD37: X
B38: Goodwill | BD38: X
B39: Intangible Assets (Gross) | BD39: X
B40: Intangible Assets (Net)
BD41: X
B42: Trade Payables | BD42: X
B43: Accrued Expenses
B44: Other Payables | BD44: X
B45: Other Current Liabilities | BD45: X
B46: Other Operating Liabilities | BD46: X
B47: Long Term Debt | BD47: X
B48: Short Term Debt | BD48: X
B49: Interest Outstanding
B50: Deferred Revenue | BD50: X
B51: Deferred Tax Liability | BD51: X
B52: Paid in Capital | BD52: X
B53: Retained Earnings | BD53: X
B54: Other Reserves
B55: Minority Interest | BD55: X
BD56: X
BD57: X
BD58: X
BD59: X
BD60: X
BD61: X
BD62: X
BD63: X
BD64: X
BD65: X
BD66: X
BD67: X
BD68: X
BD69: X
BD70: X
BD71: X
BD72: X
BD73: X
BD74: X
BD75: X
BD76: X
BD77: X
BD78: X
BD79: X
BD80: X
BD81: X
BD82: X
BD83: X
BD84: X
BD85: X
BD86: X
BD87: X
BD88: X
BD89: X
BD90: X
BD91: X
BD92: X
BD93: X
BD94: X
BD95: X
BD96: X
BD97: X
BD98: X
BD99: X
BD100: X
BD101: X
BD102: X
BD103: X
BD104: X
BD105: X
BD106: X
BD107: X
BD108: X
BD109: X
BD110: X
BD111: X
BD112: X
BD113: X
BD114: X
BD115: X
BD116: X
BD117: X
BD118: X
BD119: X
BD120: X
BD121: X
BD122: X
BD123: X
BD124: X
BD125: X
BD126: X
BD127: X
BD128: X
BD129: X
BD130: X
BD131: X
BD132: X
BD133: X
BD134: X
BD135: X
BD136: X
BD137: X
BD138: X
BD139: X
BD140: X
BD141: X
BD142: X
BD143: X
BD144: X
BD145: X
BD146: X
BD147: X
BD148: X
BD149: X
BD150: X
BD151: X
BD152: X
BD153: X
BD154: X
BD155: X
BD156: X
BD157: X
BD158: X
BD159: X
BD160: X
BD161: X
BD162: X
BD163: X
BD164: X
BD165: X
BD166: X
BD167: X
BD168: X
BD169: X
BD170: X
BD171: X
BD172: X
BD173: X
BD174: X
BD175: X
BD176: X
BD177: X
BD178: X
BD179: X
BD180: X
BD181: X
BD182: X
BD183: X
BD184: X
BD185: X
BD186: X
BD187: X
BD188: X
BD189: X
BD190: X
BD191: X
BD192: X
BD193: X
BD194: X
BD195: X
BD196: X
BD197: X
BD198: X
BD199: X
BD200: X
... 10 more rows

Sheet past valuations
B1: Past Valuations
B4: ($ mn) | C4: 2013-09-30 | D4: 2014-02-01 | E4: 2014-09-30 | F4: 2014-12-31 | G4: =Control!C6 -> 2015-03-25
B5: Equity Value | C5: 203.9406906 | D5: =814824344.515937/(10^6) -> 814.8243445 | E5: 1162.706707 | F5: 1699.179887 | G5: =Allocation!F10/10^6 -> 1943.749424
B6: Common FMV | C6: 0.17197615 | D6: 0.6953077141 | E6: 1.188175114 | F6: 1.438699952 | G6: =Allocation!D214 -> 1.558921663
B7: Years to liquidate | C7: 3 | D7: 3 | E7: 4 | F7: 4 | G7: =Allocation!D46 -> 4
B8: DLOM | C8: 0.2651011712 | D8: 0.300385567 | E8: 0.284719965 | F8: 0.284719965 | G8: =Allocation!C212 -> 0.285
B9: Income Approach
B10: EV (mn) | C10: 207.9768854 | D10: =729360212.449314/(10^6) -> 729.3602124 | E10: 1288.738234 | F10: 1770.800465 | G10: =Allocation!D5/10^6 -> 1993.415984
B11: weight | C11: 0.5 | D11: 0.25 | E11: 0.25 | F11: 0.25 | G11: =Allocation!E5 -> 0.25
B12: Discount rate | C12: 0.2242632475 | D12: 0.2354180587 | E12: 0.2394384666 | F12: 0.2065495189 | G12: =DCF!C75 -> 0.2010356564
B13: CSRP | C13: 0.07 | D13: 0.075 | E13: 0.075 | F13: 0.05 | G13: =DCF!C74 -> 0.05
B14: Exit | C14: EV/EBITDA | D14: EV/EBITDA | E14: EV/EBITDA | F14: EV/EBITDA | G14: EV/EBITDA
B15: Multiple | C15: 14x | D15: 13x | E15: 13x | F15: 13x | G15: =DCF!F117 -> 13
B16: Market Approach - GPC
B17: EV (mn) | C17: 199.9044959 | D17: =758391000/(10^6) -> 758.391 | E17: 1111.154571 | F17: 1624.163 | G17: =Allocation!D6/10^6 -> 1934.061
B18: weight | C18: 0.5 | D18: 0.25 | E18: 0.25 | F18: 0.25 | G18: =Allocation!E6 -> 0.25
B19: Multiple | C19: EV/Revenue | D19: EV/Revenue | E19: EV/Revenue | F19: EV/Revenue | G19: EV/Revenue
B20: Year | C20: 2014 | D20: 2015 | E20: 2015 | F20: 2015 | G20: =Comps_Analysis!K9 -> 2015
B21: Value | C21: 3.3x | D21: 5.5x | E21: 10x | F21: 11x | G21: =Comps_Analysis!K71 -> 13
B22: Backsolve
B23: EV (mn) | C23: N/A | D23: =885773082.807217/(10^6) -> 885.7730828 | E23: 1125.467012 | F23: 1700.878042 | G23: =Allocation!D7/10^6 -> 1923.760357
B24: weight | C24: N/A | D24: 0.5 | E24: 0.5 | F24: 0.5 | G24: =Allocation!E7 -> 0.5
B27: Projections ($ 000s) | C27: 2013-09-30 | D27: 2014-02-28 | E27: 2014-09-30 | F27: 2014-12-31 | G27: 2015-03-01
B28: Revenues
B29: 2014 | C29: =(89702*(1000))/(10^6) -> 89.702 | D29: =25000000/(10^6) -> 25 | E29: =1000000/(10^6) -> 1 | F29: =150000/(10^6) -> 0.15 | G29: =((150/(10^6))*(10^6))/1000 -> 0.15
B30: =B29+1 -> 2015 | C30: =(112202*(1000))/(10^6) -> 112.202 | D30: =117202000/(10^6) -> 117.202 | E30: =110702000/(10^6) -> 110.702 | F30: =113452000/(10^6) -> 113.452 | G30: =((113452/(10^6))*(10^6))/1000 -> 113.452
B31: =B30+1 -> 2016 | C31: =(131702*(1000))/(10^6) -> 131.702 | D31: =142202000/(10^6) -> 142.202 | E31: =220702000/(10^6) -> 220.702 | F31: =223452000/(10^6) -> 223.452 | G31: =((223452/(10^6))*(10^6))/1000 -> 223.452
B32: =B31+1 -> 2017 | C32: =(143402*(1000))/(10^6) -> 143.402 | D32: =167202000/(10^6) -> 167.202 | E32: =320702000/(10^6) -> 320.702 | F32: =323452000/(10^6) -> 323.452 | G32: =((323452/(10^6))*(10^6))/1000 -> 323.452
B33: =B32+1 -> 2018 | E33: =500702000/(10^6) -> 500.702 | F33: =503452000/(10^6) -> 503.452 | G33: =((503452/(10^6))*(10^6))/1000 -> 503.452
B34: EBITDA
B35: 2014 | C35: =-10497564/(10^6) -> -10.497564 | D35: =-78882000/(10^6) -> -78.882 | E35: =-96061000/(10^6) -> -96.061 | F35: =-107029440.677966/(10^6) -> -107.0294407 | G35: -99.93444068
B36: =B35+1 -> 2015 | C36: =-535906.700000018/(10^6) -> -0.5359067 | D36: =-18481000/(10^6) -> -18.481 | E36: =-38295000/(10^6) -> -38.295 | F36: =-48381000/(10^6) -> -48.381 | G36: -23.1365001
B37: =B36+1 -> 2016 | C37: =9854747.96499997/(10^6) -> 9.854747965 | D37: =-5050000/(10^6) -> -5.05 | E37: =23771000/(10^6) -> 23.771 | F37: =12039000/(10^6) -> 12.039 | G37: 69.9664999
B38: =B37+1 -> 2017 | C38: =14183685.36325/(10^6) -> 14.18368536 | D38: =8115000/(10^6) -> 8.115 | E38: =72602000/(10^6) -> 72.602 | F38: =58806000/(10^6) -> 58.806 | G38: 150.1834999
B39: =B38+1 -> 2018 | E39: =181969000/(10^6) -> 181.969 | F39: =165746000/(10^6) -> 165.746 | G39: 291.849
B40: Margin
B41: 2014
B42: =B41+1 -> 2015
B43: =B42+1 -> 2016 | C43: =IFERROR(C37/C31,"n.a.") -> 0.07482610716 | E43: =IFERROR(E37/E31,"n.a.") -> 0.1077063189 | F43: 0.05387734279 | G43: 0.313116463
B44: =B43+1 -> 2017 | C44: =IFERROR(C38/C32,"n.a.") -> 0.09890856029 | D44: =IFERROR(D38/D32,"n.a.") -> 0.04853410844 | E44: 0.2263846187 | F44: 0.1818075016 | G44: 0.464314643
B45: =B44+1 -> 2018 | E45: 0.3634277474 | F45: 0.3292190715 | G45: 0.5796957803

Sheet Key Results>>>

Sheet Backsolve (hidden)
B1: Allocation
B3: Concluded Equity Value | D3: EV | E3: Weight | F3: Value
B5: EV - Income Approach | D5: =DCF!$C$61*1000 -> 2111176984 | E5: 0 | F5: =D5*E5 -> 0
B6: EV - Market Approach - GPC | D6: =Comps_Analysis!$J$94*1000 -> 1934061000 | E6: 0 | F6: =D6*E6 -> 0
B7: EV - Market Approach - BackSolve | D7: 1120467012 | E7: =1-SUM(E5:E6) -> 1 | F7: =D7*E7 -> 1120467012
B8: Concluded EV | F8: =SUM(F5:F7) -> 1120467012 | I8: for sensitivity analysis
B10: Distributable value | F10: =+F8+H10*1000000 -> 1052467012 | G10: =$E$194 ->  | H10: -68
B12: Convertible Notes - Class of Shares | C12: Issue Price | D12: LP | E12: Principal Amount | F12: Interest Rate | G12: Interest Cost | H12: Number of Shares
B13: ='C1&C2New_sept''14'!A9 -> C-1 convertible note | C13: ='C1&C2New_sept''14'!B9 -> 3 | D13: ='C1&C2New_sept''14'!D9 -> 3 | E13: ='C1&C2New_sept''14'!E9 -> 9999999 | F13: 0.0079 | G13: =+E13*F13*$D$46 -> 315999.9684 | H13: =+ROUND(E13/C13,0) -> 3333333
B14: ='C1&C2New_sept''14'!A10 -> C-1 convertible note | C14: ='C1&C2New_sept''14'!B10 -> 15 | D14: ='C1&C2New_sept''14'!D10 -> 3 | E14: ='C1&C2New_sept''14'!E10 -> 30000000 | F14: 0.0079 | G14: =+E14*F14*$D$46 -> 948000 | H14: =+ROUND(E14/C14,0) -> 2000000
B15: ='C1&C2New_sept''14'!A11 -> C-2 convertible note | C15: ='C1&C2New_sept''14'!B11 -> 17 | D15: ='C1&C2New_sept''14'!D11 -> 17 | E15: ='C1&C2New_sept''14'!E11 -> 74999988 | F15: 0.0079 | G15: =+E15*F15*$D$46 -> 2369999.621 | H15: =+ROUND(E15/C15,0) -> 4411764
B16: Total | E16: =+SUM(E13:E15) -> 114999987 | G16: =+SUM(G13:G15) -> 3633999.589
B18: Class of stock | C18: No. of shares | D18: Issue Price | E18: Invested Amount | F18: LP | G18: Total LP | H18: Participation Cap | I18: Converison Price | J18: Conversion ratio | K18: # of shares on converted basis | L18: % Ownership | M18: % Ownership (diluted)
B19: Series A | C19: ='SummCapNew_Sept''14'!$J$16 -> 46320045 | D19: 0.15 | E19: =+D19*C19 -> 6948006.75 | F19: 0.15 | G19: =C19*F19 -> 6948006.75 | H19: Unlimited | I19: =D19 -> 0.15 | J19: =D19/I19 -> 1 | K19: =C19*J19 -> 46320045 | L19: =C19/$C$27 -> 0.09224810456 | M19: =K19/$K$39 -> 0.08782505285
B20: Series B | C20: ='SummCapNew_Sept''14'!$J$18 -> 54162965 | D20: 0.184628 | E20: 9999999.902 | F20: 0.184628 | G20: 9999999.902 | H20: Unlimited | I20: 0.184628 | J20: 1 | K20: 54162965 | L20: =C20/$C$27 -> 0.1078675735 | M20: =K20/$K$39 -> 0.1026956097
B21: Series C | C21: ='SummCapNew_Sept''14'!$J$20 -> 58896105 | D21: 0.564 | E21: 33217403.22 | F21: 0.564 | G21: 33217403.22 | H21: Unlimited | I21: 0.564 | J21: 1 | K21: 58896105 | L21: 0.1172937991 | M21: 0.1116698728
B22: Series C-1 | C22: ='C1&C2New_sept''14'!$C$2+H13 -> 21841668 | D22: ='C1&C2New_sept''14'!B2 -> 3 | E22: 65525004 | F22: 3 | G22: 65525004 | H22: Unlimited | I22: 3 | J22: 1 | K22: 21841668 | L22: 0.04349849991 | M22: 0.04141286232
B23: Series C-1* | C23: ='C1&C2New_sept''14'!$C$3+H14 -> 6500032 | D23: ='C1&C2New_sept''14'!B3 -> 15 | E23: 97500480 | F23: 3 | G23: 19500096 | H23: Unlimited | I23: 15 | J23: 1 | K23: 6500032 | L23: 0.01294505719 | M23: 0.01232437606
B24: Series C-2 | C24: ='C1&C2New_sept''14'!$C$4+H15 -> 11440586 | D24: ='C1&C2New_sept''14'!B4 -> 17 | E24: 194489962 | F24: ='C1&C2New_sept''14'!D4 -> 17 | G24: 194489962 | H24: Unlimited | I24: 17 | J24: 1 | K24: 11440586 | L24: 0.02278435553 | M24: 0.02169190617
B25: Common shares - Class A | C25: ='SummCapNew_Sept''14'!$J$10 -> 52305170 | K25: =C25 -> 52305170 | L25: 0.1041677052 | M25: 0.09917314026
B26: Common shares - Class B | C26: ='SummCapNew_Sept''14'!$J$12 -> 250658055 | K26: =C26 -> 250658055 | L26: 0.4991949051 | M26: 0.4752598346
B27: Sub Total | C27: =SUM(C19:C26) -> 502124626 | E27: =SUM(E19:E24) -> 407680855.9 | G27: =SUM(G19:G24) -> 329680471.9 | K27: =SUM(K19:K26) -> 502124626 | L27: =SUM(L19:L26) -> 1 | M27: =K27/$K$39 -> 0.9520526548
B29: Dilutive Instruments | C29: # of options | D29: Strike price
B30: ="Options @ $"&ROUND(D30,3) -> Options @ $0.015 | C30: ='OptionNew_Sept''14'!$B$2 -> 350000 | D30: ='Option oustanding_Sept''14'!$A$3 -> 0.015 | F30: =D30 -> 0.015 | J30: 1 | K30: =C30*J30 -> 350000 | M30: =K30/$K$39 -> 0.0006636169826
B31: ="Options @ $"&ROUND(D31,3) -> Options @ $0.03 | C31: ='OptionNew_Sept''14'!$B$3 -> 1170875 | D31: ='Option oustanding_Sept''14'!$A$4 -> 0.03 | F31: 0.03 | J31: 1 | K31: 1170875 | M31: =K31/$K$39 -> 0.002220035813
B32: Options @ $0.066 | C32: ='OptionNew_Sept''14'!$B$4 -> 547500 | D32: ='Option oustanding_Sept''14'!$A$5 -> 0.066 | F32: 0.066 | J32: 1 | K32: 547500 | M32: 0.001038086566
B33: Options @ $0.072 | C33: ='OptionNew_Sept''14'!$B$5 -> 2581675 | D33: ='Option oustanding_Sept''14'!$A$6 -> 0.072 | F33: 0.072 | J33: 1 | K33: 2581675 | M33: 0.004894981067
B34: Options @ $0.094 | C34: ='OptionNew_Sept''14'!$B$6 -> 312500 | D34: ='Option oustanding_Sept''14'!$A$7 -> 0.094 | F34: 0.094 | J34: 1 | K34: 312500 | M34: 0.000592515163
B35: Options @ $0.17 | C35: ='OptionNew_Sept''14'!$B$7 -> 3977457 | D35: ='Option oustanding_Sept''14'!$A$8 -> 0.17 | F35: 0.17 | J35: 1 | K35: 3977457 | M35: 0.007541451465
B36: Options @ $0.206 | C36: ='OptionNew_Sept''14'!$B$8 -> 606365 | D36: ='Option oustanding_Sept''14'!$A$2 -> 0.206 | F36: 0.206 | J36: 1 | K36: 606365 | M36: 0.001149697462
C37: ='SummCapNew_Sept''14'!$P$49 -> 15000000 | D37: =D214 ->  | E37: =+D37/D24 ->  | J37: 1 | K37: 15000000 | M37: 0.02844072783
B38: ="Common Stock Warrants @ $"&D38 -> Common Stock Warrants @ $0.072 | C38: ='WarrantNew_Sept''14'!$B$7 -> 741665 | D38: 0.072 | F38: 0.072 | J38: 1 | K38: 741665 | M38: 0.001406232827
B39: Total | C39: =C27+SUM(C30:C38) -> 527412663 | K39: =K27+SUM(K30:K38) -> 527412663 | M39: =M27+SUM(M30:M38) -> 1
B42: Change in control event
H43: Risk free rate (Years)
B44: Valuation date | D44: =Control!C7 -> 2015-03-25 | H44: 1 | I44: ='BETA & CSRP'!C133 -> 0.0026
B45: Liquidation date | D45: =D44+365*D46 -> 2019-03-24 | H45: 2 | I45: ='BETA & CSRP'!C134 -> 0.006
B46: No. of years to Liquidation | D46: 4 | H46: 3 | I46: ='BETA & CSRP'!C135 -> 0.0095
B47: Volatility | D47: ='BETA & CSRP'!$D$153 -> 0.4005490638 | H47: 4 | I47: ='BETA & CSRP'!C136 -> 0.0119
B48: Dividend-yield | D48: 0 | H48: 5 | I48: ='BETA & CSRP'!C137 -> 0.0144
B49: Zero coupon yield Corresponding to the time period | D49: =VLOOKUP(D46,H44:I48,2,FALSE) -> 0.0119 | E49: Source : Bloomberg
B52: Event description | C52: Participating Class | D52: Participating shares | E52: Strike Point
A53: 1 | B53: Equity value is nil | C53: None | D53: 0 | E53: 1e-08
A54: 2 | B54: Liquidation preference of Series C,C-1, C-1* and C-2 | C54: Series C, C-1 & C-1* | D54: =C21+C22+C23+C24 -> 98678391 | E54: =G21+G22+G23+G24 -> 312732465.2
A55: =A54+1 -> 3 | B55: Liquidation preference of Series B | C55: Series B | D55: =C20 -> 54162965 | E55: =E54+G20 -> 322732465.1
A56: 4 | B56: Liquidation preference of Series A | C56: Series A | D56: =C19 -> 46320045 | E56: =E55+G19 -> 329680471.9
A57: 5 | B57: =B30&" exercised" -> Options @ $0.015 exercised | C57: Series A, Series B,C,C-1,C-1* & Common | D57: =+K27 -> 502124626 | E57: =E56+D57*F30 -> 337212341.3
A58: 6 | B58: =B31&" exercised" -> Options @ $0.03 exercised | C58: Series A, Series B,C,C-1,C-1*,Common and Options @ $0.015 | D58: =D57+K30 -> 502474626 | E58: =E57+D58*(F31-F30) -> 344749460.7
A59: 7 | B59: =B32&" exercised" -> Options @ $0.066 exercised | C59: Series A, Series B,C,C-1,C-1*, Common,Options @ $0.015,$0.03 | D59: =D58+K31 -> 503645501 | E59: =E58+D59*(F32-F31) -> 362880698.7
A60: 8 | B60: =B33&" and "&B38&" exercised" -> Options @ $0.072 and Common Stock Warrants @ $0.072 exercised | C60: Series A, Series B, C,C-1,C-1*, Common,Options @ $0.015,$0.03,$0.066 | D60: =D59+K32 -> 504193001 | E60: =E59+D60*(F33-F32) -> 365905856.7
A61: 9 | B61: =B34&" exercised" -> Options @ $0.094 exercised | C61: Series A, Series B, C,C-1,C-1*, Common,Options @ $0.015,$0.03,$0.066,$0.072, Common Warrants @ $0.072 | D61: =D60+K33+K38 -> 507516341 | E61: =E60+D61*(F34-F33) -> 377071216.2
A62: 11 | B62: =B35&" get exercised" -> Options @ $0.17 get exercised | C62: Series A,Series B, C,C-1,C-1*, Common,Options @ $0.015,$0.03,$0.066,$0.072,$0.094, Common Warrants @ $0.072 | D62: =D61+K34 -> 507828841 | E62: =E61+D62*(D35-D34) -> 415666208.1
A63: 12 | B63: =B36&" get exercised" -> Options @ $0.206 get exercised | C63: Series A,Series B, C,C-1,C-1*, Common,Options @ $0.015,$0.03,$0.066,$0.072,$0.094,$0.17, Common Warrants @ $0.072 | D63: =D62+K35 -> 511806298 | E63: =E62+D63*(F36-F35) -> 434091234.8
B64: =B37&" get exercised" ->  | C64: Series A,Series B, C,C-1,C-1*, Common,Options @ $0.015,$0.03,$0.066,$0.072,$0.094,$0.17,$0.206, Common Warrants @ $0.072 | D64: =D63+K36 -> 512412663 | E64: =E63+D64*(F37-F36) -> 
B65: Thereafter | C65: All classes | D65: =+D64+C37 -> 527412663
C67: 1 | D67: =C67+1 -> 2 | E67: 3 | F67: 4 | G67: 5 | H67: 6 | I67: 7 | J67: 8 | K67: 9 | L67: 10 | M67: 11 | N67: 12
B70: Value of the underlying Asset ($) | C70: =F10 -> 1052467012 | D70: =C70 -> 1052467012 | E70: 1052467012 | F70: 1052467012 | G70: 1052467012 | H70: 1052467012 | I70: 1052467012 | J70: 1052467012 | K70: 1052467012 | L70: 1052467012 | M70: 1052467012 | N70: 1052467012
B71: Strike Price ($) | C71: =TRANSPOSE(E53:E64) -> 1e-08 | D71: 312732465.2 | E71: 322732465.1 | F71: 329680471.9 | G71: 337212341.3 | H71: 344749460.7 | I71: 362880698.7 | J71: 365905856.7 | K71: 377071216.2 | L71: 415666208.1 | M71: 434091234.8
B72: S.D of the Underlying preferred share | C72: =D47 -> 0.4005490638 | D72: =C72 -> 0.4005490638 | E72: 0.4005490638 | F72: 0.4005490638 | G72: 0.4005490638 | H72: 0.4005490638 | I72: 0.4005490638 | J72: 0.4005490638 | K72: =J72 -> 0.4005490638 | L72: =K72 -> 0.4005490638 | M72: 0.4005490638 | N72: 0.4005490638
B73: Dividend yield | C73: =D48 -> 0 | D73: 0 | E73: 0 | F73: 0 | G73: 0 | H73: 0 | I73: 0 | J73: 0 | K73: =J73 -> 0 | L73: 0 | M73: 0 | N73: 0
B74: Time of Expiration (years) | C74: =D46 -> 4 | D74: 4 | E74: 4 | F74: 4 | G74: 4 | H74: 4 | I74: 4 | J74: 4 | K74: =J74 -> 4 | L74: 4 | M74: 4 | N74: 4
B75: Riskless Rate corresponding to option life time | C75: =D49 -> 0.0119 | D75: 0.0119 | E75: 0.0119 | F75: 0.0119 | G75: 0.0119 | H75: 0.0119 | I75: 0.0119 | J75: 0.0119 | K75: =J75 -> 0.0119 | L75: 0.0119 | M75: 0.0119 | N75: 0.0119
B79: Stock Price | C79: =C70 -> 1052467012 | D79: 1052467012 | E79: 1052467012 | F79: 1052467012 | G79: 1052467012 | H79: 1052467012 | I79: 1052467012 | J79: 1052467012 | K79: 1052467012 | L79: 1052467012 | M79: 1052467012 | N79: 1052467012
B80: Strike Price | C80: 1e-08 | D80: 312732465.2 | E80: 322732465.1 | F80: 329680471.9 | G80: 337212341.3 | H80: 344749460.7 | I80: 362880698.7 | J80: 365905856.7 | K80: 377071216.2 | L80: 415666208.1 | M80: 434091234.8
B81: Expiration (in years) | C81: =C74 -> 4 | D81: 4 | E81: 4 | F81: 4 | G81: 4 | H81: 4 | I81: 4 | J81: 4 | K81: 4 | L81: 4 | M81: 4 | N81: 4
B82: T.Bond rate | C82: 0.0119 | D82: 0.0119 | E82: 0.0119 | F82: 0.0119 | G82: 0.0119 | H82: 0.0119 | I82: 0.0119 | J82: 0.0119 | K82: 0.0119 | L82: 0.0119 | M82: 0.0119 | N82: 0.0119
B83: Variance | C83: =C72^2 -> 0.1604395525 | D83: 0.1604395525 | E83: 0.1604395525 | F83: 0.1604395525 | G83: 0.1604395525 | H83: 0.1604395525 | I83: 0.1604395525 | J83: 0.1604395525 | K83: 0.1604395525 | L83: 0.1604395525 | M83: 0.1604395525 | N83: 0.1604395525
B84: Annualized dividend yield | C84: =C73 -> 0 | D84: 0 | E84: 0 | F84: 0 | G84: 0 | H84: 0 | I84: 0 | J84: 0 | K84: 0 | L84: 0 | M84: 0 | N84: 0
B87: d1 = | C87: =(LN(C79/C80)+(C82-C84+(C83/2))*C81)/(((C83)^(0.5))*(C81^0.5)) -> 49.38666222 | D87: 1.974818305 | E87: 1.935527716 | F87: 1.908938939 | G87: 1.880741511 | H87: 1.853147978 | I87: 1.789165587 | J87: 1.778802372 | K87: 1.741281383 | L87: 1.619637756 | M87: 1.565496853 | N87: =(LN(N79/N80)+(N82-N84+(N83/2))*N81)/(((N83)^(0.5))*(N81^0.5)) -> 
B88: N(d1) = | C88: =NORMSDIST(C87) -> 1 | D88: 0.9758556145 | E88: 0.9735372145 | F88: 0.9718650154 | G88: 0.9699964551 | H88: 0.9680694242 | I88: 0.963205924 | J88: 0.9623639159 | K88: 0.9591828661 | L88: 0.947344943 | M88: 0.9412667726
B90: d2 = | C90: =C87-((C83^0.5)*(C81^(0.5))) -> 48.58556409 | D90: 1.173720178 | E90: 1.134429588 | F90: 1.107840811 | G90: 1.079643384 | H90: 1.052049851 | I90: 0.988067459 | J90: 0.9777042446 | K90: 0.9401832559 | L90: 0.8185396288 | M90: 0.764398725
B91: N(d2) = | C91: =NORMSDIST(C90) -> 1 | D91: 0.8797464372 | E91: 0.8716928032 | F91: 0.8660347143 | G91: 0.8598494928 | H91: 0.8536116606 | I91: 0.8384401943 | J91: 0.8358896891 | K91: 0.8264382155 | L91: 0.7934754383 | M91: 0.7776851658
C93: =(EXP((0-C84)*C81))*C79*C88-C80*(EXP((0-C82)*C81))*C91 -> 1052467012 | D93: 764719737 | E93: 756369529.4 | F93: 750613254.8 | G93: 744415788.7 | H93: 738258646.7 | I93: 723631898.1 | J93: 721217066.3 | K93: 712368163.4 | L93: 682560062.2 | M93: 668758574.3
C94: =C93-D93 -> 287747275.2 | D94: 8350207.605 | E94: 5756274.583 | F94: 6197466.134 | G94: 6157141.993 | H94: 14626748.64 | I94: 2414831.8 | J94: 8848902.899 | K94: 29808101.15 | L94: 13801487.95 | N94: =N93 ->  | O94: =SUM(C94:N94)-F10 -> 
B99: Participation in Incremental Value after Each Event
B100: Participation =1, No participation = 0 | C100: =TRANSPOSE(B19:B26) -> Series A | D100: Series B | E100: Series C | F100: Series C-1 | G100: Series C-1* | H100: Series C-2 | I100: Common shares - Class A | J100: Common shares - Class B | K100: =TRANSPOSE(B30:B38) -> Options @ $0.015 | L100: Options @ $0.03 | M100: Options @ $0.066 | N100: Options @ $0.072 | O100: Options @ $0.094 | P100: Options @ $0.17 | Q100: Options @ $0.206 | S100: Common Stock Warrants @ $0.072 | T100: Total
B101: Common Stock Equivalents | C101: =TRANSPOSE(K19:K26) -> 46320045 | D101: 54162965 | E101: 58896105 | F101: 21841668 | G101: 6500032 | H101: 11440586 | I101: 52305170 | J101: 250658055 | K101: =TRANSPOSE(K30:K38) -> 350000 | L101: 1170875 | M101: 547500 | N101: 2581675 | O101: 312500 | P101: 3977457 | Q101: 606365 | R101: 15000000 | S101: 741665 | T101: =SUM(C101:S101) -> 527412663 | U101: =T101-K39 -> 0
B102: LP | C102: =TRANSPOSE(G19:G24) -> 6948006.75 | D102: 9999999.902 | E102: 33217403.22 | F102: 65525004 | G102: 19500096 | H102: 194489962
A104: 1 | B104: =B54 -> Liquidation preference of Series C,C-1, C-1* and C-2 | C104: 0 | D104: 0 | E104: 1 | F104: 1 | G104: 1 | H104: 1 | I104: 0 | J104: 0 | K104: 0 | L104: 0 | M104: 0 | N104: 0 | O104: 0 | P104: 0 | Q104: 0 | R104: 0 | S104: 0 | T104: =SUM(C104:S104) -> 4
A105: 2 | B105: =B55 -> Liquidation preference of Series B | C105: 0 | D105: 1 | E105: 0 | F105: 0 | G105: 0 | H105: 0 | I105: 0 | J105: 0 | K105: 0 | L105: 0 | M105: 0 | N105: 0 | O105: 0 | P105: 0 | Q105: 0 | R105: 0 | S105: 0 | T105: =SUM(C105:S105) -> 1
A106: 3 | B106: Liquidation preference of Series A | C106: 1 | D106: 0 | E106: 0 | F106: 0 | G106: 0 | H106: 0 | I106: 0 | J106: 0 | K106: 0 | L106: 0 | M106: 0 | N106: 0 | O106: 0 | P106: 0 | Q106: 0 | R106: 0 | S106: 0 | T106: 1
A107: 4 | B107: Options @ $0.015 exercised | C107: 1 | D107: 1 | E107: 1 | F107: 1 | G107: 1 | H107: 1 | I107: 1 | J107: 1 | K107: 0 | L107: 0 | M107: 0 | N107: 0 | O107: 0 | P107: 0 | Q107: 0 | R107: 0 | S107: 0 | T107: 8
A108: 5 | B108: Options @ $0.03 exercised | C108: 1 | D108: 1 | E108: 1 | F108: 1 | G108: 1 | H108: 1 | I108: 1 | J108: 1 | K108: 1 | L108: 0 | M108: 0 | N108: 0 | O108: 0 | P108: 0 | Q108: 0 | R108: 0 | S108: 0 | T108: 9
A109: 6 | B109: Options @ $0.066 exercised | C109: 1 | D109: 1 | E109: 1 | F109: 1 | G109: 1 | H109: 1 | I109: 1 | J109: 1 | K109: 1 | L109: 1 | M109: 0 | N109: 0 | O109: 0 | P109: 0 | Q109: 0 | R109: 0 | S109: 0 | T109: 10
A110: 7 | B110: Options @ $0.072 and Common Stock Warrants @ $0.072 exercised | C110: 1 | D110: 1 | E110: 1 | F110: 1 | G110: 1 | H110: 1 | I110: 1 | J110: 1 | K110: 1 | L110: 1 | M110: 1 | N110: 0 | O110: 0 | P110: 0 | Q110: 0 | R110: 0 | S110: 0 | T110: 11
A111: 8 | B111: Options @ $0.094 exercised | C111: 1 | D111: 1 | E111: 1 | F111: 1 | G111: 1 | H111: 1 | I111: 1 | J111: 1 | K111: 1 | L111: 1 | M111: 1 | N111: 1 | O111: 0 | P111: 0 | Q111: 0 | R111: 0 | S111: 1 | T111: 13
A112: 9 | B112: Options @ $0.17 get exercised | C112: 1 | D112: 1 | E112: 1 | F112: 1 | G112: 1 | H112: 1 | I112: 1 | J112: 1 | K112: 1 | L112: 1 | M112: 1 | N112: 1 | O112: 1 | P112: 0 | Q112: 0 | R112: 0 | S112: 1 | T112: 14
A113: 10 | B113: Options @ $0.206 get exercised | C113: 1 | D113: 1 | E113: 1 | F113: 1 | G113: 1 | H113: 1 | I113: 1 | J113: 1 | K113: 1 | L113: 1 | M113: 1 | N113: 1 | O113: 1 | P113: 1 | Q113: 0 | R113: 0 | S113: 1 | T113: 15
A114: 11 | C114: 1 | D114: 1 | E114: 1 | F114: 1 | G114: 1 | H114: 1 | I114: 1 | J114: 1 | K114: 1 | L114: 1 | M114: 1 | N114: 1 | O114: 1 | P114: 1 | Q114: 1 | R114: 0 | S114: 1 | T114: 16
A115: 12 | B115: Thereafter | C115: 1 | D115: 1 | E115: 1 | F115: 1 | G115: 1 | H115: 1 | I115: 1 | J115: 1 | K115: 1 | L115: 1 | M115: 1 | N115: 1 | O115: 1 | P115: 1 | Q115: 1 | R115: 1 | S115: 1 | T115: 17
B117: LP in $ / Number of Shares | T117: Total
B119: =B104 -> Liquidation preference of Series C,C-1, C-1* and C-2 | C119: =C$102*C104 -> 0 | D119: =D$102*D104 -> 0 | E119: 33217403.22 | F119: 65525004 | G119: 19500096 | H119: 194489962 | I119: 0 | J119: 0 | K119: 0 | L119: 0 | M119: 0 | N119: 0 | O119: 0 | P119: 0 | Q119: 0 | R119: 0 | S119: 0 | T119: =SUM(C119:S119) -> 312732465.2 | U119: =T119-E54 -> 0
B120: Liquidation preference of Series B | C120: =C$102*C105 -> 0 | D120: 9999999.902 | E120: 0 | F120: 0 | G120: 0 | H120: 0 | I120: 0 | J120: 0 | K120: 0 | L120: 0 | M120: 0 | N120: 0 | O120: 0 | P120: 0 | Q120: 0 | R120: 0 | S120: 0 | T120: =SUM(C120:S120) -> 9999999.902 | U120: =E55-SUM($T$119:T120) -> 0
B121: Liquidation preference of Series A | C121: =C$102*C106 -> 6948006.75 | D121: 0 | E121: 0 | F121: 0 | G121: 0 | H121: 0 | I121: 0 | J121: 0 | K121: 0 | L121: 0 | M121: 0 | N121: 0 | O121: 0 | P121: 0 | Q121: 0 | R121: 0 | S121: 0 | T121: 6948006.75 | U121: =E56-SUM($T$119:T121) -> 0
B122: Options @ $0.015 exercised | C122: =C107*C$101 -> 46320045 | D122: =D107*D$101 -> 54162965 | E122: 58896105 | F122: 21841668 | G122: 6500032 | H122: 11440586 | I122: 52305170 | J122: 250658055 | K122: 0 | L122: 0 | M122: 0 | N122: 0 | O122: 0 | P122: 0 | Q122: 0 | R122: 0 | S122: 0 | T122: 502124626 | U122: =D57-T122 -> 0
B123: Options @ $0.03 exercised | C123: =C108*C$101 -> 46320045 | D123: 54162965 | E123: 58896105 | F123: 21841668 | G123: 6500032 | H123: 11440586 | I123: 52305170 | J123: 250658055 | K123: 350000 | L123: 0 | M123: 0 | N123: 0 | O123: 0 | P123: 0 | Q123: 0 | R123: 0 | S123: 0 | T123: 502474626 | U123: =D58-T123 -> 0
B124: Options @ $0.066 exercised | C124: =C109*C$101 -> 46320045 | D124: 54162965 | E124: 58896105 | F124: 21841668 | G124: 6500032 | H124: 11440586 | I124: 52305170 | J124: 250658055 | K124: 350000 | L124: 1170875 | M124: 0 | N124: 0 | O124: 0 | P124: 0 | Q124: 0 | R124: 0 | S124: 0 | T124: 503645501 | U124: 0
B125: Options @ $0.072 and Common Stock Warrants @ $0.072 exercised | C125: =C110*C$101 -> 46320045 | D125: 54162965 | E125: 58896105 | F125: 21841668 | G125: 6500032 | H125: 11440586 | I125: 52305170 | J125: 250658055 | K125: 350000 | L125: 1170875 | M125: 547500 | N125: 0 | O125: 0 | P125: 0 | Q125: 0 | R125: 0 | S125: 0 | T125: 504193001 | U125: 0
B126: Options @ $0.094 exercised | C126: =C111*C$101 -> 46320045 | D126: 54162965 | E126: 58896105 | F126: 21841668 | G126: 6500032 | H126: 11440586 | I126: 52305170 | J126: 250658055 | K126: 350000 | L126: 1170875 | M126: 547500 | N126: 2581675 | O126: 0 | P126: 0 | Q126: 0 | R126: 0 | S126: 741665 | T126: 507516341 | U126: 0
B127: =B112 -> Options @ $0.17 get exercised | C127: =C112*C$101 -> 46320045 | D127: 54162965 | E127: 58896105 | F127: 21841668 | G127: 6500032 | H127: 11440586 | I127: 52305170 | J127: 250658055 | K127: 350000 | L127: 1170875 | M127: 547500 | N127: 2581675 | O127: 312500 | P127: 0 | Q127: 0 | R127: 0 | S127: 741665 | T127: 507828841 | U127: 0
B128: =B113 -> Options @ $0.206 get exercised | C128: =C113*C$101 -> 46320045 | D128: 54162965 | E128: 58896105 | F128: 21841668 | G128: 6500032 | H128: 11440586 | I128: 52305170 | J128: 250658055 | K128: 350000 | L128: 1170875 | M128: 547500 | N128: 2581675 | O128: 312500 | P128: 3977457 | Q128: 0 | R128: 0 | S128: 741665 | T128: 511806298 | U128: 0
B129: =B114 ->  | C129: =C114*C$101 -> 46320045 | D129: 54162965 | E129: 58896105 | F129: 21841668 | G129: 6500032 | H129: 11440586 | I129: 52305170 | J129: 250658055 | K129: 350000 | L129: 1170875 | M129: 547500 | N129: 2581675 | O129: 312500 | P129: 3977457 | Q129: 606365 | R129: 0 | S129: 741665 | T129: 512412663 | U129: 0
B130: =B115 -> Thereafter | C130: =C115*C$101 -> 46320045 | D130: 54162965 | E130: 58896105 | F130: 21841668 | G130: 6500032 | H130: 11440586 | I130: 52305170 | J130: 250658055 | K130: 350000 | L130: 1170875 | M130: 547500 | N130: 2581675 | O130: 312500 | P130: 3977457 | Q130: 606365 | R130: 15000000 | S130: 741665 | T130: 527412663 | U130: 0
B131: % of Ownership in Incremental Value after Each Event | T131: Total
B133: =B119 -> Liquidation preference of Series C,C-1, C-1* and C-2 | C133: =C119/$T119 -> 0 | D133: =D119/$T119 -> 0 | E133: 0.1062166769 | F133: 0.2095241502 | G133: 0.06235392282 | H133: 0.6219052501 | I133: 0 | J133: 0 | K133: 0 | L133: 0 | M133: 0 | N133: 0 | O133: 0 | P133: 0 | Q133: 0 | R133: 0 | S133: 0 | T133: =SUM(C133:S133) -> 1
B134: Liquidation preference of Series B | C134: =C120/$T120 -> 0 | D134: 1 | E134: 0 | F134: 0 | G134: 0 | H134: 0 | I134: 0 | J134: 0 | K134: 0 | L134: 0 | M134: 0 | N134: 0 | O134: 0 | P134: 0 | Q134: 0 | R134: 0 | S134: 0 | T134: =SUM(C134:S134) -> 1
B135: Liquidation preference of Series A | C135: =C121/$T121 -> 1 | D135: 0 | E135: 0 | F135: 0 | G135: 0 | H135: 0 | I135: 0 | J135: 0 | K135: 0 | L135: 0 | M135: 0 | N135: 0 | O135: 0 | P135: 0 | Q135: 0 | R135: 0 | S135: 0 | T135: 1
B136: Options @ $0.015 exercised | C136: =C122/$T122 -> 0.09224810456 | D136: 0.1078675735 | E136: 0.1172937991 | F136: 0.04349849991 | G136: 0.01294505719 | H136: 0.02278435553 | I136: 0.1041677052 | J136: 0.4991949051 | K136: 0 | L136: 0 | M136: 0 | N136: 0 | O136: 0 | P136: 0 | Q136: 0 | R136: 0 | S136: 0 | T136: 1
B137: Options @ $0.03 exercised | C137: =C123/$T123 -> 0.0921838489 | D137: 0.1077924381 | E137: 0.1172120978 | F137: 0.04346820092 | G137: 0.01293604028 | H137: 0.02276848503 | I137: 0.1040951469 | J137: 0.4988471895 | K137: 0.0006965525857 | L137: 0 | M137: 0 | N137: 0 | O137: 0 | P137: 0 | Q137: 0 | R137: 0 | S137: 0 | T137: 1
B138: Options @ $0.066 exercised | C138: =C124/$T124 -> 0.0919695399 | D138: 0.1075418422 | E138: 0.1169396031 | F138: 0.04336714605 | G138: 0.01290596657 | H138: 0.02271555286 | I138: 0.1038531465 | J138: 0.4976874697 | K138: 0.0006949332404 | L138: 0.002324799879 | M138: 0 | N138: 0 | O138: 0 | P138: 0 | Q138: 0 | R138: 0 | S138: 0 | T138: 1
B139: Options @ $0.072 and Common Stock Warrants @ $0.072 exercised | C139: =C125/$T125 -> 0.09186967076 | D139: 0.1074250632 | E139: 0.1168126191 | F139: 0.04332005394 | G139: 0.01289195206 | H139: 0.02269088618 | I139: 0.103740373 | J139: 0.497147034 | K139: 0.0006941786167 | L139: 0.002322275394 | M139: 0.001085893693 | N139: 0 | O139: 0 | P139: 0 | Q139: 0 | R139: 0 | S139: 0 | T139: 1
B140: Options @ $0.094 exercised | C140: =C126/$T126 -> 0.09126808589 | D140: 0.1067216179 | E140: 0.1160477018 | F140: 0.04303638373 | G140: 0.01280753244 | H140: 0.02254230076 | I140: 0.1030610559 | J140: 0.4938915947 | K140: 0.0006896329669 | L140: 0.002307068572 | M140: 0.001078782998 | N140: 0.005086880542 | O140: 0 | P140: 0 | Q140: 0 | R140: 0 | S140: 0.001461361813 | T140: 1
B141: =B127 -> Options @ $0.17 get exercised | C141: =C127/$T127 -> 0.09121192272 | D141: 0.1066559451 | E141: 0.1159762901 | F141: 0.04300990065 | G141: 0.01279965113 | H141: 0.02252842902 | I141: 0.1029976358 | J141: 0.4935876712 | K141: 0.000689208591 | L141: 0.002305648883 | M141: 0.001078119153 | N141: 0.005083750255 | O141: 0.0006153648134 | P141: 0 | Q141: 0 | R141: 0 | S141: 0.001460462542 | T141: 1
B142: =B128 -> Options @ $0.206 get exercised | C142: =C128/$T128 -> 0.0905030774 | D142: 0.105827078 | E142: 0.1150749907 | F142: 0.04267565305 | G142: 0.01270017979 | H142: 0.02235335135 | I142: 0.1021971988 | J142: 0.4897517986 | K142: 0.000683852468 | L142: 0.002287730738 | M142: 0.001069740646 | N142: 0.005044242343 | O142: 0.0006105825607 | P142: 0.007771410816 | Q142: 0 | R142: 0 | S142: 0.001449112688 | T142: 1
B143: =B129 ->  | C143: =C129/$T129 -> 0.09039598032 | D143: 0.1057018472 | E143: 0.1149388164 | F143: 0.04262515269 | G143: 0.01268515099 | H143: 0.02232689944 | I143: 0.1020762635 | J143: 0.4891722494 | K143: 0.0006830432292 | L143: 0.002285023546 | M143: 0.001068474766 | N143: 0.005038273225 | O143: 0.000609860026 | P143: 0.007762214495 | Q143: 0.001183352879 | R143: 0 | S143: 0.001447397876 | T143: 1
B144: =B130 -> Thereafter | C144: =C130/$T130 -> 0.08782505285 | D144: 0.1026956097 | E144: 0.1116698728 | F144: 0.04141286232 | G144: 0.01232437606 | H144: 0.02169190617 | I144: 0.09917314026 | J144: 0.4752598346 | K144: 0.0006636169826 | L144: 0.002220035813 | M144: 0.001038086566 | N144: 0.004894981067 | O144: 0.000592515163 | P144: 0.007541451465 | Q144: 0.001149697462 | R144: 0.02844072783 | S144: 0.001406232827 | T144: 1
B146: Value Allocated | C146: Option 1 | D146: Option 2 | E146: Option 3 | F146: Option 4 | G146: Option 5 | H146: Option 6 | I146: Option 7 | J146: Option 8 | K146: Option 9 | L146: Option 10 | M146: Option 11 | N146: Option 12
B147: =TRANSPOSE(C100:S100) -> Series A | C147: =TRANSPOSE(C133:S144) -> 0 | D147: 0 | E147: 1 | F147: 0.09224810456 | G147: 0.0921838489 | H147: 0.0919695399 | I147: 0.09186967076 | J147: 0.09126808589 | K147: 0.09121192272 | L147: 0.0905030774 | M147: 0.09039598032 | N147: 0.08782505285
B148: Series B | C148: 0 | D148: 1 | E148: 0 | F148: 0.1078675735 | G148: 0.1077924381 | H148: 0.1075418422 | I148: 0.1074250632 | J148: 0.1067216179 | K148: 0.1066559451 | L148: 0.105827078 | M148: 0.1057018472 | N148: 0.1026956097
B149: Series C | C149: 0.1062166769 | D149: 0 | E149: 0 | F149: 0.1172937991 | G149: 0.1172120978 | H149: 0.1169396031 | I149: 0.1168126191 | J149: 0.1160477018 | K149: 0.1159762901 | L149: 0.1150749907 | M149: 0.1149388164 | N149: 0.1116698728
B150: Series C-1 | C150: 0.2095241502 | D150: 0 | E150: 0 | F150: 0.04349849991 | G150: 0.04346820092 | H150: 0.04336714605 | I150: 0.04332005394 | J150: 0.04303638373 | K150: 0.04300990065 | L150: 0.04267565305 | M150: 0.04262515269 | N150: 0.04141286232
B151: Series C-1* | C151: 0.06235392282 | D151: 0 | E151: 0 | F151: 0.01294505719 | G151: 0.01293604028 | H151: 0.01290596657 | I151: 0.01289195206 | J151: 0.01280753244 | K151: 0.01279965113 | L151: 0.01270017979 | M151: 0.01268515099 | N151: 0.01232437606
B152: Series C-2 | C152: 0.6219052501 | D152: 0 | E152: 0 | F152: 0.02278435553 | G152: 0.02276848503 | H152: 0.02271555286 | I152: 0.02269088618 | J152: 0.02254230076 | K152: 0.02252842902 | L152: 0.02235335135 | M152: 0.02232689944 | N152: 0.02169190617
B153: Common shares - Class A | C153: 0 | D153: 0 | E153: 0 | F153: 0.1041677052 | G153: 0.1040951469 | H153: 0.1038531465 | I153: 0.103740373 | J153: 0.1030610559 | K153: 0.1029976358 | L153: 0.1021971988 | M153: 0.1020762635 | N153: 0.09917314026
B154: Common shares - Class B | C154: 0 | D154: 0 | E154: 0 | F154: 0.4991949051 | G154: 0.4988471895 | H154: 0.4976874697 | I154: 0.497147034 | J154: 0.4938915947 | K154: 0.4935876712 | L154: 0.4897517986 | M154: 0.4891722494 | N154: 0.4752598346
B155: Options @ $0.015 | C155: 0 | D155: 0 | E155: 0 | F155: 0 | G155: 0.0006965525857 | H155: 0.0006949332404 | I155: 0.0006941786167 | J155: 0.0006896329669 | K155: 0.000689208591 | L155: 0.000683852468 | M155: 0.0006830432292 | N155: 0.0006636169826
B156: Options @ $0.03 | C156: 0 | D156: 0 | E156: 0 | F156: 0 | G156: 0 | H156: 0.002324799879 | I156: 0.002322275394 | J156: 0.002307068572 | K156: 0.002305648883 | L156: 0.002287730738 | M156: 0.002285023546 | N156: 0.002220035813
B157: Options @ $0.066 | C157: 0 | D157: 0 | E157: 0 | F157: 0 | G157: 0 | H157: 0 | I157: 0.001085893693 | J157: 0.001078782998 | K157: 0.001078119153 | L157: 0.001069740646 | M157: 0.001068474766 | N157: 0.001038086566
B158: Options @ $0.072 | C158: 0 | D158: 0 | E158: 0 | F158: 0 | G158: 0 | H158: 0 | I158: 0 | J158: 0.005086880542 | K158: 0.005083750255 | L158: 0.005044242343 | M158: 0.005038273225 | N158: 0.004894981067
B159: Options @ $0.094 | C159: 0 | D159: 0 | E159: 0 | F159: 0 | G159: 0 | H159: 0 | I159: 0 | J159: 0 | K159: 0.0006153648134 | L159: 0.0006105825607 | M159: 0.000609860026 | N159: 0.000592515163
B160: Options @ $0.17 | C160: 0 | D160: 0 | E160: 0 | F160: 0 | G160: 0 | H160: 0 | I160: 0 | J160: 0 | K160: 0 | L160: 0.007771410816 | M160: 0.007762214495 | N160: 0.007541451465
B161: Options @ $0.206 | C161: 0 | D161: 0 | E161: 0 | F161: 0 | G161: 0 | H161: 0 | I161: 0 | J161: 0 | K161: 0 | L161: 0 | M161: 0.001183352879 | N161: 0.001149697462
C162: 0 | D162: 0 | E162: 0 | F162: 0 | G162: 0 | H162: 0 | I162: 0 | J162: 0 | K162: 0 | L162: 0 | M162: 0 | N162: 0.02844072783
B163: Common Stock Warrants @ $0.072 | C163: 0 | D163: 0 | E163: 0 | F163: 0 | G163: 0 | H163: 0 | I163: 0 | J163: 0.001461361813 | K163: 0.001460462542 | L163: 0.001449112688 | M163: 0.001447397876 | N163: 0.001406232827
B164: Total | C164: =SUM(C147:C163) -> 1 | D164: =SUM(D147:D163) -> 1 | E164: 1 | F164: 1 | G164: 1 | H164: 1 | I164: 1 | J164: 1 | K164: 1 | L164: 1 | M164: 1 | N164: 1
B166: Allocation percentages | C166: =C146 -> Option 1 | D166: Option 2 | E166: Option 3 | F166: Option 4 | G166: Option 5 | H166: Option 6 | I166: Option 7 | J166: Option 8 | K166: Option 9 | L166: Option 10 | M166: Option 11 | N166: Option 12 | O166: Total
B167: =B147 -> Series A | C167: =C147*C$94 -> 0 | D167: =D147*D$94 -> 0 | E167: 5756274.583 | F167: 571704.5039 | G167: 567589.0471 | H167: 1345215.342 | I167: 221849.8024 | J167: 807622.4298 | K167: 2718854.218 | L167: 1249077.132 | O167: =SUM(C167:N167) -> 
B168: =B148 -> Series B | C168: =C148*C$94 -> 0 | D168: 8350207.605 | E168: 0 | F168: 668505.6337 | G168: 663693.3469 | H168: 1572987.494 | I168: 259413.4588 | J168: 944369.2337 | K168: 3179211.2 | L168: 1460571.142 | O168: =SUM(C168:N168) -> 
B169: Series C | C169: =C149*C$94 -> 30563559.37 | D169: 0 | E169: 0 | F169: 726924.3475 | G169: 721691.5293 | H169: 1710446.181 | I169: 282082.8274 | J169: 1026894.845 | K169: 3457032.987 | L169: 1588206.098
B170: Series C-1 | C170: =C150*C$94 -> 60290003.3 | D170: 0 | E170: 0 | F170: 269580.4801 | G170: 267639.8852 | H170: 634320.3444 | I170: 104610.6439 | J170: 380824.7807 | K170: 1282043.469 | L170: 588987.5114
B171: Series C-1* | C171: =C151*C$94 -> 17942171.39 | D171: 0 | E171: 0 | F171: 80226.55353 | G171: 79649.03681 | H171: 188772.329 | I171: 31131.89581 | J171: 113332.6109 | K171: 381533.2956 | L171: 175281.3783
B172: Series C-2 | C172: =C152*C$94 -> 178951541.2 | D172: 0 | E172: 0 | F172: 141205.2718 | G172: 140188.7953 | H172: 332254.6818 | I172: 54794.67354 | J172: 199474.6306 | K172: 671529.6909 | L172: 308509.5093
B173: Common shares - Class A | C173: =C153*C$94 -> 0 | D173: 0 | E173: 0 | F173: 645575.825 | G173: 640928.6001 | H173: 1519033.869 | I173: 250515.5518 | J173: 911977.2765 | K173: 3070163.945 | L173: 1410473.408
B174: Common shares - Class B | C174: =C154*C$94 -> 0 | D174: 0 | E174: 0 | F174: 3093743.518 | G174: 3071472.979 | H174: 7279549.519 | I174: 1200526.467 | J174: 4370398.764 | K174: 14712911.23 | L174: 6759303.549
B175: Options @ $0.015 | C175: =C155*C$94 -> 0 | D175: 0 | E175: 0 | F175: 0 | G175: 4288.773176 | H175: 10164.61383 | I175: 1676.324599 | J175: 6102.49516 | K175: 20543.99939 | L175: 9438.181598
B176: Options @ $0.03 | C176: =C156*C$94 -> 0 | D176: 0 | E176: 0 | F176: 0 | G176: 0 | H176: 34004.26347 | I176: 5607.904471 | J176: 20415.02577 | K176: 68727.01511 | L176: 31574.08822
B177: Options @ $0.066 | C177: =C157*C$94 -> 0 | D177: 0 | E177: 0 | F177: 0 | G177: 0 | H177: 0 | I177: 2622.250623 | J177: 9546.046001 | K177: 32136.68476 | L177: 14764.01264
B178: Options @ $0.072 | C178: =C158*C$94 -> 0 | D178: 0 | E178: 0 | F178: 0 | G178: 0 | H178: 0 | I178: 0 | J178: 45013.31198 | K178: 151536.9418 | L178: 69618.04993
B179: Options @ $0.094 | C179: =C159*C$94 -> 0 | D179: 0 | E179: 0 | F179: 0 | G179: 0 | H179: 0 | I179: 0 | J179: 0 | K179: 18342.8566 | L179: 8426.947855
B180: Options @ $0.17 | C180: =C160*C$94 -> 0 | D180: 0 | E180: 0 | F180: 0 | G180: 0 | H180: 0 | I180: 0 | J180: 0 | K180: 0 | L180: 107257.0328
B181: Options @ $0.206 | C181: =C161*C$94 -> 0 | D181: 0 | E181: 0 | F181: 0 | G181: 0 | H181: 0 | I181: 0 | J181: 0 | K181: 0 | L181: 0
C182: =C162*C$94 -> 0 | D182: 0 | E182: 0 | F182: 0 | G182: 0 | H182: 0 | I182: 0 | J182: 0 | K182: 0 | L182: 0
B183: Common Stock Warrants @ $0.072 | C183: =C163*C$94 -> 0 | D183: 0 | E183: 0 | F183: 0 | G183: 0 | H183: 0 | I183: 0 | J183: 12931.44878 | K183: 43533.61517 | L183: 19999.9113
B184: Total | C184: =SUM(C167:C183) -> 287747275.2 | D184: =SUM(D167:D183) -> 8350207.605 | E184: 5756274.583 | F184: 6197466.134 | G184: 6157141.993 | H184: 14626748.64 | I184: 2414831.8 | J184: 8848902.899 | K184: 29808101.15 | L184: =SUM(L167:L183) -> 13801487.95 | P184: =IF(OR(ROUND(F10-O184,0)>1,ROUND(F10-O184,0)<=-1),"Error","OK") -> 
C185: =C184-C94 -> 0 | D185: 0 | E185: 0 | F185: 0 | G185: 0 | H185: 0 | I185: 0 | J185: 0 | K185: 0 | L185: 0 | O185: =O184-SUM(C94:N94) -> 
B187: Classes | C187: # of shares | D187: Value | E187: Per Share | F187: % of EV
B189: =B167 -> Series A | C189: =TRANSPOSE(C101:S101) -> 46320045 | D189: =O167 ->  | E189: =D189/C189 ->  | F189: =D189/$D$206 ->  | G189: =+C189/$C$206 -> 0.08782505285
B190: =B168 -> Series B | C190: 54162965 | D190: =O168 ->  | F190: =D190/$D$206 ->  | G190: =+C190/$C$206 -> 0.1026956097
B191: Series C | C191: 58896105 | G191: 0.1116698728
B192: Series C-1 | C192: 21841668 | G192: 0.04141286232
B193: Series C-1* | C193: 6500032 | G193: 0.01232437606
B194: Series C-2 | C194: 11440586 | G194: 0.02169190617
B195: Common shares - Class A | C195: 52305170 | G195: 0.09917314026
B196: Common shares - Class B | C196: 250658055 | G196: 0.4752598346
B197: Options @ $0.015 | C197: 350000 | G197: 0.0006636169826
B198: Options @ $0.03 | C198: 1170875 | G198: 0.002220035813
B199: Options @ $0.066 | C199: 547500 | G199: 0.001038086566
B200: Options @ $0.072 | C200: 2581675 | G200: 0.004894981067
B201: Options @ $0.094 | C201: 312500 | G201: 0.000592515163
B202: Options @ $0.17 | C202: 3977457 | G202: 0.007541451465
B203: Options @ $0.206 | C203: 606365 | G203: 0.001149697462
C204: 15000000 | G204: 0.02844072783
B205: Common Stock Warrants @ $0.072 | C205: 741665 | G205: 0.001406232827
B206: Total | C206: =SUM(C189:C205) -> 527412663 | D206: =SUM(D189:D205) ->  | F206: =SUM(F189:F205) -> 
B208: Fair Market Value (FMV) of Common Stock | D208: ($) | F208: =SUM(D197:D205)/SUM(C197:C205) -> 
B210: Common Stock (before DLOM) | D210: =+E195 -> 
B212: Discount For Lack of Marketability (DLOM) | C212: 0.3 | D212: =D210*C212 -> 
B214: FMV of Common stock | D214: =D210-D212 -> 
B236: Series A
B237: Series B
B238: Series C
B239: Series C-1
B240: Series C-1*
B241: Series C-2
B242: Common shares - Class A
B243: Common shares - Class B
B244: Options

Sheet Allocation
B1: Allocation
B3: Concluded Equity Value | D3: EV | E3: Weight | F3: Value
B5: EV - Income Approach | D5: ='DCF-FCFF'!C57*1000 -> 1993415984 | E5: 0.25 | F5: =D5*E5 -> 498353995.9
B6: EV - Market Approach - GPC | D6: =Comps_Analysis!$J$94*1000 -> 1934061000 | E6: 0.25 | F6: =D6*E6 -> 483515250
B7: EV - Market Approach - Backsolve | D7: ='Backsolve_Mar''15'!$F$6 -> 1923760357 | E7: =1-SUM(E5:E6) -> 0.5 | F7: =D7*E7 -> 961880178.4
B8: Concluded EV | F8: =SUM(F5:F7) -> 1943749424 | I8: for sensitivity analysis
B10: Distributable value | F10: =+F8+H10*1000000 -> 1943749424
B12: Convertible Notes - Class of Shares | C12: Issue Price | D12: LP | E12: Principal Amount | F12: Interest Rate | G12: Interest Cost | H12: Number of Shares
B13: ='C1&C2New_sept''14'!A9 -> C-1 convertible note | C13: ='C1&C2_Feb''14'!B2 -> 3 | D13: ='C1&C2_Feb''14'!D2 -> 3 | E13: ='C1&C2_Feb''14'!F2 -> 9999999 | F13: 0.0079 | G13: =+E13*F13*$D$46 -> 315999.9684 | H13: =+ROUND((E13+G13)/C13,0) -> 3438666
B14: ='C1&C2New_sept''14'!A10 -> C-1 convertible note | C14: ='C1&C2_Feb''14'!B3 -> 15 | D14: ='C1&C2_Feb''14'!D3 -> 3 | E14: ='C1&C2_Feb''14'!F3 -> 30000000 | F14: 0.0079 | G14: =+E14*F14*$D$46 -> 948000 | H14: =+ROUND((E14+G14)/C14,0) -> 2063200
B15: ='C1&C2New_sept''14'!A11 -> C-2 convertible note | C15: ='C1&C2_Feb''14'!B4 -> 17 | D15: ='C1&C2_Feb''14'!D4 -> 17 | E15: ='C1&C2_Feb''14'!F4 -> 74999988 | F15: 0.0079 | G15: =+E15*F15*$D$46 -> 2369999.621 | H15: 4551176
B16: Total | E16: =+SUM(E13:E15) -> 114999987 | G16: =+SUM(G13:G15) -> 3633999.589
B18: Class of stock | C18: No. of shares | D18: Issue Price | E18: Invested Amount | F18: LP | G18: Total LP | H18: Participation Cap | I18: Converison Price | J18: Conversion ratio | K18: # of shares on converted basis | L18: % Ownership | M18: % Ownership (diluted)
B19: Series A | C19: ='Summ post - latest'!$J$16 -> 46320045 | D19: 0.15 | E19: =+D19*C19 -> 6948006.75 | F19: 0.15 | G19: =C19*F19 -> 6948006.75 | H19: Unlimited | I19: =D19 -> 0.15 | J19: =D19/I19 -> 1 | K19: =C19*J19 -> 46320045 | L19: =C19/$C$27 -> 0.08677371613 | M19: =K19/$K$39 -> 0.08478194813
B20: Series B | C20: ='Summ post - latest'!$J$18+'Summ post - latest'!$P$18 -> 54162965 | D20: 0.184628 | E20: 9999999.902 | F20: 0.184628 | G20: 9999999.902 | H20: Unlimited | I20: 0.184628 | J20: 1 | K20: 54162965 | L20: =C20/$C$27 -> 0.1014662604 | M20: =K20/$K$39 -> 0.09913724586
B21: Series C | C21: ='Summ post - latest'!$J$20 -> 58896105 | D21: 0.564 | E21: 33217403.22 | F21: 0.564 | G21: 33217403.22 | H21: Unlimited | I21: 0.564 | J21: 1 | K21: 58896105 | L21: 0.1103330944 | M21: 0.1078005542
B22: Series C-1 | C22: ='Shares_Sep''13'!$J$19+H13 -> 21947001 | D22: ='C1&C2_Feb''14'!B2 -> 3 | E22: 65841003 | F22: 3 | G22: 65841003 | H22: Unlimited | I22: 3 | J22: 1 | K22: 21947001 | L22: 0.04111444267 | M22: 0.04017071876
B23: Series C-1* | C23: ='Summ post - latest'!$J$22-'Shares_Sep''13'!$J$19+H14 -> 6563232 | D23: ='C1&C2_Feb''14'!B3 -> 15 | E23: 98448480 | F23: 3 | G23: 19689696 | H23: Unlimited | I23: 15 | J23: 1 | K23: 6563232 | L23: 0.01229523914 | M23: 0.01201301931
B24: Series C-2 | C24: ='Summ post - latest'!$J$24+H15 -> 42947639 | D24: ='C1&C2_Feb''14'!B4 -> 17 | E24: 730109863 | F24: ='C1&C2New_sept''14'!D4 -> 17 | G24: 730109863 | H24: Unlimited | I24: 17 | J24: 1 | K24: 42947639 | L24: 0.08045601499 | M24: 0.0786092609
B25: Common shares - Class A | C25: ='Summ post - latest'!$J$10 -> 52307670 | K25: =C25 -> 52307670 | L25: 0.09799064116 | M25: 0.0957414045
B26: Common shares - Class B | C26: ='Summ post - latest'!$J$12 -> 250658055 | K26: =C26 -> 250658055 | L26: 0.4695705911 | M26: 0.4587922619
B27: Sub Total | C27: =SUM(C19:C26) -> 533802712 | E27: =SUM(E19:E24) -> 944564755.9 | G27: =SUM(G19:G24) -> 865805971.9 | K27: =SUM(K19:K26) -> 533802712 | L27: =SUM(L19:L26) -> 1 | M27: =K27/$K$39 -> 0.9770464135
E28: =C39*D24 -> 9287835233 | F28: =E24-'Allocation_Dec''15'!E27 -> 172369970
B29: Dilutive Instruments | C29: # of options | D29: Strike price
B30: ="Options @ $"&ROUND(D30,3) -> Options @ $0.015 | C30: ='Option outstanding'!$B$4 -> 350000 | D30: ='Option outstanding'!$A$4 -> 0.015 | F30: =D30 -> 0.015 | J30: 1 | K30: =C30*J30 -> 350000 | M30: =K30/$K$39 -> 0.0006406229063
B31: ="Options @ $"&ROUND(D31,3) -> Options @ $0.03 | C31: ='Option outstanding'!$B$5 -> 1170875 | D31: ='Option outstanding'!$A$5 -> 0.03 | F31: 0.03 | J31: 1 | K31: 1170875 | M31: =K31/$K$39 -> 0.002143112415
B32: Options @ $0.066 | C32: ='Option outstanding'!$B$6 -> 547500 | D32: ='Option outstanding'!$A$6 -> 0.066 | F32: 0.066 | J32: 1 | K32: 547500 | M32: 0.001002117261
B33: Options @ $0.072 | C33: ='Option outstanding'!$B$7 -> 2579175 | D33: ='Option outstanding'!$A$7 -> 0.072 | F33: 0.072 | J33: 1 | K33: 2579175 | M33: 0.004720795955
B34: Options @ $0.094 | C34: ='Option outstanding'!$B$8 -> 312500 | D34: ='Option outstanding'!$A$8 -> 0.094 | F34: 0.094 | J34: 1 | K34: 312500 | M34: 0.0005719847377
B35: Options @ $0.17 | C35: ='Option outstanding'!$B$9 -> 3972457 | D35: ='Option outstanding'!$A$9 -> 0.17 | F35: 0.17 | J35: 1 | K35: 3972457 | M35: 0.007270991281
B36: Options @ $0.206 | C36: ='Option outstanding'!$B$10 -> 606365 | D36: ='Option outstanding'!$A$10 -> 0.206 | F36: 0.206 | J36: 1 | K36: 606365 | M36: 0.001109860882
B37: Options @ $1.559 | C37: ='Option outstanding'!$B$14 -> 2260000 | D37: =$D$214 -> 1.558921663 | F37: 1.558921663 | J37: 1 | K37: 2260000 | M37: 0.004136593623
B38: ="Common Stock Warrants @ $"&D38 -> Common Stock Warrants @ $0.072 | C38: ='Summ post - latest'!$R$55 -> 741665 | D38: 0.072 | F38: 0.072 | J38: 1 | K38: 741665 | M38: 0.001357507394
B39: Total | C39: =C27+SUM(C30:C38) -> 546343249 | K39: =K27+SUM(K30:K38) -> 546343249 | M39: =M27+SUM(M30:M38) -> 1
B42: Change in control event
H43: Risk free rate (Years)
B44: Valuation date | D44: =Control!C7 -> 2015-03-25 | H44: 1 | I44: ='BETA & CSRP'!C133 -> 0.0026
B45: Liquidation date | D45: =D44+365*D46 -> 2019-03-24 | H45: 2 | I45: ='BETA & CSRP'!C134 -> 0.006
B46: No. of years to Liquidation | D46: 4 | H46: 3 | I46: ='BETA & CSRP'!C135 -> 0.0095
B47: Volatility | D47: ='BETA & CSRP'!D153 -> 0.4005490638 | H47: 4 | I47: ='BETA & CSRP'!C136 -> 0.0119
B48: Dividend-yield | D48: 0 | H48: 5 | I48: ='BETA & CSRP'!C137 -> 0.0144
B49: Zero coupon yield Corresponding to the time period | D49: =VLOOKUP(D46,H44:I48,2,FALSE) -> 0.0119 | E49: Source : Bloomberg
B52: Event description | C52: Participating Class | D52: Participating shares | E52: Strike Point
A53: 1 | B53: Equity value is nil | C53: None | D53: 0 | E53: 1e-08
A54: 2 | B54: Liquidation preference of Series C,C-1, C-1* and C-2 | C54: Series C, C-1 & C-1* | D54: =C21+C22+C23+C24 -> 130353977 | E54: =G21+G22+G23+G24 -> 848857965.2
A55: =A54+1 -> 3 | B55: Liquidation preference of Series B | C55: Series B | D55: =C20 -> 54162965 | E55: =E54+G20 -> 858857965.1
A56: 4 | B56: Liquidation preference of Series A | C56: Series A | D56: =C19 -> 46320045 | E56: =E55+G19 -> 865805971.9
A57: 5 | B57: =B30&" exercised" -> Options @ $0.015 exercised | C57: Series A, Series B,C,C-1,C-1* & Common | D57: =+K27 -> 533802712 | E57: =E56+D57*F30 -> 873813012.6
A58: 6 | B58: =B31&" exercised" -> Options @ $0.03 exercised | C58: Series A, Series B,C,C-1,C-1*,Common and Options @ $0.015 | D58: =D57+K30 -> 534152712 | E58: =E57+D58*(F31-F30) -> 881825303.2
A59: 7 | B59: =B32&" exercised" -> Options @ $0.066 exercised | C59: Series A, Series B,C,C-1,C-1*, Common,Options @ $0.015,$0.03 | D59: =D58+K31 -> 535323587 | E59: =E58+D59*(F32-F31) -> 901096952.4
A60: 8 | B60: =B33&" and "&B38&" exercised" -> Options @ $0.072 and Common Stock Warrants @ $0.072 exercised | C60: Series A, Series B, C,C-1,C-1*, Common,Options @ $0.015,$0.03,$0.066 | D60: =D59+K32 -> 535871087 | E60: =E59+D60*(F33-F32) -> 904312178.9
A61: 9 | B61: =B34&" exercised" -> Options @ $0.094 exercised | C61: Series A, Series B, C,C-1,C-1*, Common,Options @ $0.015,$0.03,$0.066,$0.072, Common Warrants @ $0.072 | D61: =D60+K33+K38 -> 539191927 | E61: =E60+D61*(F34-F33) -> 916174401.3
A62: 11 | B62: =B35&" get exercised" -> Options @ $0.17 get exercised | C62: Series A,Series B, C,C-1,C-1*, Common,Options @ $0.015,$0.03,$0.066,$0.072,$0.094, Common Warrants @ $0.072 | D62: =D61+K34 -> 539504427 | E62: =E61+D62*(D35-D34) -> 957176737.7
A63: 12 | B63: =B36&" get exercised" -> Options @ $0.206 get exercised | C63: Series A,Series B, C,C-1,C-1*, Common,Options @ $0.015,$0.03,$0.066,$0.072,$0.094,$0.17, Common Warrants @ $0.072 | D63: =D62+K35 -> 543476884 | E63: =E62+D63*(F36-F35) -> 976741905.6
B64: =B37&" get exercised" -> Options @ $1.559 get exercised | C64: Series A,Series B, C,C-1,C-1*, Common,Options @ $0.015,$0.03,$0.066,$0.072,$0.094,$0.17,$0.206, Common Warrants @ $0.072 | D64: =D63+K36 -> 544083249 | E64: =E63+D64*(F37-F36) -> 1712843920
B65: Thereafter | C65: All classes | D65: =+D64+C37 -> 546343249
C67: 1 | D67: =C67+1 -> 2 | E67: 3 | F67: 4 | G67: 5 | H67: 6 | I67: 7 | J67: 8 | K67: 9 | L67: 10 | M67: 11 | N67: 12
B70: Value of the underlying Asset ($) | C70: =F10 -> 1943749424 | D70: =C70 -> 1943749424 | E70: 1943749424 | F70: 1943749424 | G70: 1943749424 | H70: 1943749424 | I70: 1943749424 | J70: 1943749424 | K70: 1943749424 | L70: 1943749424 | M70: 1943749424 | N70: 1943749424
B71: Strike Price ($) | C71: =TRANSPOSE(E53:E64) -> 1e-08 | D71: 848857965.2 | E71: 858857965.1 | F71: 865805971.9 | G71: 873813012.6 | H71: 881825303.2 | I71: 901096952.4 | J71: 904312178.9 | K71: 916174401.3 | L71: 957176737.7 | M71: 976741905.6 | N71: 1712843920
B72: S.D of the Underlying preferred share | C72: =D47 -> 0.4005490638 | D72: =C72 -> 0.4005490638 | E72: 0.4005490638 | F72: 0.4005490638 | G72: 0.4005490638 | H72: 0.4005490638 | I72: 0.4005490638 | J72: 0.4005490638 | K72: =J72 -> 0.4005490638 | L72: =K72 -> 0.4005490638 | M72: 0.4005490638 | N72: 0.4005490638
B73: Dividend yield | C73: =D48 -> 0 | D73: 0 | E73: 0 | F73: 0 | G73: 0 | H73: 0 | I73: 0 | J73: 0 | K73: =J73 -> 0 | L73: 0 | M73: 0 | N73: 0
B74: Time of Expiration (years) | C74: =D46 -> 4 | D74: 4 | E74: 4 | F74: 4 | G74: 4 | H74: 4 | I74: 4 | J74: 4 | K74: =J74 -> 4 | L74: 4 | M74: 4 | N74: 4
B75: Riskless Rate corresponding to option life time | C75: =D49 -> 0.0119 | D75: 0.0119 | E75: 0.0119 | F75: 0.0119 | G75: 0.0119 | H75: 0.0119 | I75: 0.0119 | J75: 0.0119 | K75: =J75 -> 0.0119 | L75: 0.0119 | M75: 0.0119 | N75: 0.0119
B79: Stock Price | C79: =C70 -> 1943749424 | D79: 1943749424 | E79: 1943749424 | F79: 1943749424 | G79: 1943749424 | H79: 1943749424 | I79: 1943749424 | J79: 1943749424 | K79: 1943749424 | L79: 1943749424 | M79: 1943749424 | N79: 1943749424
B80: Strike Price | C80: 1e-08 | D80: 848857965.2 | E80: 858857965.1 | F80: 865805971.9 | G80: 873813012.6 | H80: 881825303.2 | I80: 901096952.4 | J80: 904312178.9 | K80: 916174401.3 | L80: 957176737.7 | M80: 976741905.6 | N80: 1712843920
B81: Expiration (in years) | C81: =C74 -> 4 | D81: 4 | E81: 4 | F81: 4 | G81: 4 | H81: 4 | I81: 4 | J81: 4 | K81: 4 | L81: 4 | M81: 4 | N81: 4
B82: T.Bond rate | C82: 0.0119 | D82: 0.0119 | E82: 0.0119 | F82: 0.0119 | G82: 0.0119 | H82: 0.0119 | I82: 0.0119 | J82: 0.0119 | K82: 0.0119 | L82: 0.0119 | M82: 0.0119 | N82: 0.0119
B83: Variance | C83: =C72^2 -> 0.1604395525 | D83: 0.1604395525 | E83: 0.1604395525 | F83: 0.1604395525 | G83: 0.1604395525 | H83: 0.1604395525 | I83: 0.1604395525 | J83: 0.1604395525 | K83: 0.1604395525 | L83: 0.1604395525 | M83: 0.1604395525 | N83: 0.1604395525
B84: Annualized dividend yield | C84: =C73 -> 0 | D84: 0 | E84: 0 | F84: 0 | G84: 0 | H84: 0 | I84: 0 | J84: 0 | K84: 0 | L84: 0 | M84: 0 | N84: 0
B87: d1 = | C87: =(LN(C79/C80)+(C82-C84+(C83/2))*C81)/(((C83)^(0.5))*(C81^0.5)) -> 50.15246336 | D87: 1.494150676 | E87: 1.47953114 | F87: 1.469473354 | G87: 1.457982158 | H87: 1.446588348 | I87: 1.41960178 | J87: 1.415155665 | K87: 1.398887858 | L87: 1.344236236 | M87: 1.318977915 | N87: =(LN(N79/N80)+(N82-N84+(N83/2))*N81)/(((N83)^(0.5))*(N81^0.5)) -> 0.6178304363
B88: N(d1) = | C88: =NORMSDIST(C87) -> 1 | D88: 0.9324318794 | E88: 0.9305007924 | F88: 0.929147778 | G88: 0.9275772695 | H88: 0.9259938743 | I88: 0.9221381765 | J88: 0.9214885699 | K88: 0.9190766929 | L88: 0.9105639962 | M88: 0.906411752 | N88: 0.731656441
B90: d2 = | C90: =C87-((C83^0.5)*(C81^(0.5))) -> 49.35136523 | D90: 0.6930525487 | E90: 0.678433012 | F90: 0.6683752263 | G90: 0.65688403 | H90: 0.6454902209 | I90: 0.6185036522 | J90: 0.6140575374 | K90: 0.5977897306 | L90: 0.5431381082 | M90: 0.5178797874 | N90: -0.1832676912
B91: N(d2) = | C91: =NORMSDIST(C90) -> 1 | D91: 0.7558617127 | E91: 0.7512514081 | F91: 0.7480529474 | G91: 0.7443722562 | H91: 0.7406952232 | I91: 0.7318783045 | J91: 0.7304113467 | K91: 0.7250098781 | L91: 0.7064826419 | M91: 0.6977289273 | N91: 0.4272939918
C93: =(EXP((0-C84)*C81))*C79*C88-C80*(EXP((0-C82)*C81))*C91 -> 1943749424 | D93: 1200620289 | E93: 1193435019 | F93: 1188468554 | G93: 1182771348 | H93: 1177098513 | I93: 1163568710 | J93: 1161327190 | K93: 1153096211 | L93: 1125113907 | M93: 1112015737 | N93: 724290594.3
C94: =C93-D93 -> 743129135.7 | D94: 7185269.468 | E94: 4966465.5 | F94: 5697205.863 | G94: 5672835.178 | H94: 13529803.15 | I94: 2241519.438 | J94: 8230979.122 | K94: 27982303.48 | L94: 13098170.13 | M94: 387725143 | N94: =N93 -> 724290594.3 | O94: =SUM(C94:N94)-F10 -> 0
B99: Participation in Incremental Value after Each Event
B100: Participation =1, No participation = 0 | C100: =TRANSPOSE(B19:B26) -> Series A | D100: Series B | E100: Series C | F100: Series C-1 | G100: Series C-1* | H100: Series C-2 | I100: Common shares - Class A | J100: Common shares - Class B | K100: =TRANSPOSE(B30:B38) -> Options @ $0.015 | L100: Options @ $0.03 | M100: Options @ $0.066 | N100: Options @ $0.072 | O100: Options @ $0.094 | P100: Options @ $0.17 | Q100: Options @ $0.206 | R100: Options @ $1.559 | S100: Common Stock Warrants @ $0.072 | T100: Total
B101: Common Stock Equivalents | C101: =TRANSPOSE(K19:K26) -> 46320045 | D101: 54162965 | E101: 58896105 | F101: 21947001 | G101: 6563232 | H101: 42947639 | I101: 52307670 | J101: 250658055 | K101: =TRANSPOSE(K30:K38) -> 350000 | L101: 1170875 | M101: 547500 | N101: 2579175 | O101: 312500 | P101: 3972457 | Q101: 606365 | R101: 2260000 | S101: 741665 | T101: =SUM(C101:S101) -> 546343249 | U101: =T101-K39 -> 0
B102: LP | C102: =TRANSPOSE(G19:G24) -> 6948006.75 | D102: 9999999.902 | E102: 33217403.22 | F102: 65841003 | G102: 19689696 | H102: 730109863
A104: 1 | B104: =B54 -> Liquidation preference of Series C,C-1, C-1* and C-2 | C104: 0 | D104: 0 | E104: 1 | F104: 1 | G104: 1 | H104: 1 | I104: 0 | J104: 0 | K104: 0 | L104: 0 | M104: 0 | N104: 0 | O104: 0 | P104: 0 | Q104: 0 | R104: 0 | S104: 0 | T104: =SUM(C104:S104) -> 4
A105: 2 | B105: =B55 -> Liquidation preference of Series B | C105: 0 | D105: 1 | E105: 0 | F105: 0 | G105: 0 | H105: 0 | I105: 0 | J105: 0 | K105: 0 | L105: 0 | M105: 0 | N105: 0 | O105: 0 | P105: 0 | Q105: 0 | R105: 0 | S105: 0 | T105: =SUM(C105:S105) -> 1
A106: 3 | B106: Liquidation preference of Series A | C106: 1 | D106: 0 | E106: 0 | F106: 0 | G106: 0 | H106: 0 | I106: 0 | J106: 0 | K106: 0 | L106: 0 | M106: 0 | N106: 0 | O106: 0 | P106: 0 | Q106: 0 | R106: 0 | S106: 0 | T106: 1
A107: 4 | B107: Options @ $0.015 exercised | C107: 1 | D107: 1 | E107: 1 | F107: 1 | G107: 1 | H107: 1 | I107: 1 | J107: 1 | K107: 0 | L107: 0 | M107: 0 | N107: 0 | O107: 0 | P107: 0 | Q107: 0 | R107: 0 | S107: 0 | T107: 8
A108: 5 | B108: Options @ $0.03 exercised | C108: 1 | D108: 1 | E108: 1 | F108: 1 | G108: 1 | H108: 1 | I108: 1 | J108: 1 | K108: 1 | L108: 0 | M108: 0 | N108: 0 | O108: 0 | P108: 0 | Q108: 0 | R108: 0 | S108: 0 | T108: 9
A109: 6 | B109: Options @ $0.066 exercised | C109: 1 | D109: 1 | E109: 1 | F109: 1 | G109: 1 | H109: 1 | I109: 1 | J109: 1 | K109: 1 | L109: 1 | M109: 0 | N109: 0 | O109: 0 | P109: 0 | Q109: 0 | R109: 0 | S109: 0 | T109: 10
A110: 7 | B110: Options @ $0.072 and Common Stock Warrants @ $0.072 exercised | C110: 1 | D110: 1 | E110: 1 | F110: 1 | G110: 1 | H110: 1 | I110: 1 | J110: 1 | K110: 1 | L110: 1 | M110: 1 | N110: 0 | O110: 0 | P110: 0 | Q110: 0 | R110: 0 | S110: 0 | T110: 11
A111: 8 | B111: Options @ $0.094 exercised | C111: 1 | D111: 1 | E111: 1 | F111: 1 | G111: 1 | H111: 1 | I111: 1 | J111: 1 | K111: 1 | L111: 1 | M111: 1 | N111: 1 | O111: 0 | P111: 0 | Q111: 0 | R111: 0 | S111: 1 | T111: 13
A112: 9 | B112: Options @ $0.17 get exercised | C112: 1 | D112: 1 | E112: 1 | F112: 1 | G112: 1 | H112: 1 | I112: 1 | J112: 1 | K112: 1 | L112: 1 | M112: 1 | N112: 1 | O112: 1 | P112: 0 | Q112: 0 | R112: 0 | S112: 1 | T112: 14
A113: 10 | B113: Options @ $0.206 get exercised | C113: 1 | D113: 1 | E113: 1 | F113: 1 | G113: 1 | H113: 1 | I113: 1 | J113: 1 | K113: 1 | L113: 1 | M113: 1 | N113: 1 | O113: 1 | P113: 1 | Q113: 0 | R113: 0 | S113: 1 | T113: 15
A114: 11 | B114: Options @ $1.559 get exercised | C114: 1 | D114: 1 | E114: 1 | F114: 1 | G114: 1 | H114: 1 | I114: 1 | J114: 1 | K114: 1 | L114: 1 | M114: 1 | N114: 1 | O114: 1 | P114: 1 | Q114: 1 | R114: 0 | S114: 1 | T114: 16
A115: 12 | B115: Thereafter | C115: 1 | D115: 1 | E115: 1 | F115: 1 | G115: 1 | H115: 1 | I115: 1 | J115: 1 | K115: 1 | L115: 1 | M115: 1 | N115: 1 | O115: 1 | P115: 1 | Q115: 1 | R115: 1 | S115: 1 | T115: 17
B117: LP in $ / Number of Shares | T117: Total
B119: =B104 -> Liquidation preference of Series C,C-1, C-1* and C-2 | C119: =C$102*C104 -> 0 | D119: =D$102*D104 -> 0 | E119: 33217403.22 | F119: 65841003 | G119: 19689696 | H119: 730109863 | I119: 0 | J119: 0 | K119: 0 | L119: 0 | M119: 0 | N119: 0 | O119: 0 | P119: 0 | Q119: 0 | R119: 0 | S119: 0 | T119: =SUM(C119:S119) -> 848857965.2 | U119: =T119-E54 -> 0
B120: Liquidation preference of Series B | C120: =C$102*C105 -> 0 | D120: 9999999.902 | E120: 0 | F120: 0 | G120: 0 | H120: 0 | I120: 0 | J120: 0 | K120: 0 | L120: 0 | M120: 0 | N120: 0 | O120: 0 | P120: 0 | Q120: 0 | R120: 0 | S120: 0 | T120: =SUM(C120:S120) -> 9999999.902 | U120: =E55-SUM($T$119:T120) -> 0
B121: Liquidation preference of Series A | C121: 6948006.75 | D121: 0 | E121: 0 | F121: 0 | G121: 0 | H121: 0 | I121: 0 | J121: 0 | K121: 0 | L121: 0 | M121: 0 | N121: 0 | O121: 0 | P121: 0 | Q121: 0 | R121: 0 | S121: 0 | T121: 6948006.75 | U121: =E56-SUM($T$119:T121) -> 0
B122: Options @ $0.015 exercised | C122: =C107*C$101 -> 46320045 | D122: =D107*D$101 -> 54162965 | E122: 58896105 | F122: 21947001 | G122: 6563232 | H122: 42947639 | I122: 52307670 | J122: 250658055 | K122: 0 | L122: 0 | M122: 0 | N122: 0 | O122: 0 | P122: 0 | Q122: 0 | R122: 0 | S122: 0 | T122: 533802712 | U122: =D57-T122 -> 0
B123: Options @ $0.03 exercised | C123: =C108*C$101 -> 46320045 | D123: 54162965 | E123: 58896105 | F123: 21947001 | G123: 6563232 | H123: 42947639 | I123: 52307670 | J123: 250658055 | K123: 350000 | L123: 0 | M123: 0 | N123: 0 | O123: 0 | P123: 0 | Q123: 0 | R123: 0 | S123: 0 | T123: 534152712 | U123: =D58-T123 -> 0
B124: Options @ $0.066 exercised | C124: 46320045 | D124: 54162965 | E124: 58896105 | F124: 21947001 | G124: 6563232 | H124: 42947639 | I124: 52307670 | J124: 250658055 | K124: 350000 | L124: 1170875 | M124: 0 | N124: 0 | O124: 0 | P124: 0 | Q124: 0 | R124: 0 | S124: 0 | T124: 535323587 | U124: 0
B125: Options @ $0.072 and Common Stock Warrants @ $0.072 exercised | C125: 46320045 | D125: 54162965 | E125: 58896105 | F125: 21947001 | G125: 6563232 | H125: 42947639 | I125: 52307670 | J125: 250658055 | K125: 350000 | L125: 1170875 | M125: 547500 | N125: 0 | O125: 0 | P125: 0 | Q125: 0 | R125: 0 | S125: 0 | T125: 535871087 | U125: 0
B126: Options @ $0.094 exercised | C126: 46320045 | D126: 54162965 | E126: 58896105 | F126: 21947001 | G126: 6563232 | H126: 42947639 | I126: 52307670 | J126: 250658055 | K126: 350000 | L126: 1170875 | M126: 547500 | N126: 2579175 | O126: 0 | P126: 0 | Q126: 0 | R126: 0 | S126: 741665 | T126: 539191927 | U126: 0
B127: =B112 -> Options @ $0.17 get exercised | C127: 46320045 | D127: 54162965 | E127: 58896105 | F127: 21947001 | G127: 6563232 | H127: 42947639 | I127: 52307670 | J127: 250658055 | K127: 350000 | L127: 1170875 | M127: 547500 | N127: 2579175 | O127: 312500 | P127: 0 | Q127: 0 | R127: 0 | S127: 741665 | T127: 539504427 | U127: 0
B128: =B113 -> Options @ $0.206 get exercised | C128: 46320045 | D128: 54162965 | E128: 58896105 | F128: 21947001 | G128: 6563232 | H128: 42947639 | I128: 52307670 | J128: 250658055 | K128: 350000 | L128: 1170875 | M128: 547500 | N128: 2579175 | O128: 312500 | P128: 3972457 | Q128: 0 | R128: 0 | S128: 741665 | T128: 543476884 | U128: 0
B129: =B114 -> Options @ $1.559 get exercised | C129: 46320045 | D129: 54162965 | E129: 58896105 | F129: 21947001 | G129: 6563232 | H129: 42947639 | I129: 52307670 | J129: 250658055 | K129: 350000 | L129: 1170875 | M129: 547500 | N129: 2579175 | O129: 312500 | P129: 3972457 | Q129: 606365 | R129: 0 | S129: 741665 | T129: 544083249 | U129: 0
B130: =B115 -> Thereafter | C130: 46320045 | D130: 54162965 | E130: 58896105 | F130: 21947001 | G130: 6563232 | H130: 42947639 | I130: 52307670 | J130: 250658055 | K130: 350000 | L130: 1170875 | M130: 547500 | N130: 2579175 | O130: 312500 | P130: 3972457 | Q130: 606365 | R130: 2260000 | S130: 741665 | T130: 546343249 | U130: 0
B131: % of Ownership in Incremental Value after Each Event | T131: Total
B133: =B119 -> Liquidation preference of Series C,C-1, C-1* and C-2 | C133: =C119/$T119 -> 0 | D133: =D119/$T119 -> 0 | E133: 0.03913187433 | F133: 0.07756421651 | G133: 0.02319551304 | H133: 0.8601083961 | I133: 0 | J133: 0 | K133: 0 | L133: 0 | M133: 0 | N133: 0 | O133: 0 | P133: 0 | Q133: 0 | R133: 0 | S133: 0 | T133: =SUM(C133:S133) -> 1
B134: Liquidation preference of Series B | C134: =C120/$T120 -> 0 | D134: 1 | E134: 0 | F134: 0 | G134: 0 | H134: 0 | I134: 0 | J134: 0 | K134: 0 | L134: 0 | M134: 0 | N134: 0 | O134: 0 | P134: 0 | Q134: 0 | R134: 0 | S134: 0 | T134: =SUM(C134:S134) -> 1
B135: Liquidation preference of Series A | C135: 1 | D135: 0 | E135: 0 | F135: 0 | G135: 0 | H135: 0 | I135: 0 | J135: 0 | K135: 0 | L135: 0 | M135: 0 | N135: 0 | O135: 0 | P135: 0 | Q135: 0 | R135: 0 | S135: 0 | T135: 1
B136: Options @ $0.015 exercised | C136: 0.08677371613 | D136: 0.1014662604 | E136: 0.1103330944 | F136: 0.04111444267 | G136: 0.01229523914 | H136: 0.08045601499 | I136: 0.09799064116 | J136: 0.4695705911 | K136: 0 | L136: 0 | M136: 0 | N136: 0 | O136: 0 | P136: 0 | Q136: 0 | R136: 0 | S136: 0 | T136: 1
B137: Options @ $0.03 exercised | C137: 0.08671685823 | D137: 0.1013997754 | E137: 0.1102607993 | F137: 0.04108750271 | G137: 0.01228718277 | H137: 0.08040329673 | I137: 0.09792643344 | J137: 0.4692629081 | K137: 0.0006552433267 | L137: 0 | M137: 0 | N137: 0 | O137: 0 | P137: 0 | Q137: 0 | R137: 0 | S137: 0 | T137: 1
B138: Options @ $0.066 exercised | C138: 0.08652718865 | D138: 0.1011779909 | E138: 0.1100196338 | F138: 0.04099763495 | G138: 0.01226030789 | H138: 0.08022743634 | I138: 0.09771224596 | J138: 0.4682365229 | K138: 0.0006538101599 | L138: 0.002187228488 | M138: 0 | N138: 0 | O138: 0 | P138: 0 | Q138: 0 | R138: 0 | S138: 0 | T138: 1
B139: Options @ $0.072 and Common Stock Warrants @ $0.072 exercised | C139: 0.08643878374 | D139: 0.1010746172 | E139: 0.1099072266 | F139: 0.04095574763 | G139: 0.01224778153 | H139: 0.0801454679 | I139: 0.09761241326 | J139: 0.4677581252 | K139: 0.0006531421614 | L139: 0.002184993795 | M139: 0.001021700952 | N139: 0 | O139: 0 | P139: 0 | Q139: 0 | R139: 0 | S139: 0 | T139: 1
B140: Options @ $0.094 exercised | C140: 0.08590641417 | D140: 0.1004521067 | E140: 0.1092303168 | F140: 0.04070350445 | G140: 0.01217234842 | H140: 0.07965185836 | I140: 0.09701122621 | J140: 0.4648772403 | K140: 0.000649119511 | L140: 0.002171536593 | M140: 0.001015408378 | N140: 0.004783408042 | O140: 0 | P140: 0 | Q140: 0 | R140: 0 | S140: 0.001375512063 | T140: 1
B141: =B127 -> Options @ $0.17 get exercised | C141: 0.08585665415 | D141: 0.1003939213 | E141: 0.1091670467 | F141: 0.04067992754 | G141: 0.01216529777 | H141: 0.0796057212 | I141: 0.09695503388 | J141: 0.464607967 | K141: 0.0006487435181 | L141: 0.002170278762 | M141: 0.001014820218 | N141: 0.004780637324 | O141: 0.000579235284 | P141: 0 | Q141: 0 | R141: 0 | S141: 0.001374715318 | T141: 1
B142: =B128 -> Options @ $0.206 get exercised | C142: 0.08522909872 | D142: 0.09966010808 | E142: 0.1083691077 | F142: 0.04038258415 | G142: 0.01207637747 | H142: 0.07902385596 | I142: 0.09624635663 | J142: 0.4612119897 | K142: 0.0006440016315 | L142: 0.002154415458 | M142: 0.001007402552 | N142: 0.004745694023 | O142: 0.0005750014567 | P142: 0.007309339398 | Q142: 0 | R142: 0 | S142: 0.001364667057 | T142: 1
B143: =B129 -> Options @ $1.559 get exercised | C143: 0.08513411336 | D143: 0.09954903978 | E143: 0.1082483335 | F143: 0.04033757893 | G143: 0.0120629187 | H143: 0.07893578617 | I143: 0.09613909286 | J143: 0.4606979823 | K143: 0.0006432839104 | L143: 0.002152014425 | M143: 0.001006279831 | N143: 0.004740405085 | O143: 0.0005743606343 | P143: 0.007301193351 | Q143: 0.001114470995 | R143: 0 | S143: 0.001363146175 | T143: 1
B144: =B130 -> Thereafter | C144: 0.08478194813 | D144: 0.09913724586 | E144: 0.1078005542 | F144: 0.04017071876 | G144: 0.01201301931 | H144: 0.0786092609 | I144: 0.0957414045 | J144: 0.4587922619 | K144: 0.0006406229063 | L144: 0.002143112415 | M144: 0.001002117261 | N144: 0.004720795955 | O144: 0.0005719847377 | P144: 0.007270991281 | Q144: 0.001109860882 | R144: 0.004136593623 | S144: 0.001357507394 | T144: 1
B146: Value Allocated | C146: Option 1 | D146: Option 2 | E146: Option 3 | F146: Option 4 | G146: Option 5 | H146: Option 6 | I146: Option 7 | J146: Option 8 | K146: Option 9 | L146: Option 10 | M146: Option 11 | N146: Option 12
B147: =TRANSPOSE(C100:S100) -> Series A | C147: =TRANSPOSE(C133:S144) -> 0 | D147: 0 | E147: 1 | F147: 0.08677371613 | G147: 0.08671685823 | H147: 0.08652718865 | I147: 0.08643878374 | J147: 0.08590641417 | K147: 0.08585665415 | L147: 0.08522909872 | M147: 0.08513411336 | N147: 0.08478194813
B148: Series B | C148: 0 | D148: 1 | E148: 0 | F148: 0.1014662604 | G148: 0.1013997754 | H148: 0.1011779909 | I148: 0.1010746172 | J148: 0.1004521067 | K148: 0.1003939213 | L148: 0.09966010808 | M148: 0.09954903978 | N148: 0.09913724586
B149: Series C | C149: 0.03913187433 | D149: 0 | E149: 0 | F149: 0.1103330944 | G149: 0.1102607993 | H149: 0.1100196338 | I149: 0.1099072266 | J149: 0.1092303168 | K149: 0.1091670467 | L149: 0.1083691077 | M149: 0.1082483335 | N149: 0.1078005542
B150: Series C-1 | C150: 0.07756421651 | D150: 0 | E150: 0 | F150: 0.04111444267 | G150: 0.04108750271 | H150: 0.04099763495 | I150: 0.04095574763 | J150: 0.04070350445 | K150: 0.04067992754 | L150: 0.04038258415 | M150: 0.04033757893 | N150: 0.04017071876
B151: Series C-1* | C151: 0.02319551304 | D151: 0 | E151: 0 | F151: 0.01229523914 | G151: 0.01228718277 | H151: 0.01226030789 | I151: 0.01224778153 | J151: 0.01217234842 | K151: 0.01216529777 | L151: 0.01207637747 | M151: 0.0120629187 | N151: 0.01201301931
B152: Series C-2 | C152: 0.8601083961 | D152: 0 | E152: 0 | F152: 0.08045601499 | G152: 0.08040329673 | H152: 0.08022743634 | I152: 0.0801454679 | J152: 0.07965185836 | K152: 0.0796057212 | L152: 0.07902385596 | M152: 0.07893578617 | N152: 0.0786092609
B153: Common shares - Class A | C153: 0 | D153: 0 | E153: 0 | F153: 0.09799064116 | G153: 0.09792643344 | H153: 0.09771224596 | I153: 0.09761241326 | J153: 0.09701122621 | K153: 0.09695503388 | L153: 0.09624635663 | M153: 0.09613909286 | N153: 0.0957414045
B154: Common shares - Class B | C154: 0 | D154: 0 | E154: 0 | F154: 0.4695705911 | G154: 0.4692629081 | H154: 0.4682365229 | I154: 0.4677581252 | J154: 0.4648772403 | K154: 0.464607967 | L154: 0.4612119897 | M154: 0.4606979823 | N154: 0.4587922619
B155: Options @ $0.015 | C155: 0 | D155: 0 | E155: 0 | F155: 0 | G155: 0.0006552433267 | H155: 0.0006538101599 | I155: 0.0006531421614 | J155: 0.000649119511 | K155: 0.0006487435181 | L155: 0.0006440016315 | M155: 0.0006432839104 | N155: 0.0006406229063
B156: Options @ $0.03 | C156: 0 | D156: 0 | E156: 0 | F156: 0 | G156: 0 | H156: 0.002187228488 | I156: 0.002184993795 | J156: 0.002171536593 | K156: 0.002170278762 | L156: 0.002154415458 | M156: 0.002152014425 | N156: 0.002143112415
B157: Options @ $0.066 | C157: 0 | D157: 0 | E157: 0 | F157: 0 | G157: 0 | H157: 0 | I157: 0.001021700952 | J157: 0.001015408378 | K157: 0.001014820218 | L157: 0.001007402552 | M157: 0.001006279831 | N157: 0.001002117261
B158: Options @ $0.072 | C158: 0 | D158: 0 | E158: 0 | F158: 0 | G158: 0 | H158: 0 | I158: 0 | J158: 0.004783408042 | K158: 0.004780637324 | L158: 0.004745694023 | M158: 0.004740405085 | N158: 0.004720795955
B159: Options @ $0.094 | C159: 0 | D159: 0 | E159: 0 | F159: 0 | G159: 0 | H159: 0 | I159: 0 | J159: 0 | K159: 0.000579235284 | L159: 0.0005750014567 | M159: 0.0005743606343 | N159: 0.0005719847377
B160: Options @ $0.17 | C160: 0 | D160: 0 | E160: 0 | F160: 0 | G160: 0 | H160: 0 | I160: 0 | J160: 0 | K160: 0 | L160: 0.007309339398 | M160: 0.007301193351 | N160: 0.007270991281
B161: Options @ $0.206 | C161: 0 | D161: 0 | E161: 0 | F161: 0 | G161: 0 | H161: 0 | I161: 0 | J161: 0 | K161: 0 | L161: 0 | M161: 0.001114470995 | N161: 0.001109860882
B162: Options @ $1.559 | C162: 0 | D162: 0 | E162: 0 | F162: 0 | G162: 0 | H162: 0 | I162: 0 | J162: 0 | K162: 0 | L162: 0 | M162: 0 | N162: 0.004136593623
B163: Common Stock Warrants @ $0.072 | C163: 0 | D163: 0 | E163: 0 | F163: 0 | G163: 0 | H163: 0 | I163: 0 | J163: 0.001375512063 | K163: 0.001374715318 | L163: 0.001364667057 | M163: 0.001363146175 | N163: 0.001357507394
B164: Total | C164: =SUM(C147:C163) -> 1 | D164: =SUM(D147:D163) -> 1 | E164: 1 | F164: 1 | G164: 1 | H164: 1 | I164: 1 | J164: 1 | K164: 1 | L164: 1 | M164: 1 | N164: 1
B166: Allocation percentages | C166: =C146 -> Option 1 | D166: Option 2 | E166: Option 3 | F166: Option 4 | G166: Option 5 | H166: Option 6 | I166: Option 7 | J166: Option 8 | K166: Option 9 | L166: Option 10 | M166: Option 11 | N166: Option 12 | O166: Total
B167: =B147 -> Series A | C167: =C147*C$94 -> 0 | D167: =D147*D$94 -> 0 | E167: 4966465.5 | F167: 494367.7243 | G167: 491930.4439 | H167: 1170695.83 | I167: 193754.214 | J167: 707093.9015 | K167: 2402466.952 | L167: 1116345.235 | M167: 33008636.28 | N167: 61406767.6 | O167: =SUM(C167:N167) -> 105958523.7
B168: =B148 -> Series B | C168: =C148*C$94 -> 0 | D168: 7185269.468 | E168: 0 | F168: 578074.1739 | G168: 575224.2127 | H168: 1368918.3 | I168: 226560.7192 | J168: 826819.1932 | K168: 2809253.174 | L168: 1305365.051 | M168: 38597665.69 | N168: 71804174.72 | O168: =SUM(C168:N168) -> 125277324.7
B169: Series C | C169: 29080035.95 | D169: 0 | E169: 0 | F169: 628590.3522 | G169: 625491.3413 | H169: 1488543.988 | I169: 246359.1849 | J169: 899072.457 | K169: 3054745.432 | L169: 1419437.01 | M169: 41970600.6 | N169: 78078927.43 | O169: 157491803.7
B170: Series C-1 | C170: 57640229.17 | D170: 0 | E170: 0 | F170: 234237.4438 | G170: 233082.6307 | H170: 554689.9306 | I170: 91803.10442 | J170: 335029.6953 | K170: 1138318.078 | L170: 528937.9575 | M170: 15639893.56 | N170: 29095273.76 | O170: 105491495.3
B171: Series C-1* | C171: 17237261.56 | D171: 0 | E171: 0 | F171: 70048.50854 | G171: 69703.16267 | H171: 165879.5524 | I171: 27453.64037 | J171: 100190.3457 | K171: 340413.054 | L171: 158178.4467 | M171: 4677096.879 | N171: 8700916.895 | O171: 31547142.04
B172: Series C-2 | C172: 639171609 | D172: 0 | E172: 0 | F172: 458374.4804 | G172: 456114.6501 | H172: 1085461.421 | I172: 179647.6242 | J172: 655612.7832 | K172: 2227551.449 | L172: 1035067.91 | M172: 30605388.98 | N172: 56935948.29 | O172: 732810776.6
B173: Common shares - Class A | C173: 0 | D173: 0 | E173: 0 | F173: 558272.8553 | G173: 555520.5165 | H173: 1322027.454 | I173: 218800.1218 | J173: 798497.3775 | K173: 2713025.182 | L173: 1260651.154 | M173: 37275543.53 | N173: 69344598.77 | O173: 114046937
B174: Common shares - Class B | C174: 0 | D174: 0 | E174: 0 | F174: 2675240.325 | G174: 2662051.133 | H174: 6335147.984 | I174: 1048488.93 | J174: 3826394.859 | K174: 13000801.13 | L174: 6041033.107 | M174: 178624191.1 | N174: 332298920 | O174: 546512268.6
B175: Options @ $0.015 | C175: 0 | D175: 0 | E175: 0 | F175: 0 | G175: 3717.087394 | H175: 8845.922763 | I175: 1464.030851 | J175: 5342.889143 | K175: 18153.338 | L175: 8435.242935 | M175: 249417.3462 | N175: 463997.1455 | O175: 759373.0028
B176: Options @ $0.03 | C176: 0 | D176: 0 | E176: 0 | F176: 0 | G176: 0 | H176: 29592.7709 | I176: 4897.706064 | J176: 17873.87236 | K176: 60729.39895 | L176: 28218.90021 | M176: 834390.1006 | N176: 1552236.165 | O176: 2527938.914
B177: Options @ $0.066 | C177: 0 | D177: 0 | E177: 0 | F177: 0 | G177: 0 | H177: 0 | I177: 2290.162545 | J177: 8357.805159 | K177: 28397.0073 | L177: 13195.13002 | M177: 390159.9915 | N177: 725824.1062 | O177: 1168224.203
B178: Options @ $0.072 | C178: 0 | D178: 0 | E178: 0 | F178: 0 | G178: 0 | H178: 0 | I178: 0 | J178: 39372.13173 | K178: 133773.2444 | L178: 62159.90771 | M178: 1837974.24 | N178: 3419228.108 | O178: 5492507.631
B179: Options @ $0.094 | C179: 0 | D179: 0 | E179: 0 | F179: 0 | G179: 0 | H179: 0 | I179: 0 | J179: 0 | K179: 16208.3375 | L179: 7531.466906 | M179: 222694.0591 | N179: 414283.1656 | O179: 660717.0291
B180: Options @ $0.17 | C180: 0 | D180: 0 | E180: 0 | F180: 0 | G180: 0 | H180: 0 | I180: 0 | J180: 0 | K180: 0 | L180: 95738.97099 | M180: 2830856.236 | N180: 5266310.596 | O180: 8192905.804
B181: Options @ $0.206 | C181: 0 | D181: 0 | E181: 0 | F181: 0 | G181: 0 | H181: 0 | I181: 0 | J181: 0 | K181: 0 | L181: 0 | M181: 432108.426 | N181: 803861.7975 | O181: 1235970.224
B182: Options @ $1.559 | C182: 0 | D182: 0 | E182: 0 | F182: 0 | G182: 0 | H182: 0 | I182: 0 | J182: 0 | K182: 0 | L182: 0 | M182: 0 | N182: 2996095.854 | O182: 2996095.854
B183: Common Stock Warrants @ $0.072 | C183: 0 | D183: 0 | E183: 0 | F183: 0 | G183: 0 | H183: 0 | I183: 0 | J183: 11321.81107 | K183: 38467.70123 | L183: 17874.64129 | M183: 528526.0459 | N183: 983229.8369 | O183: 1579420.036
B184: Total | C184: =SUM(C167:C183) -> 743129135.7 | D184: =SUM(D167:D183) -> 7185269.468 | E184: 4966465.5 | F184: 5697205.863 | G184: 5672835.178 | H184: 13529803.15 | I184: 2241519.438 | J184: 8230979.122 | K184: 27982303.48 | L184: =SUM(L167:L183) -> 13098170.13 | M184: 387725143 | N184: 724290594.3 | O184: 1943749424 | P184: =IF(OR(ROUND(F10-O184,0)>1,ROUND(F10-O184,0)<=-1),"Error","OK") -> OK
C185: =C184-C94 -> 0 | D185: 0 | E185: 0 | F185: 0 | G185: 0 | H185: 0 | I185: 0 | J185: 0 | K185: 0 | L185: 0 | M185: 0 | N185: 0 | O185: =O184-SUM(C94:N94) -> 0
B187: Classes | C187: # of shares | D187: Value | E187: Per Share | F187: % of EV
B189: =B167 -> Series A | C189: =TRANSPOSE(C101:S101) -> 46320045 | D189: =O167 -> 105958523.7 | E189: =D189/C189 -> 2.287530672 | F189: =D189/$D$206 -> 0.0545124399
B190: =B168 -> Series B | C190: 54162965 | D190: =O168 -> 125277324.7 | E190: 2.312970213 | F190: =D190/$D$206 -> 0.06445137585
B191: Series C | C191: 58896105 | D191: 157491803.7 | E191: 2.674061447 | F191: 0.08102474618
B192: Series C-1 | C192: 21947001 | D192: 105491495.3 | E192: 4.806647402 | F192: 0.05427216801
B193: Series C-1* | C193: 6563232 | D193: 31547142.04 | E193: 4.806647402 | F193: 0.01623004573
B194: Series C-2 | C194: 42947639 | D194: 732810776.6 | E194: 17.06288852 | F194: 0.3770088713
B195: Common shares - Class A | C195: 52307670 | D195: 114046937 | E195: 2.180310019 | F195: 0.05867368269
B196: Common shares - Class B | C196: 250658055 | D196: 546512268.6 | E196: 2.180310019 | F196: 0.2811639514
B197: Options @ $0.015 | C197: 350000 | D197: 759373.0028 | E197: 2.169637151 | F197: 0.0003906743293
B198: Options @ $0.03 | C198: 1170875 | D198: 2527938.914 | E198: 2.159016901 | F198: 0.001300547736
B199: Options @ $0.066 | C199: 547500 | D199: 1168224.203 | E199: 2.133742836 | F199: 0.000601015845
B200: Options @ $0.072 | C200: 2579175 | D200: 5492507.631 | E200: 2.129559891 | F200: 0.002825728236
B201: Options @ $0.094 | C201: 312500 | D201: 660717.0291 | E201: 2.114294493 | F201: 0.0003399188295
B202: Options @ $0.17 | C202: 3972457 | D202: 8192905.804 | E202: 2.062427813 | F202: 0.004215001019
B203: Options @ $0.206 | C203: 606365 | D203: 1235970.224 | E203: 2.038327119 | F203: 0.0006358691136
B204: Options @ $1.559 | C204: 2260000 | D204: 2996095.854 | E204: 1.32570613 | F204: 0.001541400253
B205: Common Stock Warrants @ $0.072 | C205: 741665 | D205: 1579420.036 | E205: 2.129559891 | F205: 0.0008125636034
B206: Total | C206: =SUM(C189:C205) -> 546343249 | D206: =SUM(D189:D205) -> 1943749424 | F206: =SUM(F189:F205) -> 1 | G206: =C206-K39 -> 0
B208: Fair Market Value (FMV) of Common Stock | D208: ($)
B210: Common Stock (before DLOM) | D210: =+E195 -> 2.180310019
B212: Discount For Lack of Marketability (DLOM) | C212: =DLOM!$E$10 -> 0.285 | D212: =D210*C212 -> 0.6213883553
B214: FMV of Common stock | D214: =D210-D212 -> 1.558921663

Sheet Sheet2 (hidden)
E8: Class of Stock | F8: Series A | G8: Series B | H8: Series C | I8: Series C-1 | J8: Series C-1 (II Tranche) | K8: Series C-2 | L8: Class A Common | M8: Class B Common | N8: Stock Options & Warrants
E10: A. Allocation Summary
E11: # of Shares | F11: =Backsolve!$C$189 -> 46320045 | G11: =Backsolve!$C$190 -> 54162965 | H11: =Backsolve!$C$191 -> 58896105 | I11: =Backsolve!$C$192 -> 21841668 | J11: =Backsolve!$C$193 -> 6500032 | K11: =Backsolve!$C$194 -> 11440586 | L11: =Backsolve!$C$195 -> 52305170 | M11: =Backsolve!$C$196 -> 250658055 | N11: =Backsolve!$C$206-SUM(Backsolve!$C$189:$C$196) -> 25288037 | O11: =SUM(F11:N11) -> 527412663
E12: Issue Price Per Share ($) | F12: =Backsolve!$D$19 -> 0.15 | G12: =Backsolve!$D$20 -> 0.184628 | H12: =Backsolve!$D$21 -> 0.564 | I12: =Backsolve!$D$22 -> 3 | J12: =Backsolve!$D$23 -> 15 | K12: =Backsolve!$D$24 -> 17 | L12: 0 | M12: 0 | N12: 0
E13: Investment Value ($ Million) | F13: =F11*F12/10^6 -> 6.94800675 | G13: =G11*G12/10^6 -> 9.999999902 | H13: 33.21740322 | I13: 65.525004 | J13: 97.50048 | K13: 194.489962 | L13: 0 | M13: 0 | N13: 0
E14: Allocated Value Per Share ($) | F14: =Backsolve!$E$189 ->  | G14: =Backsolve!$E$190 ->  | H14: =Backsolve!$E$191 ->  | I14: =Backsolve!$E$192 ->  | J14: =Backsolve!$E$193 ->  | K14: =Backsolve!$E$194 ->  | L14: =Backsolve!$E$195 ->  | M14: =Backsolve!$E$196 ->  | N14: =(N15*10^6)/N11 -> 
E15: Total Allocated Value ($ Million) | F15: =(Backsolve!$D$189)/1000000 ->  | G15: =(Backsolve!$D$190)/1000000 ->  | H15: =(Backsolve!$D$191)/1000000 ->  | I15: =(Backsolve!$D$192)/1000000 ->  | J15: =(Backsolve!$D$193)/1000000 ->  | K15: =(Backsolve!$D$194)/1000000 ->  | L15: =(Backsolve!$D$195)/1000000 ->  | M15: =(Backsolve!$D$196)/1000000 ->  | N15: =(Backsolve!$D$206-SUM(Backsolve!$D$189:$D$196))/1000000 ->  | O15: =SUM(F15:N15) -> 
E16: % of Total Equity Value | F16: =F15/$O$15 ->  | G16: =G15/$O$15 ->  | O16: =SUM(F16:N16) -> 
E21: B. Key Economic Rights/Preferences
E22: Liquidation Preference (times OIP) | F22: 1 | G22: 1 | H22: 1 | I22: 1 | J22: 0.2 | K22: 1 | L22: - | M22: - | N22: -
E23: Participation (Post Liquidation Preference Payment) | K23: Unlimited | L23: - | M23: - | N23: -
E24: Conversion Rights | L24: - | M24: - | N24: -
E29: C. Option Pricing Model - Key Assumptions
E30: Volatility | F30: Based on volality of Guideline Public Companies | K30: =Backsolve!D47 -> 0.4005490638
E31: Time Till Exit
E32: Risk Free Rate
E37: C. Enterprise Value ($ Million) | K37: =Backsolve!$F$10/10^6 -> 1052.467012
E42: MH03 - AM - 4585

Sheet Backsolve_Mar'15
B1: Allocation
B3: Concluded Equity Value | D3: EV | E3: Weight | F3: Value
G4: =E190 -> 17.00145855 | I4: for sensitivity analysis
G5: =G4-D20 -> 0.001458553555
B6: Distributable value | F6: =1488760356.84976+(H6*1000) -> 1923760357 | H6: 435000
B8: Convertible Notes - Class of Shares | C8: Issue Price | D8: LP | E8: Principal Amount | F8: Interest Rate | G8: Interest Cost | H8: Number of Shares
B9: ='C1&C2New_sept''14'!A9 -> C-1 convertible note | C9: ='C1&C2_Feb''14'!B2 -> 3 | D9: ='C1&C2_Feb''14'!D2 -> 3 | E9: ='C1&C2_Feb''14'!F2 -> 9999999 | F9: 0.0079 | G9: =+E9*F9*$D$42 -> 315999.9684 | H9: =+ROUND((E9+G9)/C9,0) -> 3438666
B10: ='C1&C2New_sept''14'!A10 -> C-1 convertible note | C10: ='C1&C2_Feb''14'!B3 -> 15 | D10: ='C1&C2_Feb''14'!D3 -> 3 | E10: ='C1&C2_Feb''14'!F3 -> 30000000 | F10: 0.0079 | G10: =+E10*F10*$D$42 -> 948000 | H10: =+ROUND((E10+G10)/C10,0) -> 2063200
B11: ='C1&C2New_sept''14'!A11 -> C-2 convertible note | C11: ='C1&C2_Feb''14'!B4 -> 17 | D11: ='C1&C2_Feb''14'!D4 -> 17 | E11: ='C1&C2_Feb''14'!F4 -> 74999988 | F11: 0.0079 | G11: =+E11*F11*$D$42 -> 2369999.621 | H11: 4551176
B12: Total | E12: =+SUM(E9:E11) -> 114999987 | G12: =+SUM(G9:G11) -> 3633999.589
B14: Class of stock | C14: No. of shares | D14: Issue Price | E14: Invested Amount | F14: LP | G14: Total LP | H14: Participation Cap | I14: Converison Price | J14: Conversion ratio | K14: # of shares on converted basis | L14: % Ownership | M14: % Ownership (diluted)
B15: Series A | C15: ='Summ post - latest'!$J$16 -> 46320045 | D15: 0.15 | E15: =+D15*C15 -> 6948006.75 | F15: 0.15 | G15: =C15*F15 -> 6948006.75 | H15: Unlimited | I15: =D15 -> 0.15 | J15: =D15/I15 -> 1 | K15: =C15*J15 -> 46320045 | L15: =C15/$C$23 -> 0.08677371613 | M15: =K15/$K$35 -> 0.08478194813
B16: Series B | C16: ='Summ post - latest'!$J$18+'Summ post - latest'!$P$18 -> 54162965 | D16: 0.184628 | E16: 9999999.902 | F16: 0.184628 | G16: 9999999.902 | H16: Unlimited | I16: 0.184628 | J16: 1 | K16: 54162965 | L16: =C16/$C$23 -> 0.1014662604 | M16: =K16/$K$35 -> 0.09913724586
B17: Series C | C17: ='Summ post - latest'!$J$20 -> 58896105 | D17: 0.564 | E17: 33217403.22 | F17: 0.564 | G17: 33217403.22 | H17: Unlimited | I17: 0.564 | J17: 1 | K17: 58896105 | L17: 0.1103330944 | M17: 0.1078005542
B18: Series C-1 | C18: ='Shares_Sep''13'!$J$19+H9 -> 21947001 | D18: ='C1&C2_Feb''14'!B2 -> 3 | E18: 65841003 | F18: 3 | G18: 65841003 | H18: Unlimited | I18: 3 | J18: 1 | K18: 21947001 | L18: 0.04111444267 | M18: 0.04017071876
B19: Series C-1* | C19: ='Summ post - latest'!$J$22-'Shares_Sep''13'!$J$19+H10 -> 6563232 | D19: ='C1&C2_Feb''14'!B3 -> 15 | E19: 98448480 | F19: 3 | G19: 19689696 | H19: Unlimited | I19: 15 | J19: 1 | K19: 6563232 | L19: 0.01229523914 | M19: 0.01201301931
B20: Series C-2 | C20: ='Summ post - latest'!$J$24+H11 -> 42947639 | D20: ='C1&C2_Feb''14'!B4 -> 17 | E20: 730109863 | F20: ='C1&C2New_sept''14'!D4 -> 17 | G20: 730109863 | H20: Unlimited | I20: 17 | J20: 1 | K20: 42947639 | L20: 0.08045601499 | M20: 0.0786092609
B21: Common shares - Class A | C21: ='Summ post - latest'!$J$10 -> 52307670 | K21: =C21 -> 52307670 | L21: 0.09799064116 | M21: 0.0957414045
B22: Common shares - Class B | C22: ='Summ post - latest'!$J$12 -> 250658055 | K22: =C22 -> 250658055 | L22: 0.4695705911 | M22: 0.4587922619
B23: Sub Total | C23: =SUM(C15:C22) -> 533802712 | E23: =SUM(E15:E20) -> 944564755.9 | G23: =SUM(G15:G20) -> 865805971.9 | K23: =SUM(K15:K22) -> 533802712 | L23: =SUM(L15:L22) -> 1 | M23: =K23/$K$35 -> 0.9770464135
B25: Dilutive Instruments | C25: # of options | D25: Strike price
B26: ="Options @ $"&ROUND(D26,3) -> Options @ $0.015 | C26: ='Option outstanding'!$B$4 -> 350000 | D26: ='Option outstanding'!$A$4 -> 0.015 | F26: =D26 -> 0.015 | J26: 1 | K26: =C26*J26 -> 350000 | M26: =K26/$K$35 -> 0.0006406229063
B27: ="Options @ $"&ROUND(D27,3) -> Options @ $0.03 | C27: ='Option outstanding'!$B$5 -> 1170875 | D27: ='Option outstanding'!$A$5 -> 0.03 | F27: 0.03 | J27: 1 | K27: 1170875 | M27: =K27/$K$35 -> 0.002143112415
B28: Options @ $0.066 | C28: ='Option outstanding'!$B$6 -> 547500 | D28: ='Option outstanding'!$A$6 -> 0.066 | F28: 0.066 | J28: 1 | K28: 547500 | M28: 0.001002117261
B29: Options @ $0.072 | C29: ='Option outstanding'!$B$7 -> 2579175 | D29: ='Option outstanding'!$A$7 -> 0.072 | F29: 0.072 | J29: 1 | K29: 2579175 | M29: 0.004720795955
B30: Options @ $0.094 | C30: ='Option outstanding'!$B$8 -> 312500 | D30: ='Option outstanding'!$A$8 -> 0.094 | F30: 0.094 | J30: 1 | K30: 312500 | M30: 0.0005719847377
B31: Options @ $0.17 | C31: ='Option outstanding'!$B$9 -> 3972457 | D31: ='Option outstanding'!$A$9 -> 0.17 | F31: 0.17 | J31: 1 | K31: 3972457 | M31: 0.007270991281
B32: Options @ $0.206 | C32: ='Option outstanding'!$B$10 -> 606365 | D32: ='Option outstanding'!$A$10 -> 0.206 | F32: 0.206 | J32: 1 | K32: 606365 | M32: 0.001109860882
B33: Options @ $1.535 | C33: ='Option outstanding'!$B$14 -> 2260000 | D33: ='Backsolve_Mar''15'!$D$210 -> 1.534581555 | F33: 1.534581555 | J33: 1 | K33: 2260000 | M33: 0.004136593623
B34: ="Common Stock Warrants @ $"&D34 -> Common Stock Warrants @ $0.072 | C34: ='Summ post - latest'!$R$55 -> 741665 | D34: 0.072 | F34: 0.072 | J34: 1 | K34: 741665 | M34: 0.001357507394
B35: Total | C35: =C23+SUM(C26:C34) -> 546343249 | K35: =K23+SUM(K26:K34) -> 546343249 | M35: =M23+SUM(M26:M34) -> 1
B38: Change in control event
H39: Risk free rate (Years)
B40: Valuation date | D40: =Control!C7 -> 2015-03-25 | H40: 1 | I40: ='BETA & CSRP'!C133 -> 0.0026
B41: Liquidation date | D41: =D40+365*D42 -> 2019-03-24 | H41: 2 | I41: ='BETA & CSRP'!C134 -> 0.006
B42: No. of years to Liquidation | D42: 4 | H42: 3 | I42: ='BETA & CSRP'!C135 -> 0.0095
B43: Volatility | D43: ='BETA & CSRP'!D153 -> 0.4005490638 | H43: 4 | I43: ='BETA & CSRP'!C136 -> 0.0119
B44: Dividend-yield | D44: 0 | H44: 5 | I44: ='BETA & CSRP'!C137 -> 0.0144
B45: Zero coupon yield Corresponding to the time period | D45: =VLOOKUP(D42,H40:I44,2,FALSE) -> 0.0119 | E45: Source : Bloomberg
B48: Event description | C48: Participating Class | D48: Participating shares | E48: Strike Point
A49: 1 | B49: Equity value is nil | C49: None | D49: 0 | E49: 1e-08
A50: 2 | B50: Liquidation preference of Series C,C-1, C-1* and C-2 | C50: Series C, C-1 & C-1* | D50: =C17+C18+C19+C20 -> 130353977 | E50: =G17+G18+G19+G20 -> 848857965.2
A51: =A50+1 -> 3 | B51: Liquidation preference of Series B | C51: Series B | D51: =C16 -> 54162965 | E51: =E50+G16 -> 858857965.1
A52: 4 | B52: Liquidation preference of Series A | C52: Series A | D52: =C15 -> 46320045 | E52: =E51+G15 -> 865805971.9
A53: 5 | B53: =B26&" exercised" -> Options @ $0.015 exercised | C53: Series A, Series B,C,C-1,C-1* & Common | D53: =+K23 -> 533802712 | E53: =E52+D53*F26 -> 873813012.6
A54: 6 | B54: =B27&" exercised" -> Options @ $0.03 exercised | C54: Series A, Series B,C,C-1,C-1*,Common and Options @ $0.015 | D54: =D53+K26 -> 534152712 | E54: =E53+D54*(F27-F26) -> 881825303.2
A55: 7 | B55: =B28&" exercised" -> Options @ $0.066 exercised | C55: Series A, Series B,C,C-1,C-1*, Common,Options @ $0.015,$0.03 | D55: =D54+K27 -> 535323587 | E55: =E54+D55*(F28-F27) -> 901096952.4
A56: 8 | B56: =B29&" and "&B34&" exercised" -> Options @ $0.072 and Common Stock Warrants @ $0.072 exercised | C56: Series A, Series B, C,C-1,C-1*, Common,Options @ $0.015,$0.03,$0.066 | D56: =D55+K28 -> 535871087 | E56: =E55+D56*(F29-F28) -> 904312178.9
A57: 9 | B57: =B30&" exercised" -> Options @ $0.094 exercised | C57: Series A, Series B, C,C-1,C-1*, Common,Options @ $0.015,$0.03,$0.066,$0.072, Common Warrants @ $0.072 | D57: =D56+K29+K34 -> 539191927 | E57: =E56+D57*(F30-F29) -> 916174401.3
A58: 11 | B58: =B31&" get exercised" -> Options @ $0.17 get exercised | C58: Series A,Series B, C,C-1,C-1*, Common,Options @ $0.015,$0.03,$0.066,$0.072,$0.094, Common Warrants @ $0.072 | D58: =D57+K30 -> 539504427 | E58: =E57+D58*(D31-D30) -> 957176737.7
A59: 12 | B59: =B32&" get exercised" -> Options @ $0.206 get exercised | C59: Series A,Series B, C,C-1,C-1*, Common,Options @ $0.015,$0.03,$0.066,$0.072,$0.094,$0.17, Common Warrants @ $0.072 | D59: =D58+K31 -> 543476884 | E59: =E58+D59*(F32-F31) -> 976741905.6
B60: =B33&" get exercised" -> Options @ $1.535 get exercised | C60: Series A,Series B, C,C-1,C-1*, Common,Options @ $0.015,$0.03,$0.066,$0.072,$0.094,$0.17,$0.206, Common Warrants @ $0.072 | D60: =D59+K32 -> 544083249 | E60: =E59+D60*(F33-F32) -> 1699600875
B61: Thereafter | C61: All classes | D61: =+D60+C33 -> 546343249
C63: 1 | D63: =C63+1 -> 2 | E63: 3 | F63: 4 | G63: 5 | H63: 6 | I63: 7 | J63: 8 | K63: 9 | L63: 10 | M63: 11 | N63: 12
B66: Value of the underlying Asset ($) | C66: =F6 -> 1923760357 | D66: =C66 -> 1923760357 | E66: 1923760357 | F66: 1923760357 | G66: 1923760357 | H66: 1923760357 | I66: 1923760357 | J66: 1923760357 | K66: 1923760357 | L66: 1923760357 | M66: 1923760357 | N66: 1923760357
B67: Strike Price ($) | C67: =TRANSPOSE(E49:E60) -> 1e-08 | D67: 848857965.2 | E67: 858857965.1 | F67: 865805971.9 | G67: 873813012.6 | H67: 881825303.2 | I67: 901096952.4 | J67: 904312178.9 | K67: 916174401.3 | L67: 957176737.7 | M67: 976741905.6 | N67: 1699600875
B68: S.D of the Underlying preferred share | C68: =D43 -> 0.4005490638 | D68: =C68 -> 0.4005490638 | E68: 0.4005490638 | F68: 0.4005490638 | G68: 0.4005490638 | H68: 0.4005490638 | I68: 0.4005490638 | J68: 0.4005490638 | K68: =J68 -> 0.4005490638 | L68: =K68 -> 0.4005490638 | M68: 0.4005490638 | N68: 0.4005490638
B69: Dividend yield | C69: =D44 -> 0 | D69: 0 | E69: 0 | F69: 0 | G69: 0 | H69: 0 | I69: 0 | J69: 0 | K69: =J69 -> 0 | L69: 0 | M69: 0 | N69: 0
B70: Time of Expiration (years) | C70: =D42 -> 4 | D70: 4 | E70: 4 | F70: 4 | G70: 4 | H70: 4 | I70: 4 | J70: 4 | K70: =J70 -> 4 | L70: 4 | M70: 4 | N70: 4
B71: Riskless Rate corresponding to option life time | C71: =D45 -> 0.0119 | D71: 0.0119 | E71: 0.0119 | F71: 0.0119 | G71: 0.0119 | H71: 0.0119 | I71: 0.0119 | J71: 0.0119 | K71: =J71 -> 0.0119 | L71: 0.0119 | M71: 0.0119 | N71: 0.0119
B75: Stock Price | C75: =C66 -> 1923760357 | D75: 1923760357 | E75: 1923760357 | F75: 1923760357 | G75: 1923760357 | H75: 1923760357 | I75: 1923760357 | J75: 1923760357 | K75: 1923760357 | L75: 1923760357 | M75: 1923760357 | N75: 1923760357
B76: Strike Price | C76: 1e-08 | D76: 848857965.2 | E76: 858857965.1 | F76: 865805971.9 | G76: 873813012.6 | H76: 881825303.2 | I76: 901096952.4 | J76: 904312178.9 | K76: 916174401.3 | L76: 957176737.7 | M76: 976741905.6 | N76: 1699600875
B77: Expiration (in years) | C77: =C70 -> 4 | D77: 4 | E77: 4 | F77: 4 | G77: 4 | H77: 4 | I77: 4 | J77: 4 | K77: 4 | L77: 4 | M77: 4 | N77: 4
B78: T.Bond rate | C78: 0.0119 | D78: 0.0119 | E78: 0.0119 | F78: 0.0119 | G78: 0.0119 | H78: 0.0119 | I78: 0.0119 | J78: 0.0119 | K78: 0.0119 | L78: 0.0119 | M78: 0.0119 | N78: 0.0119
B79: Variance | C79: =C68^2 -> 0.1604395525 | D79: 0.1604395525 | E79: 0.1604395525 | F79: 0.1604395525 | G79: 0.1604395525 | H79: 0.1604395525 | I79: 0.1604395525 | J79: 0.1604395525 | K79: 0.1604395525 | L79: 0.1604395525 | M79: 0.1604395525 | N79: 0.1604395525
B80: Annualized dividend yield | C80: =C69 -> 0 | D80: 0 | E80: 0 | F80: 0 | G80: 0 | H80: 0 | I80: 0 | J80: 0 | K80: 0 | L80: 0 | M80: 0 | N80: 0
B83: d1 = | C83: =(LN(C75/C76)+(C78-C80+(C79/2))*C77)/(((C79)^(0.5))*(C77^0.5)) -> 50.13955981 | D83: 1.481247125 | E83: 1.466627588 | F83: 1.456569802 | G83: 1.445078606 | H83: 1.433684797 | I83: 1.406698228 | J83: 1.402252113 | K83: 1.385984307 | L83: 1.331332684 | M83: 1.306074363 | N83: =(LN(N75/N76)+(N78-N80+(N79/2))*N77)/(((N79)^(0.5))*(N77^0.5)) -> 0.6146156556
B84: N(d1) = | C84: =NORMSDIST(C83) -> 1 | D84: 0.9307296336 | E84: 0.9287613045 | F84: 0.9273824158 | G84: 0.9257820963 | H84: 0.9241688837 | I84: 0.9202415543 | J84: 0.9195800127 | K84: 0.9171241522 | L84: 0.9084602158 | M84: 0.9042363649 | N84: 0.7305957135
B86: d2 = | C86: =C83-((C79^0.5)*(C77^(0.5))) -> 49.33846168 | D86: 0.6801489972 | E86: 0.6655294605 | F86: 0.6554716748 | G86: 0.6439804785 | H86: 0.6325866694 | I86: 0.6056001007 | J86: 0.6011539859 | K86: 0.5848861791 | L86: 0.5302345567 | M86: 0.5049762359 | N86: -0.1864824719
B87: N(d2) = | C87: =NORMSDIST(C86) -> 1 | D87: 0.7517949386 | E87: 0.7471440465 | F87: 0.7439179412 | G87: 0.7402059535 | H87: 0.7364982027 | I87: 0.7276098323 | J87: 0.7261312855 | K87: 0.7206878738 | L87: 0.7020253428 | M87: 0.6932122365 | N87: 0.4260332116
C89: =(EXP((0-C80)*C77))*C75*C84-C76*(EXP((0-C78)*C77))*C87 -> 1923760357 | D89: 1181998774 | E89: 1174852476 | F89: 1169913314 | G89: 1164247798 | H89: 1158606911 | I89: 1145154893 | J89: 1142926477 | K89: 1134744148 | L89: 1106933512 | M89: 1093919055 | N89: 715063724.1
C90: =C89-D89 -> 741761582.5 | D90: 7146297.908 | E90: 4939162.285 | F90: 5665515.923 | G90: 5640887.571 | H90: 13452017.78 | I90: 2228415.508 | J90: 8182329.762 | K90: 27810635.7 | L90: 13014457.08 | M90: 378855330.7 | N90: =N89 -> 715063724.1 | O90: =SUM(C90:N90)-F6 -> 0
B95: Participation in Incremental Value after Each Event
B96: Participation =1, No participation = 0 | C96: =TRANSPOSE(B15:B22) -> Series A | D96: Series B | E96: Series C | F96: Series C-1 | G96: Series C-1* | H96: Series C-2 | I96: Common shares - Class A | J96: Common shares - Class B | K96: =TRANSPOSE(B26:B34) -> Options @ $0.015 | L96: Options @ $0.03 | M96: Options @ $0.066 | N96: Options @ $0.072 | O96: Options @ $0.094 | P96: Options @ $0.17 | Q96: Options @ $0.206 | R96: Options @ $1.535 | S96: Common Stock Warrants @ $0.072 | T96: Total
B97: Common Stock Equivalents | C97: =TRANSPOSE(K15:K22) -> 46320045 | D97: 54162965 | E97: 58896105 | F97: 21947001 | G97: 6563232 | H97: 42947639 | I97: 52307670 | J97: 250658055 | K97: =TRANSPOSE(K26:K34) -> 350000 | L97: 1170875 | M97: 547500 | N97: 2579175 | O97: 312500 | P97: 3972457 | Q97: 606365 | R97: 2260000 | S97: 741665 | T97: =SUM(C97:S97) -> 546343249 | U97: =T97-K35 -> 0
B98: LP | C98: =TRANSPOSE(G15:G20) -> 6948006.75 | D98: 9999999.902 | E98: 33217403.22 | F98: 65841003 | G98: 19689696 | H98: 730109863
A100: 1 | B100: =B50 -> Liquidation preference of Series C,C-1, C-1* and C-2 | C100: 0 | D100: 0 | E100: 1 | F100: 1 | G100: 1 | H100: 1 | I100: 0 | J100: 0 | K100: 0 | L100: 0 | M100: 0 | N100: 0 | O100: 0 | P100: 0 | Q100: 0 | R100: 0 | S100: 0 | T100: =SUM(C100:S100) -> 4
A101: 2 | B101: =B51 -> Liquidation preference of Series B | C101: 0 | D101: 1 | E101: 0 | F101: 0 | G101: 0 | H101: 0 | I101: 0 | J101: 0 | K101: 0 | L101: 0 | M101: 0 | N101: 0 | O101: 0 | P101: 0 | Q101: 0 | R101: 0 | S101: 0 | T101: =SUM(C101:S101) -> 1
A102: 3 | B102: Liquidation preference of Series A | C102: 1 | D102: 0 | E102: 0 | F102: 0 | G102: 0 | H102: 0 | I102: 0 | J102: 0 | K102: 0 | L102: 0 | M102: 0 | N102: 0 | O102: 0 | P102: 0 | Q102: 0 | R102: 0 | S102: 0 | T102: 1
A103: 4 | B103: Options @ $0.015 exercised | C103: 1 | D103: 1 | E103: 1 | F103: 1 | G103: 1 | H103: 1 | I103: 1 | J103: 1 | K103: 0 | L103: 0 | M103: 0 | N103: 0 | O103: 0 | P103: 0 | Q103: 0 | R103: 0 | S103: 0 | T103: 8
A104: 5 | B104: Options @ $0.03 exercised | C104: 1 | D104: 1 | E104: 1 | F104: 1 | G104: 1 | H104: 1 | I104: 1 | J104: 1 | K104: 1 | L104: 0 | M104: 0 | N104: 0 | O104: 0 | P104: 0 | Q104: 0 | R104: 0 | S104: 0 | T104: 9
A105: 6 | B105: Options @ $0.066 exercised | C105: 1 | D105: 1 | E105: 1 | F105: 1 | G105: 1 | H105: 1 | I105: 1 | J105: 1 | K105: 1 | L105: 1 | M105: 0 | N105: 0 | O105: 0 | P105: 0 | Q105: 0 | R105: 0 | S105: 0 | T105: 10
A106: 7 | B106: Options @ $0.072 and Common Stock Warrants @ $0.072 exercised | C106: 1 | D106: 1 | E106: 1 | F106: 1 | G106: 1 | H106: 1 | I106: 1 | J106: 1 | K106: 1 | L106: 1 | M106: 1 | N106: 0 | O106: 0 | P106: 0 | Q106: 0 | R106: 0 | S106: 0 | T106: 11
A107: 8 | B107: Options @ $0.094 exercised | C107: 1 | D107: 1 | E107: 1 | F107: 1 | G107: 1 | H107: 1 | I107: 1 | J107: 1 | K107: 1 | L107: 1 | M107: 1 | N107: 1 | O107: 0 | P107: 0 | Q107: 0 | R107: 0 | S107: 1 | T107: 13
A108: 9 | B108: Options @ $0.17 get exercised | C108: 1 | D108: 1 | E108: 1 | F108: 1 | G108: 1 | H108: 1 | I108: 1 | J108: 1 | K108: 1 | L108: 1 | M108: 1 | N108: 1 | O108: 1 | P108: 0 | Q108: 0 | R108: 0 | S108: 1 | T108: 14
A109: 10 | B109: Options @ $0.206 get exercised | C109: 1 | D109: 1 | E109: 1 | F109: 1 | G109: 1 | H109: 1 | I109: 1 | J109: 1 | K109: 1 | L109: 1 | M109: 1 | N109: 1 | O109: 1 | P109: 1 | Q109: 0 | R109: 0 | S109: 1 | T109: 15
A110: 11 | B110: Options @ $1.535 get exercised | C110: 1 | D110: 1 | E110: 1 | F110: 1 | G110: 1 | H110: 1 | I110: 1 | J110: 1 | K110: 1 | L110: 1 | M110: 1 | N110: 1 | O110: 1 | P110: 1 | Q110: 1 | R110: 0 | S110: 1 | T110: 16
A111: 12 | B111: Thereafter | C111: 1 | D111: 1 | E111: 1 | F111: 1 | G111: 1 | H111: 1 | I111: 1 | J111: 1 | K111: 1 | L111: 1 | M111: 1 | N111: 1 | O111: 1 | P111: 1 | Q111: 1 | R111: 1 | S111: 1 | T111: 17
B113: LP in $ / Number of Shares | T113: Total
B115: =B100 -> Liquidation preference of Series C,C-1, C-1* and C-2 | C115: =C$98*C100 -> 0 | D115: =D$98*D100 -> 0 | E115: 33217403.22 | F115: 65841003 | G115: 19689696 | H115: 730109863 | I115: 0 | J115: 0 | K115: 0 | L115: 0 | M115: 0 | N115: 0 | O115: 0 | P115: 0 | Q115: 0 | R115: 0 | S115: 0 | T115: =SUM(C115:S115) -> 848857965.2 | U115: =T115-E50 -> 0
B116: Liquidation preference of Series B | C116: =C$98*C101 -> 0 | D116: 9999999.902 | E116: 0 | F116: 0 | G116: 0 | H116: 0 | I116: 0 | J116: 0 | K116: 0 | L116: 0 | M116: 0 | N116: 0 | O116: 0 | P116: 0 | Q116: 0 | R116: 0 | S116: 0 | T116: =SUM(C116:S116) -> 9999999.902 | U116: =E51-SUM($T$115:T116) -> 0
B117: Liquidation preference of Series A | C117: 6948006.75 | D117: 0 | E117: 0 | F117: 0 | G117: 0 | H117: 0 | I117: 0 | J117: 0 | K117: 0 | L117: 0 | M117: 0 | N117: 0 | O117: 0 | P117: 0 | Q117: 0 | R117: 0 | S117: 0 | T117: 6948006.75 | U117: =E52-SUM($T$115:T117) -> 0
B118: Options @ $0.015 exercised | C118: =C103*C$97 -> 46320045 | D118: =D103*D$97 -> 54162965 | E118: 58896105 | F118: 21947001 | G118: 6563232 | H118: 42947639 | I118: 52307670 | J118: 250658055 | K118: 0 | L118: 0 | M118: 0 | N118: 0 | O118: 0 | P118: 0 | Q118: 0 | R118: 0 | S118: 0 | T118: 533802712 | U118: =D53-T118 -> 0
B119: Options @ $0.03 exercised | C119: =C104*C$97 -> 46320045 | D119: 54162965 | E119: 58896105 | F119: 21947001 | G119: 6563232 | H119: 42947639 | I119: 52307670 | J119: 250658055 | K119: 350000 | L119: 0 | M119: 0 | N119: 0 | O119: 0 | P119: 0 | Q119: 0 | R119: 0 | S119: 0 | T119: 534152712 | U119: =D54-T119 -> 0
B120: Options @ $0.066 exercised | C120: 46320045 | D120: 54162965 | E120: 58896105 | F120: 21947001 | G120: 6563232 | H120: 42947639 | I120: 52307670 | J120: 250658055 | K120: 350000 | L120: 1170875 | M120: 0 | N120: 0 | O120: 0 | P120: 0 | Q120: 0 | R120: 0 | S120: 0 | T120: 535323587 | U120: 0
B121: Options @ $0.072 and Common Stock Warrants @ $0.072 exercised | C121: 46320045 | D121: 54162965 | E121: 58896105 | F121: 21947001 | G121: 6563232 | H121: 42947639 | I121: 52307670 | J121: 250658055 | K121: 350000 | L121: 1170875 | M121: 547500 | N121: 0 | O121: 0 | P121: 0 | Q121: 0 | R121: 0 | S121: 0 | T121: 535871087 | U121: 0
B122: Options @ $0.094 exercised | C122: 46320045 | D122: 54162965 | E122: 58896105 | F122: 21947001 | G122: 6563232 | H122: 42947639 | I122: 52307670 | J122: 250658055 | K122: 350000 | L122: 1170875 | M122: 547500 | N122: 2579175 | O122: 0 | P122: 0 | Q122: 0 | R122: 0 | S122: 741665 | T122: 539191927 | U122: 0
B123: =B108 -> Options @ $0.17 get exercised | C123: 46320045 | D123: 54162965 | E123: 58896105 | F123: 21947001 | G123: 6563232 | H123: 42947639 | I123: 52307670 | J123: 250658055 | K123: 350000 | L123: 1170875 | M123: 547500 | N123: 2579175 | O123: 312500 | P123: 0 | Q123: 0 | R123: 0 | S123: 741665 | T123: 539504427 | U123: 0
B124: =B109 -> Options @ $0.206 get exercised | C124: 46320045 | D124: 54162965 | E124: 58896105 | F124: 21947001 | G124: 6563232 | H124: 42947639 | I124: 52307670 | J124: 250658055 | K124: 350000 | L124: 1170875 | M124: 547500 | N124: 2579175 | O124: 312500 | P124: 3972457 | Q124: 0 | R124: 0 | S124: 741665 | T124: 543476884 | U124: 0
B125: =B110 -> Options @ $1.535 get exercised | C125: 46320045 | D125: 54162965 | E125: 58896105 | F125: 21947001 | G125: 6563232 | H125: 42947639 | I125: 52307670 | J125: 250658055 | K125: 350000 | L125: 1170875 | M125: 547500 | N125: 2579175 | O125: 312500 | P125: 3972457 | Q125: 606365 | R125: 0 | S125: 741665 | T125: 544083249 | U125: 0
B126: =B111 -> Thereafter | C126: 46320045 | D126: 54162965 | E126: 58896105 | F126: 21947001 | G126: 6563232 | H126: 42947639 | I126: 52307670 | J126: 250658055 | K126: 350000 | L126: 1170875 | M126: 547500 | N126: 2579175 | O126: 312500 | P126: 3972457 | Q126: 606365 | R126: 2260000 | S126: 741665 | T126: 546343249 | U126: 0
B127: % of Ownership in Incremental Value after Each Event | T127: Total
B129: =B115 -> Liquidation preference of Series C,C-1, C-1* and C-2 | C129: =C115/$T115 -> 0 | D129: =D115/$T115 -> 0 | E129: 0.03913187433 | F129: 0.07756421651 | G129: 0.02319551304 | H129: 0.8601083961 | I129: 0 | J129: 0 | K129: 0 | L129: 0 | M129: 0 | N129: 0 | O129: 0 | P129: 0 | Q129: 0 | R129: 0 | S129: 0 | T129: =SUM(C129:S129) -> 1
B130: Liquidation preference of Series B | C130: =C116/$T116 -> 0 | D130: 1 | E130: 0 | F130: 0 | G130: 0 | H130: 0 | I130: 0 | J130: 0 | K130: 0 | L130: 0 | M130: 0 | N130: 0 | O130: 0 | P130: 0 | Q130: 0 | R130: 0 | S130: 0 | T130: =SUM(C130:S130) -> 1
B131: Liquidation preference of Series A | C131: 1 | D131: 0 | E131: 0 | F131: 0 | G131: 0 | H131: 0 | I131: 0 | J131: 0 | K131: 0 | L131: 0 | M131: 0 | N131: 0 | O131: 0 | P131: 0 | Q131: 0 | R131: 0 | S131: 0 | T131: 1
B132: Options @ $0.015 exercised | C132: 0.08677371613 | D132: 0.1014662604 | E132: 0.1103330944 | F132: 0.04111444267 | G132: 0.01229523914 | H132: 0.08045601499 | I132: 0.09799064116 | J132: 0.4695705911 | K132: 0 | L132: 0 | M132: 0 | N132: 0 | O132: 0 | P132: 0 | Q132: 0 | R132: 0 | S132: 0 | T132: 1
B133: Options @ $0.03 exercised | C133: 0.08671685823 | D133: 0.1013997754 | E133: 0.1102607993 | F133: 0.04108750271 | G133: 0.01228718277 | H133: 0.08040329673 | I133: 0.09792643344 | J133: 0.4692629081 | K133: 0.0006552433267 | L133: 0 | M133: 0 | N133: 0 | O133: 0 | P133: 0 | Q133: 0 | R133: 0 | S133: 0 | T133: 1
B134: Options @ $0.066 exercised | C134: 0.08652718865 | D134: 0.1011779909 | E134: 0.1100196338 | F134: 0.04099763495 | G134: 0.01226030789 | H134: 0.08022743634 | I134: 0.09771224596 | J134: 0.4682365229 | K134: 0.0006538101599 | L134: 0.002187228488 | M134: 0 | N134: 0 | O134: 0 | P134: 0 | Q134: 0 | R134: 0 | S134: 0 | T134: 1
B135: Options @ $0.072 and Common Stock Warrants @ $0.072 exercised | C135: 0.08643878374 | D135: 0.1010746172 | E135: 0.1099072266 | F135: 0.04095574763 | G135: 0.01224778153 | H135: 0.0801454679 | I135: 0.09761241326 | J135: 0.4677581252 | K135: 0.0006531421614 | L135: 0.002184993795 | M135: 0.001021700952 | N135: 0 | O135: 0 | P135: 0 | Q135: 0 | R135: 0 | S135: 0 | T135: 1
B136: Options @ $0.094 exercised | C136: 0.08590641417 | D136: 0.1004521067 | E136: 0.1092303168 | F136: 0.04070350445 | G136: 0.01217234842 | H136: 0.07965185836 | I136: 0.09701122621 | J136: 0.4648772403 | K136: 0.000649119511 | L136: 0.002171536593 | M136: 0.001015408378 | N136: 0.004783408042 | O136: 0 | P136: 0 | Q136: 0 | R136: 0 | S136: 0.001375512063 | T136: 1
B137: =B123 -> Options @ $0.17 get exercised | C137: 0.08585665415 | D137: 0.1003939213 | E137: 0.1091670467 | F137: 0.04067992754 | G137: 0.01216529777 | H137: 0.0796057212 | I137: 0.09695503388 | J137: 0.464607967 | K137: 0.0006487435181 | L137: 0.002170278762 | M137: 0.001014820218 | N137: 0.004780637324 | O137: 0.000579235284 | P137: 0 | Q137: 0 | R137: 0 | S137: 0.001374715318 | T137: 1
B138: =B124 -> Options @ $0.206 get exercised | C138: 0.08522909872 | D138: 0.09966010808 | E138: 0.1083691077 | F138: 0.04038258415 | G138: 0.01207637747 | H138: 0.07902385596 | I138: 0.09624635663 | J138: 0.4612119897 | K138: 0.0006440016315 | L138: 0.002154415458 | M138: 0.001007402552 | N138: 0.004745694023 | O138: 0.0005750014567 | P138: 0.007309339398 | Q138: 0 | R138: 0 | S138: 0.001364667057 | T138: 1
B139: =B125 -> Options @ $1.535 get exercised | C139: 0.08513411336 | D139: 0.09954903978 | E139: 0.1082483335 | F139: 0.04033757893 | G139: 0.0120629187 | H139: 0.07893578617 | I139: 0.09613909286 | J139: 0.4606979823 | K139: 0.0006432839104 | L139: 0.002152014425 | M139: 0.001006279831 | N139: 0.004740405085 | O139: 0.0005743606343 | P139: 0.007301193351 | Q139: 0.001114470995 | R139: 0 | S139: 0.001363146175 | T139: 1
B140: =B126 -> Thereafter | C140: 0.08478194813 | D140: 0.09913724586 | E140: 0.1078005542 | F140: 0.04017071876 | G140: 0.01201301931 | H140: 0.0786092609 | I140: 0.0957414045 | J140: 0.4587922619 | K140: 0.0006406229063 | L140: 0.002143112415 | M140: 0.001002117261 | N140: 0.004720795955 | O140: 0.0005719847377 | P140: 0.007270991281 | Q140: 0.001109860882 | R140: 0.004136593623 | S140: 0.001357507394 | T140: 1
B142: Value Allocated | C142: Option 1 | D142: Option 2 | E142: Option 3 | F142: Option 4 | G142: Option 5 | H142: Option 6 | I142: Option 7 | J142: Option 8 | K142: Option 9 | L142: Option 10 | M142: Option 11 | N142: Option 12
B143: =TRANSPOSE(C96:S96) -> Series A | C143: =TRANSPOSE(C129:S140) -> 0 | D143: 0 | E143: 1 | F143: 0.08677371613 | G143: 0.08671685823 | H143: 0.08652718865 | I143: 0.08643878374 | J143: 0.08590641417 | K143: 0.08585665415 | L143: 0.08522909872 | M143: 0.08513411336 | N143: 0.08478194813
B144: Series B | C144: 0 | D144: 1 | E144: 0 | F144: 0.1014662604 | G144: 0.1013997754 | H144: 0.1011779909 | I144: 0.1010746172 | J144: 0.1004521067 | K144: 0.1003939213 | L144: 0.09966010808 | M144: 0.09954903978 | N144: 0.09913724586
B145: Series C | C145: 0.03913187433 | D145: 0 | E145: 0 | F145: 0.1103330944 | G145: 0.1102607993 | H145: 0.1100196338 | I145: 0.1099072266 | J145: 0.1092303168 | K145: 0.1091670467 | L145: 0.1083691077 | M145: 0.1082483335 | N145: 0.1078005542
B146: Series C-1 | C146: 0.07756421651 | D146: 0 | E146: 0 | F146: 0.04111444267 | G146: 0.04108750271 | H146: 0.04099763495 | I146: 0.04095574763 | J146: 0.04070350445 | K146: 0.04067992754 | L146: 0.04038258415 | M146: 0.04033757893 | N146: 0.04017071876
B147: Series C-1* | C147: 0.02319551304 | D147: 0 | E147: 0 | F147: 0.01229523914 | G147: 0.01228718277 | H147: 0.01226030789 | I147: 0.01224778153 | J147: 0.01217234842 | K147: 0.01216529777 | L147: 0.01207637747 | M147: 0.0120629187 | N147: 0.01201301931
B148: Series C-2 | C148: 0.8601083961 | D148: 0 | E148: 0 | F148: 0.08045601499 | G148: 0.08040329673 | H148: 0.08022743634 | I148: 0.0801454679 | J148: 0.07965185836 | K148: 0.0796057212 | L148: 0.07902385596 | M148: 0.07893578617 | N148: 0.0786092609
B149: Common shares - Class A | C149: 0 | D149: 0 | E149: 0 | F149: 0.09799064116 | G149: 0.09792643344 | H149: 0.09771224596 | I149: 0.09761241326 | J149: 0.09701122621 | K149: 0.09695503388 | L149: 0.09624635663 | M149: 0.09613909286 | N149: 0.0957414045
B150: Common shares - Class B | C150: 0 | D150: 0 | E150: 0 | F150: 0.4695705911 | G150: 0.4692629081 | H150: 0.4682365229 | I150: 0.4677581252 | J150: 0.4648772403 | K150: 0.464607967 | L150: 0.4612119897 | M150: 0.4606979823 | N150: 0.4587922619
B151: Options @ $0.015 | C151: 0 | D151: 0 | E151: 0 | F151: 0 | G151: 0.0006552433267 | H151: 0.0006538101599 | I151: 0.0006531421614 | J151: 0.000649119511 | K151: 0.0006487435181 | L151: 0.0006440016315 | M151: 0.0006432839104 | N151: 0.0006406229063
B152: Options @ $0.03 | C152: 0 | D152: 0 | E152: 0 | F152: 0 | G152: 0 | H152: 0.002187228488 | I152: 0.002184993795 | J152: 0.002171536593 | K152: 0.002170278762 | L152: 0.002154415458 | M152: 0.002152014425 | N152: 0.002143112415
B153: Options @ $0.066 | C153: 0 | D153: 0 | E153: 0 | F153: 0 | G153: 0 | H153: 0 | I153: 0.001021700952 | J153: 0.001015408378 | K153: 0.001014820218 | L153: 0.001007402552 | M153: 0.001006279831 | N153: 0.001002117261
B154: Options @ $0.072 | C154: 0 | D154: 0 | E154: 0 | F154: 0 | G154: 0 | H154: 0 | I154: 0 | J154: 0.004783408042 | K154: 0.004780637324 | L154: 0.004745694023 | M154: 0.004740405085 | N154: 0.004720795955
B155: Options @ $0.094 | C155: 0 | D155: 0 | E155: 0 | F155: 0 | G155: 0 | H155: 0 | I155: 0 | J155: 0 | K155: 0.000579235284 | L155: 0.0005750014567 | M155: 0.0005743606343 | N155: 0.0005719847377
B156: Options @ $0.17 | C156: 0 | D156: 0 | E156: 0 | F156: 0 | G156: 0 | H156: 0 | I156: 0 | J156: 0 | K156: 0 | L156: 0.007309339398 | M156: 0.007301193351 | N156: 0.007270991281
B157: Options @ $0.206 | C157: 0 | D157: 0 | E157: 0 | F157: 0 | G157: 0 | H157: 0 | I157: 0 | J157: 0 | K157: 0 | L157: 0 | M157: 0.001114470995 | N157: 0.001109860882
B158: Options @ $1.535 | C158: 0 | D158: 0 | E158: 0 | F158: 0 | G158: 0 | H158: 0 | I158: 0 | J158: 0 | K158: 0 | L158: 0 | M158: 0 | N158: 0.004136593623
B159: Common Stock Warrants @ $0.072 | C159: 0 | D159: 0 | E159: 0 | F159: 0 | G159: 0 | H159: 0 | I159: 0 | J159: 0.001375512063 | K159: 0.001374715318 | L159: 0.001364667057 | M159: 0.001363146175 | N159: 0.001357507394
B160: Total | C160: =SUM(C143:C159) -> 1 | D160: =SUM(D143:D159) -> 1 | E160: 1 | F160: 1 | G160: 1 | H160: 1 | I160: 1 | J160: 1 | K160: 1 | L160: 1 | M160: 1 | N160: 1
B162: Allocation percentages | C162: =C142 -> Option 1 | D162: Option 2 | E162: Option 3 | F162: Option 4 | G162: Option 5 | H162: Option 6 | I162: Option 7 | J162: Option 8 | K162: Option 9 | L162: Option 10 | M162: Option 11 | N162: Option 12 | O162: Total
B163: =B143 -> Series A | C163: =C143*C$90 -> 0 | D163: =D143*D$90 -> 0 | E163: 4939162.285 | F163: 491617.8704 | G163: 489160.0478 | H163: 1163965.28 | I163: 192621.5262 | J163: 702914.6095 | K163: 2387728.131 | L163: 1109210.447 | M163: 32253512.67 | N163: 60624495.57 | O163: =SUM(C163:N163) -> 104354388.4
B164: =B144 -> Series B | C164: =C144*C$90 -> 0 | D164: 7146297.908 | E164: 0 | F164: 574858.7141 | G164: 571984.7325 | H164: 1361048.132 | I164: 225236.2445 | J164: 821932.2626 | K164: 2792018.772 | L164: 1297022.199 | M164: 37714684.39 | N164: 70889448.22 | O164: =SUM(C164:N164) -> 123394531.6
B165: Series C | C165: 29026521.03 | D165: 0 | E165: 0 | F165: 625093.903 | G165: 621968.7726 | H165: 1479986.07 | I165: 244918.9683 | J165: 893758.4721 | K165: 3036004.967 | L165: 1410365.101 | M165: 41010458.19 | N165: 77084265.72 | O165: 155433341.2
B166: Series C-1 | C166: 57534155.99 | D166: 0 | E166: 0 | F166: 232934.5296 | G166: 231769.9833 | H166: 551500.9142 | I166: 91266.42316 | J166: 333049.4959 | K166: 1131334.645 | L166: 525557.4081 | M166: 15282106.8 | N166: 28724623.75 | O166: 104638299.9
B167: Series C-1* | C167: 17205540.46 | D167: 0 | E167: 0 | F167: 69658.87314 | G167: 69310.61658 | H167: 164925.8798 | I167: 27293.14629 | J167: 99598.16874 | K167: 338324.6643 | L167: 157167.4963 | M167: 4570101.054 | N167: 8590074.326 | O167: 31291994.68
B168: Series C-2 | C168: 637995365.1 | D168: 0 | E168: 0 | F168: 455824.834 | G168: 453545.9572 | H168: 1079220.9 | I168: 178597.4036 | J168: 651737.7713 | K168: 2213885.712 | L168: 1028452.582 | M168: 29905243.37 | N168: 56210630.85 | O168: 730172504.4
B169: Common shares - Class A | C169: 0 | D169: 0 | E169: 0 | F169: 555167.5377 | G169: 552392.0013 | H169: 1314426.87 | I169: 217521.0155 | J169: 793777.8435 | K169: 2696381.126 | L169: 1252594.077 | M169: 36422807.82 | N169: 68461205.26 | O169: 112266273.5
B170: Common shares - Class B | C170: 0 | D170: 0 | E170: 0 | F170: 2660359.661 | G170: 2647059.306 | H170: 6298726.03 | I170: 1042359.46 | J170: 3803778.879 | K170: 12921042.91 | L170: 6002423.643 | M170: 174537886.4 | N170: 328065703.4 | O170: 537979339.7
B171: Options @ $0.015 | C171: 0 | D171: 0 | E171: 0 | F171: 0 | G171: 3696.153938 | H171: 8795.065893 | I171: 1455.472122 | J171: 5311.309894 | K171: 18041.96964 | L171: 8381.331592 | M171: 243711.5386 | N171: 458086.2011 | O171: 747479.0428
B172: Options @ $0.03 | C172: 0 | D172: 0 | E172: 0 | F172: 0 | G172: 0 | H172: 29422.63651 | I172: 4869.074058 | J172: 17768.22849 | K172: 60356.83202 | L172: 28038.54751 | M172: 815302.1364 | N172: 1532461.945 | O172: 2488219.4
B173: Options @ $0.066 | C173: 0 | D173: 0 | E173: 0 | F173: 0 | G173: 0 | H173: 0 | I173: 2276.774247 | J173: 8308.406192 | K173: 28222.79537 | L173: 13110.79728 | M173: 381234.4782 | N173: 716577.7003 | O173: 1149730.952
B174: Options @ $0.072 | C174: 0 | D174: 0 | E174: 0 | F174: 0 | G174: 0 | H174: 0 | I174: 0 | J174: 39139.42199 | K174: 132952.563 | L174: 61762.63117 | M174: 1795927.736 | N174: 3375669.937 | O174: 5405452.289
B175: Options @ $0.094 | C175: 0 | D175: 0 | E175: 0 | F175: 0 | G175: 0 | H175: 0 | I175: 0 | J175: 0 | K175: 16108.90147 | L175: 7483.331778 | M175: 217599.588 | N175: 409005.5367 | O175: 650197.358
B176: Options @ $0.17 | C176: 0 | D176: 0 | E176: 0 | F176: 0 | G176: 0 | H176: 0 | I176: 0 | J176: 0 | K176: 0 | L176: 95127.08386 | M176: 2766096.021 | N176: 5199222.104 | O176: 8060445.209
B177: Options @ $0.206 | C177: 0 | D177: 0 | E177: 0 | F177: 0 | G177: 0 | H177: 0 | I177: 0 | J177: 0 | K177: 0 | L177: 0 | M177: 422223.2774 | N177: 793621.2553 | O177: 1215844.533
B178: Options @ $1.535 | C178: 0 | D178: 0 | E178: 0 | F178: 0 | G178: 0 | H178: 0 | I178: 0 | J178: 0 | K178: 0 | L178: 0 | M178: 0 | N178: 2957928.042 | O178: 2957928.042
B179: Common Stock Warrants @ $0.072 | C179: 0 | D179: 0 | E179: 0 | F179: 0 | G179: 0 | H179: 0 | I179: 0 | J179: 11254.89329 | K179: 38231.7069 | L179: 17760.40084 | M179: 516435.1951 | N179: 970704.2925 | O179: 1554386.489
B180: Total | C180: =SUM(C163:C179) -> 741761582.5 | D180: =SUM(D163:D179) -> 7146297.908 | E180: 4939162.285 | F180: 5665515.923 | G180: 5640887.571 | H180: 13452017.78 | I180: 2228415.508 | J180: 8182329.762 | K180: 27810635.7 | L180: =SUM(L163:L179) -> 13014457.08 | M180: 378855330.7 | N180: 715063724.1 | O180: 1923760357 | P180: =IF(OR(ROUND(F6-O180,0)>1,ROUND(F6-O180,0)<=-1),"Error","OK") -> OK
C181: =C180-C90 -> 0 | D181: 0 | E181: 0 | F181: 0 | G181: 0 | H181: 0 | I181: 0 | J181: 0 | K181: 0 | L181: 0 | M181: 0 | N181: 0 | O181: =O180-SUM(C90:N90) -> 0
B183: Classes | C183: # of shares | D183: Value | E183: Per Share | F183: % of EV
B185: =B163 -> Series A | C185: =TRANSPOSE(C97:S97) -> 46320045 | D185: =O163 -> 104354388.4 | E185: =D185/C185 -> 2.252899116 | F185: =D185/$D$202 -> 0.0542450041
B186: =B164 -> Series B | C186: 54162965 | D186: =O164 -> 123394531.6 | E186: 2.27820858 | F186: =D186/$D$202 -> 0.06414236115
B187: Series C | C187: 58896105 | D187: 155433341.2 | E187: 2.639110705 | F187: 0.08079662347
B188: Series C-1 | C188: 21947001 | D188: 104638299.9 | E188: 4.767772141 | F188: 0.05439258563
B189: Series C-1* | C189: 6563232 | D189: 31291994.68 | E189: 4.767772141 | F189: 0.01626605651
B190: Series C-2 | C190: 42947639 | D190: 730172504.4 | E190: 17.00145855 | F190: 0.379554814
B191: Common shares - Class A | C191: 52307670 | D191: 112266273.5 | E191: 2.14626791 | F191: 0.05835772275
B192: Common shares - Class B | C192: 250658055 | D192: 537979339.7 | E192: 2.14626791 | F192: 0.2796498731
B193: Options @ $0.015 | C193: 350000 | D193: 747479.0428 | E193: 2.135654408 | F193: 0.0003885510168
B194: Options @ $0.03 | C194: 1170875 | D194: 2488219.4 | E194: 2.125093968 | F194: 0.001293414427
B195: Options @ $0.066 | C195: 547500 | D195: 1149730.952 | E195: 2.099965208 | F195: 0.0005976476995
B196: Options @ $0.072 | C196: 2579175 | D196: 5405452.289 | E196: 2.095806717 | F196: 0.002809836615
B197: Options @ $0.094 | C197: 312500 | D197: 650197.358 | E197: 2.080631546 | F197: 0.0003379825121
B198: Options @ $0.17 | C198: 3972457 | D198: 8060445.209 | E198: 2.029083061 | F198: 0.004189942464
B199: Options @ $0.206 | C199: 606365 | D199: 1215844.533 | E199: 2.005136399 | F199: 0.0006320145482
B200: Options @ $1.535 | C200: 2260000 | D200: 2957928.042 | E200: 1.308817718 | F200: 0.001537576149
B201: Common Stock Warrants @ $0.072 | C201: 741665 | D201: 1554386.489 | E201: 2.095806717 | F201: 0.0008079938247
B202: Total | C202: =SUM(C185:C201) -> 546343249 | D202: =SUM(D185:D201) -> 1923760357 | F202: =SUM(F185:F201) -> 1 | G202: =C202-K35 -> 0
B204: Fair Market Value (FMV) of Common Stock | D204: ($)
B206: Common Stock (before DLOM) | D206: =+E191 -> 2.14626791
B208: Discount For Lack of Marketability (DLOM) | C208: =DLOM!$E$10 -> 0.285 | D208: =D206*C208 -> 0.6116863542
B210: FMV of Common stock | D210: =D206-D208 -> 1.534581555

Sheet Backsolve_Mar'15-SerB
B1: Allocation
B3: Concluded Equity Value | D3: EV | E3: Weight | F3: Value | G3: =E186 -> 15.00045905
G4: =E190 -> 31.01931694 | I4: for sensitivity analysis
B6: Distributable value | F6: =1488760356.84976+(H6*1000) -> 8905760357 | H6: 7417000
B8: Convertible Notes - Class of Shares | C8: Issue Price | D8: LP | E8: Principal Amount | F8: Interest Rate | G8: Interest Cost | H8: Number of Shares
B9: ='C1&C2New_sept''14'!A9 -> C-1 convertible note | C9: ='C1&C2_Feb''14'!B2 -> 3 | D9: ='C1&C2_Feb''14'!D2 -> 3 | E9: ='C1&C2_Feb''14'!F2 -> 9999999 | F9: 0.0079 | G9: =+E9*F9*$D$42 -> 315999.9684 | H9: =+ROUND((E9+G9)/C9,0) -> 3438666
B10: ='C1&C2New_sept''14'!A10 -> C-1 convertible note | C10: ='C1&C2_Feb''14'!B3 -> 15 | D10: ='C1&C2_Feb''14'!D3 -> 3 | E10: ='C1&C2_Feb''14'!F3 -> 30000000 | F10: 0.0079 | G10: =+E10*F10*$D$42 -> 948000 | H10: =+ROUND((E10+G10)/C10,0) -> 2063200
B11: ='C1&C2New_sept''14'!A11 -> C-2 convertible note | C11: ='C1&C2_Feb''14'!B4 -> 17 | D11: ='C1&C2_Feb''14'!D4 -> 17 | E11: ='C1&C2_Feb''14'!F4 -> 74999988 | F11: 0.0079 | G11: =+E11*F11*$D$42 -> 2369999.621 | H11: 4551176
B12: Total | E12: =+SUM(E9:E11) -> 114999987 | G12: =+SUM(G9:G11) -> 3633999.589
B14: Class of stock | C14: No. of shares | D14: Issue Price | E14: Invested Amount | F14: LP | G14: Total LP | H14: Participation Cap | I14: Converison Price | J14: Conversion ratio | K14: # of shares on converted basis | L14: % Ownership | M14: % Ownership (diluted)
B15: Series A | C15: ='Summ post - latest'!$J$16 -> 46320045 | D15: 0.15 | E15: =+D15*C15 -> 6948006.75 | F15: 0.15 | G15: =C15*F15 -> 6948006.75 | H15: Unlimited | I15: =D15 -> 0.15 | J15: =D15/I15 -> 1 | K15: =C15*J15 -> 46320045 | L15: =C15/$C$23 -> 0.08677371613 | M15: =K15/$K$35 -> 0.08478194813
B16: Series B | C16: ='Summ post - latest'!$J$18+'Summ post - latest'!$P$18 -> 54162965 | D16: 0.184628 | E16: 9999999.902 | F16: 0.184628 | G16: 9999999.902 | H16: Unlimited | I16: 0.184628 | J16: 1 | K16: 54162965 | L16: =C16/$C$23 -> 0.1014662604 | M16: =K16/$K$35 -> 0.09913724586
B17: Series C | C17: ='Summ post - latest'!$J$20 -> 58896105 | D17: 0.564 | E17: 33217403.22 | F17: 0.564 | G17: 33217403.22 | H17: Unlimited | I17: 0.564 | J17: 1 | K17: 58896105 | L17: 0.1103330944 | M17: 0.1078005542
B18: Series C-1 | C18: ='Shares_Sep''13'!$J$19+H9 -> 21947001 | D18: ='C1&C2_Feb''14'!B2 -> 3 | E18: 65841003 | F18: 3 | G18: 65841003 | H18: Unlimited | I18: 3 | J18: 1 | K18: 21947001 | L18: 0.04111444267 | M18: 0.04017071876
B19: Series C-1* | C19: ='Summ post - latest'!$J$22-'Shares_Sep''13'!$J$19+H10 -> 6563232 | D19: ='C1&C2_Feb''14'!B3 -> 15 | E19: 98448480 | F19: 3 | G19: 19689696 | H19: Unlimited | I19: 15 | J19: 1 | K19: 6563232 | L19: 0.01229523914 | M19: 0.01201301931
B20: Series C-2 | C20: ='Summ post - latest'!$J$24+H11 -> 42947639 | D20: ='C1&C2_Feb''14'!B4 -> 17 | E20: 730109863 | F20: ='C1&C2New_sept''14'!D4 -> 17 | G20: 730109863 | H20: Unlimited | I20: 17 | J20: 1 | K20: 42947639 | L20: 0.08045601499 | M20: 0.0786092609
B21: Common shares - Class A | C21: ='Summ post - latest'!$J$10 -> 52307670 | K21: =C21 -> 52307670 | L21: 0.09799064116 | M21: 0.0957414045
B22: Common shares - Class B | C22: ='Summ post - latest'!$J$12 -> 250658055 | K22: =C22 -> 250658055 | L22: 0.4695705911 | M22: 0.4587922619
B23: Sub Total | C23: =SUM(C15:C22) -> 533802712 | E23: =SUM(E15:E20) -> 944564755.9 | G23: =SUM(G15:G20) -> 865805971.9 | K23: =SUM(K15:K22) -> 533802712 | L23: =SUM(L15:L22) -> 1 | M23: =K23/$K$35 -> 0.9770464135
B25: Dilutive Instruments | C25: # of options | D25: Strike price
B26: ="Options @ $"&ROUND(D26,3) -> Options @ $0.015 | C26: ='Option outstanding'!$B$4 -> 350000 | D26: ='Option outstanding'!$A$4 -> 0.015 | F26: =D26 -> 0.015 | J26: 1 | K26: =C26*J26 -> 350000 | M26: =K26/$K$35 -> 0.0006406229063
B27: ="Options @ $"&ROUND(D27,3) -> Options @ $0.03 | C27: ='Option outstanding'!$B$5 -> 1170875 | D27: ='Option outstanding'!$A$5 -> 0.03 | F27: 0.03 | J27: 1 | K27: 1170875 | M27: =K27/$K$35 -> 0.002143112415
B28: Options @ $0.066 | C28: ='Option outstanding'!$B$6 -> 547500 | D28: ='Option outstanding'!$A$6 -> 0.066 | F28: 0.066 | J28: 1 | K28: 547500 | M28: 0.001002117261
B29: Options @ $0.072 | C29: ='Option outstanding'!$B$7 -> 2579175 | D29: ='Option outstanding'!$A$7 -> 0.072 | F29: 0.072 | J29: 1 | K29: 2579175 | M29: 0.004720795955
B30: Options @ $0.094 | C30: ='Option outstanding'!$B$8 -> 312500 | D30: ='Option outstanding'!$A$8 -> 0.094 | F30: 0.094 | J30: 1 | K30: 312500 | M30: 0.0005719847377
B31: Options @ $0.17 | C31: ='Option outstanding'!$B$9 -> 3972457 | D31: ='Option outstanding'!$A$9 -> 0.17 | F31: 0.17 | J31: 1 | K31: 3972457 | M31: 0.007270991281
B32: Options @ $0.206 | C32: ='Option outstanding'!$B$10 -> 606365 | D32: ='Option outstanding'!$A$10 -> 0.206 | F32: 0.206 | J32: 1 | K32: 606365 | M32: 0.001109860882
B33: Options @ $10.6 | C33: ='Option outstanding'!$B$14 -> 2260000 | D33: ='Backsolve_Mar''15-SerB'!$D$210 -> 10.60006726 | F33: 10.60006726 | J33: 1 | K33: 2260000 | M33: 0.004136593623
B34: ="Common Stock Warrants @ $"&D34 -> Common Stock Warrants @ $0.072 | C34: ='Summ post - latest'!$R$55 -> 741665 | D34: 0.072 | F34: 0.072 | J34: 1 | K34: 741665 | M34: 0.001357507394
B35: Total | C35: =C23+SUM(C26:C34) -> 546343249 | K35: =K23+SUM(K26:K34) -> 546343249 | M35: =M23+SUM(M26:M34) -> 1
B38: Change in control event
H39: Risk free rate (Years)
B40: Valuation date | D40: =Control!C7 -> 2015-03-25 | H40: 1 | I40: ='BETA & CSRP'!C133 -> 0.0026
B41: Liquidation date | D41: =D40+365*D42 -> 2019-03-24 | H41: 2 | I41: ='BETA & CSRP'!C134 -> 0.006
B42: No. of years to Liquidation | D42: 4 | H42: 3 | I42: ='BETA & CSRP'!C135 -> 0.0095
B43: Volatility | D43: ='BETA & CSRP'!D153 -> 0.4005490638 | H43: 4 | I43: ='BETA & CSRP'!C136 -> 0.0119
B44: Dividend-yield | D44: 0 | H44: 5 | I44: ='BETA & CSRP'!C137 -> 0.0144
B45: Zero coupon yield Corresponding to the time period | D45: =VLOOKUP(D42,H40:I44,2,FALSE) -> 0.0119 | E45: Source : Bloomberg
B48: Event description | C48: Participating Class | D48: Participating shares | E48: Strike Point
A49: 1 | B49: Equity value is nil | C49: None | D49: 0 | E49: 1e-08
A50: 2 | B50: Liquidation preference of Series C,C-1, C-1* and C-2 | C50: Series C, C-1 & C-1* | D50: =C17+C18+C19+C20 -> 130353977 | E50: =G17+G18+G19+G20 -> 848857965.2
A51: =A50+1 -> 3 | B51: Liquidation preference of Series B | C51: Series B | D51: =C16 -> 54162965 | E51: =E50+G16 -> 858857965.1
A52: 4 | B52: Liquidation preference of Series A | C52: Series A | D52: =C15 -> 46320045 | E52: =E51+G15 -> 865805971.9
A53: 5 | B53: =B26&" exercised" -> Options @ $0.015 exercised | C53: Series A, Series B,C,C-1,C-1* & Common | D53: =+K23 -> 533802712 | E53: =E52+D53*F26 -> 873813012.6
A54: 6 | B54: =B27&" exercised" -> Options @ $0.03 exercised | C54: Series A, Series B,C,C-1,C-1*,Common and Options @ $0.015 | D54: =D53+K26 -> 534152712 | E54: =E53+D54*(F27-F26) -> 881825303.2
A55: 7 | B55: =B28&" exercised" -> Options @ $0.066 exercised | C55: Series A, Series B,C,C-1,C-1*, Common,Options @ $0.015,$0.03 | D55: =D54+K27 -> 535323587 | E55: =E54+D55*(F28-F27) -> 901096952.4
A56: 8 | B56: =B29&" and "&B34&" exercised" -> Options @ $0.072 and Common Stock Warrants @ $0.072 exercised | C56: Series A, Series B, C,C-1,C-1*, Common,Options @ $0.015,$0.03,$0.066 | D56: =D55+K28 -> 535871087 | E56: =E55+D56*(F29-F28) -> 904312178.9
A57: 9 | B57: =B30&" exercised" -> Options @ $0.094 exercised | C57: Series A, Series B, C,C-1,C-1*, Common,Options @ $0.015,$0.03,$0.066,$0.072, Common Warrants @ $0.072 | D57: =D56+K29+K34 -> 539191927 | E57: =E56+D57*(F30-F29) -> 916174401.3
A58: 11 | B58: =B31&" get exercised" -> Options @ $0.17 get exercised | C58: Series A,Series B, C,C-1,C-1*, Common,Options @ $0.015,$0.03,$0.066,$0.072,$0.094, Common Warrants @ $0.072 | D58: =D57+K30 -> 539504427 | E58: =E57+D58*(D31-D30) -> 957176737.7
A59: 12 | B59: =B32&" get exercised" -> Options @ $0.206 get exercised | C59: Series A,Series B, C,C-1,C-1*, Common,Options @ $0.015,$0.03,$0.066,$0.072,$0.094,$0.17, Common Warrants @ $0.072 | D59: =D58+K31 -> 543476884 | E59: =E58+D59*(F32-F31) -> 976741905.6
B60: =B33&" get exercised" -> Options @ $10.6 get exercised | C60: Series A,Series B, C,C-1,C-1*, Common,Options @ $0.015,$0.03,$0.066,$0.072,$0.094,$0.17,$0.206, Common Warrants @ $0.072 | D60: =D59+K32 -> 544083249 | E60: =E59+D60*(F33-F32) -> 6631979788
B61: Thereafter | C61: All classes | D61: =+D60+C33 -> 546343249
C63: 1 | D63: =C63+1 -> 2 | E63: 3 | F63: 4 | G63: 5 | H63: 6 | I63: 7 | J63: 8 | K63: 9 | L63: 10 | M63: 11 | N63: 12
B66: Value of the underlying Asset ($) | C66: =F6 -> 8905760357 | D66: =C66 -> 8905760357 | E66: 8905760357 | F66: 8905760357 | G66: 8905760357 | H66: 8905760357 | I66: 8905760357 | J66: 8905760357 | K66: 8905760357 | L66: 8905760357 | M66: 8905760357 | N66: 8905760357
B67: Strike Price ($) | C67: =TRANSPOSE(E49:E60) -> 1e-08 | D67: 848857965.2 | E67: 858857965.1 | F67: 865805971.9 | G67: 873813012.6 | H67: 881825303.2 | I67: 901096952.4 | J67: 904312178.9 | K67: 916174401.3 | L67: 957176737.7 | M67: 976741905.6 | N67: 6631979788
B68: S.D of the Underlying preferred share | C68: =D43 -> 0.4005490638 | D68: =C68 -> 0.4005490638 | E68: 0.4005490638 | F68: 0.4005490638 | G68: 0.4005490638 | H68: 0.4005490638 | I68: 0.4005490638 | J68: 0.4005490638 | K68: =J68 -> 0.4005490638 | L68: =K68 -> 0.4005490638 | M68: 0.4005490638 | N68: 0.4005490638
B69: Dividend yield | C69: =D44 -> 0 | D69: 0 | E69: 0 | F69: 0 | G69: 0 | H69: 0 | I69: 0 | J69: 0 | K69: =J69 -> 0 | L69: 0 | M69: 0 | N69: 0
B70: Time of Expiration (years) | C70: =D42 -> 4 | D70: 4 | E70: 4 | F70: 4 | G70: 4 | H70: 4 | I70: 4 | J70: 4 | K70: =J70 -> 4 | L70: 4 | M70: 4 | N70: 4
B71: Riskless Rate corresponding to option life time | C71: =D45 -> 0.0119 | D71: 0.0119 | E71: 0.0119 | F71: 0.0119 | G71: 0.0119 | H71: 0.0119 | I71: 0.0119 | J71: 0.0119 | K71: =J71 -> 0.0119 | L71: 0.0119 | M71: 0.0119 | N71: 0.0119
B75: Stock Price | C75: =C66 -> 8905760357 | D75: 8905760357 | E75: 8905760357 | F75: 8905760357 | G75: 8905760357 | H75: 8905760357 | I75: 8905760357 | J75: 8905760357 | K75: 8905760357 | L75: 8905760357 | M75: 8905760357 | N75: 8905760357
B76: Strike Price | C76: 1e-08 | D76: 848857965.2 | E76: 858857965.1 | F76: 865805971.9 | G76: 873813012.6 | H76: 881825303.2 | I76: 901096952.4 | J76: 904312178.9 | K76: 916174401.3 | L76: 957176737.7 | M76: 976741905.6 | N76: 6631979788
B77: Expiration (in years) | C77: =C70 -> 4 | D77: 4 | E77: 4 | F77: 4 | G77: 4 | H77: 4 | I77: 4 | J77: 4 | K77: 4 | L77: 4 | M77: 4 | N77: 4
B78: T.Bond rate | C78: 0.0119 | D78: 0.0119 | E78: 0.0119 | F78: 0.0119 | G78: 0.0119 | H78: 0.0119 | I78: 0.0119 | J78: 0.0119 | K78: 0.0119 | L78: 0.0119 | M78: 0.0119 | N78: 0.0119
B79: Variance | C79: =C68^2 -> 0.1604395525 | D79: 0.1604395525 | E79: 0.1604395525 | F79: 0.1604395525 | G79: 0.1604395525 | H79: 0.1604395525 | I79: 0.1604395525 | J79: 0.1604395525 | K79: 0.1604395525 | L79: 0.1604395525 | M79: 0.1604395525 | N79: 0.1604395525
B80: Annualized dividend yield | C80: =C69 -> 0 | D80: 0 | E80: 0 | F80: 0 | G80: 0 | H80: 0 | I80: 0 | J80: 0 | K80: 0 | L80: 0 | M80: 0 | N80: 0
B83: d1 = | C83: =(LN(C75/C76)+(C78-C80+(C79/2))*C77)/(((C79)^(0.5))*(C77^0.5)) -> 52.05245469 | D83: 3.394142007 | E83: 3.379522471 | F83: 3.369464685 | G83: 3.357973489 | H83: 3.34657968 | I83: 3.319593111 | J83: 3.315146996 | K83: 3.298879189 | L83: 3.244227567 | M83: 3.218969246 | N83: =(LN(N75/N76)+(N78-N80+(N79/2))*N77)/(((N79)^(0.5))*(N77^0.5)) -> 0.8279560399
B84: N(d1) = | C84: =NORMSDIST(C83) -> 1 | D84: 0.9996557801 | E84: 0.9996369406 | F84: 0.9996234283 | G84: 0.9996074193 | H84: 0.9995909242 | I84: 0.9995492563 | J84: 0.9995420253 | K84: 0.9995146416 | L84: 0.9994111519 | M84: 0.9993567386 | N84: 0.7961523019
B86: d2 = | C86: =C83-((C79^0.5)*(C77^(0.5))) -> 51.25135656 | D86: 2.59304388 | E86: 2.578424343 | F86: 2.568366557 | G86: 2.556875361 | H86: 2.545481552 | I86: 2.518494983 | J86: 2.514048868 | K86: 2.497781062 | L86: 2.443129439 | M86: 2.417871119 | N86: 0.02685791239
B87: N(d2) = | C87: =NORMSDIST(C86) -> 1 | D87: 0.9952434684 | E87: 0.9950373984 | F87: 0.9948910478 | G87: 0.9947191473 | H87: 0.9945436435 | I87: 0.9941071219 | J87: 0.9940323053 | K87: 0.9937513324 | L87: 0.992719743 | M87: 0.9921941974 | N87: 0.5107134688
C89: =(EXP((0-C80)*C77))*C75*C84-C76*(EXP((0-C78)*C77))*C87 -> 8905760357 | D89: 8097145846 | E89: 8087657028 | F89: 8081065359 | G89: 8073470185 | H89: 8065871357 | I89: 8047599793 | J89: 8044552207 | K89: 8033310479 | L89: 7994478291 | M89: 7975963295 | N89: 3860746430
C90: =C89-D89 -> 808614510.5 | D90: 9488818.645 | E90: 6591668.738 | F90: 7595174.324 | G90: 7598827.23 | H90: 18271564.31 | I90: 3047586.362 | J90: 11241727.25 | K90: 38832188.34 | L90: 18514996.53 | M90: 4115216865 | N90: =N89 -> 3860746430 | O90: =SUM(C90:N90)-F6 -> 0
B95: Participation in Incremental Value after Each Event
B96: Participation =1, No participation = 0 | C96: =TRANSPOSE(B15:B22) -> Series A | D96: Series B | E96: Series C | F96: Series C-1 | G96: Series C-1* | H96: Series C-2 | I96: Common shares - Class A | J96: Common shares - Class B | K96: =TRANSPOSE(B26:B34) -> Options @ $0.015 | L96: Options @ $0.03 | M96: Options @ $0.066 | N96: Options @ $0.072 | O96: Options @ $0.094 | P96: Options @ $0.17 | Q96: Options @ $0.206 | R96: Options @ $10.6 | S96: Common Stock Warrants @ $0.072 | T96: Total
B97: Common Stock Equivalents | C97: =TRANSPOSE(K15:K22) -> 46320045 | D97: 54162965 | E97: 58896105 | F97: 21947001 | G97: 6563232 | H97: 42947639 | I97: 52307670 | J97: 250658055 | K97: =TRANSPOSE(K26:K34) -> 350000 | L97: 1170875 | M97: 547500 | N97: 2579175 | O97: 312500 | P97: 3972457 | Q97: 606365 | R97: 2260000 | S97: 741665 | T97: =SUM(C97:S97) -> 546343249 | U97: =T97-K35 -> 0
B98: LP | C98: =TRANSPOSE(G15:G20) -> 6948006.75 | D98: 9999999.902 | E98: 33217403.22 | F98: 65841003 | G98: 19689696 | H98: 730109863
A100: 1 | B100: =B50 -> Liquidation preference of Series C,C-1, C-1* and C-2 | C100: 0 | D100: 0 | E100: 1 | F100: 1 | G100: 1 | H100: 1 | I100: 0 | J100: 0 | K100: 0 | L100: 0 | M100: 0 | N100: 0 | O100: 0 | P100: 0 | Q100: 0 | R100: 0 | S100: 0 | T100: =SUM(C100:S100) -> 4
A101: 2 | B101: =B51 -> Liquidation preference of Series B | C101: 0 | D101: 1 | E101: 0 | F101: 0 | G101: 0 | H101: 0 | I101: 0 | J101: 0 | K101: 0 | L101: 0 | M101: 0 | N101: 0 | O101: 0 | P101: 0 | Q101: 0 | R101: 0 | S101: 0 | T101: =SUM(C101:S101) -> 1
A102: 3 | B102: Liquidation preference of Series A | C102: 1 | D102: 0 | E102: 0 | F102: 0 | G102: 0 | H102: 0 | I102: 0 | J102: 0 | K102: 0 | L102: 0 | M102: 0 | N102: 0 | O102: 0 | P102: 0 | Q102: 0 | R102: 0 | S102: 0 | T102: 1
A103: 4 | B103: Options @ $0.015 exercised | C103: 1 | D103: 1 | E103: 1 | F103: 1 | G103: 1 | H103: 1 | I103: 1 | J103: 1 | K103: 0 | L103: 0 | M103: 0 | N103: 0 | O103: 0 | P103: 0 | Q103: 0 | R103: 0 | S103: 0 | T103: 8
A104: 5 | B104: Options @ $0.03 exercised | C104: 1 | D104: 1 | E104: 1 | F104: 1 | G104: 1 | H104: 1 | I104: 1 | J104: 1 | K104: 1 | L104: 0 | M104: 0 | N104: 0 | O104: 0 | P104: 0 | Q104: 0 | R104: 0 | S104: 0 | T104: 9
A105: 6 | B105: Options @ $0.066 exercised | C105: 1 | D105: 1 | E105: 1 | F105: 1 | G105: 1 | H105: 1 | I105: 1 | J105: 1 | K105: 1 | L105: 1 | M105: 0 | N105: 0 | O105: 0 | P105: 0 | Q105: 0 | R105: 0 | S105: 0 | T105: 10
A106: 7 | B106: Options @ $0.072 and Common Stock Warrants @ $0.072 exercised | C106: 1 | D106: 1 | E106: 1 | F106: 1 | G106: 1 | H106: 1 | I106: 1 | J106: 1 | K106: 1 | L106: 1 | M106: 1 | N106: 0 | O106: 0 | P106: 0 | Q106: 0 | R106: 0 | S106: 0 | T106: 11
A107: 8 | B107: Options @ $0.094 exercised | C107: 1 | D107: 1 | E107: 1 | F107: 1 | G107: 1 | H107: 1 | I107: 1 | J107: 1 | K107: 1 | L107: 1 | M107: 1 | N107: 1 | O107: 0 | P107: 0 | Q107: 0 | R107: 0 | S107: 1 | T107: 13
A108: 9 | B108: Options @ $0.17 get exercised | C108: 1 | D108: 1 | E108: 1 | F108: 1 | G108: 1 | H108: 1 | I108: 1 | J108: 1 | K108: 1 | L108: 1 | M108: 1 | N108: 1 | O108: 1 | P108: 0 | Q108: 0 | R108: 0 | S108: 1 | T108: 14
A109: 10 | B109: Options @ $0.206 get exercised | C109: 1 | D109: 1 | E109: 1 | F109: 1 | G109: 1 | H109: 1 | I109: 1 | J109: 1 | K109: 1 | L109: 1 | M109: 1 | N109: 1 | O109: 1 | P109: 1 | Q109: 0 | R109: 0 | S109: 1 | T109: 15
A110: 11 | B110: Options @ $10.6 get exercised | C110: 1 | D110: 1 | E110: 1 | F110: 1 | G110: 1 | H110: 1 | I110: 1 | J110: 1 | K110: 1 | L110: 1 | M110: 1 | N110: 1 | O110: 1 | P110: 1 | Q110: 1 | R110: 0 | S110: 1 | T110: 16
A111: 12 | B111: Thereafter | C111: 1 | D111: 1 | E111: 1 | F111: 1 | G111: 1 | H111: 1 | I111: 1 | J111: 1 | K111: 1 | L111: 1 | M111: 1 | N111: 1 | O111: 1 | P111: 1 | Q111: 1 | R111: 1 | S111: 1 | T111: 17
B113: LP in $ / Number of Shares | T113: Total
B115: =B100 -> Liquidation preference of Series C,C-1, C-1* and C-2 | C115: =C$98*C100 -> 0 | D115: =D$98*D100 -> 0 | E115: 33217403.22 | F115: 65841003 | G115: 19689696 | H115: 730109863 | I115: 0 | J115: 0 | K115: 0 | L115: 0 | M115: 0 | N115: 0 | O115: 0 | P115: 0 | Q115: 0 | R115: 0 | S115: 0 | T115: =SUM(C115:S115) -> 848857965.2 | U115: =T115-E50 -> 0
B116: Liquidation preference of Series B | C116: =C$98*C101 -> 0 | D116: 9999999.902 | E116: 0 | F116: 0 | G116: 0 | H116: 0 | I116: 0 | J116: 0 | K116: 0 | L116: 0 | M116: 0 | N116: 0 | O116: 0 | P116: 0 | Q116: 0 | R116: 0 | S116: 0 | T116: =SUM(C116:S116) -> 9999999.902 | U116: =E51-SUM($T$115:T116) -> 0
B117: Liquidation preference of Series A | C117: 6948006.75 | D117: 0 | E117: 0 | F117: 0 | G117: 0 | H117: 0 | I117: 0 | J117: 0 | K117: 0 | L117: 0 | M117: 0 | N117: 0 | O117: 0 | P117: 0 | Q117: 0 | R117: 0 | S117: 0 | T117: 6948006.75 | U117: =E52-SUM($T$115:T117) -> 0
B118: Options @ $0.015 exercised | C118: =C103*C$97 -> 46320045 | D118: =D103*D$97 -> 54162965 | E118: 58896105 | F118: 21947001 | G118: 6563232 | H118: 42947639 | I118: 52307670 | J118: 250658055 | K118: 0 | L118: 0 | M118: 0 | N118: 0 | O118: 0 | P118: 0 | Q118: 0 | R118: 0 | S118: 0 | T118: 533802712 | U118: =D53-T118 -> 0
B119: Options @ $0.03 exercised | C119: =C104*C$97 -> 46320045 | D119: 54162965 | E119: 58896105 | F119: 21947001 | G119: 6563232 | H119: 42947639 | I119: 52307670 | J119: 250658055 | K119: 350000 | L119: 0 | M119: 0 | N119: 0 | O119: 0 | P119: 0 | Q119: 0 | R119: 0 | S119: 0 | T119: 534152712 | U119: =D54-T119 -> 0
B120: Options @ $0.066 exercised | C120: 46320045 | D120: 54162965 | E120: 58896105 | F120: 21947001 | G120: 6563232 | H120: 42947639 | I120: 52307670 | J120: 250658055 | K120: 350000 | L120: 1170875 | M120: 0 | N120: 0 | O120: 0 | P120: 0 | Q120: 0 | R120: 0 | S120: 0 | T120: 535323587 | U120: 0
B121: Options @ $0.072 and Common Stock Warrants @ $0.072 exercised | C121: 46320045 | D121: 54162965 | E121: 58896105 | F121: 21947001 | G121: 6563232 | H121: 42947639 | I121: 52307670 | J121: 250658055 | K121: 350000 | L121: 1170875 | M121: 547500 | N121: 0 | O121: 0 | P121: 0 | Q121: 0 | R121: 0 | S121: 0 | T121: 535871087 | U121: 0
B122: Options @ $0.094 exercised | C122: 46320045 | D122: 54162965 | E122: 58896105 | F122: 21947001 | G122: 6563232 | H122: 42947639 | I122: 52307670 | J122: 250658055 | K122: 350000 | L122: 1170875 | M122: 547500 | N122: 2579175 | O122: 0 | P122: 0 | Q122: 0 | R122: 0 | S122: 741665 | T122: 539191927 | U122: 0
B123: =B108 -> Options @ $0.17 get exercised | C123: 46320045 | D123: 54162965 | E123: 58896105 | F123: 21947001 | G123: 6563232 | H123: 42947639 | I123: 52307670 | J123: 250658055 | K123: 350000 | L123: 1170875 | M123: 547500 | N123: 2579175 | O123: 312500 | P123: 0 | Q123: 0 | R123: 0 | S123: 741665 | T123: 539504427 | U123: 0
B124: =B109 -> Options @ $0.206 get exercised | C124: 46320045 | D124: 54162965 | E124: 58896105 | F124: 21947001 | G124: 6563232 | H124: 42947639 | I124: 52307670 | J124: 250658055 | K124: 350000 | L124: 1170875 | M124: 547500 | N124: 2579175 | O124: 312500 | P124: 3972457 | Q124: 0 | R124: 0 | S124: 741665 | T124: 543476884 | U124: 0
B125: =B110 -> Options @ $10.6 get exercised | C125: 46320045 | D125: 54162965 | E125: 58896105 | F125: 21947001 | G125: 6563232 | H125: 42947639 | I125: 52307670 | J125: 250658055 | K125: 350000 | L125: 1170875 | M125: 547500 | N125: 2579175 | O125: 312500 | P125: 3972457 | Q125: 606365 | R125: 0 | S125: 741665 | T125: 544083249 | U125: 0
B126: =B111 -> Thereafter | C126: 46320045 | D126: 54162965 | E126: 58896105 | F126: 21947001 | G126: 6563232 | H126: 42947639 | I126: 52307670 | J126: 250658055 | K126: 350000 | L126: 1170875 | M126: 547500 | N126: 2579175 | O126: 312500 | P126: 3972457 | Q126: 606365 | R126: 2260000 | S126: 741665 | T126: 546343249 | U126: 0
B127: % of Ownership in Incremental Value after Each Event | T127: Total
B129: =B115 -> Liquidation preference of Series C,C-1, C-1* and C-2 | C129: =C115/$T115 -> 0 | D129: =D115/$T115 -> 0 | E129: 0.03913187433 | F129: 0.07756421651 | G129: 0.02319551304 | H129: 0.8601083961 | I129: 0 | J129: 0 | K129: 0 | L129: 0 | M129: 0 | N129: 0 | O129: 0 | P129: 0 | Q129: 0 | R129: 0 | S129: 0 | T129: =SUM(C129:S129) -> 1
B130: Liquidation preference of Series B | C130: =C116/$T116 -> 0 | D130: 1 | E130: 0 | F130: 0 | G130: 0 | H130: 0 | I130: 0 | J130: 0 | K130: 0 | L130: 0 | M130: 0 | N130: 0 | O130: 0 | P130: 0 | Q130: 0 | R130: 0 | S130: 0 | T130: =SUM(C130:S130) -> 1
B131: Liquidation preference of Series A | C131: 1 | D131: 0 | E131: 0 | F131: 0 | G131: 0 | H131: 0 | I131: 0 | J131: 0 | K131: 0 | L131: 0 | M131: 0 | N131: 0 | O131: 0 | P131: 0 | Q131: 0 | R131: 0 | S131: 0 | T131: 1
B132: Options @ $0.015 exercised | C132: 0.08677371613 | D132: 0.1014662604 | E132: 0.1103330944 | F132: 0.04111444267 | G132: 0.01229523914 | H132: 0.08045601499 | I132: 0.09799064116 | J132: 0.4695705911 | K132: 0 | L132: 0 | M132: 0 | N132: 0 | O132: 0 | P132: 0 | Q132: 0 | R132: 0 | S132: 0 | T132: 1
B133: Options @ $0.03 exercised | C133: 0.08671685823 | D133: 0.1013997754 | E133: 0.1102607993 | F133: 0.04108750271 | G133: 0.01228718277 | H133: 0.08040329673 | I133: 0.09792643344 | J133: 0.4692629081 | K133: 0.0006552433267 | L133: 0 | M133: 0 | N133: 0 | O133: 0 | P133: 0 | Q133: 0 | R133: 0 | S133: 0 | T133: 1
B134: Options @ $0.066 exercised | C134: 0.08652718865 | D134: 0.1011779909 | E134: 0.1100196338 | F134: 0.04099763495 | G134: 0.01226030789 | H134: 0.08022743634 | I134: 0.09771224596 | J134: 0.4682365229 | K134: 0.0006538101599 | L134: 0.002187228488 | M134: 0 | N134: 0 | O134: 0 | P134: 0 | Q134: 0 | R134: 0 | S134: 0 | T134: 1
B135: Options @ $0.072 and Common Stock Warrants @ $0.072 exercised | C135: 0.08643878374 | D135: 0.1010746172 | E135: 0.1099072266 | F135: 0.04095574763 | G135: 0.01224778153 | H135: 0.0801454679 | I135: 0.09761241326 | J135: 0.4677581252 | K135: 0.0006531421614 | L135: 0.002184993795 | M135: 0.001021700952 | N135: 0 | O135: 0 | P135: 0 | Q135: 0 | R135: 0 | S135: 0 | T135: 1
B136: Options @ $0.094 exercised | C136: 0.08590641417 | D136: 0.1004521067 | E136: 0.1092303168 | F136: 0.04070350445 | G136: 0.01217234842 | H136: 0.07965185836 | I136: 0.09701122621 | J136: 0.4648772403 | K136: 0.000649119511 | L136: 0.002171536593 | M136: 0.001015408378 | N136: 0.004783408042 | O136: 0 | P136: 0 | Q136: 0 | R136: 0 | S136: 0.001375512063 | T136: 1
B137: =B123 -> Options @ $0.17 get exercised | C137: 0.08585665415 | D137: 0.1003939213 | E137: 0.1091670467 | F137: 0.04067992754 | G137: 0.01216529777 | H137: 0.0796057212 | I137: 0.09695503388 | J137: 0.464607967 | K137: 0.0006487435181 | L137: 0.002170278762 | M137: 0.001014820218 | N137: 0.004780637324 | O137: 0.000579235284 | P137: 0 | Q137: 0 | R137: 0 | S137: 0.001374715318 | T137: 1
B138: =B124 -> Options @ $0.206 get exercised | C138: 0.08522909872 | D138: 0.09966010808 | E138: 0.1083691077 | F138: 0.04038258415 | G138: 0.01207637747 | H138: 0.07902385596 | I138: 0.09624635663 | J138: 0.4612119897 | K138: 0.0006440016315 | L138: 0.002154415458 | M138: 0.001007402552 | N138: 0.004745694023 | O138: 0.0005750014567 | P138: 0.007309339398 | Q138: 0 | R138: 0 | S138: 0.001364667057 | T138: 1
B139: =B125 -> Options @ $10.6 get exercised | C139: 0.08513411336 | D139: 0.09954903978 | E139: 0.1082483335 | F139: 0.04033757893 | G139: 0.0120629187 | H139: 0.07893578617 | I139: 0.09613909286 | J139: 0.4606979823 | K139: 0.0006432839104 | L139: 0.002152014425 | M139: 0.001006279831 | N139: 0.004740405085 | O139: 0.0005743606343 | P139: 0.007301193351 | Q139: 0.001114470995 | R139: 0 | S139: 0.001363146175 | T139: 1
B140: =B126 -> Thereafter | C140: 0.08478194813 | D140: 0.09913724586 | E140: 0.1078005542 | F140: 0.04017071876 | G140: 0.01201301931 | H140: 0.0786092609 | I140: 0.0957414045 | J140: 0.4587922619 | K140: 0.0006406229063 | L140: 0.002143112415 | M140: 0.001002117261 | N140: 0.004720795955 | O140: 0.0005719847377 | P140: 0.007270991281 | Q140: 0.001109860882 | R140: 0.004136593623 | S140: 0.001357507394 | T140: 1
B142: Value Allocated | C142: Option 1 | D142: Option 2 | E142: Option 3 | F142: Option 4 | G142: Option 5 | H142: Option 6 | I142: Option 7 | J142: Option 8 | K142: Option 9 | L142: Option 10 | M142: Option 11 | N142: Option 12
B143: =TRANSPOSE(C96:S96) -> Series A | C143: =TRANSPOSE(C129:S140) -> 0 | D143: 0 | E143: 1 | F143: 0.08677371613 | G143: 0.08671685823 | H143: 0.08652718865 | I143: 0.08643878374 | J143: 0.08590641417 | K143: 0.08585665415 | L143: 0.08522909872 | M143: 0.08513411336 | N143: 0.08478194813
B144: Series B | C144: 0 | D144: 1 | E144: 0 | F144: 0.1014662604 | G144: 0.1013997754 | H144: 0.1011779909 | I144: 0.1010746172 | J144: 0.1004521067 | K144: 0.1003939213 | L144: 0.09966010808 | M144: 0.09954903978 | N144: 0.09913724586
B145: Series C | C145: 0.03913187433 | D145: 0 | E145: 0 | F145: 0.1103330944 | G145: 0.1102607993 | H145: 0.1100196338 | I145: 0.1099072266 | J145: 0.1092303168 | K145: 0.1091670467 | L145: 0.1083691077 | M145: 0.1082483335 | N145: 0.1078005542
B146: Series C-1 | C146: 0.07756421651 | D146: 0 | E146: 0 | F146: 0.04111444267 | G146: 0.04108750271 | H146: 0.04099763495 | I146: 0.04095574763 | J146: 0.04070350445 | K146: 0.04067992754 | L146: 0.04038258415 | M146: 0.04033757893 | N146: 0.04017071876
B147: Series C-1* | C147: 0.02319551304 | D147: 0 | E147: 0 | F147: 0.01229523914 | G147: 0.01228718277 | H147: 0.01226030789 | I147: 0.01224778153 | J147: 0.01217234842 | K147: 0.01216529777 | L147: 0.01207637747 | M147: 0.0120629187 | N147: 0.01201301931
B148: Series C-2 | C148: 0.8601083961 | D148: 0 | E148: 0 | F148: 0.08045601499 | G148: 0.08040329673 | H148: 0.08022743634 | I148: 0.0801454679 | J148: 0.07965185836 | K148: 0.0796057212 | L148: 0.07902385596 | M148: 0.07893578617 | N148: 0.0786092609
B149: Common shares - Class A | C149: 0 | D149: 0 | E149: 0 | F149: 0.09799064116 | G149: 0.09792643344 | H149: 0.09771224596 | I149: 0.09761241326 | J149: 0.09701122621 | K149: 0.09695503388 | L149: 0.09624635663 | M149: 0.09613909286 | N149: 0.0957414045
B150: Common shares - Class B | C150: 0 | D150: 0 | E150: 0 | F150: 0.4695705911 | G150: 0.4692629081 | H150: 0.4682365229 | I150: 0.4677581252 | J150: 0.4648772403 | K150: 0.464607967 | L150: 0.4612119897 | M150: 0.4606979823 | N150: 0.4587922619
B151: Options @ $0.015 | C151: 0 | D151: 0 | E151: 0 | F151: 0 | G151: 0.0006552433267 | H151: 0.0006538101599 | I151: 0.0006531421614 | J151: 0.000649119511 | K151: 0.0006487435181 | L151: 0.0006440016315 | M151: 0.0006432839104 | N151: 0.0006406229063
B152: Options @ $0.03 | C152: 0 | D152: 0 | E152: 0 | F152: 0 | G152: 0 | H152: 0.002187228488 | I152: 0.002184993795 | J152: 0.002171536593 | K152: 0.002170278762 | L152: 0.002154415458 | M152: 0.002152014425 | N152: 0.002143112415
B153: Options @ $0.066 | C153: 0 | D153: 0 | E153: 0 | F153: 0 | G153: 0 | H153: 0 | I153: 0.001021700952 | J153: 0.001015408378 | K153: 0.001014820218 | L153: 0.001007402552 | M153: 0.001006279831 | N153: 0.001002117261
B154: Options @ $0.072 | C154: 0 | D154: 0 | E154: 0 | F154: 0 | G154: 0 | H154: 0 | I154: 0 | J154: 0.004783408042 | K154: 0.004780637324 | L154: 0.004745694023 | M154: 0.004740405085 | N154: 0.004720795955
B155: Options @ $0.094 | C155: 0 | D155: 0 | E155: 0 | F155: 0 | G155: 0 | H155: 0 | I155: 0 | J155: 0 | K155: 0.000579235284 | L155: 0.0005750014567 | M155: 0.0005743606343 | N155: 0.0005719847377
B156: Options @ $0.17 | C156: 0 | D156: 0 | E156: 0 | F156: 0 | G156: 0 | H156: 0 | I156: 0 | J156: 0 | K156: 0 | L156: 0.007309339398 | M156: 0.007301193351 | N156: 0.007270991281
B157: Options @ $0.206 | C157: 0 | D157: 0 | E157: 0 | F157: 0 | G157: 0 | H157: 0 | I157: 0 | J157: 0 | K157: 0 | L157: 0 | M157: 0.001114470995 | N157: 0.001109860882
B158: Options @ $10.6 | C158: 0 | D158: 0 | E158: 0 | F158: 0 | G158: 0 | H158: 0 | I158: 0 | J158: 0 | K158: 0 | L158: 0 | M158: 0 | N158: 0.004136593623
B159: Common Stock Warrants @ $0.072 | C159: 0 | D159: 0 | E159: 0 | F159: 0 | G159: 0 | H159: 0 | I159: 0 | J159: 0.001375512063 | K159: 0.001374715318 | L159: 0.001364667057 | M159: 0.001363146175 | N159: 0.001357507394
B160: Total | C160: =SUM(C143:C159) -> 1 | D160: =SUM(D143:D159) -> 1 | E160: 1 | F160: 1 | G160: 1 | H160: 1 | I160: 1 | J160: 1 | K160: 1 | L160: 1 | M160: 1 | N160: 1
B162: Allocation percentages | C162: =C142 -> Option 1 | D162: Option 2 | E162: Option 3 | F162: Option 4 | G162: Option 5 | H162: Option 6 | I162: Option 7 | J162: Option 8 | K162: Option 9 | L162: Option 10 | M162: Option 11 | N162: Option 12 | O162: Total
B163: =B143 -> Series A | C163: =C143*C$90 -> 0 | D163: =D143*D$90 -> 0 | E163: 6591668.738 | F163: 659061.5007 | G163: 658946.4237 | H163: 1580987.092 | I163: 263429.6584 | J163: 965736.4772 | K163: 3334001.764 | L163: 1578016.467 | M163: 350345339.1 | N163: 327321603.6 | O163: =SUM(C163:N163) -> 693298790.8
B164: =B144 -> Series B | C164: =C144*C$90 -> 0 | D164: 9488818.645 | E164: 0 | F164: 770653.9361 | G164: 770519.3741 | H164: 1848680.167 | I164: 308033.625 | J164: 1129255.186 | K164: 3898515.661 | L164: 1845206.555 | M164: 409665887.4 | N164: 382743768 | O164: =SUM(C164:N164) -> 812469338.6
B165: Series C | C165: 31642601.41 | D165: 0 | E165: 0 | F165: 837999.0855 | G165: 837852.7646 | H165: 2010230.814 | I165: 334951.7649 | J165: 1227937.429 | K165: 4239195.319 | L165: 2006453.654 | M165: 445465367.7 | N165: 416190604.6 | O165: 904793194.5
B166: Series C-1 | C166: 62719550.97 | D166: 0 | E166: 0 | F166: 312271.3593 | G166: 312216.8344 | H166: 749090.9236 | I166: 124816.1779 | J166: 457577.6952 | K166: 1579690.608 | L166: 747683.4054 | M166: 165997885.1 | N166: 155088959 | O166: 388089742.1
B167: Series C-1* | C167: 18756228.42 | D167: 0 | E167: 0 | F167: 93384.48466 | G167: 93368.17903 | H167: 224015.0042 | I167: 37326.17194 | J167: 136838.2209 | K167: 472405.134 | L167: 223594.0871 | M167: 49641526.48 | N167: 46379221.41 | O167: 116057907.6
B168: Series C-2 | C168: 695496129.7 | D168: 0 | E168: 0 | F168: 611077.4593 | G168: 610970.7606 | H168: 1465880.763 | I168: 244250.2349 | J168: 895424.4667 | K168: 3091264.358 | L168: 1463126.419 | M168: 324837878.5 | N168: 303490423.4 | O168: 1332206426
B169: Common shares - Class A | C169: 0 | D169: 0 | E169: 0 | F169: 744256.0017 | G169: 744126.049 | H169: 1785355.586 | I169: 297482.2594 | J169: 1090573.745 | K169: 3764976.136 | L169: 1782000.959 | M169: 395633216.3 | N169: 369633285.6 | O169: 775475272.7
B170: Common shares - Class B | C170: 0 | D170: 0 | E170: 0 | F170: 3566470.497 | G170: 3565847.764 | H170: 8555413.741 | I170: 1425533.283 | J170: 5226023.14 | K170: 18041744.08 | L170: 8539338.389 | M170: 1895872106 | N170: 1771280587 | O170: 3716073064
B171: Options @ $0.015 | C171: 0 | D171: 0 | E171: 0 | F171: 0 | G171: 4979.080834 | H171: 11946.13438 | I171: 1990.507143 | J171: 7297.224496 | K171: 25192.13048 | L171: 11923.68797 | M171: 2647252.797 | N171: 2473282.598 | O171: 5183864.16
B172: Options @ $0.03 | C172: 0 | D172: 0 | E172: 0 | F172: 0 | G172: 0 | H172: 39964.08599 | I172: 6658.95729 | J172: 24411.82209 | K172: 84276.67364 | L172: 39888.99473 | M172: 8856006.053 | N172: 8274013.607 | O172: 17325220.19
B173: Options @ $0.066 | C173: 0 | D173: 0 | E173: 0 | F173: 0 | G173: 0 | H173: 0 | I173: 3113.721889 | J173: 11414.94403 | K173: 39407.68982 | L173: 18652.05476 | M173: 4141059.732 | N173: 3868920.636 | O173: 8082568.779
B174: Options @ $0.072 | C174: 0 | D174: 0 | E174: 0 | F174: 0 | G174: 0 | H174: 0 | I174: 0 | J174: 53773.76854 | K174: 185642.6089 | L174: 87866.50837 | M174: 19507794.95 | N174: 18225796.13 | O174: 38060873.97
B175: Options @ $0.094 | C175: 0 | D175: 0 | E175: 0 | F175: 0 | G175: 0 | H175: 0 | I175: 0 | J175: 0 | K175: 22492.97364 | L175: 10646.14998 | M175: 2363618.569 | N175: 2208288.034 | O175: 4605045.726
B176: Options @ $0.17 | C176: 0 | D176: 0 | E176: 0 | F176: 0 | G176: 0 | H176: 0 | I176: 0 | J176: 0 | K176: 0 | L176: 135332.3936 | M176: 30045994.01 | N176: 28071453.63 | O176: 58252780.03
B177: Options @ $0.206 | C177: 0 | D177: 0 | E177: 0 | F177: 0 | G177: 0 | H177: 0 | I177: 0 | J177: 0 | K177: 0 | L177: 0 | M177: 4586289.835 | N177: 4284891.436 | O177: 8871181.271
B178: Options @ $10.6 | C178: 0 | D178: 0 | E178: 0 | F178: 0 | G178: 0 | H178: 0 | I178: 0 | J178: 0 | K178: 0 | L178: 0 | M178: 0 | N178: 15970339.06 | O178: 15970339.06
B179: Common Stock Warrants @ $0.072 | C179: 0 | D179: 0 | E179: 0 | F179: 0 | G179: 0 | H179: 0 | I179: 0 | J179: 15463.13144 | K179: 53383.20415 | L179: 25266.80583 | M179: 5609642.13 | N179: 5240991.824 | O179: 10944747.1
B180: Total | C180: =SUM(C163:C179) -> 808614510.5 | D180: =SUM(D163:D179) -> 9488818.645 | E180: 6591668.738 | F180: 7595174.324 | G180: 7598827.23 | H180: 18271564.31 | I180: 3047586.362 | J180: 11241727.25 | K180: 38832188.34 | L180: =SUM(L163:L179) -> 18514996.53 | M180: 4115216865 | N180: 3860746430 | O180: 8905760357 | P180: =IF(OR(ROUND(F6-O180,0)>1,ROUND(F6-O180,0)<=-1),"Error","OK") -> OK
C181: =C180-C90 -> 0 | D181: 0 | E181: 0 | F181: 0 | G181: 0 | H181: 0 | I181: 0 | J181: 0 | K181: 0 | L181: 0 | M181: 0 | N181: 0 | O181: =O180-SUM(C90:N90) -> 0
B183: Classes | C183: # of shares | D183: Value | E183: Per Share | F183: % of EV
B185: =B163 -> Series A | C185: =TRANSPOSE(C97:S97) -> 46320045 | D185: =O163 -> 693298790.8 | E185: =D185/C185 -> 14.96757593 | F185: =D185/$D$202 -> 0.07784835466
B186: =B164 -> Series B | C186: 54162965 | D186: =O164 -> 812469338.6 | E186: 15.00045905 | F186: =D186/$D$202 -> 0.09122964306
B187: Series C | C187: 58896105 | D187: 904793194.5 | E187: 15.36253025 | F187: 0.1015964003
B188: Series C-1 | C188: 21947001 | D188: 388089742.1 | E188: 17.68304207 | F188: 0.04357738436
B189: Series C-1* | C189: 6563232 | D189: 116057907.6 | E189: 17.68304207 | F189: 0.01303177976
B190: Series C-2 | C190: 42947639 | D190: 1332206426 | E190: 31.01931694 | F190: 0.1495892964
B191: Common shares - Class A | C191: 52307670 | D191: 775475272.7 | E191: 14.82526889 | F191: 0.08707569501
B192: Common shares - Class B | C192: 250658055 | D192: 3716073064 | E192: 14.82526889 | F192: 0.4172662317
B193: Options @ $0.015 | C193: 350000 | D193: 5183864.16 | E193: 14.81104046 | F193: 0.000582079907
B194: Options @ $0.03 | C194: 1170875 | D194: =O172 -> 17325220.19 | E194: 14.79681451 | F194: 0.001945394834
B195: Options @ $0.066 | C195: 547500 | D195: 8082568.779 | E195: 14.7626827 | F195: 0.0009075663902
B196: Options @ $0.072 | C196: 2579175 | D196: 38060873.97 | E196: 14.75699554 | F196: 0.004273736597
B197: Options @ $0.094 | C197: 312500 | D197: 4605045.726 | E197: 14.73614632 | F197: 0.0005170861939
B198: Options @ $0.17 | C198: 3972457 | D198: 58252780.03 | E198: 14.66416881 | F198: 0.00654102263
B199: Options @ $0.206 | C199: 606365 | D199: 8871181.271 | E199: 14.63010113 | F199: 0.0009961172225
B200: Options @ $10.6 | C200: 2260000 | D200: 15970339.06 | E200: 7.06652171 | F200: 0.001793259466
B201: Common Stock Warrants @ $0.072 | C201: 741665 | D201: 10944747.1 | E201: 14.75699554 | F201: 0.001228951449
B202: Total | C202: =SUM(C185:C201) -> 546343249 | D202: =SUM(D185:D201) -> 8905760357 | F202: =SUM(F185:F201) -> 1 | G202: =C202-K35 -> 0
B204: Fair Market Value (FMV) of Common Stock | D204: ($)
B206: Common Stock (before DLOM) | D206: =+E191 -> 14.82526889
B208: Discount For Lack of Marketability (DLOM) | C208: =DLOM!$E$10 -> 0.285 | D208: =D206*C208 -> 4.225201633
B210: FMV of Common stock | D210: =D206-D208 -> 10.60006726

Sheet Allocation_Dec'15 (hidden)
B1: Allocation
B3: Concluded Equity Value | D3: EV | E3: Weight | F3: Value
B5: EV - Income Approach | D5: 1770800465 | E5: 0.25 | F5: =D5*E5 -> 442700116.2 | J5: =G5+300000000 -> 300000000 | K5: =D5/J5-1 -> 4.902668217
B6: EV - Market Approach - GPC | D6: 1624163000 | E6: 0.25 | F6: =D6*E6 -> 406040750 | J6: =G6+300000000 -> 300000000 | K6: =D6/J6-1 -> 4.413876667
B7: EV - Market Approach - BackSolve | D7: 1700878042 | E7: =1-SUM(E5:E6) -> 0.5 | F7: =D7*E7 -> 850439021.2 | J7: =G7+300000000 -> 300000000 | K7: =D7/J7-1 -> 4.669593475
B8: Concluded EV | F8: =SUM(F5:F7) -> 1699179887 | I8: for sensitivity analysis | J8: =G8+300000000 -> 300000000 | K8: =F8/J8-1 -> 4.663932958
B10: Previous Valuation | F10: 1.188175114
B11: Current Valuation | F11: =D40 -> 1.438699952
F12: =+F11/F10-1 -> 0.2108484137
B13: Distributable value | F13: =+F8+H13*1000000 -> 1699179887
B15: Convertible Notes - Class of Shares | C15: Issue Price | D15: LP | E15: Principal Amount | F15: Interest Rate | G15: Interest Cost | H15: Number of Shares
B16: C-1 convertible note | C16: 3 | D16: 3 | E16: 9999999 | F16: 0.0079 | G16: =+E16*F16*$D$49 -> 315999.9684 | H16: =+ROUND(E16/C16,0) -> 3333333
B17: C-1 convertible note | C17: 15 | D17: 3 | E17: 30000000 | F17: 0.0079 | G17: =+E17*F17*$D$49 -> 948000 | H17: =+ROUND(E17/C17,0) -> 2000000
B18: C-2 convertible note | C18: 17 | D18: 17 | E18: 49999992 | F18: 0.0079 | G18: =+E18*F18*$D$49 -> 1579999.747 | H18: =+ROUND(E18/C18,0) -> 2941176
B19: Total | E19: =+SUM(E16:E18) -> 89999991 | G19: =+SUM(G16:G18) -> 2843999.716
B21: Class of stock | C21: No. of shares | D21: Issue Price | E21: Invested Amount | F21: LP | G21: Total LP | H21: Participation Cap | I21: Converison Price | J21: Conversion ratio | K21: # of shares on converted basis | L21: % Ownership | M21: % Ownership (diluted)
B22: Series A | C22: 46320045 | D22: 0.15 | E22: =+D22*C22 -> 6948006.75 | F22: 0.15 | G22: =C22*F22 -> 6948006.75 | H22: Unlimited | I22: =D22 -> 0.15 | J22: =D22/I22 -> 1 | K22: =C22*J22 -> 46320045 | L22: =C22/$C$30 -> 0.08848276802 | M22: =K22/$K$42 -> 0.08440571553
B23: Series B | C23: 54162965 | D23: 0.184628 | E23: 9999999.902 | F23: 0.184628 | G23: 9999999.902 | H23: Unlimited | I23: 0.184628 | J23: 1 | K23: 54162965 | L23: =C23/$C$30 -> 0.1034646894 | M23: =K23/$K$42 -> 0.09869730947
B24: Series C | C24: 58896105 | D24: 0.564 | E24: 33217403.22 | F24: 0.564 | G24: 33217403.22 | H24: Unlimited | I24: 0.564 | J24: 1 | K24: 58896105 | L24: 0.11250616 | M24: 0.107322173
B25: Series C-1 | C25: 21841668 | D25: 3 | E25: 65525004 | F25: 3 | G25: 65525004 | H25: Unlimited | I25: 3 | J25: 1 | K25: 21841668 | L25: 0.04172300012 | M25: 0.03980051436
B26: Series C-1* | C26: 6500032 | D26: 15 | E26: 97500480 | F26: 3 | G26: 19500096 | H26: Unlimited | I26: 15 | J26: 1 | K26: 6500032 | L26: 0.01241667238 | M26: 0.01184454488
B27: Series C-2 | C27: 32808229 | D27: 17 | E27: 557739893 | F27: 17 | G27: 557739893 | H27: Unlimited | I27: 17 | J27: 1 | K27: 32808229 | L27: 0.06267185008 | M27: 0.05978409659
B28: Common shares - Class A | C28: 52305170 | K28: =C28 -> 52305170 | L28: 0.0999158404 | M28: 0.0953119821
B29: Common shares - Class B | C29: 250658055 | K29: =C29 -> 250658055 | L29: 0.4788190196 | M29: 0.4567563025
B30: Sub Total | C30: =SUM(C22:C29) -> 523492269 | E30: =SUM(E22:E28) -> 770930786.9 | G30: =SUM(G22:G27) -> 692930402.9 | K30: =SUM(K22:K29) -> 523492269 | L30: =SUM(L22:L29) -> 1 | M30: =K30/$K$42 -> 0.9539226385
E31: =C42*D27 -> 9329235112 | F31: =E31+Allocation!F28 -> 9501605082
B32: Dilutive Instruments | C32: # of options | D32: Strike price
B33: ="Options @ $"&ROUND(D33,3) -> Options @ $0.015 | C33: 350000 | D33: 0.015 | F33: =D33 -> 0.015 | J33: 1 | K33: =C33*J33 -> 350000 | M33: =K33/$K$42 -> 0.0006377800461
B34: ="Options @ $"&ROUND(D34,3) -> Options @ $0.03 | C34: 1170875 | D34: 0.03 | F34: 0.03 | J34: 1 | K34: 1170875 | M34: =K34/$K$42 -> 0.002133602033
B35: Options @ $0.066 | C35: 547500 | D35: 0.066 | F35: 0.066 | J35: 1 | K35: 547500 | M35: 0.000997670215
B36: Options @ $0.072 | C36: 2581675 | D36: 0.072 | F36: 0.072 | J36: 1 | K36: 2581675 | M36: 0.004704402287
B37: Options @ $0.094 | C37: 312500 | D37: 0.094 | F37: 0.094 | J37: 1 | K37: 312500 | M37: 0.0005694464698
B38: Options @ $0.17 | C38: 3975687 | D38: 0.17 | F38: 0.17 | J38: 1 | K38: 3975687 | M38: 0.007244610966
B39: Options @ $0.206 | C39: 606365 | D39: 0.206 | F39: 0.206 | J39: 1 | K39: 606365 | M39: 0.001104935708
B40: Options @ $1.439 | C40: 15000000 | D40: ='Allocation_Dec''15'!$D$217 -> 1.438699952 | F40: 1.438699952 | J40: 1 | K40: 15000000 | M40: 0.02733343055
B41: ="Common Stock Warrants @ $"&D41 -> Common Stock Warrants @ $0.072 | C41: 741665 | D41: 0.072 | F41: 0.072 | J41: 1 | K41: 741665 | M41: 0.001351483251
B42: Total | C42: =C30+SUM(C33:C41) -> 548778536 | K42: =K30+SUM(K33:K41) -> 548778536 | M42: =M30+SUM(M33:M41) -> 1
B45: Change in control event
H46: Risk free rate (Years)
B47: Valuation date | D47: 2014-12-15 | H47: 1 | I47: 0.002
B48: Liquidation date | D48: =D47+365*D49 -> 2018-12-14 | H48: 2 | I48: 0.006
B49: No. of years to Liquidation | D49: 4 | H49: 3 | I49: 0.0103
B50: Volatility | D50: 0.4077132441 | H50: 4 | I50: 0.0131
B51: Dividend-yield | D51: 0 | H51: 5 | I51: 0.016
B52: Zero coupon yield Corresponding to the time period | D52: =VLOOKUP(D49,H47:I51,2,FALSE) -> 0.0131 | E52: Source : Bloomberg
B55: Event description | C55: Participating Class | D55: Participating shares | E55: Strike Point
A56: 1 | B56: Equity value is nil | C56: None | D56: 0 | E56: 1e-08
A57: 2 | B57: Liquidation preference of Series C,C-1, C-1* and C-2 | C57: Series C, C-1 & C-1* | D57: =C24+C25+C26+C27 -> 120046034 | E57: =G24+G25+G26+G27 -> 675982396.2
A58: =A57+1 -> 3 | B58: Liquidation preference of Series B | C58: Series B | D58: =C23 -> 54162965 | E58: =E57+G23 -> 685982396.1
A59: 4 | B59: Liquidation preference of Series A | C59: Series A | D59: =C22 -> 46320045 | E59: =E58+G22 -> 692930402.9
A60: 5 | B60: =B33&" exercised" -> Options @ $0.015 exercised | C60: Series A, Series B,C,C-1,C-1* & Common | D60: =+K30 -> 523492269 | E60: =E59+D60*F33 -> 700782786.9
A61: 6 | B61: =B34&" exercised" -> Options @ $0.03 exercised | C61: Series A, Series B,C,C-1,C-1*,Common and Options @ $0.015 | D61: =D60+K33 -> 523842269 | E61: =E60+D61*(F34-F33) -> 708640420.9
A62: 7 | B62: =B35&" exercised" -> Options @ $0.066 exercised | C62: Series A, Series B,C,C-1,C-1*, Common,Options @ $0.015,$0.03 | D62: =D61+K34 -> 525013144 | E62: =E61+D62*(F35-F34) -> 727540894.1
A63: 8 | B63: =B36&" and "&B41&" exercised" -> Options @ $0.072 and Common Stock Warrants @ $0.072 exercised | C63: Series A, Series B, C,C-1,C-1*, Common,Options @ $0.015,$0.03,$0.066 | D63: =D62+K35 -> 525560644 | E63: =E62+D63*(F36-F35) -> 730694258
A64: 9 | B64: =B37&" exercised" -> Options @ $0.094 exercised | C64: Series A, Series B, C,C-1,C-1*, Common,Options @ $0.015,$0.03,$0.066,$0.072, Common Warrants @ $0.072 | D64: =D63+K36+K41 -> 528883984 | E64: =E63+D64*(F37-F36) -> 742329705.6
A65: 11 | B65: =B38&" get exercised" -> Options @ $0.17 get exercised | C65: Series A,Series B, C,C-1,C-1*, Common,Options @ $0.015,$0.03,$0.066,$0.072,$0.094, Common Warrants @ $0.072 | D65: =D64+K37 -> 529196484 | E65: =E64+D65*(D38-D37) -> 782548638.4
A66: 12 | B66: =B39&" get exercised" -> Options @ $0.206 get exercised | C66: Series A,Series B, C,C-1,C-1*, Common,Options @ $0.015,$0.03,$0.066,$0.072,$0.094,$0.17, Common Warrants @ $0.072 | D66: =D65+K38 -> 533172171 | E66: =E65+D66*(F39-F38) -> 801742836.6
B67: =B40&" get exercised" -> Options @ $1.439 get exercised | C67: Series A,Series B, C,C-1,C-1*, Common,Options @ $0.015,$0.03,$0.066,$0.072,$0.094,$0.17,$0.206, Common Warrants @ $0.072 | D67: =D66+K39 -> 533778536 | E67: =E66+D67*(F40-F39) -> 1459731612
B68: Thereafter | C68: All classes | D68: =+D67+C40 -> 548778536
C70: 1 | D70: =C70+1 -> 2 | E70: 3 | F70: 4 | G70: 5 | H70: 6 | I70: 7 | J70: 8 | K70: 9 | L70: 10 | M70: 11 | N70: 12
B73: Value of the underlying Asset ($) | C73: =F13 -> 1699179887 | D73: =C73 -> 1699179887 | E73: 1699179887 | F73: 1699179887 | G73: 1699179887 | H73: 1699179887 | I73: 1699179887 | J73: 1699179887 | K73: 1699179887 | L73: 1699179887 | M73: 1699179887 | N73: 1699179887
B74: Strike Price ($) | C74: =TRANSPOSE(E56:E67) -> 1e-08 | D74: 675982396.2 | E74: 685982396.1 | F74: 692930402.9 | G74: 700782786.9 | H74: 708640420.9 | I74: 727540894.1 | J74: 730694258 | K74: 742329705.6 | L74: 782548638.4 | M74: 801742836.6 | N74: 1459731612
B75: S.D of the Underlying preferred share | C75: =D50 -> 0.4077132441 | D75: =C75 -> 0.4077132441 | E75: 0.4077132441 | F75: 0.4077132441 | G75: 0.4077132441 | H75: 0.4077132441 | I75: 0.4077132441 | J75: 0.4077132441 | K75: =J75 -> 0.4077132441 | L75: =K75 -> 0.4077132441 | M75: 0.4077132441 | N75: 0.4077132441
B76: Dividend yield | C76: =D51 -> 0 | D76: 0 | E76: 0 | F76: 0 | G76: 0 | H76: 0 | I76: 0 | J76: 0 | K76: =J76 -> 0 | L76: 0 | M76: 0 | N76: 0
B77: Time of Expiration (years) | C77: =D49 -> 4 | D77: 4 | E77: 4 | F77: 4 | G77: 4 | H77: 4 | I77: 4 | J77: 4 | K77: =J77 -> 4 | L77: 4 | M77: 4 | N77: 4
B78: Riskless Rate corresponding to option life time | C78: =D52 -> 0.0131 | D78: 0.0131 | E78: 0.0131 | F78: 0.0131 | G78: 0.0131 | H78: 0.0131 | I78: 0.0131 | J78: 0.0131 | K78: =J78 -> 0.0131 | L78: 0.0131 | M78: 0.0131 | N78: 0.0131
B82: Stock Price | C82: =C73 -> 1699179887 | D82: 1699179887 | E82: 1699179887 | F82: 1699179887 | G82: 1699179887 | H82: 1699179887 | I82: 1699179887 | J82: 1699179887 | K82: 1699179887 | L82: 1699179887 | M82: 1699179887 | N82: 1699179887
B83: Strike Price | C83: 1e-08 | D83: 675982396.2 | E83: 685982396.1 | F83: 692930402.9 | G83: 700782786.9 | H83: 708640420.9 | I83: 727540894.1 | J83: 730694258 | K83: 742329705.6 | L83: 782548638.4 | M83: 801742836.6 | N83: 1459731612
B84: Expiration (in years) | C84: =C77 -> 4 | D84: 4 | E84: 4 | F84: 4 | G84: 4 | H84: 4 | I84: 4 | J84: 4 | K84: 4 | L84: 4 | M84: 4 | N84: 4
B85: T.Bond rate | C85: 0.0131 | D85: 0.0131 | E85: 0.0131 | F85: 0.0131 | G85: 0.0131 | H85: 0.0131 | I85: 0.0131 | J85: 0.0131 | K85: 0.0131 | L85: 0.0131 | M85: 0.0131 | N85: 0.0131
B86: Variance | C86: =C75^2 -> 0.1662300894 | D86: 0.1662300894 | E86: 0.1662300894 | F86: 0.1662300894 | G86: 0.1662300894 | H86: 0.1662300894 | I86: 0.1662300894 | J86: 0.1662300894 | K86: 0.1662300894 | L86: 0.1662300894 | M86: 0.1662300894 | N86: 0.1662300894
B87: Annualized dividend yield | C87: =C76 -> 0 | D87: 0 | E87: 0 | F87: 0 | G87: 0 | H87: 0 | I87: 0 | J87: 0 | K87: 0 | L87: 0 | M87: 0 | N87: 0
B90: d1 = | C90: =(LN(C82/C83)+(C85-C87+(C86/2))*C84)/(((C86)^(0.5))*(C84^0.5)) -> 49.12638117 | D90: 1.602344488 | E90: 1.584335592 | F90: 1.571976906 | G90: 1.558157865 | H90: 1.544483724 | I90: 1.512203714 | J90: 1.50689985 | K90: 1.487525484 | L90: 1.422819974 | M90: 1.393103224 | N90: =(LN(N82/N83)+(N85-N87+(N86/2))*N84)/(((N86)^(0.5))*(N84^0.5)) -> 0.6582485491
B91: N(d1) = | C91: =NORMSDIST(C90) -> 1 | D91: 0.9454602735 | E91: 0.9434413147 | F91: 0.9420220464 | G91: 0.9404020848 | H91: 0.9387644044 | I91: 0.9347589768 | J91: 0.934081835 | K91: 0.9315619612 | L91: 0.9226058253 | M91: 0.9182057108 | N91: 0.7448107835
B93: d2 = | C93: =C90-((C86^0.5)*(C84^(0.5))) -> 48.31095468 | D93: 0.7869179997 | E93: 0.7689091033 | F93: 0.7565504176 | G93: 0.7427313769 | H93: 0.7290572357 | I93: 0.6967772258 | J93: 0.6914733618 | K93: 0.6720989959 | L93: 0.6073934862 | M93: 0.5776767356 | N93: -0.1571779391
B94: N(d2) = | C94: =NORMSDIST(C93) -> 1 | D94: 0.784335065 | E94: 0.7790263635 | F94: 0.775340372 | G94: 0.7711778354 | H94: 0.767016674 | I94: 0.7570288896 | J94: 0.7553659423 | K94: 0.7492396621 | L94: 0.7282050949 | M94: 0.7182588056 | N94: 0.4375523071
C96: =(EXP((0-C87)*C84))*C82*C91-C83*(EXP((0-C85)*C84))*C94 -> 1699179887 | D96: 1103377344 | E96: 1095959594 | F96: 1090835388 | G96: 1085073439 | H96: 1079338672 | I96: 1065671394 | J96: 1063408562 | K96: 1055102064 | L96: 1026908950 | M96: 1013735873 | N96: 659465163.5
C97: =C96-D96 -> 595802543.5 | D97: 7417750.063 | E97: 5124206.074 | F97: 5761948.406 | G97: 5734767.498 | H97: 13667278.1 | I97: 2262831.384 | J97: 8306498.328 | K97: 28193113.75 | L97: 13173077.59 | M97: 354270709.3 | N97: =N96 -> 659465163.5 | O97: =SUM(C97:N97)-F13 -> 0
B102: Participation in Incremental Value after Each Event
B103: Participation =1, No participation = 0 | C103: =TRANSPOSE(B22:B29) -> Series A | D103: Series B | E103: Series C | F103: Series C-1 | G103: Series C-1* | H103: Series C-2 | I103: Common shares - Class A | J103: Common shares - Class B | K103: =TRANSPOSE(B33:B41) -> Options @ $0.015 | L103: Options @ $0.03 | M103: Options @ $0.066 | N103: Options @ $0.072 | O103: Options @ $0.094 | P103: Options @ $0.17 | Q103: Options @ $0.206 | R103: Options @ $1.439 | S103: Common Stock Warrants @ $0.072 | T103: Total
B104: Common Stock Equivalents | C104: =TRANSPOSE(K22:K29) -> 46320045 | D104: 54162965 | E104: 58896105 | F104: 21841668 | G104: 6500032 | H104: 32808229 | I104: 52305170 | J104: 250658055 | K104: =TRANSPOSE(K33:K41) -> 350000 | L104: 1170875 | M104: 547500 | N104: 2581675 | O104: 312500 | P104: 3975687 | Q104: 606365 | R104: 15000000 | S104: 741665 | T104: =SUM(C104:S104) -> 548778536 | U104: =T104-K42 -> 0
B105: LP | C105: =TRANSPOSE(G22:G27) -> 6948006.75 | D105: 9999999.902 | E105: 33217403.22 | F105: 65525004 | G105: 19500096 | H105: 557739893
A107: 1 | B107: =B57 -> Liquidation preference of Series C,C-1, C-1* and C-2 | C107: 0 | D107: 0 | E107: 1 | F107: 1 | G107: 1 | H107: 1 | I107: 0 | J107: 0 | K107: 0 | L107: 0 | M107: 0 | N107: 0 | O107: 0 | P107: 0 | Q107: 0 | R107: 0 | S107: 0 | T107: =SUM(C107:S107) -> 4
A108: 2 | B108: =B58 -> Liquidation preference of Series B | C108: 0 | D108: 1 | E108: 0 | F108: 0 | G108: 0 | H108: 0 | I108: 0 | J108: 0 | K108: 0 | L108: 0 | M108: 0 | N108: 0 | O108: 0 | P108: 0 | Q108: 0 | R108: 0 | S108: 0 | T108: =SUM(C108:S108) -> 1
A109: 3 | B109: Liquidation preference of Series A | C109: 1 | D109: 0 | E109: 0 | F109: 0 | G109: 0 | H109: 0 | I109: 0 | J109: 0 | K109: 0 | L109: 0 | M109: 0 | N109: 0 | O109: 0 | P109: 0 | Q109: 0 | R109: 0 | S109: 0 | T109: 1
A110: 4 | B110: Options @ $0.015 exercised | C110: 1 | D110: 1 | E110: 1 | F110: 1 | G110: 1 | H110: 1 | I110: 1 | J110: 1 | K110: 0 | L110: 0 | M110: 0 | N110: 0 | O110: 0 | P110: 0 | Q110: 0 | R110: 0 | S110: 0 | T110: 8
A111: 5 | B111: Options @ $0.03 exercised | C111: 1 | D111: 1 | E111: 1 | F111: 1 | G111: 1 | H111: 1 | I111: 1 | J111: 1 | K111: 1 | L111: 0 | M111: 0 | N111: 0 | O111: 0 | P111: 0 | Q111: 0 | R111: 0 | S111: 0 | T111: 9
A112: 6 | B112: Options @ $0.066 exercised | C112: 1 | D112: 1 | E112: 1 | F112: 1 | G112: 1 | H112: 1 | I112: 1 | J112: 1 | K112: 1 | L112: 1 | M112: 0 | N112: 0 | O112: 0 | P112: 0 | Q112: 0 | R112: 0 | S112: 0 | T112: 10
A113: 7 | B113: Options @ $0.072 and Common Stock Warrants @ $0.072 exercised | C113: 1 | D113: 1 | E113: 1 | F113: 1 | G113: 1 | H113: 1 | I113: 1 | J113: 1 | K113: 1 | L113: 1 | M113: 1 | N113: 0 | O113: 0 | P113: 0 | Q113: 0 | R113: 0 | S113: 0 | T113: 11
A114: 8 | B114: Options @ $0.094 exercised | C114: 1 | D114: 1 | E114: 1 | F114: 1 | G114: 1 | H114: 1 | I114: 1 | J114: 1 | K114: 1 | L114: 1 | M114: 1 | N114: 1 | O114: 0 | P114: 0 | Q114: 0 | R114: 0 | S114: 1 | T114: 13
A115: 9 | B115: Options @ $0.17 get exercised | C115: 1 | D115: 1 | E115: 1 | F115: 1 | G115: 1 | H115: 1 | I115: 1 | J115: 1 | K115: 1 | L115: 1 | M115: 1 | N115: 1 | O115: 1 | P115: 0 | Q115: 0 | R115: 0 | S115: 1 | T115: 14
A116: 10 | B116: Options @ $0.206 get exercised | C116: 1 | D116: 1 | E116: 1 | F116: 1 | G116: 1 | H116: 1 | I116: 1 | J116: 1 | K116: 1 | L116: 1 | M116: 1 | N116: 1 | O116: 1 | P116: 1 | Q116: 0 | R116: 0 | S116: 1 | T116: 15
A117: 11 | B117: Options @ $1.439 get exercised | C117: 1 | D117: 1 | E117: 1 | F117: 1 | G117: 1 | H117: 1 | I117: 1 | J117: 1 | K117: 1 | L117: 1 | M117: 1 | N117: 1 | O117: 1 | P117: 1 | Q117: 1 | R117: 0 | S117: 1 | T117: 16
A118: 12 | B118: Thereafter | C118: 1 | D118: 1 | E118: 1 | F118: 1 | G118: 1 | H118: 1 | I118: 1 | J118: 1 | K118: 1 | L118: 1 | M118: 1 | N118: 1 | O118: 1 | P118: 1 | Q118: 1 | R118: 1 | S118: 1 | T118: 17
B120: LP in $ / Number of Shares | T120: Total
B122: =B107 -> Liquidation preference of Series C,C-1, C-1* and C-2 | C122: =C$105*C107 -> 0 | D122: =D$105*D107 -> 0 | E122: 33217403.22 | F122: 65525004 | G122: 19500096 | H122: 557739893 | I122: 0 | J122: 0 | K122: 0 | L122: 0 | M122: 0 | N122: 0 | O122: 0 | P122: 0 | Q122: 0 | R122: 0 | S122: 0 | T122: =SUM(C122:S122) -> 675982396.2 | U122: =T122-E57 -> 0
B123: Liquidation preference of Series B | C123: =C$105*C108 -> 0 | D123: 9999999.902 | E123: 0 | F123: 0 | G123: 0 | H123: 0 | I123: 0 | J123: 0 | K123: 0 | L123: 0 | M123: 0 | N123: 0 | O123: 0 | P123: 0 | Q123: 0 | R123: 0 | S123: 0 | T123: =SUM(C123:S123) -> 9999999.902 | U123: =E58-SUM($T$122:T123) -> 0
B124: Liquidation preference of Series A | C124: 6948006.75 | D124: 0 | E124: 0 | F124: 0 | G124: 0 | H124: 0 | I124: 0 | J124: 0 | K124: 0 | L124: 0 | M124: 0 | N124: 0 | O124: 0 | P124: 0 | Q124: 0 | R124: 0 | S124: 0 | T124: 6948006.75 | U124: =E59-SUM($T$122:T124) -> 0
B125: Options @ $0.015 exercised | C125: =C110*C$104 -> 46320045 | D125: =D110*D$104 -> 54162965 | E125: 58896105 | F125: 21841668 | G125: 6500032 | H125: 32808229 | I125: 52305170 | J125: 250658055 | K125: 0 | L125: 0 | M125: 0 | N125: 0 | O125: 0 | P125: 0 | Q125: 0 | R125: 0 | S125: 0 | T125: 523492269 | U125: =D60-T125 -> 0
B126: Options @ $0.03 exercised | C126: =C111*C$104 -> 46320045 | D126: 54162965 | E126: 58896105 | F126: 21841668 | G126: 6500032 | H126: 32808229 | I126: 52305170 | J126: 250658055 | K126: 350000 | L126: 0 | M126: 0 | N126: 0 | O126: 0 | P126: 0 | Q126: 0 | R126: 0 | S126: 0 | T126: 523842269 | U126: =D61-T126 -> 0
B127: Options @ $0.066 exercised | C127: 46320045 | D127: 54162965 | E127: 58896105 | F127: 21841668 | G127: 6500032 | H127: 32808229 | I127: 52305170 | J127: 250658055 | K127: 350000 | L127: 1170875 | M127: 0 | N127: 0 | O127: 0 | P127: 0 | Q127: 0 | R127: 0 | S127: 0 | T127: 525013144 | U127: 0
B128: Options @ $0.072 and Common Stock Warrants @ $0.072 exercised | C128: 46320045 | D128: 54162965 | E128: 58896105 | F128: 21841668 | G128: 6500032 | H128: 32808229 | I128: 52305170 | J128: 250658055 | K128: 350000 | L128: 1170875 | M128: 547500 | N128: 0 | O128: 0 | P128: 0 | Q128: 0 | R128: 0 | S128: 0 | T128: 525560644 | U128: 0
B129: Options @ $0.094 exercised | C129: 46320045 | D129: 54162965 | E129: 58896105 | F129: 21841668 | G129: 6500032 | H129: 32808229 | I129: 52305170 | J129: 250658055 | K129: 350000 | L129: 1170875 | M129: 547500 | N129: 2581675 | O129: 0 | P129: 0 | Q129: 0 | R129: 0 | S129: 741665 | T129: 528883984 | U129: 0
B130: =B115 -> Options @ $0.17 get exercised | C130: 46320045 | D130: 54162965 | E130: 58896105 | F130: 21841668 | G130: 6500032 | H130: 32808229 | I130: 52305170 | J130: 250658055 | K130: 350000 | L130: 1170875 | M130: 547500 | N130: 2581675 | O130: 312500 | P130: 0 | Q130: 0 | R130: 0 | S130: 741665 | T130: 529196484 | U130: 0
B131: =B116 -> Options @ $0.206 get exercised | C131: 46320045 | D131: 54162965 | E131: 58896105 | F131: 21841668 | G131: 6500032 | H131: 32808229 | I131: 52305170 | J131: 250658055 | K131: 350000 | L131: 1170875 | M131: 547500 | N131: 2581675 | O131: 312500 | P131: 3975687 | Q131: 0 | R131: 0 | S131: 741665 | T131: 533172171 | U131: 0
B132: =B117 -> Options @ $1.439 get exercised | C132: 46320045 | D132: 54162965 | E132: 58896105 | F132: 21841668 | G132: 6500032 | H132: 32808229 | I132: 52305170 | J132: 250658055 | K132: 350000 | L132: 1170875 | M132: 547500 | N132: 2581675 | O132: 312500 | P132: 3975687 | Q132: 606365 | R132: 0 | S132: 741665 | T132: 533778536 | U132: 0
B133: =B118 -> Thereafter | C133: 46320045 | D133: 54162965 | E133: 58896105 | F133: 21841668 | G133: 6500032 | H133: 32808229 | I133: 52305170 | J133: 250658055 | K133: 350000 | L133: 1170875 | M133: 547500 | N133: 2581675 | O133: 312500 | P133: 3975687 | Q133: 606365 | R133: 15000000 | S133: 741665 | T133: 548778536 | U133: 0
B134: % of Ownership in Incremental Value after Each Event | T134: Total
B136: =B122 -> Liquidation preference of Series C,C-1, C-1* and C-2 | C136: =C122/$T122 -> 0 | D136: =D122/$T122 -> 0 | E136: 0.04913945009 | F136: 0.09693300353 | G136: 0.02884704707 | H136: 0.8250804993 | I136: 0 | J136: 0 | K136: 0 | L136: 0 | M136: 0 | N136: 0 | O136: 0 | P136: 0 | Q136: 0 | R136: 0 | S136: 0 | T136: =SUM(C136:S136) -> 1
B137: Liquidation preference of Series B | C137: =C123/$T123 -> 0 | D137: 1 | E137: 0 | F137: 0 | G137: 0 | H137: 0 | I137: 0 | J137: 0 | K137: 0 | L137: 0 | M137: 0 | N137: 0 | O137: 0 | P137: 0 | Q137: 0 | R137: 0 | S137: 0 | T137: =SUM(C137:S137) -> 1
B138: Liquidation preference of Series A | C138: 1 | D138: 0 | E138: 0 | F138: 0 | G138: 0 | H138: 0 | I138: 0 | J138: 0 | K138: 0 | L138: 0 | M138: 0 | N138: 0 | O138: 0 | P138: 0 | Q138: 0 | R138: 0 | S138: 0 | T138: 1
B139: Options @ $0.015 exercised | C139: 0.08848276802 | D139: 0.1034646894 | E139: 0.11250616 | F139: 0.04172300012 | G139: 0.01241667238 | H139: 0.06267185008 | I139: 0.0999158404 | J139: 0.4788190196 | K139: 0 | L139: 0 | M139: 0 | N139: 0 | O139: 0 | P139: 0 | Q139: 0 | R139: 0 | S139: 0 | T139: 1
B140: Options @ $0.03 exercised | C140: 0.08842364914 | D140: 0.1033955605 | E140: 0.1124309902 | F140: 0.04169512331 | G140: 0.01240837631 | H140: 0.06262997651 | I140: 0.09984908263 | J140: 0.4784991014 | K140: 0.0006681400504 | L140: 0 | M140: 0 | N140: 0 | O140: 0 | P140: 0 | Q140: 0 | R140: 0 | S140: 0 | T140: 1
B141: Options @ $0.066 exercised | C141: 0.08822644829 | D141: 0.1031649695 | E141: 0.1121802486 | F141: 0.04160213558 | G141: 0.01238070337 | H141: 0.06249030024 | I141: 0.09962640097 | J141: 0.4774319612 | K141: 0.0006666499763 | L141: 0.00223018226 | M141: 0 | N141: 0 | O141: 0 | P141: 0 | Q141: 0 | R141: 0 | S141: 0 | T141: 1
B142: Options @ $0.072 and Common Stock Warrants @ $0.072 exercised | C142: 0.08813453886 | D142: 0.103057498 | E142: 0.1120633854 | F142: 0.04155879678 | G142: 0.01236780584 | H142: 0.06242520131 | I142: 0.0995226157 | J142: 0.476934599 | K142: 0.0006659554972 | L142: 0.002227858979 | M142: 0.001041744671 | N142: 0 | O142: 0 | P142: 0 | Q142: 0 | R142: 0 | S142: 0 | T142: 1
B143: Options @ $0.094 exercised | C143: 0.08758072924 | D143: 0.1024099172 | E143: 0.1113592145 | F143: 0.04129765442 | G143: 0.01229009045 | H143: 0.06203294105 | I143: 0.098897247 | J143: 0.4739376925 | K143: 0.0006617708431 | L143: 0.002213859817 | M143: 0.001035198676 | N143: 0.004881363547 | O143: 0 | P143: 0 | Q143: 0 | R143: 0 | S143: 0.001402320778 | T143: 1
B144: =B130 -> Options @ $0.17 get exercised | C144: 0.08752901125 | D144: 0.1023494423 | E144: 0.1112934549 | F144: 0.04127326742 | G144: 0.01228283293 | H144: 0.06199630948 | I144: 0.0988388464 | J144: 0.4736578238 | K144: 0.0006613800556 | L144: 0.002212552493 | M144: 0.001034587373 | N144: 0.004878481014 | O144: 0.0005905179068 | P144: 0 | Q144: 0 | R144: 0 | S144: 0.001401492683 | T144: 1
B145: =B131 -> Options @ $0.206 get exercised | C145: 0.08687633661 | D145: 0.1015862566 | E145: 0.1104635767 | F145: 0.04096550643 | G145: 0.01219124394 | H145: 0.06153402369 | I145: 0.0981018381 | J145: 0.4701259155 | K145: 0.0006564483652 | L145: 0.002196054227 | M145: 0.0010268728 | N145: 0.004842103809 | O145: 0.0005861146117 | P145: 0.007456666376 | Q145: 0 | R145: 0 | S145: 0.001391042219 | T145: 1
B146: =B132 -> Options @ $1.439 get exercised | C146: 0.0867776463 | D146: 0.1014708561 | E146: 0.1103380916 | F146: 0.04091897019 | G146: 0.01217739486 | H146: 0.06146412189 | I146: 0.09799039578 | J146: 0.469591859 | K146: 0.0006557026489 | L146: 0.00219355954 | M146: 0.001025706287 | N146: 0.004836603246 | O146: 0.0005854487937 | P146: 0.007448195706 | Q146: 0.001135986105 | R146: 0 | S146: 0.001389462015 | T146: 1
B147: =B133 -> Thereafter | C147: 0.08440571553 | D147: 0.09869730947 | E147: 0.107322173 | F147: 0.03980051436 | G147: 0.01184454488 | H147: 0.05978409659 | I147: 0.0953119821 | J147: 0.4567563025 | K147: 0.0006377800461 | L147: 0.002133602033 | M147: 0.000997670215 | N147: 0.004704402287 | O147: 0.0005694464698 | P147: 0.007244610966 | Q147: 0.001104935708 | R147: 0.02733343055 | S147: 0.001351483251 | T147: 1
B149: Value Allocated | C149: Option 1 | D149: Option 2 | E149: Option 3 | F149: Option 4 | G149: Option 5 | H149: Option 6 | I149: Option 7 | J149: Option 8 | K149: Option 9 | L149: Option 10 | M149: Option 11 | N149: Option 12
B150: =TRANSPOSE(C103:S103) -> Series A | C150: =TRANSPOSE(C136:S147) -> 0 | D150: 0 | E150: 1 | F150: 0.08848276802 | G150: 0.08842364914 | H150: 0.08822644829 | I150: 0.08813453886 | J150: 0.08758072924 | K150: 0.08752901125 | L150: 0.08687633661 | M150: 0.0867776463 | N150: 0.08440571553
B151: Series B | C151: 0 | D151: 1 | E151: 0 | F151: 0.1034646894 | G151: 0.1033955605 | H151: 0.1031649695 | I151: 0.103057498 | J151: 0.1024099172 | K151: 0.1023494423 | L151: 0.1015862566 | M151: 0.1014708561 | N151: 0.09869730947
B152: Series C | C152: 0.04913945009 | D152: 0 | E152: 0 | F152: 0.11250616 | G152: 0.1124309902 | H152: 0.1121802486 | I152: 0.1120633854 | J152: 0.1113592145 | K152: 0.1112934549 | L152: 0.1104635767 | M152: 0.1103380916 | N152: 0.107322173
B153: Series C-1 | C153: 0.09693300353 | D153: 0 | E153: 0 | F153: 0.04172300012 | G153: 0.04169512331 | H153: 0.04160213558 | I153: 0.04155879678 | J153: 0.04129765442 | K153: 0.04127326742 | L153: 0.04096550643 | M153: 0.04091897019 | N153: 0.03980051436
B154: Series C-1* | C154: 0.02884704707 | D154: 0 | E154: 0 | F154: 0.01241667238 | G154: 0.01240837631 | H154: 0.01238070337 | I154: 0.01236780584 | J154: 0.01229009045 | K154: 0.01228283293 | L154: 0.01219124394 | M154: 0.01217739486 | N154: 0.01184454488
B155: Series C-2 | C155: 0.8250804993 | D155: 0 | E155: 0 | F155: 0.06267185008 | G155: 0.06262997651 | H155: 0.06249030024 | I155: 0.06242520131 | J155: 0.06203294105 | K155: 0.06199630948 | L155: 0.06153402369 | M155: 0.06146412189 | N155: 0.05978409659
B156: Common shares - Class A | C156: 0 | D156: 0 | E156: 0 | F156: 0.0999158404 | G156: 0.09984908263 | H156: 0.09962640097 | I156: 0.0995226157 | J156: 0.098897247 | K156: 0.0988388464 | L156: 0.0981018381 | M156: 0.09799039578 | N156: 0.0953119821
B157: Common shares - Class B | C157: 0 | D157: 0 | E157: 0 | F157: 0.4788190196 | G157: 0.4784991014 | H157: 0.4774319612 | I157: 0.476934599 | J157: 0.4739376925 | K157: 0.4736578238 | L157: 0.4701259155 | M157: 0.469591859 | N157: 0.4567563025
B158: Options @ $0.015 | C158: 0 | D158: 0 | E158: 0 | F158: 0 | G158: 0.0006681400504 | H158: 0.0006666499763 | I158: 0.0006659554972 | J158: 0.0006617708431 | K158: 0.0006613800556 | L158: 0.0006564483652 | M158: 0.0006557026489 | N158: 0.0006377800461
B159: Options @ $0.03 | C159: 0 | D159: 0 | E159: 0 | F159: 0 | G159: 0 | H159: 0.00223018226 | I159: 0.002227858979 | J159: 0.002213859817 | K159: 0.002212552493 | L159: 0.002196054227 | M159: 0.00219355954 | N159: 0.002133602033
B160: Options @ $0.066 | C160: 0 | D160: 0 | E160: 0 | F160: 0 | G160: 0 | H160: 0 | I160: 0.001041744671 | J160: 0.001035198676 | K160: 0.001034587373 | L160: 0.0010268728 | M160: 0.001025706287 | N160: 0.000997670215
B161: Options @ $0.072 | C161: 0 | D161: 0 | E161: 0 | F161: 0 | G161: 0 | H161: 0 | I161: 0 | J161: 0.004881363547 | K161: 0.004878481014 | L161: 0.004842103809 | M161: 0.004836603246 | N161: 0.004704402287
B162: Options @ $0.094 | C162: 0 | D162: 0 | E162: 0 | F162: 0 | G162: 0 | H162: 0 | I162: 0 | J162: 0 | K162: 0.0005905179068 | L162: 0.0005861146117 | M162: 0.0005854487937 | N162: 0.0005694464698
B163: Options @ $0.17 | C163: 0 | D163: 0 | E163: 0 | F163: 0 | G163: 0 | H163: 0 | I163: 0 | J163: 0 | K163: 0 | L163: 0.007456666376 | M163: 0.007448195706 | N163: 0.007244610966
B164: Options @ $0.206 | C164: 0 | D164: 0 | E164: 0 | F164: 0 | G164: 0 | H164: 0 | I164: 0 | J164: 0 | K164: 0 | L164: 0 | M164: 0.001135986105 | N164: 0.001104935708
B165: Options @ $1.439 | C165: 0 | D165: 0 | E165: 0 | F165: 0 | G165: 0 | H165: 0 | I165: 0 | J165: 0 | K165: 0 | L165: 0 | M165: 0 | N165: 0.02733343055
B166: Common Stock Warrants @ $0.072 | C166: 0 | D166: 0 | E166: 0 | F166: 0 | G166: 0 | H166: 0 | I166: 0 | J166: 0.001402320778 | K166: 0.001401492683 | L166: 0.001391042219 | M166: 0.001389462015 | N166: 0.001351483251
B167: Total | C167: =SUM(C150:C166) -> 1 | D167: =SUM(D150:D166) -> 1 | E167: 1 | F167: 1 | G167: 1 | H167: 1 | I167: 1 | J167: 1 | K167: 1 | L167: 1 | M167: 1 | N167: 1
B169: Allocation percentages | C169: =C149 -> Option 1 | D169: Option 2 | E169: Option 3 | F169: Option 4 | G169: Option 5 | H169: Option 6 | I169: Option 7 | J169: Option 8 | K169: Option 9 | L169: Option 10 | M169: Option 11 | N169: Option 12 | O169: Total
B170: =B150 -> Series A | C170: =C150*C$97 -> 0 | D170: =D150*D$97 -> 0 | E170: 5124206.074 | F170: 509833.1441 | G170: 507089.0692 | H170: 1205815.405 | I170: 199433.6005 | J170: 727489.1809 | K170: 2467715.371 | L170: 1144428.723 | M170: 30742778.3 | N170: 55662628.99 | O170: =SUM(C170:N170) -> 98291417.86
B171: =B151 -> Series B | C171: =C151*C$97 -> 0 | D171: 7417750.063 | E171: 0 | F171: 596158.2019 | G171: 592949.4996 | H171: 1409984.329 | I171: 233201.7407 | J171: 850667.8058 | K171: 2885549.469 | L171: 1338203.641 | M171: 35948152.15 | N171: 65087437.33 | O171: =SUM(C171:N171) -> 116360054.2
B172: Series C | C172: 29277409.35 | D172: 0 | E172: 0 | F172: 648254.6895 | G172: 644765.5883 | H172: 1533198.655 | I172: 253580.5455 | J172: 925005.1287 | K172: 3137709.032 | L172: 1455145.266 | M172: 39089553.97 | N172: 70775234.39 | O172: 147739856.6
B173: Series C-1 | C173: 57752930.05 | D173: 0 | E173: 0 | F173: 240405.774 | G173: 239111.838 | H173: 568587.9566 | I173: 94040.54963 | J173: 343038.8974 | K173: 1163621.923 | L173: 539641.7947 | M173: 14496392.59 | N173: 26247052.71 | O173: 101684824.1
B174: Series C-1* | C174: 17187144.01 | D174: 0 | E174: 0 | F174: 71544.22565 | G174: 71159.15316 | H174: 169210.516 | I174: 27986.25919 | J174: 102087.6158 | K174: 346291.306 | L174: 160596.2024 | M174: 4314094.314 | N174: 7811064.727 | O174: 30261178.33
B175: Series C-2 | C175: 491585060.1 | D175: 0 | E175: 0 | F175: 361111.9666 | G175: 359168.3537 | H175: 854072.3119 | I175: 141257.7047 | J175: 515276.5211 | K175: 1747869.005 | L175: 810592.4684 | M175: 21774938.06 | N175: 39425529.03 | O175: 557574875.5
B176: Common shares - Class A | C176: 0 | D176: 0 | E176: 0 | F176: 575709.9173 | G176: 572611.2738 | H176: 1361621.728 | I176: 225202.8982 | J176: 821489.8168 | K176: 2786574.84 | L176: 1292303.125 | M176: 34715127.01 | N176: 62854931.86 | O176: 105205572.5
B177: Common shares - Class B | C177: 0 | D177: 0 | E177: 0 | F177: 2758930.486 | G177: 2744081.095 | H177: 6525195.387 | I177: 1079222.579 | J177: 3936762.65 | K177: 13353888.91 | L177: 6193005.161 | M177: 166362640.9 | N177: 301214869.7 | O177: 504168596.9
B178: Options @ $0.015 | C178: 0 | D178: 0 | E178: 0 | F178: 0 | G178: 3831.627845 | H178: 9111.290621 | I178: 1506.944999 | J178: 5496.998402 | K178: 18646.36314 | L178: 8647.445247 | M178: 232296.2425 | N178: 420593.7224 | O178: 700130.6352
B179: Options @ $0.03 | C179: 0 | D179: 0 | E179: 0 | F179: 0 | G179: 0 | H179: 30480.52116 | I179: 5041.269217 | J179: 18389.42287 | K179: 62378.74412 | L179: 28928.79273 | M179: 777113.8941 | N179: 1407036.213 | O179: 2329368.858
B180: Options @ $0.066 | C180: 0 | D180: 0 | E180: 0 | F180: 0 | G180: 0 | H180: 0 | I180: 2357.292535 | J180: 8598.876071 | K180: 29168.23948 | L180: 13527.07507 | M180: 363377.6936 | N180: 657928.7514 | O180: 1074957.928
B181: Options @ $0.072 | C181: 0 | D181: 0 | E181: 0 | F181: 0 | G181: 0 | H181: 0 | I181: 0 | J181: 40547.03814 | K181: 137539.5702 | L181: 63785.40917 | M181: 1713466.863 | N181: 3102389.424 | O181: 5057728.304
B182: Options @ $0.094 | C182: 0 | D182: 0 | E182: 0 | F182: 0 | G182: 0 | H182: 0 | I182: 0 | J182: 0 | K182: 16648.53852 | L182: 7720.933256 | M182: 207407.3594 | N182: 375530.1093 | O182: 607306.9404
B183: Options @ $0.17 | C183: 0 | D183: 0 | E183: 0 | F183: 0 | G183: 0 | H183: 0 | I183: 0 | J183: 0 | K183: 0 | L183: 98227.24472 | M183: 2638677.576 | N183: 4777568.555 | O183: 7514473.376
B184: Options @ $0.206 | C184: 0 | D184: 0 | E184: 0 | F184: 0 | G184: 0 | H184: 0 | I184: 0 | J184: 0 | K184: 0 | L184: 0 | M184: 402446.6031 | N184: 728666.6071 | O184: 1131113.21
B185: Options @ $1.439 | C185: 0 | D185: 0 | E185: 0 | F185: 0 | G185: 0 | H185: 0 | I185: 0 | J185: 0 | K185: 0 | L185: 0 | M185: 0 | N185: 18025445.25 | O185: 18025445.25
B186: Common Stock Warrants @ $0.072 | C186: 0 | D186: 0 | E186: 0 | F186: 0 | G186: 0 | H186: 0 | I186: 0 | J186: 11648.3752 | K186: 39512.44262 | L186: 18324.30708 | M186: 492245.6934 | N186: 891256.1232 | O186: 1452986.942
B187: Total | C187: =SUM(C170:C186) -> 595802543.5 | D187: =SUM(D170:D186) -> 7417750.063 | E187: 5124206.074 | F187: 5761948.406 | G187: 5734767.498 | H187: 13667278.1 | I187: 2262831.384 | J187: 8306498.328 | K187: 28193113.75 | L187: =SUM(L170:L186) -> 13173077.59 | M187: 354270709.3 | N187: 659465163.5 | O187: 1699179887 | P187: =IF(OR(ROUND(F13-O187,0)>1,ROUND(F13-O187,0)<=-1),"Error","OK") -> OK
C188: =C187-C97 -> 0 | D188: 0 | E188: 0 | F188: 0 | G188: 0 | H188: 0 | I188: 0 | J188: 0 | K188: 0 | L188: 0 | M188: 0 | N188: 0 | O188: =O187-SUM(C97:N97) -> 0
B190: Classes | C190: # of shares | D190: Value | E190: Per Share | F190: % of EV
B192: =B170 -> Series A | C192: =TRANSPOSE(C104:S104) -> 46320045 | D192: =O170 -> 98291417.86 | E192: =D192/C192 -> 2.122006096 | F192: =D192/$D$209 -> 0.0578463873
B193: =B171 -> Series B | C193: 54162965 | D193: =O171 -> 116360054.2 | E193: 2.14833243 | F193: =D193/$D$209 -> 0.06848012685
B194: Series C | C194: 58896105 | D194: 147739856.6 | E194: 2.508482634 | F194: 0.08694774326
B195: Series C-1 | C195: 21841668 | D195: 101684824.1 | E195: 4.655542978 | F195: 0.05984347204
B196: Series C-1* | C196: 6500032 | D196: 30261178.33 | E196: 4.655542978 | F196: 0.01780928468
B197: Series C-2 | C197: 32808229 | D197: 557574875.5 | E197: 16.99497024 | F197: 0.3281435236
B198: Common shares - Class A | C198: 52305170 | D198: 105205572.5 | E198: 2.011379993 | F198: 0.06191550009
B199: Common shares - Class B | C199: 250658055 | D199: 504168596.9 | E199: 2.011379993 | F199: 0.2967129029
B200: Options @ $0.015 | C200: 350000 | D200: 700130.6352 | E200: 2.000373243 | F200: 0.0004120403262
B201: Options @ $0.03 | C201: 1170875 | D201: 2329368.858 | E201: 1.989425735 | F201: 0.001370878313
B202: Options @ $0.066 | C202: 547500 | D202: 1074957.928 | E202: 1.963393476 | F202: 0.0006326333875
B203: Options @ $0.072 | C203: 2581675 | D203: 5057728.304 | E203: 1.959087919 | F203: 0.002976570251
B204: Options @ $0.094 | C204: 312500 | D204: 607306.9404 | E204: 1.943382209 | F204: 0.000357411799
B205: Options @ $0.17 | C205: 3975687 | D205: 7514473.376 | E205: 1.890106886 | F205: 0.004422411913
B206: Options @ $0.206 | C206: 606365 | D206: 1131113.21 | E206: 1.8653999 | F206: 0.0006656818495
B207: Options @ $1.439 | C207: 15000000 | D207: 18025445.25 | E207: 1.20169635 | F207: 0.01060832074
B208: Common Stock Warrants @ $0.072 | C208: 741665 | D208: 1452986.942 | E208: 1.959087919 | F208: 0.0008551107227
B209: Total | C209: =SUM(C192:C208) -> 548778536 | D209: =SUM(D192:D208) -> 1699179887 | F209: =SUM(F192:F208) -> 1
B211: Fair Market Value (FMV) of Common Stock | D211: ($)
B213: Common Stock (before DLOM) | D213: =+E198 -> 2.011379993
B215: Discount For Lack of Marketability (DLOM) | C215: 0.284719965 | D215: =D213*C215 -> 0.5726800411
B217: FMV of Common stock | D217: =D213-D215 -> 1.438699952

Sheet Backsolve_Feb'14_final (hidden)
B1: Allocation
B3: Concluded Equity Value | D3: EV | E3: Weight | F3: Value
G5: =G6-D20 -> 
B6: Distributable value | F6: =815773082.807217+(H6*10^6) -> 832173082.8 | G6: ='Backsolve_Feb''14_final'!$E$190 ->  | H6: 16.4
B8: Convertible Notes - Class of Shares | C8: Issue Price | D8: LP | E8: Principal Amount | F8: Interest Rate | G8: Interest Cost | H8: Number of Shares
B9: ='C1&C2New_sept''14'!A9 -> C-1 convertible note | C9: ='C1&C2_Feb''14'!B2 -> 3 | D9: ='C1&C2_Feb''14'!D2 -> 3 | E9: ='C1&C2_Feb''14'!F2 -> 9999999 | F9: 0.0079 | G9: =+E9*F9*$D$42 -> 236999.9763 | H9: =+ROUND(E9/C9,0) -> 3333333
B10: ='C1&C2New_sept''14'!A10 -> C-1 convertible note | C10: ='C1&C2_Feb''14'!B3 -> 15 | D10: ='C1&C2_Feb''14'!D3 -> 3 | E10: ='C1&C2_Feb''14'!F3 -> 30000000 | F10: 0.0079 | G10: =+E10*F10*$D$42 -> 711000 | H10: =+ROUND(E10/C10,0) -> 2000000
B11: ='C1&C2New_sept''14'!A11 -> C-2 convertible note | C11: ='C1&C2_Feb''14'!B4 -> 17 | D11: ='C1&C2_Feb''14'!D4 -> 17 | E11: ='C1&C2_Feb''14'!F4 -> 74999988 | F11: 0.0079 | G11: =+E11*F11*$D$42 -> 1777499.716 | H11: =+ROUND(E11/C11,0) -> 4411764
B12: Total | E12: =+SUM(E9:E11) -> 114999987 | G12: =+SUM(G9:G11) -> 2725499.692
B14: Class of stock | C14: No. of shares | D14: Issue Price | E14: Invested Amount | F14: LP | G14: Total LP | H14: Participation Cap | I14: Converison Price | J14: Conversion ratio | K14: # of shares on converted basis | L14: % Ownership | M14: % Ownership (diluted)
B15: Series A | C15: ='Summ post_Feb''14'!$J$15 -> 46320045 | D15: 0.15 | E15: =+D15*C15 -> 6948006.75 | F15: 0.15 | G15: =C15*F15 -> 6948006.75 | H15: Unlimited | I15: =D15 -> 0.15 | J15: =D15/I15 -> 1 | K15: =C15*J15 -> 46320045 | L15: =C15/$C$23 -> 0.09236087274 | M15: =K15/$K$35 -> 0.08781221682
B16: Series B | C16: ='Summ post_Feb''14'!$J$17 -> 54162965 | D16: 0.184628 | E16: 9999999.902 | F16: 0.184628 | G16: 9999999.902 | H16: Unlimited | I16: 0.184628 | J16: 1 | K16: 54162965 | L16: =C16/$C$23 -> 0.1079994356 | M16: =K16/$K$35 -> 0.1026806003
B17: Series C | C17: ='Summ post_Feb''14'!$J$19 -> 58896105 | D17: 0.564 | E17: 33217403.22 | F17: 0.564 | G17: 33217403.22 | H17: Unlimited | I17: 0.564 | J17: 1 | K17: 58896105 | L17: 0.1174371842 | M17: 0.1116535518
B18: Series C-1 | C18: ='Shares_Sep''13'!$J$19+H9 -> 21841668 | D18: ='C1&C2_Feb''14'!B2 -> 3 | E18: 65525004 | F18: 3 | G18: 65525004 | H18: Unlimited | I18: 3 | J18: 1 | K18: 21841668 | L18: 0.04355167441 | M18: 0.04140680965
B19: Series C-1* | C19: ='Summ post_Feb''14'!$J$21-'Shares_Sep''13'!$J$19+H10 -> 6500032 | D19: ='C1&C2_Feb''14'!B3 -> 15 | E19: 97500480 | F19: 3 | G19: 19500096 | H19: Unlimited | I19: 15 | J19: 1 | K19: 6500032 | L19: 0.0129608818 | M19: 0.0123225748
B20: Series C-2 | C20: ='Summ post_Feb''14'!$J$23+H11 -> 11140586 | D20: ='C1&C2_Feb''14'!B4 -> 17 | E20: 189389962 | F20: ='C1&C2New_sept''14'!D4 -> 17 | G20: 189389962 | H20: Unlimited | I20: 17 | J20: 1 | K20: 11140586 | L20: 0.02221401654 | M20: 0.02112000438
B21: Common shares - Class A | C21: ='Summ post_Feb''14'!$J$9 -> 51992100 | K21: =C21 -> 51992100 | L21: 0.1036707916 | M21: 0.0985651365
B22: Common shares - Class B | C22: ='Summ post_Feb''14'!$J$11 -> 250658055 | K22: =C22 -> 250658055 | L22: 0.4998051431 | M22: 0.4751903733
B23: Sub Total | C23: =SUM(C15:C22) -> 501511556 | E23: =SUM(E15:E20) -> 402580855.9 | G23: =SUM(G15:G20) -> 324580471.9 | K23: =SUM(K15:K22) -> 501511556 | L23: =SUM(L15:L22) -> 1 | M23: =K23/$K$35 -> 0.9507512675
E24: =C35*D20 -> 8967325886
B25: Dilutive Instruments | C25: # of options | D25: Strike price
B26: ="Options @ $"&ROUND(D26,3) -> Options @ $0.015 | C26: ='Option outstanding_Feb''14'!$B$4 -> 350000 | D26: ='Option outstanding_Feb''14'!$A$4 -> 0.015 | F26: =D26 -> 0.015 | J26: 1 | K26: =C26*J26 -> 350000 | M26: =K26/$K$35 -> 0.000663519992
B27: ="Options @ $"&ROUND(D27,3) -> Options @ $0.03 | C27: ='Option outstanding_Feb''14'!$B$5 -> 1227125 | D27: ='Option outstanding_Feb''14'!$A$5 -> 0.03 | F27: 0.03 | J27: 1 | K27: 1227125 | M27: =K27/$K$35 -> 0.002326348486
B28: Options @ $0.066 | C28: ='Option outstanding_Feb''14'!$B$6 -> 552500 | D28: ='Option outstanding_Feb''14'!$A$6 -> 0.066 | F28: 0.066 | J28: 1 | K28: 552500 | M28: 0.001047413702
B29: Options @ $0.072 | C29: ='Option outstanding_Feb''14'!$B$7 -> 3092715 | D29: ='Option outstanding_Feb''14'!$A$7 -> 0.072 | F29: 0.072 | J29: 1 | K29: 3092715 | M29: 0.005863080663
B30: Options @ $0.094 | C30: ='Option outstanding_Feb''14'!$B$8 -> 312500 | D30: ='Option outstanding_Feb''14'!$A$8 -> 0.094 | F30: 0.094 | J30: 1 | K30: 312500 | M30: 0.0005924285643
B31: Options @ $0.17 | C31: ='Option outstanding_Feb''14'!$B$9 -> 3990167 | D31: ='Option outstanding_Feb''14'!$A$9 -> 0.17 | F31: 0.17 | J31: 1 | K31: 3990167 | M31: 0.007564444502
B32: Options @ $0.206 | C32: ='Option outstanding_Feb''14'!$B$10 -> 711530 | D32: ='Option outstanding_Feb''14'!$A$10 -> 0.206 | F32: 0.206 | J32: 1 | K32: 711530 | M32: 0.001348898228
C33: ='Summ post_Feb''14'!$P$48 -> 15000000 | D33: ='Backsolve_Feb''14_final'!$D$210 ->  | J33: 1 | K33: 15000000 | M33: 0.02843657109
B34: ="Common Stock Warrants @ $"&D34 -> Common Stock Warrants @ $0.072 | C34: ='Warrant_Feb''14'!$B$7 -> 741665 | D34: 0.072 | F34: 0.072 | J34: 1 | K34: 741665 | M34: 0.0014060273
B35: Total | C35: =C23+SUM(C26:C34) -> 527489758 | K35: =K23+SUM(K26:K34) -> 527489758 | M35: =M23+SUM(M26:M34) -> 1
B38: Change in control event
H39: Risk free rate (Years)
B40: Valuation date | D40: =Control!C7 -> 2015-03-25 | H40: 1 | I40: ='BETA & CSRP'!C133 -> 0.0026
B41: Liquidation date | D41: =D40+365*D42 -> 2018-03-24 | H41: 2 | I41: ='BETA & CSRP'!C134 -> 0.006
B42: No. of years to Liquidation | D42: 3 | H42: 3 | I42: ='BETA & CSRP'!C135 -> 0.0095
B43: Volatility | D43: =Allocation!D47 -> 0.4005490638 | H43: 4 | I43: ='BETA & CSRP'!C136 -> 0.0119
B44: Dividend-yield | D44: 0 | H44: 5 | I44: ='BETA & CSRP'!C137 -> 0.0144
B45: Zero coupon yield Corresponding to the time period | D45: =VLOOKUP(D42,H40:I44,2,FALSE) -> 0.0095 | E45: Source : Bloomberg
B48: Event description | C48: Participating Class | D48: Participating shares | E48: Strike Point
A49: 1 | B49: Equity value is nil | C49: None | D49: 0 | E49: 1e-08
A50: 2 | B50: Liquidation preference of Series C,C-1, C-1* and C-2 | C50: Series C, C-1 & C-1* | D50: =C17+C18+C19+C20 -> 98378391 | E50: =G17+G18+G19+G20 -> 307632465.2
A51: =A50+1 -> 3 | B51: Liquidation preference of Series B | C51: Series B | D51: =C16 -> 54162965 | E51: =E50+G16 -> 317632465.1
A52: 4 | B52: Liquidation preference of Series A | C52: Series A | D52: =C15 -> 46320045 | E52: =E51+G15 -> 324580471.9
A53: 5 | B53: =B26&" exercised" -> Options @ $0.015 exercised | C53: Series A, Series B,C,C-1,C-1* & Common | D53: =+K23 -> 501511556 | E53: =E52+D53*F26 -> 332103145.2
A54: 6 | B54: =B27&" exercised" -> Options @ $0.03 exercised | C54: Series A, Series B,C,C-1,C-1*,Common and Options @ $0.015 | D54: =D53+K26 -> 501861556 | E54: =E53+D54*(F27-F26) -> 339631068.6
A55: 7 | B55: =B28&" exercised" -> Options @ $0.066 exercised | C55: Series A, Series B,C,C-1,C-1*, Common,Options @ $0.015,$0.03 | D55: =D54+K27 -> 503088681 | E55: =E54+D55*(F28-F27) -> 357742261.1
A56: 8 | B56: =B29&" and "&B34&" exercised" -> Options @ $0.072 and Common Stock Warrants @ $0.072 exercised | C56: Series A, Series B, C,C-1,C-1*, Common,Options @ $0.015,$0.03,$0.066 | D56: =D55+K28 -> 503641181 | E56: =E55+D56*(F29-F28) -> 360764108.2
A57: 9 | B57: =B30&" exercised" -> Options @ $0.094 exercised | C57: Series A, Series B, C,C-1,C-1*, Common,Options @ $0.015,$0.03,$0.066,$0.072, Common Warrants @ $0.072 | D57: =D56+K29+K34 -> 507475561 | E57: =E56+D57*(F30-F29) -> 371928570.5
A58: 11 | B58: =B31&" get exercised" -> Options @ $0.17 get exercised | C58: Series A,Series B, C,C-1,C-1*, Common,Options @ $0.015,$0.03,$0.066,$0.072,$0.094, Common Warrants @ $0.072 | D58: =D57+K30 -> 507788061 | E58: =E57+D58*(D31-D30) -> 410520463.1
A59: 12 | B59: =B32&" get exercised" -> Options @ $0.206 get exercised | C59: Series A,Series B, C,C-1,C-1*, Common,Options @ $0.015,$0.03,$0.066,$0.072,$0.094,$0.17, Common Warrants @ $0.072 | D59: =D58+K31 -> 511778228 | E59: =E58+D59*(F32-F31) -> 428944479.3
B60: =B33&" get exercised" ->  | C60: Series A,Series B, C,C-1,C-1*, Common,Options @ $0.015,$0.03,$0.066,$0.072,$0.094,$0.17,$0.206, Common Warrants @ $0.072 | D60: =D59+K32 -> 512489758 | E60: =E59+D60*(F33-F32) -> 
B61: Thereafter | C61: All classes | D61: =+D60+C33 -> 527489758
C63: 1 | D63: =C63+1 -> 2 | E63: 3 | F63: 4 | G63: 5 | H63: 6 | I63: 7 | J63: 8 | K63: 9 | L63: 10 | M63: 11 | N63: 12
B66: Value of the underlying Asset ($) | C66: =F6 -> 832173082.8 | D66: =C66 -> 832173082.8 | E66: 832173082.8 | F66: 832173082.8 | G66: 832173082.8 | H66: 832173082.8 | I66: 832173082.8 | J66: 832173082.8 | K66: 832173082.8 | L66: 832173082.8 | M66: 832173082.8 | N66: 832173082.8
B67: Strike Price ($) | C67: =TRANSPOSE(E49:E60) -> 1e-08 | D67: 307632465.2 | E67: 317632465.1 | F67: 324580471.9 | G67: 332103145.2 | H67: 339631068.6 | I67: 357742261.1 | J67: 360764108.2 | K67: 371928570.5 | L67: 410520463.1 | M67: 428944479.3
B68: S.D of the Underlying preferred share | C68: =D43 -> 0.4005490638 | D68: =C68 -> 0.4005490638 | E68: 0.4005490638 | F68: 0.4005490638 | G68: 0.4005490638 | H68: 0.4005490638 | I68: 0.4005490638 | J68: 0.4005490638 | K68: =J68 -> 0.4005490638 | L68: =K68 -> 0.4005490638 | M68: 0.4005490638 | N68: 0.4005490638
B69: Dividend yield | C69: =D44 -> 0 | D69: 0 | E69: 0 | F69: 0 | G69: 0 | H69: 0 | I69: 0 | J69: 0 | K69: =J69 -> 0 | L69: 0 | M69: 0 | N69: 0
B70: Time of Expiration (years) | C70: =D42 -> 3 | D70: 3 | E70: 3 | F70: 3 | G70: 3 | H70: 3 | I70: 3 | J70: 3 | K70: =J70 -> 3 | L70: 3 | M70: 3 | N70: 3
B71: Riskless Rate corresponding to option life time | C71: =D45 -> 0.0095 | D71: 0.0095 | E71: 0.0095 | F71: 0.0095 | G71: 0.0095 | H71: 0.0095 | I71: 0.0095 | J71: 0.0095 | K71: =J71 -> 0.0095 | L71: 0.0095 | M71: 0.0095 | N71: 0.0095
B75: Stock Price | C75: =C66 -> 832173082.8 | D75: 832173082.8 | E75: 832173082.8 | F75: 832173082.8 | G75: 832173082.8 | H75: 832173082.8 | I75: 832173082.8 | J75: 832173082.8 | K75: 832173082.8 | L75: 832173082.8 | M75: 832173082.8 | N75: 832173082.8
B76: Strike Price | C76: 1e-08 | D76: 307632465.2 | E76: 317632465.1 | F76: 324580471.9 | G76: 332103145.2 | H76: 339631068.6 | I76: 357742261.1 | J76: 360764108.2 | K76: 371928570.5 | L76: 410520463.1 | M76: 428944479.3
B77: Expiration (in years) | C77: =C70 -> 3 | D77: 3 | E77: 3 | F77: 3 | G77: 3 | H77: 3 | I77: 3 | J77: 3 | K77: 3 | L77: 3 | M77: 3 | N77: 3
B78: T.Bond rate | C78: 0.0095 | D78: 0.0095 | E78: 0.0095 | F78: 0.0095 | G78: 0.0095 | H78: 0.0095 | I78: 0.0095 | J78: 0.0095 | K78: 0.0095 | L78: 0.0095 | M78: 0.0095 | N78: 0.0095
B79: Variance | C79: =C68^2 -> 0.1604395525 | D79: 0.1604395525 | E79: 0.1604395525 | F79: 0.1604395525 | G79: 0.1604395525 | H79: 0.1604395525 | I79: 0.1604395525 | J79: 0.1604395525 | K79: 0.1604395525 | L79: 0.1604395525 | M79: 0.1604395525 | N79: 0.1604395525
B80: Annualized dividend yield | C80: =C69 -> 0 | D80: 0 | E80: 0 | F80: 0 | G80: 0 | H80: 0 | I80: 0 | J80: 0 | K80: 0 | L80: 0 | M80: 0 | N80: 0
B83: d1 = | C83: =(LN(C75/C76)+(C78-C80+(C79/2))*C77)/(((C79)^(0.5))*(C77^0.5)) -> 56.54513155 | D83: 1.822349744 | E83: 1.776240648 | F83: 1.745050907 | G83: 1.712025463 | H83: 1.679717502 | I83: 1.604832813 | J83: 1.592708474 | K83: 1.54877827 | L83: 1.406477843 | M83: 1.343198038 | N83: =(LN(N75/N76)+(N78-N80+(N79/2))*N77)/(((N79)^(0.5))*(N77^0.5)) -> 
B84: N(d1) = | C84: =NORMSDIST(C83) -> 1 | D84: 0.9657990326 | E84: 0.9621533694 | F84: 0.959511996 | G84: 0.9565540119 | H84: 0.9534938535 | I84: 0.9457346987 | J84: 0.9443871972 | K84: 0.9392824845 | L84: 0.9202088603 | M84: 0.9103960716
B86: d2 = | C86: =C83-((C79^0.5)*(C77^(0.5))) -> 55.85136022 | D86: 1.128578415 | E86: 1.082469319 | F86: 1.051279577 | G86: 1.018254133 | H86: 0.9859461724 | I86: 0.9110614837 | J86: 0.8989371448 | K86: 0.8550069404 | L86: 0.7127065141 | M86: 0.6494267085
B87: N(d2) = | C87: =NORMSDIST(C86) -> 1 | D87: 0.8704621397 | E87: 0.8604779794 | F87: 0.853434898 | G87: 0.8457214002 | H87: 0.8379202362 | I87: 0.8188685105 | J87: 0.8156569293 | K87: 0.8037263472 | L87: 0.7619863076 | M87: 0.7419686974
C89: =(EXP((0-C80)*C77))*C75*C84-C76*(EXP((0-C78)*C77))*C87 -> 832173082.8 | D89: 543453615.9 | E89: 535041939.1 | F89: 529255051.5 | G89: 523043475 | H89: 516884324.7 | I89: 502302138 | J89: 499901884.3 | K89: 491116022.6 | L89: 461751342.9 | M89: 448286199.6
C90: =C89-D89 -> 288719466.9 | D90: 8411676.757 | E90: 5786887.586 | F90: 6211576.592 | G90: 6159150.227 | H90: 14582186.71 | I90: 2400253.68 | J90: 8785861.736 | K90: 29364679.72 | L90: 13465143.28 | N90: =N89 ->  | O90: =SUM(C90:N90)-F6 -> 
B95: Participation in Incremental Value after Each Event
B96: Participation =1, No participation = 0 | C96: =TRANSPOSE(B15:B22) -> Series A | D96: Series B | E96: Series C | F96: Series C-1 | G96: Series C-1* | H96: Series C-2 | I96: Common shares - Class A | J96: Common shares - Class B | K96: =TRANSPOSE(B26:B34) -> Options @ $0.015 | L96: Options @ $0.03 | M96: Options @ $0.066 | N96: Options @ $0.072 | O96: Options @ $0.094 | P96: Options @ $0.17 | Q96: Options @ $0.206 | S96: Common Stock Warrants @ $0.072 | T96: Total
B97: Common Stock Equivalents | C97: =TRANSPOSE(K15:K22) -> 46320045 | D97: 54162965 | E97: 58896105 | F97: 21841668 | G97: 6500032 | H97: 11140586 | I97: 51992100 | J97: 250658055 | K97: =TRANSPOSE(K26:K34) -> 350000 | L97: 1227125 | M97: 552500 | N97: 3092715 | O97: 312500 | P97: 3990167 | Q97: 711530 | R97: 15000000 | S97: 741665 | T97: =SUM(C97:S97) -> 527489758 | U97: =T97-K35 -> 0
B98: LP | C98: =TRANSPOSE(G15:G20) -> 6948006.75 | D98: 9999999.902 | E98: 33217403.22 | F98: 65525004 | G98: 19500096 | H98: 189389962
A100: 1 | B100: =B50 -> Liquidation preference of Series C,C-1, C-1* and C-2 | C100: 0 | D100: 0 | E100: 1 | F100: 1 | G100: 1 | H100: 1 | I100: 0 | J100: 0 | K100: 0 | L100: 0 | M100: 0 | N100: 0 | O100: 0 | P100: 0 | Q100: 0 | R100: 0 | S100: 0 | T100: =SUM(C100:S100) -> 4
A101: 2 | B101: =B51 -> Liquidation preference of Series B | C101: 0 | D101: 1 | E101: 0 | F101: 0 | G101: 0 | H101: 0 | I101: 0 | J101: 0 | K101: 0 | L101: 0 | M101: 0 | N101: 0 | O101: 0 | P101: 0 | Q101: 0 | R101: 0 | S101: 0 | T101: =SUM(C101:S101) -> 1
A102: 3 | B102: Liquidation preference of Series A | C102: 1 | D102: 0 | E102: 0 | F102: 0 | G102: 0 | H102: 0 | I102: 0 | J102: 0 | K102: 0 | L102: 0 | M102: 0 | N102: 0 | O102: 0 | P102: 0 | Q102: 0 | R102: 0 | S102: 0 | T102: 1
A103: 4 | B103: Options @ $0.015 exercised | C103: 1 | D103: 1 | E103: 1 | F103: 1 | G103: 1 | H103: 1 | I103: 1 | J103: 1 | K103: 0 | L103: 0 | M103: 0 | N103: 0 | O103: 0 | P103: 0 | Q103: 0 | R103: 0 | S103: 0 | T103: 8
A104: 5 | B104: Options @ $0.03 exercised | C104: 1 | D104: 1 | E104: 1 | F104: 1 | G104: 1 | H104: 1 | I104: 1 | J104: 1 | K104: 1 | L104: 0 | M104: 0 | N104: 0 | O104: 0 | P104: 0 | Q104: 0 | R104: 0 | S104: 0 | T104: 9
A105: 6 | B105: Options @ $0.066 exercised | C105: 1 | D105: 1 | E105: 1 | F105: 1 | G105: 1 | H105: 1 | I105: 1 | J105: 1 | K105: 1 | L105: 1 | M105: 0 | N105: 0 | O105: 0 | P105: 0 | Q105: 0 | R105: 0 | S105: 0 | T105: 10
A106: 7 | B106: Options @ $0.072 and Common Stock Warrants @ $0.072 exercised | C106: 1 | D106: 1 | E106: 1 | F106: 1 | G106: 1 | H106: 1 | I106: 1 | J106: 1 | K106: 1 | L106: 1 | M106: 1 | N106: 0 | O106: 0 | P106: 0 | Q106: 0 | R106: 0 | S106: 0 | T106: 11
A107: 8 | B107: Options @ $0.094 exercised | C107: 1 | D107: 1 | E107: 1 | F107: 1 | G107: 1 | H107: 1 | I107: 1 | J107: 1 | K107: 1 | L107: 1 | M107: 1 | N107: 1 | O107: 0 | P107: 0 | Q107: 0 | R107: 0 | S107: 1 | T107: 13
A108: 9 | B108: Options @ $0.17 get exercised | C108: 1 | D108: 1 | E108: 1 | F108: 1 | G108: 1 | H108: 1 | I108: 1 | J108: 1 | K108: 1 | L108: 1 | M108: 1 | N108: 1 | O108: 1 | P108: 0 | Q108: 0 | R108: 0 | S108: 1 | T108: 14
A109: 10 | B109: Options @ $0.206 get exercised | C109: 1 | D109: 1 | E109: 1 | F109: 1 | G109: 1 | H109: 1 | I109: 1 | J109: 1 | K109: 1 | L109: 1 | M109: 1 | N109: 1 | O109: 1 | P109: 1 | Q109: 0 | R109: 0 | S109: 1 | T109: 15
A110: 11 | C110: 1 | D110: 1 | E110: 1 | F110: 1 | G110: 1 | H110: 1 | I110: 1 | J110: 1 | K110: 1 | L110: 1 | M110: 1 | N110: 1 | O110: 1 | P110: 1 | Q110: 1 | R110: 0 | S110: 1 | T110: 16
A111: 12 | B111: Thereafter | C111: 1 | D111: 1 | E111: 1 | F111: 1 | G111: 1 | H111: 1 | I111: 1 | J111: 1 | K111: 1 | L111: 1 | M111: 1 | N111: 1 | O111: 1 | P111: 1 | Q111: 1 | R111: 1 | S111: 1 | T111: 17
B113: LP in $ / Number of Shares | T113: Total
B115: =B100 -> Liquidation preference of Series C,C-1, C-1* and C-2 | C115: =C$98*C100 -> 0 | D115: =D$98*D100 -> 0 | E115: 33217403.22 | F115: 65525004 | G115: 19500096 | H115: 189389962 | I115: 0 | J115: 0 | K115: 0 | L115: 0 | M115: 0 | N115: 0 | O115: 0 | P115: 0 | Q115: 0 | R115: 0 | S115: 0 | T115: =SUM(C115:S115) -> 307632465.2 | U115: =T115-E50 -> 0
B116: Liquidation preference of Series B | C116: =C$98*C101 -> 0 | D116: 9999999.902 | E116: 0 | F116: 0 | G116: 0 | H116: 0 | I116: 0 | J116: 0 | K116: 0 | L116: 0 | M116: 0 | N116: 0 | O116: 0 | P116: 0 | Q116: 0 | R116: 0 | S116: 0 | T116: =SUM(C116:S116) -> 9999999.902 | U116: =E51-SUM($T$115:T116) -> 0
B117: Liquidation preference of Series A | C117: 6948006.75 | D117: 0 | E117: 0 | F117: 0 | G117: 0 | H117: 0 | I117: 0 | J117: 0 | K117: 0 | L117: 0 | M117: 0 | N117: 0 | O117: 0 | P117: 0 | Q117: 0 | R117: 0 | S117: 0 | T117: 6948006.75 | U117: =E52-SUM($T$115:T117) -> 0
B118: Options @ $0.015 exercised | C118: =C103*C$97 -> 46320045 | D118: =D103*D$97 -> 54162965 | E118: 58896105 | F118: 21841668 | G118: 6500032 | H118: 11140586 | I118: 51992100 | J118: 250658055 | K118: 0 | L118: 0 | M118: 0 | N118: 0 | O118: 0 | P118: 0 | Q118: 0 | R118: 0 | S118: 0 | T118: 501511556 | U118: =D53-T118 -> 0
B119: Options @ $0.03 exercised | C119: =C104*C$97 -> 46320045 | D119: 54162965 | E119: 58896105 | F119: 21841668 | G119: 6500032 | H119: 11140586 | I119: 51992100 | J119: 250658055 | K119: 350000 | L119: 0 | M119: 0 | N119: 0 | O119: 0 | P119: 0 | Q119: 0 | R119: 0 | S119: 0 | T119: 501861556 | U119: =D54-T119 -> 0
B120: Options @ $0.066 exercised | C120: 46320045 | D120: 54162965 | E120: 58896105 | F120: 21841668 | G120: 6500032 | H120: 11140586 | I120: 51992100 | J120: 250658055 | K120: 350000 | L120: 1227125 | M120: 0 | N120: 0 | O120: 0 | P120: 0 | Q120: 0 | R120: 0 | S120: 0 | T120: 503088681 | U120: 0
B121: Options @ $0.072 and Common Stock Warrants @ $0.072 exercised | C121: 46320045 | D121: 54162965 | E121: 58896105 | F121: 21841668 | G121: 6500032 | H121: 11140586 | I121: 51992100 | J121: 250658055 | K121: 350000 | L121: 1227125 | M121: 552500 | N121: 0 | O121: 0 | P121: 0 | Q121: 0 | R121: 0 | S121: 0 | T121: 503641181 | U121: 0
B122: Options @ $0.094 exercised | C122: 46320045 | D122: 54162965 | E122: 58896105 | F122: 21841668 | G122: 6500032 | H122: 11140586 | I122: 51992100 | J122: 250658055 | K122: 350000 | L122: 1227125 | M122: 552500 | N122: 3092715 | O122: 0 | P122: 0 | Q122: 0 | R122: 0 | S122: 741665 | T122: 507475561 | U122: 0
B123: =B108 -> Options @ $0.17 get exercised | C123: 46320045 | D123: 54162965 | E123: 58896105 | F123: 21841668 | G123: 6500032 | H123: 11140586 | I123: 51992100 | J123: 250658055 | K123: 350000 | L123: 1227125 | M123: 552500 | N123: 3092715 | O123: 312500 | P123: 0 | Q123: 0 | R123: 0 | S123: 741665 | T123: 507788061 | U123: 0
B124: =B109 -> Options @ $0.206 get exercised | C124: 46320045 | D124: 54162965 | E124: 58896105 | F124: 21841668 | G124: 6500032 | H124: 11140586 | I124: 51992100 | J124: 250658055 | K124: 350000 | L124: 1227125 | M124: 552500 | N124: 3092715 | O124: 312500 | P124: 3990167 | Q124: 0 | R124: 0 | S124: 741665 | T124: 511778228 | U124: 0
B125: =B110 ->  | C125: 46320045 | D125: 54162965 | E125: 58896105 | F125: 21841668 | G125: 6500032 | H125: 11140586 | I125: 51992100 | J125: 250658055 | K125: 350000 | L125: 1227125 | M125: 552500 | N125: 3092715 | O125: 312500 | P125: 3990167 | Q125: 711530 | R125: 0 | S125: 741665 | T125: 512489758 | U125: 0
B126: =B111 -> Thereafter | C126: 46320045 | D126: 54162965 | E126: 58896105 | F126: 21841668 | G126: 6500032 | H126: 11140586 | I126: 51992100 | J126: 250658055 | K126: 350000 | L126: 1227125 | M126: 552500 | N126: 3092715 | O126: 312500 | P126: 3990167 | Q126: 711530 | R126: 15000000 | S126: 741665 | T126: 527489758 | U126: 0
B127: % of Ownership in Incremental Value after Each Event | T127: Total
B129: =B115 -> Liquidation preference of Series C,C-1, C-1* and C-2 | C129: =C115/$T115 -> 0 | D129: =D115/$T115 -> 0 | E129: 0.1079775608 | F129: 0.2129976885 | G129: 0.06338764014 | H129: 0.6156371106 | I129: 0 | J129: 0 | K129: 0 | L129: 0 | M129: 0 | N129: 0 | O129: 0 | P129: 0 | Q129: 0 | R129: 0 | S129: 0 | T129: =SUM(C129:S129) -> 1
B130: Liquidation preference of Series B | C130: =C116/$T116 -> 0 | D130: 1 | E130: 0 | F130: 0 | G130: 0 | H130: 0 | I130: 0 | J130: 0 | K130: 0 | L130: 0 | M130: 0 | N130: 0 | O130: 0 | P130: 0 | Q130: 0 | R130: 0 | S130: 0 | T130: =SUM(C130:S130) -> 1
B131: Liquidation preference of Series A | C131: 1 | D131: 0 | E131: 0 | F131: 0 | G131: 0 | H131: 0 | I131: 0 | J131: 0 | K131: 0 | L131: 0 | M131: 0 | N131: 0 | O131: 0 | P131: 0 | Q131: 0 | R131: 0 | S131: 0 | T131: 1
B132: Options @ $0.015 exercised | C132: 0.09236087274 | D132: 0.1079994356 | E132: 0.1174371842 | F132: 0.04355167441 | G132: 0.0129608818 | H132: 0.02221401654 | I132: 0.1036707916 | J132: 0.4998051431 | K132: 0 | L132: 0 | M132: 0 | N132: 0 | O132: 0 | P132: 0 | Q132: 0 | R132: 0 | S132: 0 | T132: 1
B133: Options @ $0.03 exercised | C133: 0.09229645994 | D133: 0.1079241164 | E133: 0.1173552831 | F133: 0.04352130132 | G133: 0.01295184284 | H133: 0.02219852441 | I133: 0.1035984912 | J133: 0.4994565772 | K133: 0.0006974034887 | L133: 0 | M133: 0 | N133: 0 | O133: 0 | P133: 0 | Q133: 0 | R133: 0 | S133: 0 | T133: 1
B134: Options @ $0.066 exercised | C134: 0.09207133205 | D134: 0.1076608698 | E134: 0.1170690322 | F134: 0.04341514493 | G134: 0.01292025093 | H134: 0.02214437816 | I134: 0.1033457956 | J134: 0.4982383116 | K134: 0.0006957023945 | L134: 0.002439182288 | M134: 0 | N134: 0 | O134: 0 | P134: 0 | Q134: 0 | R134: 0 | S134: 0 | T134: 1
B135: Options @ $0.072 and Common Stock Warrants @ $0.072 exercised | C135: 0.09197032877 | D135: 0.1075427647 | E135: 0.1169406062 | F135: 0.04336751803 | G135: 0.01290607727 | H135: 0.02212008553 | I135: 0.1032324241 | J135: 0.4976917386 | K135: 0.0006949392012 | L135: 0.002436506478 | M135: 0.001097011168 | N135: 0 | O135: 0 | P135: 0 | Q135: 0 | R135: 0 | S135: 0 | T135: 1
B136: Options @ $0.094 exercised | C136: 0.09127542006 | D136: 0.1067301939 | E136: 0.1160570272 | F136: 0.04303984207 | G136: 0.01280856163 | H136: 0.02195295076 | I136: 0.1024524213 | J136: 0.4939312831 | K136: 0.0006896883848 | L136: 0.002418096741 | M136: 0.001088722379 | N136: 0.00609431318 | O136: 0 | P136: 0 | Q136: 0 | R136: 0 | S136: 0.001461479246 | T136: 1
B137: =B123 -> Options @ $0.17 get exercised | C137: 0.09121924787 | D137: 0.1066645106 | E137: 0.1159856041 | F137: 0.04301335474 | G137: 0.01280067906 | H137: 0.0219394406 | I137: 0.1023893707 | J137: 0.4936273108 | K137: 0.0006892639408 | L137: 0.002416608609 | M137: 0.001088052364 | N137: 0.006090562653 | O137: 0.0006154142328 | P137: 0 | Q137: 0 | R137: 0 | S137: 0.00146057983 | T137: 1
B138: =B124 -> Options @ $0.206 get exercised | C138: 0.09050804131 | D138: 0.1058328824 | E138: 0.1150813024 | F138: 0.04267799372 | G138: 0.01270087636 | H138: 0.02176838597 | I138: 0.1015910743 | J138: 0.4897786605 | K138: 0.0006838899759 | L138: 0.002397767105 | M138: 0.001079569176 | N138: 0.006043076534 | O138: 0.0006106160499 | P138: 0.007796672038 | Q138: 0 | R138: 0 | S138: 0.001449192168 | T138: 1
B139: =B125 ->  | C139: 0.09038238185 | D139: 0.1056859462 | E139: 0.1149215259 | F139: 0.04261874049 | G139: 0.01268324274 | H139: 0.0217381632 | I139: 0.1014500274 | J139: 0.4890986621 | K139: 0.0006829404774 | L139: 0.002394438095 | M139: 0.001078070325 | N139: 0.006034686453 | O139: 0.0006097682834 | P139: 0.007785847303 | Q139: 0.001388378965 | R139: 0 | S139: 0.001447180141 | T139: 1
B140: =B126 -> Thereafter | C140: 0.08781221682 | D140: 0.1026806003 | E140: 0.1116535518 | F140: 0.04140680965 | G140: 0.0123225748 | H140: 0.02112000438 | I140: 0.0985651365 | J140: 0.4751903733 | K140: 0.000663519992 | L140: 0.002326348486 | M140: 0.001047413702 | N140: 0.005863080663 | O140: 0.0005924285643 | P140: 0.007564444502 | Q140: 0.001348898228 | R140: 0.02843657109 | S140: 0.0014060273 | T140: 1
B142: Value Allocated | C142: Option 1 | D142: Option 2 | E142: Option 3 | F142: Option 4 | G142: Option 5 | H142: Option 6 | I142: Option 7 | J142: Option 8 | K142: Option 9 | L142: Option 10 | M142: Option 11 | N142: Option 12
B143: =TRANSPOSE(C96:S96) -> Series A | C143: =TRANSPOSE(C129:S140) -> 0 | D143: 0 | E143: 1 | F143: 0.09236087274 | G143: 0.09229645994 | H143: 0.09207133205 | I143: 0.09197032877 | J143: 0.09127542006 | K143: 0.09121924787 | L143: 0.09050804131 | M143: 0.09038238185 | N143: 0.08781221682
B144: Series B | C144: 0 | D144: 1 | E144: 0 | F144: 0.1079994356 | G144: 0.1079241164 | H144: 0.1076608698 | I144: 0.1075427647 | J144: 0.1067301939 | K144: 0.1066645106 | L144: 0.1058328824 | M144: 0.1056859462 | N144: 0.1026806003
B145: Series C | C145: 0.1079775608 | D145: 0 | E145: 0 | F145: 0.1174371842 | G145: 0.1173552831 | H145: 0.1170690322 | I145: 0.1169406062 | J145: 0.1160570272 | K145: 0.1159856041 | L145: 0.1150813024 | M145: 0.1149215259 | N145: 0.1116535518
B146: Series C-1 | C146: 0.2129976885 | D146: 0 | E146: 0 | F146: 0.04355167441 | G146: 0.04352130132 | H146: 0.04341514493 | I146: 0.04336751803 | J146: 0.04303984207 | K146: 0.04301335474 | L146: 0.04267799372 | M146: 0.04261874049 | N146: 0.04140680965
B147: Series C-1* | C147: 0.06338764014 | D147: 0 | E147: 0 | F147: 0.0129608818 | G147: 0.01295184284 | H147: 0.01292025093 | I147: 0.01290607727 | J147: 0.01280856163 | K147: 0.01280067906 | L147: 0.01270087636 | M147: 0.01268324274 | N147: 0.0123225748
B148: Series C-2 | C148: 0.6156371106 | D148: 0 | E148: 0 | F148: 0.02221401654 | G148: 0.02219852441 | H148: 0.02214437816 | I148: 0.02212008553 | J148: 0.02195295076 | K148: 0.0219394406 | L148: 0.02176838597 | M148: 0.0217381632 | N148: 0.02112000438
B149: Common shares - Class A | C149: 0 | D149: 0 | E149: 0 | F149: 0.1036707916 | G149: 0.1035984912 | H149: 0.1033457956 | I149: 0.1032324241 | J149: 0.1024524213 | K149: 0.1023893707 | L149: 0.1015910743 | M149: 0.1014500274 | N149: 0.0985651365
B150: Common shares - Class B | C150: 0 | D150: 0 | E150: 0 | F150: 0.4998051431 | G150: 0.4994565772 | H150: 0.4982383116 | I150: 0.4976917386 | J150: 0.4939312831 | K150: 0.4936273108 | L150: 0.4897786605 | M150: 0.4890986621 | N150: 0.4751903733
B151: Options @ $0.015 | C151: 0 | D151: 0 | E151: 0 | F151: 0 | G151: 0.0006974034887 | H151: 0.0006957023945 | I151: 0.0006949392012 | J151: 0.0006896883848 | K151: 0.0006892639408 | L151: 0.0006838899759 | M151: 0.0006829404774 | N151: 0.000663519992
B152: Options @ $0.03 | C152: 0 | D152: 0 | E152: 0 | F152: 0 | G152: 0 | H152: 0.002439182288 | I152: 0.002436506478 | J152: 0.002418096741 | K152: 0.002416608609 | L152: 0.002397767105 | M152: 0.002394438095 | N152: 0.002326348486
B153: Options @ $0.066 | C153: 0 | D153: 0 | E153: 0 | F153: 0 | G153: 0 | H153: 0 | I153: 0.001097011168 | J153: 0.001088722379 | K153: 0.001088052364 | L153: 0.001079569176 | M153: 0.001078070325 | N153: 0.001047413702
B154: Options @ $0.072 | C154: 0 | D154: 0 | E154: 0 | F154: 0 | G154: 0 | H154: 0 | I154: 0 | J154: 0.00609431318 | K154: 0.006090562653 | L154: 0.006043076534 | M154: 0.006034686453 | N154: 0.005863080663
B155: Options @ $0.094 | C155: 0 | D155: 0 | E155: 0 | F155: 0 | G155: 0 | H155: 0 | I155: 0 | J155: 0 | K155: 0.0006154142328 | L155: 0.0006106160499 | M155: 0.0006097682834 | N155: 0.0005924285643
B156: Options @ $0.17 | C156: 0 | D156: 0 | E156: 0 | F156: 0 | G156: 0 | H156: 0 | I156: 0 | J156: 0 | K156: 0 | L156: 0.007796672038 | M156: 0.007785847303 | N156: 0.007564444502
B157: Options @ $0.206 | C157: 0 | D157: 0 | E157: 0 | F157: 0 | G157: 0 | H157: 0 | I157: 0 | J157: 0 | K157: 0 | L157: 0 | M157: 0.001388378965 | N157: 0.001348898228
C158: 0 | D158: 0 | E158: 0 | F158: 0 | G158: 0 | H158: 0 | I158: 0 | J158: 0 | K158: 0 | L158: 0 | M158: 0 | N158: 0.02843657109
B159: Common Stock Warrants @ $0.072 | C159: 0 | D159: 0 | E159: 0 | F159: 0 | G159: 0 | H159: 0 | I159: 0 | J159: 0.001461479246 | K159: 0.00146057983 | L159: 0.001449192168 | M159: 0.001447180141 | N159: 0.0014060273
B160: Total | C160: =SUM(C143:C159) -> 1 | D160: =SUM(D143:D159) -> 1 | E160: 1 | F160: 1 | G160: 1 | H160: 1 | I160: 1 | J160: 1 | K160: 1 | L160: 1 | M160: 1 | N160: 1
B162: Allocation percentages | C162: =C142 -> Option 1 | D162: Option 2 | E162: Option 3 | F162: Option 4 | G162: Option 5 | H162: Option 6 | I162: Option 7 | J162: Option 8 | K162: Option 9 | L162: Option 10 | M162: Option 11 | N162: Option 12 | O162: Total
B163: =B143 -> Series A | C163: =C143*C$90 -> 0 | D163: =D143*D$90 -> 0 | E163: 5786887.586 | F163: 573706.6351 | G163: 568467.7622 | H163: 1342601.354 | I163: 220752.1201 | J163: 801933.2206 | K163: 2678623.997 | L163: 1218703.744 | O163: =SUM(C163:N163) -> 
B164: =B144 -> Series B | C164: =C144*C$90 -> 0 | D164: 8411676.757 | E164: 0 | F164: 670846.7662 | G164: 664720.8462 | H164: 1569930.905 | I164: 258129.9166 | J164: 937716.7263 | K164: 3132169.19 | L164: 1425054.925 | O164: =SUM(C164:N164) -> 
B165: Series C | C165: 31175223.8 | D165: 0 | E165: 0 | F165: 729470.0646 | G165: 722808.8188 | H165: 1707122.485 | I165: 280687.1203 | J165: 1019660.995 | K165: 3405880.115 | L165: 1549586.225
B166: Series C-1 | C166: 61496579.08 | D166: 0 | E166: 0 | F166: 270524.5613 | G166: 268054.2329 | H166: 633087.7494 | I166: 104093.0447 | J166: 378142.1016 | K166: 1263073.385 | L166: 574665.3004
B167: Series C-1* | C167: 18301245.67 | D167: 0 | E167: 0 | F167: 80507.51001 | G167: 79772.34576 | H167: 188405.5114 | I167: 30977.85947 | J167: 112534.2515 | K167: 375887.8408 | L167: 171019.1201
B168: Series C-2 | C168: 177746418.4 | D168: 0 | E168: 0 | F168: 137984.0651 | G168: 136724.0466 | H168: 322913.4569 | I168: 53093.81669 | J168: 192875.59 | K168: 644244.6463 | L168: 293114.4362
B169: Common shares - Class A | C169: 0 | D169: 0 | E169: 0 | F169: 643959.0623 | G169: 638078.6707 | H169: 1507007.687 | I169: 247784.0059 | J169: 900132.8085 | K169: 3006631.076 | L169: 1367938.372
B170: Common shares - Class B | C170: 0 | D170: 0 | E170: 0 | F170: 3104577.927 | G170: 3076228.091 | H170: 7265404.085 | I170: 1194586.427 | J170: 4339611.961 | K170: 14495207.88 | L170: 6594939.841
B171: Options @ $0.015 | C171: 0 | D171: 0 | E171: 0 | F171: 0 | G171: 4295.412856 | H171: 10144.86221 | I171: 1668.030375 | J171: 6059.50679 | K171: 20240.01486 | L171: 9208.676515
B172: Options @ $0.03 | C172: 0 | D172: 0 | E172: 0 | F172: 0 | G172: 0 | H172: 35568.61154 | I172: 5848.233639 | J172: 21245.06363 | K172: 70962.93781 | L172: 32286.27762
B173: Options @ $0.066 | C173: 0 | D173: 0 | E173: 0 | F173: 0 | G173: 0 | H173: 0 | I173: 2633.105092 | J173: 9565.36429 | K173: 31950.30917 | L173: 14536.55364
B174: Options @ $0.072 | C174: 0 | D174: 0 | E174: 0 | F174: 0 | G174: 0 | H174: 0 | I174: 0 | J174: 53543.79298 | K174: 178847.4216 | L174: 81370.89139
B175: Options @ $0.094 | C175: 0 | D175: 0 | E175: 0 | F175: 0 | G175: 0 | H175: 0 | I175: 0 | J175: 0 | K175: 18071.44184 | L175: 8222.032602
B176: Options @ $0.17 | C176: 0 | D176: 0 | E176: 0 | F176: 0 | G176: 0 | H176: 0 | I176: 0 | J176: 0 | K176: 0 | L176: 104983.3061
B177: Options @ $0.206 | C177: 0 | D177: 0 | E177: 0 | F177: 0 | G177: 0 | H177: 0 | I177: 0 | J177: 0 | K177: 0 | L177: 0
C178: 0 | D178: 0 | E178: 0 | F178: 0 | G178: 0 | H178: 0 | I178: 0 | J178: 0 | K178: 0 | L178: 0
B179: Common Stock Warrants @ $0.072 | C179: 0 | D179: 0 | E179: 0 | F179: 0 | G179: 0 | H179: 0 | I179: 0 | J179: 12840.35458 | K179: 42889.45892 | L179: 19513.58019
B180: Total | C180: =SUM(C163:C179) -> 288719466.9 | D180: =SUM(D163:D179) -> 8411676.757 | E180: 5786887.586 | F180: 6211576.592 | G180: 6159150.227 | H180: 14582186.71 | I180: 2400253.68 | J180: 8785861.736 | K180: 29364679.72 | L180: =SUM(L163:L179) -> 13465143.28 | P180: =IF(OR(ROUND(F6-O180,0)>1,ROUND(F6-O180,0)<=-1),"Error","OK") -> 
C181: =C180-C90 -> 0 | D181: 0 | E181: 0 | F181: 0 | G181: 0 | H181: 0 | I181: 0 | J181: 0 | K181: 0 | L181: 0 | O181: =O180-SUM(C90:N90) -> 
B183: Classes | C183: # of shares | D183: Value | E183: Per Share | F183: % of EV
B185: =B163 -> Series A | C185: =TRANSPOSE(C97:S97) -> 46320045 | D185: =O163 ->  | E185: =D185/C185 ->  | F185: =D185/$D$202 -> 
B186: =B164 -> Series B | C186: 54162965 | D186: =O164 ->  | F186: =D186/$D$202 -> 
B187: Series C | C187: 58896105
B188: Series C-1 | C188: 21841668
B189: Series C-1* | C189: 6500032
B190: Series C-2 | C190: 11140586
B191: Common shares - Class A | C191: 51992100
B192: Common shares - Class B | C192: 250658055
B193: Options @ $0.015 | C193: 350000
B194: Options @ $0.03 | C194: 1227125
B195: Options @ $0.066 | C195: 552500
B196: Options @ $0.072 | C196: 3092715
B197: Options @ $0.094 | C197: 312500
B198: Options @ $0.17 | C198: 3990167
B199: Options @ $0.206 | C199: 711530
C200: 15000000
B201: Common Stock Warrants @ $0.072 | C201: 741665
B202: Total | C202: =SUM(C185:C201) -> 527489758 | D202: =SUM(D185:D201) ->  | F202: =SUM(F185:F201) ->  | G202: =C202-K35 -> 0
B204: Fair Market Value (FMV) of Common Stock | D204: ($)
B206: Common Stock (before DLOM) | D206: =+E191 -> 
B208: Discount For Lack of Marketability (DLOM) | C208: =DLOM!E10 -> 0.285 | D208: =D206*C208 -> 
B210: FMV of Common stock | D210: =D206-D208 -> 

Sheet Backsolve_Feb'14 (hidden)
B1: Allocation
B3: Concluded Equity Value | D3: EV | E3: Weight | F3: Value
G5: =G6-D20 -> -0.0584208729
B6: Distributable value | F6: =815773082.807217+(H6*10^6) -> 1030773083 | G6: ='Backsolve_Feb''14'!$E$190 -> 16.94157913 | H6: 215
B8: Convertible Notes - Class of Shares | C8: Issue Price | D8: LP | E8: Principal Amount | F8: Interest Rate | G8: Interest Cost | H8: Number of Shares
B9: ='C1&C2New_sept''14'!A9 -> C-1 convertible note | C9: ='C1&C2_Feb''14'!B2 -> 3 | D9: ='C1&C2_Feb''14'!D2 -> 3 | E9: ='C1&C2_Feb''14'!F2 -> 9999999 | F9: 0.0079 | G9: =+E9*F9*$D$42 -> 315999.9684 | H9: =+ROUND(E9/C9,0) -> 3333333
B10: ='C1&C2New_sept''14'!A10 -> C-1 convertible note | C10: ='C1&C2_Feb''14'!B3 -> 15 | D10: ='C1&C2_Feb''14'!D3 -> 3 | E10: ='C1&C2_Feb''14'!F3 -> 30000000 | F10: 0.0079 | G10: =+E10*F10*$D$42 -> 948000 | H10: =+ROUND(E10/C10,0) -> 2000000
B11: ='C1&C2New_sept''14'!A11 -> C-2 convertible note | C11: ='C1&C2_Feb''14'!B4 -> 17 | D11: ='C1&C2_Feb''14'!D4 -> 17 | E11: ='C1&C2_Feb''14'!F4 -> 74999988 | F11: 0.0079 | G11: =+E11*F11*$D$42 -> 2369999.621 | H11: =+ROUND(E11/C11,0) -> 4411764
B12: Total | E12: =+SUM(E9:E11) -> 114999987 | G12: =+SUM(G9:G11) -> 3633999.589
B14: Class of stock | C14: No. of shares | D14: Issue Price | E14: Invested Amount | F14: LP | G14: Total LP | H14: Participation Cap | I14: Converison Price | J14: Conversion ratio | K14: # of shares on converted basis | L14: % Ownership | M14: % Ownership (diluted)
B15: Series A | C15: ='Summ post_Feb''14'!$J$15 -> 46320045 | D15: 0.15 | E15: =+D15*C15 -> 6948006.75 | F15: 0.15 | G15: =C15*F15 -> 6948006.75 | H15: Unlimited | I15: =D15 -> 0.15 | J15: =D15/I15 -> 1 | K15: =C15*J15 -> 46320045 | L15: =C15/$C$23 -> 0.09236087274 | M15: =K15/$K$35 -> 0.08781221682
B16: Series B | C16: ='Summ post_Feb''14'!$J$17 -> 54162965 | D16: 0.184628 | E16: 9999999.902 | F16: 0.184628 | G16: 9999999.902 | H16: Unlimited | I16: 0.184628 | J16: 1 | K16: 54162965 | L16: =C16/$C$23 -> 0.1079994356 | M16: =K16/$K$35 -> 0.1026806003
B17: Series C | C17: ='Summ post_Feb''14'!$J$19 -> 58896105 | D17: 0.564 | E17: 33217403.22 | F17: 0.564 | G17: 33217403.22 | H17: Unlimited | I17: 0.564 | J17: 1 | K17: 58896105 | L17: 0.1174371842 | M17: 0.1116535518
B18: Series C-1 | C18: ='Shares_Sep''13'!$J$19+H9 -> 21841668 | D18: ='C1&C2_Feb''14'!B2 -> 3 | E18: 65525004 | F18: 3 | G18: 65525004 | H18: Unlimited | I18: 3 | J18: 1 | K18: 21841668 | L18: 0.04355167441 | M18: 0.04140680965
B19: Series C-1* | C19: ='Summ post_Feb''14'!$J$21-'Shares_Sep''13'!$J$19+H10 -> 6500032 | D19: ='C1&C2_Feb''14'!B3 -> 15 | E19: 97500480 | F19: 3 | G19: 19500096 | H19: Unlimited | I19: 15 | J19: 1 | K19: 6500032 | L19: 0.0129608818 | M19: 0.0123225748
B20: Series C-2 | C20: ='Summ post_Feb''14'!$J$23+H11 -> 11140586 | D20: ='C1&C2_Feb''14'!B4 -> 17 | E20: 189389962 | F20: ='C1&C2New_sept''14'!D4 -> 17 | G20: 189389962 | H20: Unlimited | I20: 17 | J20: 1 | K20: 11140586 | L20: 0.02221401654 | M20: 0.02112000438
B21: Common shares - Class A | C21: ='Summ post_Feb''14'!$J$9 -> 51992100 | K21: =C21 -> 51992100 | L21: 0.1036707916 | M21: 0.0985651365
B22: Common shares - Class B | C22: ='Summ post_Feb''14'!$J$11 -> 250658055 | K22: =C22 -> 250658055 | L22: 0.4998051431 | M22: 0.4751903733
B23: Sub Total | C23: =SUM(C15:C22) -> 501511556 | E23: =SUM(E15:E20) -> 402580855.9 | G23: =SUM(G15:G20) -> 324580471.9 | K23: =SUM(K15:K22) -> 501511556 | L23: =SUM(L15:L22) -> 1 | M23: =K23/$K$35 -> 0.9507512675
B25: Dilutive Instruments | C25: # of options | D25: Strike price
B26: ="Options @ $"&ROUND(D26,3) -> Options @ $0.015 | C26: ='Option outstanding_Feb''14'!$B$4 -> 350000 | D26: ='Option outstanding_Feb''14'!$A$4 -> 0.015 | F26: =D26 -> 0.015 | J26: 1 | K26: =C26*J26 -> 350000 | M26: =K26/$K$35 -> 0.000663519992
B27: ="Options @ $"&ROUND(D27,3) -> Options @ $0.03 | C27: ='Option outstanding_Feb''14'!$B$5 -> 1227125 | D27: ='Option outstanding_Feb''14'!$A$5 -> 0.03 | F27: 0.03 | J27: 1 | K27: 1227125 | M27: =K27/$K$35 -> 0.002326348486
B28: Options @ $0.066 | C28: ='Option outstanding_Feb''14'!$B$6 -> 552500 | D28: ='Option outstanding_Feb''14'!$A$6 -> 0.066 | F28: 0.066 | J28: 1 | K28: 552500 | M28: 0.001047413702
B29: Options @ $0.072 | C29: ='Option outstanding_Feb''14'!$B$7 -> 3092715 | D29: ='Option outstanding_Feb''14'!$A$7 -> 0.072 | F29: 0.072 | J29: 1 | K29: 3092715 | M29: 0.005863080663
B30: Options @ $0.094 | C30: ='Option outstanding_Feb''14'!$B$8 -> 312500 | D30: ='Option outstanding_Feb''14'!$A$8 -> 0.094 | F30: 0.094 | J30: 1 | K30: 312500 | M30: 0.0005924285643
B31: Options @ $0.17 | C31: ='Option outstanding_Feb''14'!$B$9 -> 3990167 | D31: ='Option outstanding_Feb''14'!$A$9 -> 0.17 | F31: 0.17 | J31: 1 | K31: 3990167 | M31: 0.007564444502
B32: Options @ $0.206 | C32: ='Option outstanding_Feb''14'!$B$10 -> 711530 | D32: ='Option outstanding_Feb''14'!$A$10 -> 0.206 | F32: 0.206 | J32: 1 | K32: 711530 | M32: 0.001348898228
B33: Options @ $0.99 | C33: ='Summ post_Feb''14'!$P$48 -> 15000000 | D33: ='Backsolve_Feb''14'!$D$210 -> 0.9899294012 | F33: 0.9899294012 | J33: 1 | K33: 15000000 | M33: 0.02843657109
B34: ="Common Stock Warrants @ $"&D34 -> Common Stock Warrants @ $0.072 | C34: ='Warrant_Feb''14'!$B$7 -> 741665 | D34: 0.072 | F34: 0.072 | J34: 1 | K34: 741665 | M34: 0.0014060273
B35: Total | C35: =C23+SUM(C26:C34) -> 527489758 | K35: =K23+SUM(K26:K34) -> 527489758 | M35: =M23+SUM(M26:M34) -> 1
B38: Change in control event
H39: Risk free rate (Years)
B40: Valuation date | D40: =Control!C7 -> 2015-03-25 | H40: 1 | I40: ='BETA & CSRP'!C133 -> 0.0026
B41: Liquidation date | D41: =D40+365*D42 -> 2019-03-24 | H41: 2 | I41: ='BETA & CSRP'!C134 -> 0.006
B42: No. of years to Liquidation | D42: 4 | H42: 3 | I42: ='BETA & CSRP'!C135 -> 0.0095
B43: Volatility | D43: 0.4164102574 | H43: 4 | I43: ='BETA & CSRP'!C136 -> 0.0119
B44: Dividend-yield | D44: 0 | H44: 5 | I44: ='BETA & CSRP'!C137 -> 0.0144
B45: Zero coupon yield Corresponding to the time period | D45: =VLOOKUP(D42,H40:I44,2,FALSE) -> 0.0119 | E45: Source : Bloomberg
B48: Event description | C48: Participating Class | D48: Participating shares | E48: Strike Point
A49: 1 | B49: Equity value is nil | C49: None | D49: 0 | E49: 1e-08
A50: 2 | B50: Liquidation preference of Series C,C-1, C-1* and C-2 | C50: Series C, C-1 & C-1* | D50: =C17+C18+C19+C20 -> 98378391 | E50: =G17+G18+G19+G20 -> 307632465.2
A51: =A50+1 -> 3 | B51: Liquidation preference of Series B | C51: Series B | D51: =C16 -> 54162965 | E51: =E50+G16 -> 317632465.1
A52: 4 | B52: Liquidation preference of Series A | C52: Series A | D52: =C15 -> 46320045 | E52: =E51+G15 -> 324580471.9
A53: 5 | B53: =B26&" exercised" -> Options @ $0.015 exercised | C53: Series A, Series B,C,C-1,C-1* & Common | D53: =+K23 -> 501511556 | E53: =E52+D53*F26 -> 332103145.2
A54: 6 | B54: =B27&" exercised" -> Options @ $0.03 exercised | C54: Series A, Series B,C,C-1,C-1*,Common and Options @ $0.015 | D54: =D53+K26 -> 501861556 | E54: =E53+D54*(F27-F26) -> 339631068.6
A55: 7 | B55: =B28&" exercised" -> Options @ $0.066 exercised | C55: Series A, Series B,C,C-1,C-1*, Common,Options @ $0.015,$0.03 | D55: =D54+K27 -> 503088681 | E55: =E54+D55*(F28-F27) -> 357742261.1
A56: 8 | B56: =B29&" and "&B34&" exercised" -> Options @ $0.072 and Common Stock Warrants @ $0.072 exercised | C56: Series A, Series B, C,C-1,C-1*, Common,Options @ $0.015,$0.03,$0.066 | D56: =D55+K28 -> 503641181 | E56: =E55+D56*(F29-F28) -> 360764108.2
A57: 9 | B57: =B30&" exercised" -> Options @ $0.094 exercised | C57: Series A, Series B, C,C-1,C-1*, Common,Options @ $0.015,$0.03,$0.066,$0.072, Common Warrants @ $0.072 | D57: =D56+K29+K34 -> 507475561 | E57: =E56+D57*(F30-F29) -> 371928570.5
A58: 11 | B58: =B31&" get exercised" -> Options @ $0.17 get exercised | C58: Series A,Series B, C,C-1,C-1*, Common,Options @ $0.015,$0.03,$0.066,$0.072,$0.094, Common Warrants @ $0.072 | D58: =D57+K30 -> 507788061 | E58: =E57+D58*(D31-D30) -> 410520463.1
A59: 12 | B59: =B32&" get exercised" -> Options @ $0.206 get exercised | C59: Series A,Series B, C,C-1,C-1*, Common,Options @ $0.015,$0.03,$0.066,$0.072,$0.094,$0.17, Common Warrants @ $0.072 | D59: =D58+K31 -> 511778228 | E59: =E58+D59*(F32-F31) -> 428944479.3
B60: =B33&" get exercised" -> Options @ $0.99 get exercised | C60: Series A,Series B, C,C-1,C-1*, Common,Options @ $0.015,$0.03,$0.066,$0.072,$0.094,$0.17,$0.206, Common Warrants @ $0.072 | D60: =D59+K32 -> 512489758 | E60: =E59+D60*(F33-F32) -> 830700268.4
B61: Thereafter | C61: All classes | D61: =+D60+C33 -> 527489758
C63: 1 | D63: =C63+1 -> 2 | E63: 3 | F63: 4 | G63: 5 | H63: 6 | I63: 7 | J63: 8 | K63: 9 | L63: 10 | M63: 11 | N63: 12
B66: Value of the underlying Asset ($) | C66: =F6 -> 1030773083 | D66: =C66 -> 1030773083 | E66: 1030773083 | F66: 1030773083 | G66: 1030773083 | H66: 1030773083 | I66: 1030773083 | J66: 1030773083 | K66: 1030773083 | L66: 1030773083 | M66: 1030773083 | N66: 1030773083
B67: Strike Price ($) | C67: =TRANSPOSE(E49:E60) -> 1e-08 | D67: 307632465.2 | E67: 317632465.1 | F67: 324580471.9 | G67: 332103145.2 | H67: 339631068.6 | I67: 357742261.1 | J67: 360764108.2 | K67: 371928570.5 | L67: 410520463.1 | M67: 428944479.3 | N67: 830700268.4
B68: S.D of the Underlying preferred share | C68: =D43 -> 0.4164102574 | D68: =C68 -> 0.4164102574 | E68: 0.4164102574 | F68: 0.4164102574 | G68: 0.4164102574 | H68: 0.4164102574 | I68: 0.4164102574 | J68: 0.4164102574 | K68: =J68 -> 0.4164102574 | L68: =K68 -> 0.4164102574 | M68: 0.4164102574 | N68: 0.4164102574
B69: Dividend yield | C69: =D44 -> 0 | D69: 0 | E69: 0 | F69: 0 | G69: 0 | H69: 0 | I69: 0 | J69: 0 | K69: =J69 -> 0 | L69: 0 | M69: 0 | N69: 0
B70: Time of Expiration (years) | C70: =D42 -> 4 | D70: 4 | E70: 4 | F70: 4 | G70: 4 | H70: 4 | I70: 4 | J70: 4 | K70: =J70 -> 4 | L70: 4 | M70: 4 | N70: 4
B71: Riskless Rate corresponding to option life time | C71: =D45 -> 0.0119 | D71: 0.0119 | E71: 0.0119 | F71: 0.0119 | G71: 0.0119 | H71: 0.0119 | I71: 0.0119 | J71: 0.0119 | K71: =J71 -> 0.0119 | L71: 0.0119 | M71: 0.0119 | N71: 0.0119
B75: Stock Price | C75: =C66 -> 1030773083 | D75: 1030773083 | E75: 1030773083 | F75: 1030773083 | G75: 1030773083 | H75: 1030773083 | I75: 1030773083 | J75: 1030773083 | K75: 1030773083 | L75: 1030773083 | M75: 1030773083 | N75: 1030773083
B76: Strike Price | C76: 1e-08 | D76: 307632465.2 | E76: 317632465.1 | F76: 324580471.9 | G76: 332103145.2 | H76: 339631068.6 | I76: 357742261.1 | J76: 360764108.2 | K76: 371928570.5 | L76: 410520463.1 | M76: 428944479.3 | N76: 830700268.4
B77: Expiration (in years) | C77: =C70 -> 4 | D77: 4 | E77: 4 | F77: 4 | G77: 4 | H77: 4 | I77: 4 | J77: 4 | K77: 4 | L77: 4 | M77: 4 | N77: 4
B78: T.Bond rate | C78: 0.0119 | D78: 0.0119 | E78: 0.0119 | F78: 0.0119 | G78: 0.0119 | H78: 0.0119 | I78: 0.0119 | J78: 0.0119 | K78: 0.0119 | L78: 0.0119 | M78: 0.0119 | N78: 0.0119
B79: Variance | C79: =C68^2 -> 0.1733975024 | D79: 0.1733975024 | E79: 0.1733975024 | F79: 0.1733975024 | G79: 0.1733975024 | H79: 0.1733975024 | I79: 0.1733975024 | J79: 0.1733975024 | K79: 0.1733975024 | L79: 0.1733975024 | M79: 0.1733975024 | N79: 0.1733975024
B80: Annualized dividend yield | C80: =C69 -> 0 | D80: 0 | E80: 0 | F80: 0 | G80: 0 | H80: 0 | I80: 0 | J80: 0 | K80: 0 | L80: 0 | M80: 0 | N80: 0
B83: d1 = | C83: =(LN(C75/C76)+(C78-C80+(C79/2))*C77)/(((C79)^(0.5))*(C77^0.5)) -> 47.51161862 | D83: 1.925449201 | E83: 1.887038562 | F83: 1.861056314 | G83: 1.833544857 | H83: 1.80663109 | I83: 1.744249282 | J83: 1.734149244 | K83: 1.697553704 | L83: 1.579012008 | M83: 1.526297511 | N83: =(LN(N75/N76)+(N78-N80+(N79/2))*N77)/(((N79)^(0.5))*(N77^0.5)) -> 0.7326792719
B84: N(d1) = | C84: =NORMSDIST(C83) -> 1 | D84: 0.9729134073 | E84: 0.9704224304 | F84: 0.9686318877 | G84: 0.9666392079 | H84: 0.9645900907 | I84: 0.9594421843 | J84: 0.958554197 | K84: 0.9552039865 | L84: 0.9428333486 | M84: 0.9365321059 | N84: 0.7681229654
B86: d2 = | C86: =C83-((C79^0.5)*(C77^(0.5))) -> 46.6787981 | D86: 1.092628686 | E86: 1.054218047 | F86: 1.0282358 | G86: 1.000724342 | H86: 0.9738105755 | I86: 0.9114287668 | J86: 0.9013287289 | K86: 0.8647331891 | L86: 0.7461914935 | M86: 0.6934769962 | N86: -0.1001412428
B87: N(d2) = | C87: =NORMSDIST(C86) -> 1 | D87: 0.8627215688 | E87: 0.8541084503 | F87: 0.8480805389 | G87: 0.8415199522 | H87: 0.8349246994 | I87: 0.8189652489 | J87: 0.8162932184 | K87: 0.8064073757 | L87: 0.772224127 | M87: 0.7559948714 | N87: 0.4601160964
C89: =(EXP((0-C80)*C77))*C75*C84-C76*(EXP((0-C78)*C77))*C87 -> 1030773083 | D89: 749788931.2 | E89: 741603751.2 | F89: 735965207.1 | G89: 729905449.9 | H89: 723888683.1 | I89: 709607768.6 | J89: 707251870.2 | K89: 698614637.8 | L89: 669569780.8 | M89: 656146369.3 | N89: 427309297.5
C90: =C89-D89 -> 280984151.6 | D90: 8185180.029 | E90: 5638544.124 | F90: 6059757.182 | G90: 6016766.78 | H90: 14280914.45 | I90: 2355898.445 | J90: 8637232.388 | K90: 29044856.98 | L90: 13423411.57 | M90: 228837071.7 | N90: =N89 -> 427309297.5 | O90: =SUM(C90:N90)-F6 -> 0
B95: Participation in Incremental Value after Each Event
B96: Participation =1, No participation = 0 | C96: =TRANSPOSE(B15:B22) -> Series A | D96: Series B | E96: Series C | F96: Series C-1 | G96: Series C-1* | H96: Series C-2 | I96: Common shares - Class A | J96: Common shares - Class B | K96: =TRANSPOSE(B26:B34) -> Options @ $0.015 | L96: Options @ $0.03 | M96: Options @ $0.066 | N96: Options @ $0.072 | O96: Options @ $0.094 | P96: Options @ $0.17 | Q96: Options @ $0.206 | R96: Options @ $0.99 | S96: Common Stock Warrants @ $0.072 | T96: Total
B97: Common Stock Equivalents | C97: =TRANSPOSE(K15:K22) -> 46320045 | D97: 54162965 | E97: 58896105 | F97: 21841668 | G97: 6500032 | H97: 11140586 | I97: 51992100 | J97: 250658055 | K97: =TRANSPOSE(K26:K34) -> 350000 | L97: 1227125 | M97: 552500 | N97: 3092715 | O97: 312500 | P97: 3990167 | Q97: 711530 | R97: 15000000 | S97: 741665 | T97: =SUM(C97:S97) -> 527489758 | U97: =T97-K35 -> 0
B98: LP | C98: =TRANSPOSE(G15:G20) -> 6948006.75 | D98: 9999999.902 | E98: 33217403.22 | F98: 65525004 | G98: 19500096 | H98: 189389962
A100: 1 | B100: =B50 -> Liquidation preference of Series C,C-1, C-1* and C-2 | C100: 0 | D100: 0 | E100: 1 | F100: 1 | G100: 1 | H100: 1 | I100: 0 | J100: 0 | K100: 0 | L100: 0 | M100: 0 | N100: 0 | O100: 0 | P100: 0 | Q100: 0 | R100: 0 | S100: 0 | T100: =SUM(C100:S100) -> 4
A101: 2 | B101: =B51 -> Liquidation preference of Series B | C101: 0 | D101: 1 | E101: 0 | F101: 0 | G101: 0 | H101: 0 | I101: 0 | J101: 0 | K101: 0 | L101: 0 | M101: 0 | N101: 0 | O101: 0 | P101: 0 | Q101: 0 | R101: 0 | S101: 0 | T101: =SUM(C101:S101) -> 1
A102: 3 | B102: Liquidation preference of Series A | C102: 1 | D102: 0 | E102: 0 | F102: 0 | G102: 0 | H102: 0 | I102: 0 | J102: 0 | K102: 0 | L102: 0 | M102: 0 | N102: 0 | O102: 0 | P102: 0 | Q102: 0 | R102: 0 | S102: 0 | T102: 1
A103: 4 | B103: Options @ $0.015 exercised | C103: 1 | D103: 1 | E103: 1 | F103: 1 | G103: 1 | H103: 1 | I103: 1 | J103: 1 | K103: 0 | L103: 0 | M103: 0 | N103: 0 | O103: 0 | P103: 0 | Q103: 0 | R103: 0 | S103: 0 | T103: 8
A104: 5 | B104: Options @ $0.03 exercised | C104: 1 | D104: 1 | E104: 1 | F104: 1 | G104: 1 | H104: 1 | I104: 1 | J104: 1 | K104: 1 | L104: 0 | M104: 0 | N104: 0 | O104: 0 | P104: 0 | Q104: 0 | R104: 0 | S104: 0 | T104: 9
A105: 6 | B105: Options @ $0.066 exercised | C105: 1 | D105: 1 | E105: 1 | F105: 1 | G105: 1 | H105: 1 | I105: 1 | J105: 1 | K105: 1 | L105: 1 | M105: 0 | N105: 0 | O105: 0 | P105: 0 | Q105: 0 | R105: 0 | S105: 0 | T105: 10
A106: 7 | B106: Options @ $0.072 and Common Stock Warrants @ $0.072 exercised | C106: 1 | D106: 1 | E106: 1 | F106: 1 | G106: 1 | H106: 1 | I106: 1 | J106: 1 | K106: 1 | L106: 1 | M106: 1 | N106: 0 | O106: 0 | P106: 0 | Q106: 0 | R106: 0 | S106: 0 | T106: 11
A107: 8 | B107: Options @ $0.094 exercised | C107: 1 | D107: 1 | E107: 1 | F107: 1 | G107: 1 | H107: 1 | I107: 1 | J107: 1 | K107: 1 | L107: 1 | M107: 1 | N107: 1 | O107: 0 | P107: 0 | Q107: 0 | R107: 0 | S107: 1 | T107: 13
A108: 9 | B108: Options @ $0.17 get exercised | C108: 1 | D108: 1 | E108: 1 | F108: 1 | G108: 1 | H108: 1 | I108: 1 | J108: 1 | K108: 1 | L108: 1 | M108: 1 | N108: 1 | O108: 1 | P108: 0 | Q108: 0 | R108: 0 | S108: 1 | T108: 14
A109: 10 | B109: Options @ $0.206 get exercised | C109: 1 | D109: 1 | E109: 1 | F109: 1 | G109: 1 | H109: 1 | I109: 1 | J109: 1 | K109: 1 | L109: 1 | M109: 1 | N109: 1 | O109: 1 | P109: 1 | Q109: 0 | R109: 0 | S109: 1 | T109: 15
A110: 11 | B110: Options @ $0.99 get exercised | C110: 1 | D110: 1 | E110: 1 | F110: 1 | G110: 1 | H110: 1 | I110: 1 | J110: 1 | K110: 1 | L110: 1 | M110: 1 | N110: 1 | O110: 1 | P110: 1 | Q110: 1 | R110: 0 | S110: 1 | T110: 16
A111: 12 | B111: Thereafter | C111: 1 | D111: 1 | E111: 1 | F111: 1 | G111: 1 | H111: 1 | I111: 1 | J111: 1 | K111: 1 | L111: 1 | M111: 1 | N111: 1 | O111: 1 | P111: 1 | Q111: 1 | R111: 1 | S111: 1 | T111: 17
B113: LP in $ / Number of Shares | T113: Total
B115: =B100 -> Liquidation preference of Series C,C-1, C-1* and C-2 | C115: =C$98*C100 -> 0 | D115: =D$98*D100 -> 0 | E115: 33217403.22 | F115: 65525004 | G115: 19500096 | H115: 189389962 | I115: 0 | J115: 0 | K115: 0 | L115: 0 | M115: 0 | N115: 0 | O115: 0 | P115: 0 | Q115: 0 | R115: 0 | S115: 0 | T115: =SUM(C115:S115) -> 307632465.2 | U115: =T115-E50 -> 0
B116: Liquidation preference of Series B | C116: =C$98*C101 -> 0 | D116: 9999999.902 | E116: 0 | F116: 0 | G116: 0 | H116: 0 | I116: 0 | J116: 0 | K116: 0 | L116: 0 | M116: 0 | N116: 0 | O116: 0 | P116: 0 | Q116: 0 | R116: 0 | S116: 0 | T116: =SUM(C116:S116) -> 9999999.902 | U116: =E51-SUM($T$115:T116) -> 0
B117: Liquidation preference of Series A | C117: 6948006.75 | D117: 0 | E117: 0 | F117: 0 | G117: 0 | H117: 0 | I117: 0 | J117: 0 | K117: 0 | L117: 0 | M117: 0 | N117: 0 | O117: 0 | P117: 0 | Q117: 0 | R117: 0 | S117: 0 | T117: 6948006.75 | U117: =E52-SUM($T$115:T117) -> 0
B118: Options @ $0.015 exercised | C118: =C103*C$97 -> 46320045 | D118: =D103*D$97 -> 54162965 | E118: 58896105 | F118: 21841668 | G118: 6500032 | H118: 11140586 | I118: 51992100 | J118: 250658055 | K118: 0 | L118: 0 | M118: 0 | N118: 0 | O118: 0 | P118: 0 | Q118: 0 | R118: 0 | S118: 0 | T118: 501511556 | U118: =D53-T118 -> 0
B119: Options @ $0.03 exercised | C119: =C104*C$97 -> 46320045 | D119: 54162965 | E119: 58896105 | F119: 21841668 | G119: 6500032 | H119: 11140586 | I119: 51992100 | J119: 250658055 | K119: 350000 | L119: 0 | M119: 0 | N119: 0 | O119: 0 | P119: 0 | Q119: 0 | R119: 0 | S119: 0 | T119: 501861556 | U119: =D54-T119 -> 0
B120: Options @ $0.066 exercised | C120: 46320045 | D120: 54162965 | E120: 58896105 | F120: 21841668 | G120: 6500032 | H120: 11140586 | I120: 51992100 | J120: 250658055 | K120: 350000 | L120: 1227125 | M120: 0 | N120: 0 | O120: 0 | P120: 0 | Q120: 0 | R120: 0 | S120: 0 | T120: 503088681 | U120: 0
B121: Options @ $0.072 and Common Stock Warrants @ $0.072 exercised | C121: 46320045 | D121: 54162965 | E121: 58896105 | F121: 21841668 | G121: 6500032 | H121: 11140586 | I121: 51992100 | J121: 250658055 | K121: 350000 | L121: 1227125 | M121: 552500 | N121: 0 | O121: 0 | P121: 0 | Q121: 0 | R121: 0 | S121: 0 | T121: 503641181 | U121: 0
B122: Options @ $0.094 exercised | C122: 46320045 | D122: 54162965 | E122: 58896105 | F122: 21841668 | G122: 6500032 | H122: 11140586 | I122: 51992100 | J122: 250658055 | K122: 350000 | L122: 1227125 | M122: 552500 | N122: 3092715 | O122: 0 | P122: 0 | Q122: 0 | R122: 0 | S122: 741665 | T122: 507475561 | U122: 0
B123: =B108 -> Options @ $0.17 get exercised | C123: 46320045 | D123: 54162965 | E123: 58896105 | F123: 21841668 | G123: 6500032 | H123: 11140586 | I123: 51992100 | J123: 250658055 | K123: 350000 | L123: 1227125 | M123: 552500 | N123: 3092715 | O123: 312500 | P123: 0 | Q123: 0 | R123: 0 | S123: 741665 | T123: 507788061 | U123: 0
B124: =B109 -> Options @ $0.206 get exercised | C124: 46320045 | D124: 54162965 | E124: 58896105 | F124: 21841668 | G124: 6500032 | H124: 11140586 | I124: 51992100 | J124: 250658055 | K124: 350000 | L124: 1227125 | M124: 552500 | N124: 3092715 | O124: 312500 | P124: 3990167 | Q124: 0 | R124: 0 | S124: 741665 | T124: 511778228 | U124: 0
B125: =B110 -> Options @ $0.99 get exercised | C125: 46320045 | D125: 54162965 | E125: 58896105 | F125: 21841668 | G125: 6500032 | H125: 11140586 | I125: 51992100 | J125: 250658055 | K125: 350000 | L125: 1227125 | M125: 552500 | N125: 3092715 | O125: 312500 | P125: 3990167 | Q125: 711530 | R125: 0 | S125: 741665 | T125: 512489758 | U125: 0
B126: =B111 -> Thereafter | C126: 46320045 | D126: 54162965 | E126: 58896105 | F126: 21841668 | G126: 6500032 | H126: 11140586 | I126: 51992100 | J126: 250658055 | K126: 350000 | L126: 1227125 | M126: 552500 | N126: 3092715 | O126: 312500 | P126: 3990167 | Q126: 711530 | R126: 15000000 | S126: 741665 | T126: 527489758 | U126: 0
B127: % of Ownership in Incremental Value after Each Event | T127: Total
B129: =B115 -> Liquidation preference of Series C,C-1, C-1* and C-2 | C129: =C115/$T115 -> 0 | D129: =D115/$T115 -> 0 | E129: 0.1079775608 | F129: 0.2129976885 | G129: 0.06338764014 | H129: 0.6156371106 | I129: 0 | J129: 0 | K129: 0 | L129: 0 | M129: 0 | N129: 0 | O129: 0 | P129: 0 | Q129: 0 | R129: 0 | S129: 0 | T129: =SUM(C129:S129) -> 1
B130: Liquidation preference of Series B | C130: =C116/$T116 -> 0 | D130: 1 | E130: 0 | F130: 0 | G130: 0 | H130: 0 | I130: 0 | J130: 0 | K130: 0 | L130: 0 | M130: 0 | N130: 0 | O130: 0 | P130: 0 | Q130: 0 | R130: 0 | S130: 0 | T130: =SUM(C130:S130) -> 1
B131: Liquidation preference of Series A | C131: 1 | D131: 0 | E131: 0 | F131: 0 | G131: 0 | H131: 0 | I131: 0 | J131: 0 | K131: 0 | L131: 0 | M131: 0 | N131: 0 | O131: 0 | P131: 0 | Q131: 0 | R131: 0 | S131: 0 | T131: 1
B132: Options @ $0.015 exercised | C132: 0.09236087274 | D132: 0.1079994356 | E132: 0.1174371842 | F132: 0.04355167441 | G132: 0.0129608818 | H132: 0.02221401654 | I132: 0.1036707916 | J132: 0.4998051431 | K132: 0 | L132: 0 | M132: 0 | N132: 0 | O132: 0 | P132: 0 | Q132: 0 | R132: 0 | S132: 0 | T132: 1
B133: Options @ $0.03 exercised | C133: 0.09229645994 | D133: 0.1079241164 | E133: 0.1173552831 | F133: 0.04352130132 | G133: 0.01295184284 | H133: 0.02219852441 | I133: 0.1035984912 | J133: 0.4994565772 | K133: 0.0006974034887 | L133: 0 | M133: 0 | N133: 0 | O133: 0 | P133: 0 | Q133: 0 | R133: 0 | S133: 0 | T133: 1
B134: Options @ $0.066 exercised | C134: 0.09207133205 | D134: 0.1076608698 | E134: 0.1170690322 | F134: 0.04341514493 | G134: 0.01292025093 | H134: 0.02214437816 | I134: 0.1033457956 | J134: 0.4982383116 | K134: 0.0006957023945 | L134: 0.002439182288 | M134: 0 | N134: 0 | O134: 0 | P134: 0 | Q134: 0 | R134: 0 | S134: 0 | T134: 1
B135: Options @ $0.072 and Common Stock Warrants @ $0.072 exercised | C135: 0.09197032877 | D135: 0.1075427647 | E135: 0.1169406062 | F135: 0.04336751803 | G135: 0.01290607727 | H135: 0.02212008553 | I135: 0.1032324241 | J135: 0.4976917386 | K135: 0.0006949392012 | L135: 0.002436506478 | M135: 0.001097011168 | N135: 0 | O135: 0 | P135: 0 | Q135: 0 | R135: 0 | S135: 0 | T135: 1
B136: Options @ $0.094 exercised | C136: 0.09127542006 | D136: 0.1067301939 | E136: 0.1160570272 | F136: 0.04303984207 | G136: 0.01280856163 | H136: 0.02195295076 | I136: 0.1024524213 | J136: 0.4939312831 | K136: 0.0006896883848 | L136: 0.002418096741 | M136: 0.001088722379 | N136: 0.00609431318 | O136: 0 | P136: 0 | Q136: 0 | R136: 0 | S136: 0.001461479246 | T136: 1
B137: =B123 -> Options @ $0.17 get exercised | C137: 0.09121924787 | D137: 0.1066645106 | E137: 0.1159856041 | F137: 0.04301335474 | G137: 0.01280067906 | H137: 0.0219394406 | I137: 0.1023893707 | J137: 0.4936273108 | K137: 0.0006892639408 | L137: 0.002416608609 | M137: 0.001088052364 | N137: 0.006090562653 | O137: 0.0006154142328 | P137: 0 | Q137: 0 | R137: 0 | S137: 0.00146057983 | T137: 1
B138: =B124 -> Options @ $0.206 get exercised | C138: 0.09050804131 | D138: 0.1058328824 | E138: 0.1150813024 | F138: 0.04267799372 | G138: 0.01270087636 | H138: 0.02176838597 | I138: 0.1015910743 | J138: 0.4897786605 | K138: 0.0006838899759 | L138: 0.002397767105 | M138: 0.001079569176 | N138: 0.006043076534 | O138: 0.0006106160499 | P138: 0.007796672038 | Q138: 0 | R138: 0 | S138: 0.001449192168 | T138: 1
B139: =B125 -> Options @ $0.99 get exercised | C139: 0.09038238185 | D139: 0.1056859462 | E139: 0.1149215259 | F139: 0.04261874049 | G139: 0.01268324274 | H139: 0.0217381632 | I139: 0.1014500274 | J139: 0.4890986621 | K139: 0.0006829404774 | L139: 0.002394438095 | M139: 0.001078070325 | N139: 0.006034686453 | O139: 0.0006097682834 | P139: 0.007785847303 | Q139: 0.001388378965 | R139: 0 | S139: 0.001447180141 | T139: 1
B140: =B126 -> Thereafter | C140: 0.08781221682 | D140: 0.1026806003 | E140: 0.1116535518 | F140: 0.04140680965 | G140: 0.0123225748 | H140: 0.02112000438 | I140: 0.0985651365 | J140: 0.4751903733 | K140: 0.000663519992 | L140: 0.002326348486 | M140: 0.001047413702 | N140: 0.005863080663 | O140: 0.0005924285643 | P140: 0.007564444502 | Q140: 0.001348898228 | R140: 0.02843657109 | S140: 0.0014060273 | T140: 1
B142: Value Allocated | C142: Option 1 | D142: Option 2 | E142: Option 3 | F142: Option 4 | G142: Option 5 | H142: Option 6 | I142: Option 7 | J142: Option 8 | K142: Option 9 | L142: Option 10 | M142: Option 11 | N142: Option 12
B143: =TRANSPOSE(C96:S96) -> Series A | C143: =TRANSPOSE(C129:S140) -> 0 | D143: 0 | E143: 1 | F143: 0.09236087274 | G143: 0.09229645994 | H143: 0.09207133205 | I143: 0.09197032877 | J143: 0.09127542006 | K143: 0.09121924787 | L143: 0.09050804131 | M143: 0.09038238185 | N143: 0.08781221682
B144: Series B | C144: 0 | D144: 1 | E144: 0 | F144: 0.1079994356 | G144: 0.1079241164 | H144: 0.1076608698 | I144: 0.1075427647 | J144: 0.1067301939 | K144: 0.1066645106 | L144: 0.1058328824 | M144: 0.1056859462 | N144: 0.1026806003
B145: Series C | C145: 0.1079775608 | D145: 0 | E145: 0 | F145: 0.1174371842 | G145: 0.1173552831 | H145: 0.1170690322 | I145: 0.1169406062 | J145: 0.1160570272 | K145: 0.1159856041 | L145: 0.1150813024 | M145: 0.1149215259 | N145: 0.1116535518
B146: Series C-1 | C146: 0.2129976885 | D146: 0 | E146: 0 | F146: 0.04355167441 | G146: 0.04352130132 | H146: 0.04341514493 | I146: 0.04336751803 | J146: 0.04303984207 | K146: 0.04301335474 | L146: 0.04267799372 | M146: 0.04261874049 | N146: 0.04140680965
B147: Series C-1* | C147: 0.06338764014 | D147: 0 | E147: 0 | F147: 0.0129608818 | G147: 0.01295184284 | H147: 0.01292025093 | I147: 0.01290607727 | J147: 0.01280856163 | K147: 0.01280067906 | L147: 0.01270087636 | M147: 0.01268324274 | N147: 0.0123225748
B148: Series C-2 | C148: 0.6156371106 | D148: 0 | E148: 0 | F148: 0.02221401654 | G148: 0.02219852441 | H148: 0.02214437816 | I148: 0.02212008553 | J148: 0.02195295076 | K148: 0.0219394406 | L148: 0.02176838597 | M148: 0.0217381632 | N148: 0.02112000438
B149: Common shares - Class A | C149: 0 | D149: 0 | E149: 0 | F149: 0.1036707916 | G149: 0.1035984912 | H149: 0.1033457956 | I149: 0.1032324241 | J149: 0.1024524213 | K149: 0.1023893707 | L149: 0.1015910743 | M149: 0.1014500274 | N149: 0.0985651365
B150: Common shares - Class B | C150: 0 | D150: 0 | E150: 0 | F150: 0.4998051431 | G150: 0.4994565772 | H150: 0.4982383116 | I150: 0.4976917386 | J150: 0.4939312831 | K150: 0.4936273108 | L150: 0.4897786605 | M150: 0.4890986621 | N150: 0.4751903733
B151: Options @ $0.015 | C151: 0 | D151: 0 | E151: 0 | F151: 0 | G151: 0.0006974034887 | H151: 0.0006957023945 | I151: 0.0006949392012 | J151: 0.0006896883848 | K151: 0.0006892639408 | L151: 0.0006838899759 | M151: 0.0006829404774 | N151: 0.000663519992
B152: Options @ $0.03 | C152: 0 | D152: 0 | E152: 0 | F152: 0 | G152: 0 | H152: 0.002439182288 | I152: 0.002436506478 | J152: 0.002418096741 | K152: 0.002416608609 | L152: 0.002397767105 | M152: 0.002394438095 | N152: 0.002326348486
B153: Options @ $0.066 | C153: 0 | D153: 0 | E153: 0 | F153: 0 | G153: 0 | H153: 0 | I153: 0.001097011168 | J153: 0.001088722379 | K153: 0.001088052364 | L153: 0.001079569176 | M153: 0.001078070325 | N153: 0.001047413702
B154: Options @ $0.072 | C154: 0 | D154: 0 | E154: 0 | F154: 0 | G154: 0 | H154: 0 | I154: 0 | J154: 0.00609431318 | K154: 0.006090562653 | L154: 0.006043076534 | M154: 0.006034686453 | N154: 0.005863080663
B155: Options @ $0.094 | C155: 0 | D155: 0 | E155: 0 | F155: 0 | G155: 0 | H155: 0 | I155: 0 | J155: 0 | K155: 0.0006154142328 | L155: 0.0006106160499 | M155: 0.0006097682834 | N155: 0.0005924285643
B156: Options @ $0.17 | C156: 0 | D156: 0 | E156: 0 | F156: 0 | G156: 0 | H156: 0 | I156: 0 | J156: 0 | K156: 0 | L156: 0.007796672038 | M156: 0.007785847303 | N156: 0.007564444502
B157: Options @ $0.206 | C157: 0 | D157: 0 | E157: 0 | F157: 0 | G157: 0 | H157: 0 | I157: 0 | J157: 0 | K157: 0 | L157: 0 | M157: 0.001388378965 | N157: 0.001348898228
B158: Options @ $0.99 | C158: 0 | D158: 0 | E158: 0 | F158: 0 | G158: 0 | H158: 0 | I158: 0 | J158: 0 | K158: 0 | L158: 0 | M158: 0 | N158: 0.02843657109
B159: Common Stock Warrants @ $0.072 | C159: 0 | D159: 0 | E159: 0 | F159: 0 | G159: 0 | H159: 0 | I159: 0 | J159: 0.001461479246 | K159: 0.00146057983 | L159: 0.001449192168 | M159: 0.001447180141 | N159: 0.0014060273
B160: Total | C160: =SUM(C143:C159) -> 1 | D160: =SUM(D143:D159) -> 1 | E160: 1 | F160: 1 | G160: 1 | H160: 1 | I160: 1 | J160: 1 | K160: 1 | L160: 1 | M160: 1 | N160: 1
B162: Allocation percentages | C162: =C142 -> Option 1 | D162: Option 2 | E162: Option 3 | F162: Option 4 | G162: Option 5 | H162: Option 6 | I162: Option 7 | J162: Option 8 | K162: Option 9 | L162: Option 10 | M162: Option 11 | N162: Option 12 | O162: Total
B163: =B143 -> Series A | C163: =C143*C$90 -> 0 | D163: =D143*D$90 -> 0 | E163: 5638544.124 | F163: 559684.4619 | G163: 555326.2741 | H163: 1314862.817 | I163: 216672.7545 | J163: 788367.0144 | K163: 2649450.008 | L163: 1214926.689 | M163: 20682839.6 | N163: 37522976.68 | O163: =SUM(C163:N163) -> 71143650.42
B164: =B144 -> Series B | C164: =C144*C$90 -> 0 | D164: 8185180.029 | E164: 0 | F164: 654450.3556 | G164: 649354.2385 | H164: 1537495.672 | I164: 253359.832 | J164: 921853.4871 | K164: 3098055.455 | L164: 1420638.338 | M164: 24184862.46 | N164: 43876375.18 | O164: =SUM(C164:N164) -> 84781625.04
B165: Series C | C165: 30339983.32 | D165: 0 | E165: 0 | F165: 711640.8206 | G165: 706099.369 | H165: 1671852.834 | I165: 275500.1922 | J165: 1002411.514 | K165: 3368785.283 | L165: 1544783.686 | M165: 26298305.47 | N165: 47710600.77 | O165: 113629963.3
B166: Series C-1 | C166: 59848974.8 | D166: 0 | E166: 0 | F166: 263912.5718 | G166: 261857.52 | H166: 620007.9708 | I166: 102169.4683 | J166: 371745.1179 | K166: 1249316.737 | L166: 572884.2747 | M166: 9752747.775 | N166: 17693514.74 | O166: 90737130.97
B167: Series C-1* | C167: 17810922.29 | D167: 0 | E167: 0 | F167: 78539.79659 | G167: 77928.21773 | H167: 184512.9983 | I167: 30405.40737 | J167: 110630.5234 | K167: 371793.8926 | L167: 170489.0907 | M167: 2902396.128 | N167: 5265550.782 | O167: 27003169.12
B168: Series C-2 | C168: 172984271.2 | D168: 0 | E168: 0 | F168: 134611.5463 | G168: 133563.3442 | H168: 316241.9701 | I168: 52112.6751 | J168: 189612.7373 | K168: 637227.9144 | L168: 292206.0041 | M168: 4974497.613 | N168: 9024774.236 | O168: 188739119.2
B169: Common shares - Class A | C169: 0 | D169: 0 | E169: 0 | F169: 628219.8239 | G169: 623327.9604 | H169: 1475872.466 | I169: 243205.1074 | J169: 884905.3719 | K169: 2973884.628 | L169: 1363698.803 | M169: 23215527.2 | N169: 42117799.24 | O169: 73526440.6
B170: Common shares - Class B | C170: 0 | D170: 0 | E170: 0 | F170: 3028697.805 | G170: 3005113.742 | H170: 7115298.706 | I170: 1172511.193 | J170: 4266199.276 | K170: 14337334.64 | L170: 6574500.538 | M170: 111923905.6 | N170: 203053264.6 | O170: 354476826.1
B171: Options @ $0.015 | C171: 0 | D171: 0 | E171: 0 | F171: 0 | G171: 4196.114143 | H171: 9935.266381 | I171: 1637.206183 | J171: 5956.998855 | K171: 20019.57258 | L171: 9180.136615 | M171: 156282.099 | N171: 283528.2617 | O171: 490735.6554
B172: Options @ $0.03 | C172: 0 | D172: 0 | E172: 0 | F172: 0 | G172: 0 | H172: 34833.75359 | I172: 5740.161822 | J172: 20885.66349 | K172: 70190.05144 | L172: 32186.21469 | M172: 547936.2022 | N172: 994070.3374 | O172: 1705842.385
B173: Options @ $0.066 | C173: 0 | D173: 0 | E173: 0 | F173: 0 | G173: 0 | H173: 0 | I173: 2584.446903 | J173: 9403.548193 | K173: 31602.32529 | L173: 14491.50137 | M173: 246702.4563 | N173: 447569.613 | O173: 752353.8911
B174: Options @ $0.072 | C174: 0 | D174: 0 | E174: 0 | F174: 0 | G174: 0 | H174: 0 | I174: 0 | J174: 52637.99918 | K174: 176899.5212 | L174: 81118.70346 | M174: 1380959.977 | N174: 2505348.879 | O174: 4196965.08
B175: Options @ $0.094 | C175: 0 | D175: 0 | E175: 0 | F175: 0 | G175: 0 | H175: 0 | I175: 0 | J175: 0 | K175: 17874.61838 | L175: 8196.550549 | M175: 139537.5884 | N175: 253150.2336 | O175: 418758.991
B176: Options @ $0.17 | C176: 0 | D176: 0 | E176: 0 | F176: 0 | G176: 0 | H176: 0 | I176: 0 | J176: 0 | K176: 0 | L176: 104657.9376 | M176: 1781690.498 | N176: 3232357.466 | O176: 5118705.902
B177: Options @ $0.206 | C177: 0 | D177: 0 | E177: 0 | F177: 0 | G177: 0 | H177: 0 | I177: 0 | J177: 0 | K177: 0 | L177: 0 | M177: 317712.5769 | N177: 576396.7543 | O177: 894109.3313
B178: Options @ $0.99 | C178: 0 | D178: 0 | E178: 0 | F178: 0 | G178: 0 | H178: 0 | I178: 0 | J178: 0 | K178: 0 | L178: 0 | M178: 0 | N178: 12151211.21 | O178: 12151211.21
B179: Common Stock Warrants @ $0.072 | C179: 0 | D179: 0 | E179: 0 | F179: 0 | G179: 0 | H179: 0 | I179: 0 | J179: 12623.13587 | K179: 42422.33228 | L179: 19453.10292 | M179: 331168.4656 | N179: 600808.5377 | O179: 1006475.574
B180: Total | C180: =SUM(C163:C179) -> 280984151.6 | D180: =SUM(D163:D179) -> 8185180.029 | E180: 5638544.124 | F180: 6059757.182 | G180: 6016766.78 | H180: 14280914.45 | I180: 2355898.445 | J180: 8637232.388 | K180: 29044856.98 | L180: =SUM(L163:L179) -> 13423411.57 | M180: 228837071.7 | N180: 427309297.5 | O180: 1030773083 | P180: =IF(OR(ROUND(F6-O180,0)>1,ROUND(F6-O180,0)<=-1),"Error","OK") -> OK
C181: =C180-C90 -> 0 | D181: 0 | E181: 0 | F181: 0 | G181: 0 | H181: 0 | I181: 0 | J181: 0 | K181: 0 | L181: 0 | M181: 0 | N181: 0 | O181: =O180-SUM(C90:N90) -> 0
B183: Classes | C183: # of shares | D183: Value | E183: Per Share | F183: % of EV
B185: =B163 -> Series A | C185: =TRANSPOSE(C97:S97) -> 46320045 | D185: =O163 -> 71143650.42 | E185: =D185/C185 -> 1.535914968 | F185: =D185/$D$202 -> 0.06901970144
B186: =B164 -> Series B | C186: 54162965 | D186: =O164 -> 84781625.04 | E186: 1.565306202 | F186: =D186/$D$202 -> 0.08225052289
B187: Series C | C187: 58896105 | D187: 113629963.3 | E187: 1.929328998 | F187: 0.1102376121
B188: Series C-1 | C188: 21841668 | D188: 90737130.97 | E188: 4.154313259 | F188: 0.08802823093
B189: Series C-1* | C189: 6500032 | D189: 27003169.12 | E189: 4.154313259 | F189: 0.02619700647
B190: Series C-2 | C190: 11140586 | D190: 188739119.2 | E190: 16.94157913 | F190: 0.1831044314
B191: Common shares - Class A | C191: 51992100 | D191: 73526440.6 | E191: 1.414184859 | F191: 0.07133135491
B192: Common shares - Class B | C192: 250658055 | D192: 354476826.1 | E192: 1.414184859 | F192: 0.3438941432
B193: Options @ $0.015 | C193: 350000 | D193: 490735.6554 | E193: 1.402101873 | F193: 0.0004760850508
B194: Options @ $0.03 | C194: 1227125 | D194: 1705842.385 | E194: 1.390112975 | F194: 0.001654915532
B195: Options @ $0.066 | C195: 552500 | D195: 752353.8911 | E195: 1.3617265 | F195: 0.0007298928384
B196: Options @ $0.072 | C196: 3092715 | D196: 4196965.08 | E196: 1.357048768 | F196: 0.004071667324
B197: Options @ $0.094 | C197: 312500 | D197: 418758.991 | E197: 1.340028771 | F197: 0.0004062572044
B198: Options @ $0.17 | C198: 3990167 | D198: 5118705.902 | E198: 1.282829992 | F198: 0.004965890153
B199: Options @ $0.206 | C199: 711530 | D199: 894109.3313 | E199: 1.256601031 | F199: 0.0008674162589
B200: Options @ $0.99 | C200: 15000000 | D200: 12151211.21 | E200: 0.8100807476 | F200: 0.01178844444
B201: Common Stock Warrants @ $0.072 | C201: 741665 | D201: 1006475.574 | E201: 1.357048768 | F201: 0.0009764278784
B202: Total | C202: =SUM(C185:C201) -> 527489758 | D202: =SUM(D185:D201) -> 1030773083 | F202: =SUM(F185:F201) -> 1 | G202: =C202-K35 -> 0
B204: Fair Market Value (FMV) of Common Stock | D204: ($)
B206: Common Stock (before DLOM) | D206: =+E191 -> 1.414184859
B208: Discount For Lack of Marketability (DLOM) | C208: 0.3 | D208: =D206*C208 -> 0.4242554577
B210: FMV of Common stock | D210: =D206-D208 -> 0.9899294012

Sheet DCF
B1: Discounted Cash Flow | C1: FCFE
B2: =Control!$C$4 -> (in $'000) | O2: =IF(OR(N2="Terminal",N2=""),"",IF(#REF!(N2,#REF!)>#REF!,"Terminal",#REF!(N2,#REF!))) ->  | P2: =IF(OR(O2="Terminal",O2=""),"",IF(#REF!(O2,#REF!)>#REF!,"Terminal",#REF!(O2,#REF!))) -> 
B3: Discounted Cash Flow Statement | C3: =Bal_Sheet!H3 -> 2015-03-25 | D3: =Bal_Sheet!I3 -> 2015-12-31 | E3: =IF(OR(D3="",D3="Terminal"),"",IF(EOMONTH(D3,12)>$D$108,"Terminal",EOMONTH(D3,12))) -> 2016-12-31 | F3: =IF(OR(E3="",E3="Terminal"),"",IF(EOMONTH(E3,12)>$D$108,"Terminal",EOMONTH(E3,12))) -> 2017-12-31 | G3: =IF(OR(F3="",F3="Terminal"),"",IF(EOMONTH(F3,12)>$D$108,"Terminal",EOMONTH(F3,12))) -> 2018-12-31 | H3: =IF(OR(G3="",G3="Terminal"),"",IF(EOMONTH(G3,12)>$D$108,"Terminal",EOMONTH(G3,12))) -> Terminal
C4: =Inc_Stat!H4 -> 2 Mth-A | D4: =Inc_Stat!I4 -> 10 Mth-F | E4: =Inc_Stat!J4 -> FY-F | F4: =Inc_Stat!K4 -> FY-F | G4: =Inc_Stat!L4 -> FY-F | H4: =Inc_Stat!M4 -> FY-F | I4: =Inc_Stat!N4 -> FY-F | J4: =Inc_Stat!O4 -> FY-F | K4: =Inc_Stat!P4 ->  | L4: =Inc_Stat!Q4 ->  | M4: =Inc_Stat!R4 ->  | N4: =Inc_Stat!S4 ->  | O4: =Inc_Stat!T4 ->  | P4: =Inc_Stat!U4 -> 
B6: Revenues | C6: =Inc_Stat!H64 -> 14 | D6: =SUMIF(Inc_Stat!$H$60:$AX$60,"<="&DCF!D$3,Inc_Stat!$H$64:$AX$64)-SUMIF(Inc_Stat!$H$60:$AX$60,"<="&DCF!C$3,Inc_Stat!$H$64:$AX$64)-IF(Control!$D$6=1,0,Inc_Stat!$J$64) -> 113438 | E6: =(SUMIF(Inc_Stat!$H$60:$AX$60,"<="&DCF!E$3,Inc_Stat!$H$64:$AX$64)-SUMIF(Inc_Stat!$H$60:$AX$60,"<="&DCF!D$3,Inc_Stat!$H$64:$AX$64))*E$132 -> 223452 | F6: =(SUMIF(Inc_Stat!$H$60:$AX$60,"<="&DCF!F$3,Inc_Stat!$H$64:$AX$64)-SUMIF(Inc_Stat!$H$60:$AX$60,"<="&DCF!E$3,Inc_Stat!$H$64:$AX$64))*F$132 -> 323452 | G6: =(SUMIF(Inc_Stat!$H$60:$AX$60,"<="&DCF!G$3,Inc_Stat!$H$64:$AX$64)-SUMIF(Inc_Stat!$H$60:$AX$60,"<="&DCF!F$3,Inc_Stat!$H$64:$AX$64))*G$132 -> 503452 | H6: =(SUMIF(Inc_Stat!$H$60:$AX$60,"<="&DCF!H$3,Inc_Stat!$H$64:$AX$64)-SUMIF(Inc_Stat!$H$60:$AX$60,"<="&DCF!G$3,Inc_Stat!$H$64:$AX$64))*H$132 -> 0 | I6: =(SUMIF(Inc_Stat!$H$60:$AX$60,"<="&DCF!I$3,Inc_Stat!$H$64:$AX$64)-SUMIF(Inc_Stat!$H$60:$AX$60,"<="&DCF!H$3,Inc_Stat!$H$64:$AX$64))*I$132 -> 0 | J6: =(SUMIF(Inc_Stat!$H$60:$AX$60,"<="&DCF!J$3,Inc_Stat!$H$64:$AX$64)-SUMIF(Inc_Stat!$H$60:$AX$60,"<="&DCF!I$3,Inc_Stat!$H$64:$AX$64))*J$132 -> 0 | K6: =(SUMIF(Inc_Stat!$H$60:$AX$60,"<="&DCF!K$3,Inc_Stat!$H$64:$AX$64)-SUMIF(Inc_Stat!$H$60:$AX$60,"<="&DCF!J$3,Inc_Stat!$H$64:$AX$64))*K$132 -> 0 | L6: =(SUMIF(Inc_Stat!$H$60:$AX$60,"<="&DCF!L$3,Inc_Stat!$H$64:$AX$64)-SUMIF(Inc_Stat!$H$60:$AX$60,"<="&DCF!K$3,Inc_Stat!$H$64:$AX$64))*L$132 -> 0 | M6: =(SUMIF(Inc_Stat!$H$60:$AX$60,"<="&DCF!M$3,Inc_Stat!$H$64:$AX$64)-SUMIF(Inc_Stat!$H$60:$AX$60,"<="&DCF!L$3,Inc_Stat!$H$64:$AX$64))*M$132 -> 0 | N6: =(SUMIF(Inc_Stat!$H$60:$AX$60,"<="&DCF!N$3,Inc_Stat!$H$64:$AX$64)-SUMIF(Inc_Stat!$H$60:$AX$60,"<="&DCF!M$3,Inc_Stat!$H$64:$AX$64))*N$132 -> 0 | O6: =(SUMIF(Inc_Stat!$H$60:$AX$60,"<="&DCF!O$3,Inc_Stat!$H$64:$AX$64)-SUMIF(Inc_Stat!$H$60:$AX$60,"<="&DCF!N$3,Inc_Stat!$H$64:$AX$64))*O$132 -> 0 | P6: =(SUMIF(Inc_Stat!$H$60:$AX$60,"<="&DCF!P$3,Inc_Stat!$H$64:$AX$64)-SUMIF(Inc_Stat!$H$60:$AX$60,"<="&DCF!O$3,Inc_Stat!$H$64:$AX$64))*P$132 -> 0
B7: EBITDA | C7: =Inc_Stat!H72 -> -22946.51613 | D7: =SUMIF(Inc_Stat!$H$60:$AX$60,"<="&DCF!D$3,Inc_Stat!$H$72:$AX$72)-SUMIF(Inc_Stat!$H$60:$AX$60,"<="&DCF!C$3,Inc_Stat!$H$72:$AX$72)-IF(Control!$D$6=1,0,Inc_Stat!$J$72) -> -189.9839737 | E7: =(SUMIF(Inc_Stat!$H$60:$AX$60,"<="&DCF!E$3,Inc_Stat!$H$72:$AX$72)-SUMIF(Inc_Stat!$H$60:$AX$60,"<="&DCF!D$3,Inc_Stat!$H$72:$AX$72))*E$132 -> 52183.4999 | F7: =(SUMIF(Inc_Stat!$H$60:$AX$60,"<="&DCF!F$3,Inc_Stat!$H$72:$AX$72)-SUMIF(Inc_Stat!$H$60:$AX$60,"<="&DCF!E$3,Inc_Stat!$H$72:$AX$72))*F$132 -> 111167.4999 | G7: =(SUMIF(Inc_Stat!$H$60:$AX$60,"<="&DCF!G$3,Inc_Stat!$H$72:$AX$72)-SUMIF(Inc_Stat!$H$60:$AX$60,"<="&DCF!F$3,Inc_Stat!$H$72:$AX$72))*G$132 -> 228212.4999 | H7: =(SUMIF(Inc_Stat!$H$60:$AX$60,"<="&DCF!H$3,Inc_Stat!$H$72:$AX$72)-SUMIF(Inc_Stat!$H$60:$AX$60,"<="&DCF!G$3,Inc_Stat!$H$72:$AX$72))*H$132 -> 0 | I7: =(SUMIF(Inc_Stat!$H$60:$AX$60,"<="&DCF!I$3,Inc_Stat!$H$72:$AX$72)-SUMIF(Inc_Stat!$H$60:$AX$60,"<="&DCF!H$3,Inc_Stat!$H$72:$AX$72))*I$132 -> 0 | J7: =(SUMIF(Inc_Stat!$H$60:$AX$60,"<="&DCF!J$3,Inc_Stat!$H$72:$AX$72)-SUMIF(Inc_Stat!$H$60:$AX$60,"<="&DCF!I$3,Inc_Stat!$H$72:$AX$72))*J$132 -> 0 | K7: =(SUMIF(Inc_Stat!$H$60:$AX$60,"<="&DCF!K$3,Inc_Stat!$H$72:$AX$72)-SUMIF(Inc_Stat!$H$60:$AX$60,"<="&DCF!J$3,Inc_Stat!$H$72:$AX$72))*K$132 -> 0 | L7: =(SUMIF(Inc_Stat!$H$60:$AX$60,"<="&DCF!L$3,Inc_Stat!$H$72:$AX$72)-SUMIF(Inc_Stat!$H$60:$AX$60,"<="&DCF!K$3,Inc_Stat!$H$72:$AX$72))*L$132 -> 0 | M7: =(SUMIF(Inc_Stat!$H$60:$AX$60,"<="&DCF!M$3,Inc_Stat!$H$72:$AX$72)-SUMIF(Inc_Stat!$H$60:$AX$60,"<="&DCF!L$3,Inc_Stat!$H$72:$AX$72))*M$132 -> 0 | N7: =(SUMIF(Inc_Stat!$H$60:$AX$60,"<="&DCF!N$3,Inc_Stat!$H$72:$AX$72)-SUMIF(Inc_Stat!$H$60:$AX$60,"<="&DCF!M$3,Inc_Stat!$H$72:$AX$72))*N$132 -> 0 | O7: =(SUMIF(Inc_Stat!$H$60:$AX$60,"<="&DCF!O$3,Inc_Stat!$H$72:$AX$72)-SUMIF(Inc_Stat!$H$60:$AX$60,"<="&DCF!N$3,Inc_Stat!$H$72:$AX$72))*O$132 -> 0 | P7: =(SUMIF(Inc_Stat!$H$60:$AX$60,"<="&DCF!P$3,Inc_Stat!$H$72:$AX$72)-SUMIF(Inc_Stat!$H$60:$AX$60,"<="&DCF!O$3,Inc_Stat!$H$72:$AX$72))*P$132 -> 0
B8: EBIT | C8: =Inc_Stat!H$76 -> -28638 | D8: =SUMIF(Inc_Stat!$H$60:$AX$60,"<="&DCF!D$3,Inc_Stat!$H$76:$AX$76)-SUMIF(Inc_Stat!$H$60:$AX$60,"<="&DCF!C$3,Inc_Stat!$H$76:$AX$76)-IF(Control!$D$6=1,0,Inc_Stat!$J$76) -> -18834.5001 | E8: =(SUMIF(Inc_Stat!$H$60:$AX$60,"<="&DCF!E$3,Inc_Stat!$H$76:$AX$76)-SUMIF(Inc_Stat!$H$60:$AX$60,"<="&DCF!D$3,Inc_Stat!$H$76:$AX$76))*E$132 -> 12947.4999 | F8: =(SUMIF(Inc_Stat!$H$60:$AX$60,"<="&DCF!F$3,Inc_Stat!$H$76:$AX$76)-SUMIF(Inc_Stat!$H$60:$AX$60,"<="&DCF!E$3,Inc_Stat!$H$76:$AX$76))*F$132 -> 59714.4999 | G8: =(SUMIF(Inc_Stat!$H$60:$AX$60,"<="&DCF!G$3,Inc_Stat!$H$76:$AX$76)-SUMIF(Inc_Stat!$H$60:$AX$60,"<="&DCF!F$3,Inc_Stat!$H$76:$AX$76))*G$132 -> 166654.4999 | H8: =(SUMIF(Inc_Stat!$H$60:$AX$60,"<="&DCF!H$3,Inc_Stat!$H$76:$AX$76)-SUMIF(Inc_Stat!$H$60:$AX$60,"<="&DCF!G$3,Inc_Stat!$H$76:$AX$76))*H$132 -> 0 | I8: =(SUMIF(Inc_Stat!$H$60:$AX$60,"<="&DCF!I$3,Inc_Stat!$H$76:$AX$76)-SUMIF(Inc_Stat!$H$60:$AX$60,"<="&DCF!H$3,Inc_Stat!$H$76:$AX$76))*I$132 -> 0 | J8: =(SUMIF(Inc_Stat!$H$60:$AX$60,"<="&DCF!J$3,Inc_Stat!$H$76:$AX$76)-SUMIF(Inc_Stat!$H$60:$AX$60,"<="&DCF!I$3,Inc_Stat!$H$76:$AX$76))*J$132 -> 0 | K8: =(SUMIF(Inc_Stat!$H$60:$AX$60,"<="&DCF!K$3,Inc_Stat!$H$76:$AX$76)-SUMIF(Inc_Stat!$H$60:$AX$60,"<="&DCF!J$3,Inc_Stat!$H$76:$AX$76))*K$132 -> 0 | L8: =(SUMIF(Inc_Stat!$H$60:$AX$60,"<="&DCF!L$3,Inc_Stat!$H$76:$AX$76)-SUMIF(Inc_Stat!$H$60:$AX$60,"<="&DCF!K$3,Inc_Stat!$H$76:$AX$76))*L$132 -> 0 | M8: =(SUMIF(Inc_Stat!$H$60:$AX$60,"<="&DCF!M$3,Inc_Stat!$H$76:$AX$76)-SUMIF(Inc_Stat!$H$60:$AX$60,"<="&DCF!L$3,Inc_Stat!$H$76:$AX$76))*M$132 -> 0 | N8: =(SUMIF(Inc_Stat!$H$60:$AX$60,"<="&DCF!N$3,Inc_Stat!$H$76:$AX$76)-SUMIF(Inc_Stat!$H$60:$AX$60,"<="&DCF!M$3,Inc_Stat!$H$76:$AX$76))*N$132 -> 0 | O8: =(SUMIF(Inc_Stat!$H$60:$AX$60,"<="&DCF!O$3,Inc_Stat!$H$76:$AX$76)-SUMIF(Inc_Stat!$H$60:$AX$60,"<="&DCF!N$3,Inc_Stat!$H$76:$AX$76))*O$132 -> 0 | P8: =(SUMIF(Inc_Stat!$H$60:$AX$60,"<="&DCF!P$3,Inc_Stat!$H$76:$AX$76)-SUMIF(Inc_Stat!$H$60:$AX$60,"<="&DCF!O$3,Inc_Stat!$H$76:$AX$76))*P$132 -> 0
B9: Net Earnings (PAT) | C9: =Inc_Stat!H$90 -> -28648 | D9: =SUMIF(Inc_Stat!$H$60:$AX$60,"<="&DCF!D$3,Inc_Stat!$H$90:$AX$90)-SUMIF(Inc_Stat!$H$60:$AX$60,"<="&DCF!C$3,Inc_Stat!$H$90:$AX$90)-IF(Control!$D$6=1,0,Inc_Stat!$J$90) -> -19324 | E9: =(SUMIF(Inc_Stat!$H$60:$AX$60,"<="&DCF!E$3,Inc_Stat!$H$90:$AX$90)-SUMIF(Inc_Stat!$H$60:$AX$60,"<="&DCF!D$3,Inc_Stat!$H$90:$AX$90))*E$132 -> 12645 | F9: =(SUMIF(Inc_Stat!$H$60:$AX$60,"<="&DCF!F$3,Inc_Stat!$H$90:$AX$90)-SUMIF(Inc_Stat!$H$60:$AX$60,"<="&DCF!E$3,Inc_Stat!$H$90:$AX$90))*F$132 -> 59058 | G9: =(SUMIF(Inc_Stat!$H$60:$AX$60,"<="&DCF!G$3,Inc_Stat!$H$90:$AX$90)-SUMIF(Inc_Stat!$H$60:$AX$60,"<="&DCF!F$3,Inc_Stat!$H$90:$AX$90))*G$132 -> 166011 | H9: =(SUMIF(Inc_Stat!$H$60:$AX$60,"<="&DCF!H$3,Inc_Stat!$H$90:$AX$90)-SUMIF(Inc_Stat!$H$60:$AX$60,"<="&DCF!G$3,Inc_Stat!$H$90:$AX$90))*H$132 -> 0 | I9: =(SUMIF(Inc_Stat!$H$60:$AX$60,"<="&DCF!I$3,Inc_Stat!$H$90:$AX$90)-SUMIF(Inc_Stat!$H$60:$AX$60,"<="&DCF!H$3,Inc_Stat!$H$90:$AX$90))*I$132 -> 0 | J9: =(SUMIF(Inc_Stat!$H$60:$AX$60,"<="&DCF!J$3,Inc_Stat!$H$90:$AX$90)-SUMIF(Inc_Stat!$H$60:$AX$60,"<="&DCF!I$3,Inc_Stat!$H$90:$AX$90))*J$132 -> 0 | K9: =(SUMIF(Inc_Stat!$H$60:$AX$60,"<="&DCF!K$3,Inc_Stat!$H$90:$AX$90)-SUMIF(Inc_Stat!$H$60:$AX$60,"<="&DCF!J$3,Inc_Stat!$H$90:$AX$90))*K$132 -> 0 | L9: =(SUMIF(Inc_Stat!$H$60:$AX$60,"<="&DCF!L$3,Inc_Stat!$H$90:$AX$90)-SUMIF(Inc_Stat!$H$60:$AX$60,"<="&DCF!K$3,Inc_Stat!$H$90:$AX$90))*L$132 -> 0 | M9: =(SUMIF(Inc_Stat!$H$60:$AX$60,"<="&DCF!M$3,Inc_Stat!$H$90:$AX$90)-SUMIF(Inc_Stat!$H$60:$AX$60,"<="&DCF!L$3,Inc_Stat!$H$90:$AX$90))*M$132 -> 0 | N9: =(SUMIF(Inc_Stat!$H$60:$AX$60,"<="&DCF!N$3,Inc_Stat!$H$90:$AX$90)-SUMIF(Inc_Stat!$H$60:$AX$60,"<="&DCF!M$3,Inc_Stat!$H$90:$AX$90))*N$132 -> 0 | O9: =(SUMIF(Inc_Stat!$H$60:$AX$60,"<="&DCF!O$3,Inc_Stat!$H$90:$AX$90)-SUMIF(Inc_Stat!$H$60:$AX$60,"<="&DCF!N$3,Inc_Stat!$H$90:$AX$90))*O$132 -> 0 | P9: =(SUMIF(Inc_Stat!$H$60:$AX$60,"<="&DCF!P$3,Inc_Stat!$H$90:$AX$90)-SUMIF(Inc_Stat!$H$60:$AX$60,"<="&DCF!O$3,Inc_Stat!$H$90:$AX$90))*P$132 -> 0
B11: Earnings Before Amortization Interest & Tax | C11: =Inc_Stat!H$76+Inc_Stat!H75 -> -28638 | D11: =SUMIF(Inc_Stat!$H$60:$AX$60,"<="&DCF!D$3,Inc_Stat!$H$76:$AX$76)-SUMIF(Inc_Stat!$H$60:$AX$60,"<="&DCF!C$3,Inc_Stat!$H$76:$AX$76)-IF(Control!$D$6=1,0,Inc_Stat!$J$76)+SUMIF(Inc_Stat!$H$60:$AX$60,"<="&DCF!D$3,Inc_Stat!$H$75:$AX$75)-SUMIF(Inc_Stat!$H$60:$AX$60,"<="&DCF!C$3,Inc_Stat!$H$75:$AX$75)-IF(Control!$D$6=1,0,Inc_Stat!$J$75) -> -18834.5001 | E11: =(SUMIF(Inc_Stat!$H$60:$AX$60,"<="&DCF!E$3,Inc_Stat!$H$76:$AX$76)-SUMIF(Inc_Stat!$H$60:$AX$60,"<="&DCF!D$3,Inc_Stat!$H$76:$AX$76)+SUMIF(Inc_Stat!$H$60:$AX$60,"<="&DCF!E$3,Inc_Stat!$H$75:$AX$75)-SUMIF(Inc_Stat!$H$60:$AX$60,"<="&DCF!D$3,Inc_Stat!$H$75:$AX$75))*E132 -> 12947.4999 | F11: =(SUMIF(Inc_Stat!$H$60:$AX$60,"<="&DCF!F$3,Inc_Stat!$H$76:$AX$76)-SUMIF(Inc_Stat!$H$60:$AX$60,"<="&DCF!E$3,Inc_Stat!$H$76:$AX$76)+SUMIF(Inc_Stat!$H$60:$AX$60,"<="&DCF!F$3,Inc_Stat!$H$75:$AX$75)-SUMIF(Inc_Stat!$H$60:$AX$60,"<="&DCF!E$3,Inc_Stat!$H$75:$AX$75))*F132 -> 59714.4999 | G11: =(SUMIF(Inc_Stat!$H$60:$AX$60,"<="&DCF!G$3,Inc_Stat!$H$76:$AX$76)-SUMIF(Inc_Stat!$H$60:$AX$60,"<="&DCF!F$3,Inc_Stat!$H$76:$AX$76)+SUMIF(Inc_Stat!$H$60:$AX$60,"<="&DCF!G$3,Inc_Stat!$H$75:$AX$75)-SUMIF(Inc_Stat!$H$60:$AX$60,"<="&DCF!F$3,Inc_Stat!$H$75:$AX$75))*G132 -> 166654.4999 | H11: =(SUMIF(Inc_Stat!$H$60:$AX$60,"<="&DCF!H$3,Inc_Stat!$H$76:$AX$76)-SUMIF(Inc_Stat!$H$60:$AX$60,"<="&DCF!G$3,Inc_Stat!$H$76:$AX$76)+SUMIF(Inc_Stat!$H$60:$AX$60,"<="&DCF!H$3,Inc_Stat!$H$75:$AX$75)-SUMIF(Inc_Stat!$H$60:$AX$60,"<="&DCF!G$3,Inc_Stat!$H$75:$AX$75))*H132 -> 0 | I11: =(SUMIF(Inc_Stat!$H$60:$AX$60,"<="&DCF!I$3,Inc_Stat!$H$76:$AX$76)-SUMIF(Inc_Stat!$H$60:$AX$60,"<="&DCF!H$3,Inc_Stat!$H$76:$AX$76)+SUMIF(Inc_Stat!$H$60:$AX$60,"<="&DCF!I$3,Inc_Stat!$H$75:$AX$75)-SUMIF(Inc_Stat!$H$60:$AX$60,"<="&DCF!H$3,Inc_Stat!$H$75:$AX$75))*I132 -> 0 | J11: =(SUMIF(Inc_Stat!$H$60:$AX$60,"<="&DCF!J$3,Inc_Stat!$H$76:$AX$76)-SUMIF(Inc_Stat!$H$60:$AX$60,"<="&DCF!I$3,Inc_Stat!$H$76:$AX$76)+SUMIF(Inc_Stat!$H$60:$AX$60,"<="&DCF!J$3,Inc_Stat!$H$75:$AX$75)-SUMIF(Inc_Stat!$H$60:$AX$60,"<="&DCF!I$3,Inc_Stat!$H$75:$AX$75))*J132 -> 0 | K11: =(SUMIF(Inc_Stat!$H$60:$AX$60,"<="&DCF!K$3,Inc_Stat!$H$76:$AX$76)-SUMIF(Inc_Stat!$H$60:$AX$60,"<="&DCF!J$3,Inc_Stat!$H$76:$AX$76)+SUMIF(Inc_Stat!$H$60:$AX$60,"<="&DCF!K$3,Inc_Stat!$H$75:$AX$75)-SUMIF(Inc_Stat!$H$60:$AX$60,"<="&DCF!J$3,Inc_Stat!$H$75:$AX$75))*K132 -> 0 | L11: =(SUMIF(Inc_Stat!$H$60:$AX$60,"<="&DCF!L$3,Inc_Stat!$H$76:$AX$76)-SUMIF(Inc_Stat!$H$60:$AX$60,"<="&DCF!K$3,Inc_Stat!$H$76:$AX$76)+SUMIF(Inc_Stat!$H$60:$AX$60,"<="&DCF!L$3,Inc_Stat!$H$75:$AX$75)-SUMIF(Inc_Stat!$H$60:$AX$60,"<="&DCF!K$3,Inc_Stat!$H$75:$AX$75))*L132 -> 0 | M11: =(SUMIF(Inc_Stat!$H$60:$AX$60,"<="&DCF!M$3,Inc_Stat!$H$76:$AX$76)-SUMIF(Inc_Stat!$H$60:$AX$60,"<="&DCF!L$3,Inc_Stat!$H$76:$AX$76)+SUMIF(Inc_Stat!$H$60:$AX$60,"<="&DCF!M$3,Inc_Stat!$H$75:$AX$75)-SUMIF(Inc_Stat!$H$60:$AX$60,"<="&DCF!L$3,Inc_Stat!$H$75:$AX$75))*M132 -> 0 | N11: =(SUMIF(Inc_Stat!$H$60:$AX$60,"<="&DCF!N$3,Inc_Stat!$H$76:$AX$76)-SUMIF(Inc_Stat!$H$60:$AX$60,"<="&DCF!M$3,Inc_Stat!$H$76:$AX$76)+SUMIF(Inc_Stat!$H$60:$AX$60,"<="&DCF!N$3,Inc_Stat!$H$75:$AX$75)-SUMIF(Inc_Stat!$H$60:$AX$60,"<="&DCF!M$3,Inc_Stat!$H$75:$AX$75))*N132 -> 0 | O11: =(SUMIF(Inc_Stat!$H$60:$AX$60,"<="&DCF!O$3,Inc_Stat!$H$76:$AX$76)-SUMIF(Inc_Stat!$H$60:$AX$60,"<="&DCF!N$3,Inc_Stat!$H$76:$AX$76)+SUMIF(Inc_Stat!$H$60:$AX$60,"<="&DCF!O$3,Inc_Stat!$H$75:$AX$75)-SUMIF(Inc_Stat!$H$60:$AX$60,"<="&DCF!N$3,Inc_Stat!$H$75:$AX$75))*O132 -> 0 | P11: =(SUMIF(Inc_Stat!$H$60:$AX$60,"<="&DCF!P$3,Inc_Stat!$H$76:$AX$76)-SUMIF(Inc_Stat!$H$60:$AX$60,"<="&DCF!O$3,Inc_Stat!$H$76:$AX$76)+SUMIF(Inc_Stat!$H$60:$AX$60,"<="&DCF!P$3,Inc_Stat!$H$75:$AX$75)-SUMIF(Inc_Stat!$H$60:$AX$60,"<="&DCF!O$3,Inc_Stat!$H$75:$AX$75))*P132 -> 0
B12: Tax on EBIT | C12: =MIN(-C11*Control!$C$16,0) -> 0 | D12: =MIN(-D11*Control!$C$16,0) -> 0 | E12: =MIN(-E11*Control!$C$16,0) -> -4531.624964 | F12: =MIN(-F11*Control!$C$16,0) -> -20900.07496 | G12: =MIN(-G11*Control!$C$16,0) -> -58329.07496 | H12: =MIN(-H11*Control!$C$16,0) -> 0 | I12: =MIN(-I11*Control!$C$16,0) -> 0 | J12: =MIN(-J11*Control!$C$16,0) -> 0 | K12: =MIN(-K11*Control!$C$16,0) -> 0 | L12: =MIN(-L11*Control!$C$16,0) -> 0 | M12: =MIN(-M11*Control!$C$16,0) -> 0 | N12: =MIN(-N11*Control!$C$16,0) -> 0 | O12: =MIN(-O11*Control!$C$16,0) -> 0 | P12: =MIN(-P11*Control!$C$16,0) -> 0
B13: Earnings before Interest, but after Tax | C13: =C11+C12 -> -28638 | D13: =D11+D12 -> -18834.5001 | E13: 8415.874933 | F13: 38814.42493 | G13: 108325.4249 | H13: 0 | I13: 0 | J13: 0 | K13: 0 | L13: 0 | M13: 0 | N13: 0 | O13: 0 | P13: 0
B14: Growth (%) | D14: =IF(Control!$D$6=1,IF(ISERROR(D13/C13)," n/a",D13/C13-1)," n/a") -> n/a | E14: =IF(Control!$D$6=1,IF(OR(D13<=0,ISERROR(E13/D13))," n/a",E13/D13-1),IF(OR((D13+C13)<=0,ISERROR(E13/D13+C13))," n/a",E13/(D13+C13)-1)) -> n/a | F14: =IF(F$132=0," n/a",IF(OR(E13<=0,ISERROR(F13/E13))," n/a",F13/(E13)-1)) -> 3.612048687 | G14: 1.790854821 | H14: n/a | I14: n/a | J14: n/a | K14: n/a | L14: n/a | M14: n/a | N14: n/a | O14: n/a | P14: n/a
B16: Depreciation | C16: =(Cash_Flow!F7)*C$132 -> 5691.483871 | D16: =(Cash_Flow!G7)*D$132 -> 18644.51613 | E16: =(Cash_Flow!H7)*E$132 -> 39236 | F16: =(Cash_Flow!I7)*F$132 -> 51453 | G16: =(Cash_Flow!J7)*G$132 -> 61558 | H16: =(Cash_Flow!K7)*H$132 -> 0 | I16: =(Cash_Flow!L7)*I$132 -> 0 | J16: =(Cash_Flow!M7)*J$132 -> 0 | K16: =(Cash_Flow!N7)*K$132 -> 0 | L16: =(Cash_Flow!O7)*L$132 -> 0 | M16: =(Cash_Flow!P7)*M$132 -> 0 | N16: =(Cash_Flow!Q7)*N$132 -> 0 | O16: =(Cash_Flow!R7)*O$132 -> 0 | P16: =(Cash_Flow!S7)*P$132 -> 0
B17: Change in Working Capital | C17: =Cash_Flow!F25*C$132 -> -15963 | D17: =Cash_Flow!G25*D$132 -> 10634 | E17: =Cash_Flow!H25*E$132 -> -24966 | F17: =Cash_Flow!I25*F$132 -> -27049 | G17: =Cash_Flow!J25*G$132 -> -22756 | H17: =Cash_Flow!K25*H$132 -> 0 | I17: =Cash_Flow!L25*I$132 -> 0 | J17: =Cash_Flow!M25*J$132 -> 0 | K17: =Cash_Flow!N25*K$132 -> 0 | L17: =Cash_Flow!O25*L$132 -> 0 | M17: =Cash_Flow!P25*M$132 -> 0 | N17: =Cash_Flow!Q25*N$132 -> 0 | O17: =Cash_Flow!R25*O$132 -> 0 | P17: =Cash_Flow!S25*P$132 -> 0
B18: Net Change in Other Operating Assets/ Liabilities | C18: =Cash_Flow!F30*C$132 -> 6574 | D18: =Cash_Flow!G30*D$132 -> -6724 | E18: =Cash_Flow!H30*E$132 -> 17927 | F18: =Cash_Flow!I30*F$132 -> -150 | G18: =Cash_Flow!J30*G$132 -> 9735 | H18: =Cash_Flow!K30*H$132 -> 0 | I18: =Cash_Flow!L30*I$132 -> 0 | J18: =Cash_Flow!M30*J$132 -> 0 | K18: =Cash_Flow!N30*K$132 -> 0 | L18: =Cash_Flow!O30*L$132 -> 0 | M18: =Cash_Flow!P30*M$132 -> 0 | N18: =Cash_Flow!Q30*N$132 -> 0 | O18: =Cash_Flow!R30*O$132 -> 0 | P18: =Cash_Flow!S30*P$132 -> 0
B19: Net Capital Expenditure | C19: =Cash_Flow!F42*C$132 -> -10790.48387 | D19: =Cash_Flow!G42*D$132 -> -46679.03226 | E19: =Cash_Flow!H42*E$132 -> -62104.48387 | F19: =Cash_Flow!I42*F$132 -> -57667 | G19: =Cash_Flow!J42*G$132 -> -85125 | H19: =Cash_Flow!K42*H$132 -> 0 | I19: =Cash_Flow!L42*I$132 -> 0 | J19: =Cash_Flow!M42*J$132 -> 0 | K19: =Cash_Flow!N42*K$132 -> 0 | L19: =Cash_Flow!O42*L$132 -> 0 | M19: =Cash_Flow!P42*M$132 -> 0 | N19: =Cash_Flow!Q42*N$132 -> 0 | O19: =Cash_Flow!R42*O$132 -> 0 | P19: =Cash_Flow!S42*P$132 -> 0
B20: Free Cash Flow to Firm (FCFF) | C20: =C13+C16+C17+C19+C18 -> -43126 | D20: =D13+D16+D17+D19+D18 -> -42959.01623 | E20: -21491.60894 | F20: 5401.424933 | G20: =G13+G16+G17+G19+G18 -> 71737.42493 | H20: 0 | I20: 0 | J20: 0 | K20: 0 | L20: 0 | M20: 0 | N20: 0 | O20: 0 | P20: 0
B21: Growth (%) | D21: =IF(Control!$D$6=1,IF(ISERROR(D20/C20)," n/a",D20/C20-1)," n/a") -> n/a | E21: =IF(Control!$D$6=1,IF(OR(D20<=0,ISERROR(E20/D20))," n/a",E20/D20-1),IF(OR((D20+C20)<=0,ISERROR(E20/D20+C20))," n/a",E20/(D20+C20)-1)) -> n/a | F21: =IF(F$132=0," n/a",IF(OR(E20<=0,ISERROR(F20/E20))," n/a",F20/(E20)-1)) -> n/a | G21: 12.28120372 | H21: n/a | I21: n/a | J21: n/a | K21: n/a | L21: n/a | M21: n/a | N21: n/a | O21: n/a | P21: n/a
B23: Net Debt Taken / (Repaid) | H23: =Cash_Flow!K44*H$132 -> 0 | I23: =Cash_Flow!L44*I$132 -> 0 | J23: =Cash_Flow!M44*J$132 -> 0 | K23: =Cash_Flow!N44*K$132 -> 0 | L23: =Cash_Flow!O44*L$132 -> 0 | M23: =Cash_Flow!P44*M$132 -> 0 | N23: =Cash_Flow!Q44*N$132 -> 0 | O23: =Cash_Flow!R44*O$132 -> 0 | P23: =Cash_Flow!S44*P$132 -> 0
B24: Interest & Finance Costs (Tax Adjusted) | H24: =IF(H11>0,Cash_Flow!K45*(1-Control!$C$16),Cash_Flow!K45)*H$132 -> 0 | I24: =IF(I11>0,Cash_Flow!L45*(1-Control!$C$16),Cash_Flow!L45)*I$132 -> 0 | J24: =IF(J11>0,Cash_Flow!M45*(1-Control!$C$16),Cash_Flow!M45)*J$132 -> 0 | K24: =IF(K11>0,Cash_Flow!N45*(1-Control!$C$16),Cash_Flow!N45)*K$132 -> 0 | L24: =IF(L11>0,Cash_Flow!O45*(1-Control!$C$16),Cash_Flow!O45)*L$132 -> 0 | M24: =IF(M11>0,Cash_Flow!P45*(1-Control!$C$16),Cash_Flow!P45)*M$132 -> 0 | N24: =IF(N11>0,Cash_Flow!Q45*(1-Control!$C$16),Cash_Flow!Q45)*N$132 -> 0 | O24: =IF(O11>0,Cash_Flow!R45*(1-Control!$C$16),Cash_Flow!R45)*O$132 -> 0 | P24: =IF(P11>0,Cash_Flow!S45*(1-Control!$C$16),Cash_Flow!S45)*P$132 -> 0
B25: Free Cash Flow to Equity (FCFE) | C25: =C20+C23+C24 -> -43126 | D25: -42959.01623 | E25: -21491.60894 | F25: 5401.424933 | G25: 71737.42493 | H25: 0 | I25: 0 | J25: 0 | K25: 0 | L25: 0 | M25: 0 | N25: 0 | O25: 0 | P25: 0
B26: Growth (%) | D26: =IF(Control!$D$6=1,IF(ISERROR(D25/C25)," n/a",D25/C25-1)," n/a") -> n/a | E26: =IF(Control!$D$6=1,IF(ISERROR(E25/D25)," n/a",E25/D25-1)," n/a") -> n/a | F26: =IF(Control!$D$6=1,IF(ISERROR(F25/E25)," n/a",F25/E25-1)," n/a") -> n/a | G26: =IF(Control!$D$6=1,IF(ISERROR(G25/F25)," n/a",G25/F25-1)," n/a") -> n/a | H26: =IF(Control!$D$6=1,IF(ISERROR(H25/G25)," n/a",H25/G25-1)," n/a") -> n/a | I26: =IF(Control!$D$6=1,IF(ISERROR(I25/H25)," n/a",I25/H25-1)," n/a") -> n/a | J26: =IF(Control!$D$6=1,IF(ISERROR(J25/I25)," n/a",J25/I25-1)," n/a") -> n/a | K26: =IF(Control!$D$6=1,IF(ISERROR(K25/J25)," n/a",K25/J25-1)," n/a") -> n/a | L26: =IF(Control!$D$6=1,IF(ISERROR(L25/K25)," n/a",L25/K25-1)," n/a") -> n/a | M26: =IF(Control!$D$6=1,IF(ISERROR(M25/L25)," n/a",M25/L25-1)," n/a") -> n/a | N26: =IF(Control!$D$6=1,IF(ISERROR(N25/M25)," n/a",N25/M25-1)," n/a") -> n/a | O26: =IF(Control!$D$6=1,IF(ISERROR(O25/N25)," n/a",O25/N25-1)," n/a") -> n/a | P26: =IF(Control!$D$6=1,IF(ISERROR(P25/O25)," n/a",P25/O25-1)," n/a") -> n/a
B28: Partial Year Adjustment | D28: =-(1-((D3-Control!$C$7)/($D$3-$C$3)))*D20 -> 0
B30: Free Cash Flow to Equity (FCFE) | C30: =C25+C28 -> -43126 | D30: =D25+D28 -> -42959.01623 | E30: -21491.60894 | F30: 5401.424933 | G30: 71737.42493 | H30: 0 | I30: 0 | J30: 0 | K30: 0 | L30: 0 | M30: 0 | N30: 0 | O30: 0 | P30: 0
B31: Growth (%) | D31: =IF(Control!$D$6=1,IF(ISERROR(D30/C30)," n/a",D30/C30-1)," n/a") -> n/a | E31: =IF(Control!$D$6=1,IF(OR(D30<=0,ISERROR(E30/D30))," n/a",E30/D30-1),IF(OR((D30+C30)<=0,ISERROR(E30/D30+C30))," n/a",E30/(D30+C30)-1)) -> n/a | F31: =IF(F$132=0," n/a",IF(OR(E30<=0,ISERROR(F30/E30))," n/a",F30/(E30)-1)) -> n/a | G31: 12.28120372 | H31: n/a | I31: n/a | J31: n/a | K31: n/a | L31: n/a | M31: n/a | N31: n/a | O31: n/a | P31: n/a
B34: Year Fraction | C34: 0 | D34: =IF(Control!$C$7=D$3,0,($D$3-Control!$C$7)/365) -> 0.7698630137 | E34: =(D34+1) -> 1.769863014 | F34: =(E34+1) -> 2.769863014 | G34: 3.769863014 | H34: 4.769863014 | I34: 5.769863014 | J34: 6.769863014 | K34: 7.769863014 | L34: 8.769863014 | M34: 9.769863014 | N34: 10.76986301 | O34: 11.76986301 | P34: =(O34+1) -> 12.76986301 | Q34: =(P34+1) -> 13.76986301 | R34: 14.76986301 | S34: 15.76986301 | T34: 16.76986301 | U34: 17.76986301 | V34: 18.76986301 | W34: 19.76986301 | X34: 20.76986301 | Y34: 21.76986301
B35: Present Value Factor | C35: =IF(C34=0,0,1/(1+$C$75)^(C34*0.5)) -> 0 | D35: =IF(D34=0,0,1/(1+$C$75)^(D34*0.5)) -> 0.9319152683 | E35: =(1/(1+$C$75)^(E34-0.5)) -> 0.7924555363 | F35: =(1/(1+$C$75)^(F34-0.5)) -> 0.6598101664 | G35: 0.5493676752 | H35: 0.4574116283 | I35: 0.3808476675 | J35: 0.3170993846 | K35: =(1/(1+$C$75)^(K34-0.5)) -> 0.2640216241 | L35: 0.2198282979 | M35: 0.1830322828 | N35: 0.1523953779 | O35: 0.1268866392 | P35: 0.105647687 | Q35: =(1/(1+$C$75)^(Q34-0.5)) -> 0.08796382229 | R35: 0.0732399757 | S35: 0.06098068389 | T35: 0.05077341673 | U35: 0.04227469556 | V35: 0.03519853498 | W35: 0.02930681932 | X35: 0.02440128997 | Y35: 0.02031687389
B37: PV of FCFE | C37: =C30*C35 -> 0 | D37: -40034.16314 | E37: -17031.14449 | F37: 3563.915084 | G37: 39410.22236 | H37: 0 | I37: 0 | J37: 0 | K37: 0 | L37: 0 | M37: 0 | N37: 0 | O37: 0 | P37: 0
B40: Terminal Value Calculation
B41: =VLOOKUP($C$114,$B$115:$K$119,COLUMN($G$115)-COLUMN($B$115)+1,0)&" FYE "&TEXT($D$108,"dd-mmm-yy") -> EBITDA FYE 31-Dec-18 | C41: =VLOOKUP($C$114,$B$115:$K$119,COLUMN($H$115)-COLUMN($B$115)+1,0) -> 228212.4999
B42: =C114&" Exit Year" -> EV/EBITDA Multiple Exit Year | C42: =C79 -> 13
B43: ="Terminal Value " -> Terminal Value | C43: =C41*C42 -> 2966762.499
B44: ="Net Debt Exit Year" -> Net Debt Exit Year | C44: =VLOOKUP($C$114,$B$115:$K$119,COLUMN($J$115)-COLUMN($B$115)+1,0) -> 0
B45: Terminal Value of Equity | C45: =C43-C44 -> 2966762.499
B48: Exit Year FCFE | C48: =E112 -> 71737.42493
B49: Terminal Growth Rate | C49: =C80 -> 0.04
B50: ="Terminal Value " -> Terminal Value | C50: =F112 -> 463294.4256
B52: Equity Value
B53: PV of FCFE | C53: =SUM(D37:$P$37) -> -14091.17018
B54: Terminal Value | C54: =IF(C109="Gordon",C50,C45) -> 2966762.499
B55: PV Factor | C55: =(1/(1+$C$75)^(HLOOKUP($D$108,DCF!$C$3:$N$37,ROW(DCF!$C$34)-ROW(DCF!$C$3)+1,0)-IF($C$109="gordon",0.5,0))) -> 0.5012855103
B56: PV of Terminal Value | C56: =C54*C55 -> 1487195.053 | D56: =C56/C61 -> 0.7044388342
B57: PV of Tax Benefits of Amortization | C57: ='Tax Amort'!C33 -> 0
B58: PV of Net Operating Losses | C58: =NOL!C26 -> 80992.10065 | D58: =C58/C61 -> 0.03836348221 | E58: =IF(D58>15%,"Red Flag! NOLs to be introspected further","OK") -> OK
B59: Equity Value | C59: =C53+C56+C58+C57 -> 1554095.984
B60: Current Cash & Cash Equivalents | C60: =Cash_Flow!F55 -> 557081 | D60: =IF(Control!C6=Control!C7," ",IF(Control!C22=1,"Please manually enter projected cash as on valuation date in cell c65"," ")) ->  | G60: =IF(Control!C6=Control!C7,HLOOKUP(Control!$C$7,Bal_Sheet!$D$63:$AX$119,ROW(Bal_Sheet!$C$66)-ROW(Bal_Sheet!$C$63)+1,0),IF(Control!C22=0,HLOOKUP(Control!$C$6,Bal_Sheet!$D$63:$AX$119,ROW(Bal_Sheet!$C$66)-ROW(Bal_Sheet!$C$63)+1,0),DCF!C66))-IF(C66=0,D28,0) -> 557081
B61: Total Equity Value | C61: =C59+C60 -> 2111176.984
B63: Exact valuation date cash availability | C63: 0 | D63: Please enter 1 if available, otherwise enter 0
B64: Exact valuation date debt availability | C64: 0 | D64: Please enter 1 if available, otherwise enter 0
B66: Current Cash & Cash Equivalents | C66: 0
B67: Current Debt | C67: 0 | D67: =IF(Control!C6=Control!C7,"Please don't use cell c66",IF(Control!C23=1,"Please manually enter projected debt as on valuation date in cell c66","Please don't use cell c66")) -> Please don't use cell c66
B69: Cost of Equity Calculations | C69: Mean
B70: Risk Free Rate | C70: 0.0197 | D70: Bloomberg
B71: Beta | C71: ='BETA & CSRP'!D145 -> 1.15591677 | D71: Bloomberg
B72: Equity Risk Premium | C72: 0.0618 | D72: 2014 Valuation Handbook by Duff & Phelps
B73: Size Premium | C73: 0.0599 | D73: 2014 Valuation Handbook by Duff & Phelps
B74: Company Specific Risk Premium | C74: 0.05
B75: Cost of Equity | C75: =C78 -> 0.2010356564
B77: Sensitivity Parameters
B78: Discount Rate | C78: =D87 -> 0.2010356564
B79: Exit Multiple | C79: =G84 -> 13
B80: Terminal Growth Rate | C80: =G94 -> 0.04
C82: Sensitivity Table
E83: Exit Multiple
D84: =$C$61 -> 2111176.984 | E84: =F84-0.1 -> 12.8 | F84: =G84-0.1 -> 12.9 | G84: =VLOOKUP($C$114,$B$115:$K$119,COLUMN($F$115)-COLUMN($B$115)+1,0) -> 13 | H84: =G84+0.1 -> 13.1 | I84: =H84+0.1 -> 13.2
C85: Cost of Equity | D85: =D86+0.025 -> 0.2510356564
D86: =D87+0.025 -> 0.2260356564
D87: =C70+C71*C72+C73+C74 -> 0.2010356564
D88: =D87-0.01 -> 0.1910356564
D89: =D88-0.01 -> 0.1810356564
E91: =TABLE(C76,C74)
C92: Sensitivity Table
E93: Terminal Growth Rate
D94: =$C$61 -> 2111176.984 | E94: =F94-0.5% -> 0.03 | F94: =G94-0.5% -> 0.035 | G94: =D112 -> 0.04 | H94: =G94+0.5% -> 0.045 | I94: =H94+0.5% -> 0.05
C95: Cost of Equity | D95: =D96+0.01 -> 0.2210356564
D96: =D97+0.01 -> 0.2110356564
D97: =D87 -> 0.2010356564
D98: =D97-0.01 -> 0.1910356564
D99: =D98-0.01 -> 0.1810356564
B102: Valuation Range | C102: Low | D102: High
B104: Discounted Cash Flow | C104: =IF($C$109="Gordon",$F$96,$F$86) -> 0 | D104: =IF($C$109="Gordon",$H$98,$H$88) -> 0
B107: Terminal Value Assumptions
B108: Terminal Year | C108: 2018 | D108: =EOMONTH(DATE($C$108,Control!$D$5,28),0) -> 2018-12-31 | E108: =IF(DCF!$D$108>Control!$C$11,"Error","OK") -> OK
B109: Select Terminal Value Approach | C109: Exit Multiple
B111: Gordon Growth Model | D111: Growth | E111: FCFE | F111: Ter. Value | G111: Imp. P/E | H111: PEG | I111: Implied LT Growth
B112: 1. Gordon Growth Model | D112: 0.04 | E112: =HLOOKUP($D$108,DCF!$C$3:$N$37,ROW(DCF!$C$30)-ROW(DCF!$C$3)+1,0) -> 71737.42493 | F112: =$E$112*(1+$C$80)/($C$75-$C$80) -> 463294.4256 | G112: =F112/$H$116 -> 2.790745346 | H112: =G112/(I112*100) -> 0.6976863364 | I112: 0.04
B114: 2. Select Multiple ? | C114: EV/EBITDA Multiple
B115: Exit Multiple Approach | D115: Low | E115: High | F115: Selected | G115: Multiplier | H115: Multiplier | I115: Term. EV | J115: Debt | K115: Ter. Value | L115: Imp. P/E | M115: PEG | N115: Implied LT Growth
B116: P/E Multiple | G116: Net Earnings | H116: =HLOOKUP($D$108,DCF!$C$3:$N$37,ROW(DCF!$C$9)-ROW(DCF!$C$3)+1,0) -> 166011 | I116: =H116*F116 -> 0 | J116: 0 | K116: =I116-J116 -> 0 | L116: =K116/$H$116 -> 0 | M116: =L116/(N116*100) -> 0 | N116: 0.04
B117: EV/EBITDA Multiple | E117: =Comps_Analysis!$P$66 -> 11.74633251 | F117: 13 | G117: EBITDA | H117: =HLOOKUP($D$108,DCF!$C$3:$N$37,ROW(DCF!$C$7)-ROW(DCF!$C$3)+1,0) -> 228212.4999 | I117: =H117*F117 -> 2966762.499 | J117: =$C$125 -> 0 | K117: =I117-J117 -> 2966762.499 | L117: =K117/$H$116 -> 17.87087903 | M117: =L117/(N117*100) -> 4.467719758 | N117: =N116 -> 0.04
B118: EV/Revenue Multiple | F118: =+I117/H118 -> 5.892840824 | G118: Revenue | H118: =HLOOKUP($D$108,DCF!$C$3:$N$37,ROW(DCF!$C$6)-ROW(DCF!$C$3)+1,0) -> 503452 | I118: =H118*F118 -> 2966762.499 | J118: =$C$125 -> 0 | K118: =I118-J118 -> 2966762.499 | L118: =K118/$H$116 -> 17.87087903 | M118: =L118/(N118*100) -> 4.467719758 | N118: =N117 -> 0.04
B119: P/S Multiple | G119: Revenue | H119: =HLOOKUP($D$108,DCF!$C$3:$N$37,ROW(DCF!$C$6)-ROW(DCF!$C$3)+1,0) -> 503452 | I119: =H119*F119 -> 0 | J119: 0 | K119: =I119-J119 -> 0 | L119: =K119/$H$116 -> 0 | M119: =L119/(N119*100) -> 0 | N119: =N118 -> 0.04
B121: Exit Year Financial Data
B122: Revenue | C122: =HLOOKUP($D$108,DCF!$C$3:$N$37,ROW(DCF!$C$6)-ROW(DCF!$C$3)+1,0) -> 503452
B123: EBITDA | C123: =HLOOKUP($D$108,DCF!$C$3:$N$37,ROW(DCF!$C$7)-ROW(DCF!$C$3)+1,0) -> 228212.4999
B124: Net Earnings (PAT) | C124: =HLOOKUP($D$108,DCF!$C$3:$N$37,ROW(DCF!$C$9)-ROW(DCF!$C$3)+1,0) -> 166011
B125: Debt | C125: =HLOOKUP($D$108,Bal_Sheet!$I$63:$AX$121,ROW(Bal_Sheet!$C$110)-ROW(Bal_Sheet!$C$63)+1,0) -> 0
B126: Cash | C126: =HLOOKUP($D$108,Bal_Sheet!$I$63:$AX$121,ROW(Bal_Sheet!$C$66)-ROW(Bal_Sheet!$C$63)+1,0) -> 645669.767
B132: End of the Statement | C132: =IF(OR(C$3="Terminal",C$3=""),0,1) -> 1 | D132: =IF(OR(D$3="Terminal",D$3=""),0,1) -> 1 | E132: 1 | F132: 1 | G132: 1 | H132: 0 | I132: 0 | J132: 0 | K132: 0 | L132: 0 | M132: 0 | N132: 0 | O132: 0 | P132: 0

Sheet DCF-FCFF
B1: Discounted Cash Flow | C1: FCFF
B2: =Control!$C$4 -> (in $'000) | O2: =IF(OR(N2="Terminal",N2=""),"",IF(#REF!(N2,#REF!)>#REF!,"Terminal",#REF!(N2,#REF!))) ->  | P2: =IF(OR(O2="Terminal",O2=""),"",IF(#REF!(O2,#REF!)>#REF!,"Terminal",#REF!(O2,#REF!))) -> 
B3: Discounted Cash Flow Statement | C3: =Bal_Sheet!H3 -> 2015-03-25 | D3: =Bal_Sheet!I3 -> 2015-12-31 | E3: =IF(OR(D3="",D3="Terminal"),"",IF(EOMONTH(D3,12)>$D$112,"Terminal",EOMONTH(D3,12))) -> 2016-12-31 | F3: =IF(OR(E3="",E3="Terminal"),"",IF(EOMONTH(E3,12)>$D$112,"Terminal",EOMONTH(E3,12))) -> 2017-12-31 | G3: =IF(OR(F3="",F3="Terminal"),"",IF(EOMONTH(F3,12)>$D$112,"Terminal",EOMONTH(F3,12))) -> 2018-12-31 | H3: =IF(OR(G3="",G3="Terminal"),"",IF(EOMONTH(G3,12)>$D$112,"Terminal",EOMONTH(G3,12))) -> Terminal
